Workbook

Sheet INTRO
C1: Cette version sera utilisée par les pays endémiques à la Loase
B2: Formulaire de Rapport Commun v.3.1 (L)
B4: Le but de ce formulaire de rapport commun - disponible sous forme de fichier Excel - est de mettre à disposition des autorités sanitaires nationales et des gestionnaires de données un outil standardisé qui réponde aux défis, facilite l'intégration et par conséquent contribue à améliorer la gestion de programme. Ce formulaire tend à standardiser le rapport de résultats des programmes nationaux, améliore la disponibilité et la coordination des données de chimioprévention à travers les Bureaux des Régions de l'Organisation mondiale de la Santé. Les autorités nationales sont priées de compléter ce formulaire et de le soumettre à l'Organisation mondiale de la Santé avant le 15 août de l'année en cours pour rapporter les données des activités de chimioprévention mises en oeuvre l'année précédente.
B6: Structure de l'application (feuilles de travail) :
B8: INTRO | C8: Cette feuille contient des instructions pour compléter le formulaire de rapport commun et des informations sur le statut de la chimioprévention pour les maladies d'endémie du pays.
B9: COUNTRY_INFO | C9: Cette feuille contient des informations sur la structure administrative du pays, la population par groupe d'âge, le statut d'endémicité pour chaque maladie, la population devant être traitée par chimioprévention, les interventions prévues et les interventions mises en oeuvre.
B10: MDA1, MDA2, MDA3, T1, T2 et T3 | C10: Ces feuilles contiennent des informations sur l'endémicité des districts ciblés pour le traitement aux médicaments spécifiques pour la chimioprévention, les plans de traitement, et le nombre de personnes traitées par groupe d'âge.
B11: DISTRICT | C11: Cette feuille contient un résumé sur les personnes traitées, par maladie, au niveau de mise en oeuvre. Si les données par genre (sexe) sont disponibles, merci de les saisir.
B12: SUMMARY | C12: Cette feuille contient un résumé sur les personnes traitées, par maladie et par type d'intervention de chimioprévention. Avant de générer le rapport (exécuter macro), veuillez sélectionner la maladie pour laquelle vous souhaitez un rapport. Veuillez suivre le même processus pour générer les divers rapports. Cette feuille doit être imprimée et soumise comme formulaire de rapport commun (voir les instructions pour la soumission du formulaire sous la feuille SUMMARY).
B14: Instructions pour la saisie des données
B16: La plupart des cellules des feuilles de travail mentionnées ci-dessus contiennent des formules calculées automatiquement en fonction du protocole de traitement recommandé par l'OMS pour chaque maladie. Voir : http://www.who.int/neglected_diseases/preventive_chemotherapy/pct_manual/en/index.html
B18: Veuillez entrer vos données dans les cellules en fonction de leur code de couleur :
C20: Blanc - la cellule n'est pas protégée. Veuillez entrer la valeur de l'indicateur demandé.
C22: Jaune - la cellule est protégée et inclut le nom de l'indicateur. Aucune entrée de données requise.
C24: Orange - la cellule n'est pas protégée et contient un menu déroulant. Veuillez sélectionner la valeur dans le menu déroulant.
C27: Vert - la cellule n'est pas protégée et contient des formules. Veuillez changer la valeur indiquée uniquement si vos données sont différentes de celles calculées automatiquement.
C30: Bleu - la cellule est protégée et contient des formules. Aucune entrée de données requise.
B32: Données pays
B34: PAYS | E34: Congo | G34: CG | H34: COG
B36: Année de rapport des données | E36: 2022
B38: Le pays est-il endémique à la filariose lymphatique (FL) ? | E38: Endémique
B40: Le pays est-il endémique à l'onchocercose (ONCHO) ? | E40: Endémique
B42: Le pays est-il endémique aux géohelminthiases (STH) ? | E42: Endémique
B44: Le pays est-il endémique à la schistosomiase (SCH) ? | E44: Endémique
B46: Combien d'unités administratives compte le pays ? | E46: 52
B47: Si les données démographiques par groupe d'âge ne sont pas disponibles au second niveau administratif, veuillez entrer la proportion (%) de population, par groupe d'âge, du pays. Si les données sont disponibles, veuillez laisser les cellules vierges.
B48: 1-4 ans | C48: Enfants d'âge pré-scolaire (EAPréS) | E48: 0.1154
B49: 5-14 ans | C49: Enfants d'âge scolaire (EAS) | E49: 0.2689
B50: 15 ans et plus | C50: Adultes | E50: 0.586

Sheet COUNTRY_INFO
A1: INFORMATIONS PAYS
A2: Structure administrative, population par groupe d'âge, statut d'endémicité, interventions planifiées et interventions mises en oeuvre | V2: 1.0229
A4: TOTAL | D4: =SUM(D$9:D$1000) -> 5750344 | E4: =SUM(E$9:E$1000) -> 663589 | F4: =SUM(F$9:F$1000) -> 1546268 | G4: =SUM(G$9:G$1000) -> 3369703 | M4: =SUM(M$9:M$1000) -> 1114335 | N4: =SUM(N$9:N$1000) -> 804412 | O4: =SUM(O$9:O$1000) -> 839886 | P4: =SUM(P$9:P$1000) -> 482646.46
A6: Structure administrative du pays | D6: Population | H6: Endémicité | M6: Population nécessitant la CP | Q6: Nombre de tournées de traitement prévues pour l'année | U6: Mise en oeuvre de la chimioprévention | AA6: Prevalence 2011 | AC6: Endemicité 2011 | AG6: mda3 | AH6: mda1 | AI6: mda4 | AJ6: t1 | AK6: t3r1 | AM6: sth | AN6: nombre de tours d'ALB
A7: Pays | B7: Région/Département | C7: District | D7: Total | E7: EAPréS | F7: EAS | G7: Adultes | H7: FL | I7: Oncho | J7: STH | K7: SCH | L7: Loa | M7: FL | N7: Oncho | O7: STH | P7: SCH | Q7: FL | R7: Oncho | S7: STH | T7: SCH | U7: TOURNEE 1 | V7: TOURNEE 2 | Y7: IU_ID | Z7: IU_NAME | AA7: x | AB7: x | AC7: x | AD7: x | AE7: x | AF7: x | AG7: x | AH7: x | AI7: x | AJ7: x | AK7: x | AL7: x | AM7: x | AN7: x | AO7: x | AP7: x | AQ7: x | AR7: x | AS7: x | AT7: x | AU7: x | AV7: x | AW7: x | AX7: x | AY7: x | AZ7: x | BA7: x | BB7: x | BC7: x | BD7: x | BE7: x | BF7: x | BG7: x | BH7: x | BI7: x | BJ7: x | BK7: x | BL7: x | BM7: x | BN7: x | BO7: x | BP7: x | BQ7: x
A9: =IF(INTRO!$E$34<>0,INTRO!$E$34,"") -> Congo | B9: Bouenza | C9: Loudima | D9: 54443 | E9: =IF(INTRO!$E$48="","",ROUND($D9*INTRO!$E$48,0)) -> 6283 | F9: =IF(INTRO!$E$49="","",ROUND($D9*INTRO!$E$49,0)) -> 14640 | G9: =IF(INTRO!$E$50="","",ROUND($D9*INTRO!$E$50,0)) -> 31904 | H9: 0 | I9: 1 | J9: 1 | K9: 3 | L9: 1 | M9: =IF(INTRO!$E$38="Endémique", IF($H9>0, IF($H9=4,"Inconnu", IF($H9=99,"Interrompu", $D9)), 0),"Non requis") -> 0 | N9: 16268 | O9: =IF(INTRO!$E$42="Endémique", IF(AND($J9>1,$J9<5), IF($J9=4, "Inconnu", E9+F9), 0),"Non requis") -> 0 | P9: =IF(INTRO!$E$44="Endémique", IF(AND($K9>0,$K9<5), IF($K9=4,"Inconnu", IF($K9=1, $F9*0.33, IF($K9=2, $F9*0.5+$G9*0.2, SUM(F9:G9)))), 0),"Non requis") -> 46544 | Q9: 0 | R9: 1 | S9: 1 | T9: 1 | U9: MDA3 (IVM) | V9: T1 (PZQ+ALB/MBD) | Y9: 12831 | Z9: Loudima | AA9: 14.25612058 | AB9: 56.666667 | AC9: 1 | AD9: 3 | AG9: ='MDA3'!Q9 -> 10907 | AH9: ='MDA1'!M9 -> 0 | AI9: ='MDA4'!U9 -> 0 | AJ9: ='T1'!M9 -> 7099 | AK9: =T3_R1!L9 -> 0 | AM9: =AH9+AI9+AJ9+AK9 -> 7099 | AN9: =COUNTIF(AH9:AK9,">1") -> 1 | AQ9: =COUNTIF(AH9:AK9,">0") -> 1 | AU9: 1
A10: =IF(INTRO!$E$34<>0,INTRO!$E$34,"") -> Congo | B10: Bouenza | C10: Loutété | D10: 60094 | E10: =IF(INTRO!$E$48="","",ROUND($D10*INTRO!$E$48,0)) -> 6935 | F10: =IF(INTRO!$E$49="","",ROUND($D10*INTRO!$E$49,0)) -> 16159 | G10: =IF(INTRO!$E$50="","",ROUND($D10*INTRO!$E$50,0)) -> 35215 | H10: 1 | I10: 1 | J10: 2 | K10: 2 | L10: 1 | M10: =IF(INTRO!$E$38="Endémique", IF($H10>0, IF($H10=4,"Inconnu", IF($H10=99,"Interrompu", $D10)), 0),"Non requis") -> 60094 | N10: 34171 | O10: =IF(INTRO!$E$42="Endémique", IF(AND($J10>1,$J10<5), IF($J10=4, "Inconnu", E10+F10), 0),"Non requis") -> 23094 | P10: =IF(INTRO!$E$44="Endémique", IF(AND($K10>0,$K10<5), IF($K10=4,"Inconnu", IF($K10=1, $F10*0.33, IF($K10=2, $F10*0.5+$G10*0.2, SUM(F10:G10)))), 0),"Non requis") -> 15122.5 | Q10: 1 | R10: 1 | S10: 1 | T10: 1 | U10: MDA1 (IVM+ALB) | V10: T1 (PZQ+ALB/MBD) | Y10: 12823 | Z10: Loutété | AA10: 34.1666665 | AB10: 20 | AC10: 2 | AD10: 2 | AG10: ='MDA3'!Q10 -> 0 | AH10: ='MDA1'!M10 -> 27844 | AI10: ='MDA4'!U10 -> 3088 | AJ10: ='T1'!M10 -> 6474 | AK10: =T3_R1!L10 -> 0 | AM10: =AH10+AI10+AJ10+AK10 -> 37406 | AN10: =COUNTIF(AH10:AK10,">1") -> 3 | AQ10: =COUNTIF(AH10:AK10,">0") -> 3 | AU10: 1
A11: =IF(INTRO!$E$34<>0,INTRO!$E$34,"") -> Congo | B11: Bouenza | C11: Madingou | D11: 114370 | E11: =IF(INTRO!$E$48="","",ROUND($D11*INTRO!$E$48,0)) -> 13198 | F11: =IF(INTRO!$E$49="","",ROUND($D11*INTRO!$E$49,0)) -> 30754 | G11: =IF(INTRO!$E$50="","",ROUND($D11*INTRO!$E$50,0)) -> 67021 | H11: 1 | I11: 1 | J11: 1 | K11: 0 | L11: 1 | M11: =IF(INTRO!$E$38="Endémique", IF($H11>0, IF($H11=4,"Inconnu", IF($H11=99,"Interrompu", $D11)), 0),"Non requis") -> 114370 | N11: 54015 | O11: =IF(INTRO!$E$42="Endémique", IF(AND($J11>1,$J11<5), IF($J11=4, "Inconnu", E11+F11), 0),"Non requis") -> 0 | P11: =IF(INTRO!$E$44="Endémique", IF(AND($K11>0,$K11<5), IF($K11=4,"Inconnu", IF($K11=1, $F11*0.33, IF($K11=2, $F11*0.5+$G11*0.2, SUM(F11:G11)))), 0),"Non requis") -> 0 | Q11: 1 | R11: 1 | S11: 2 | T11: 0 | U11: MDA1 (IVM+ALB) | V11: T3 (ALB/MBD) | Y11: 12763 | Z11: Madingou | AA11: 18.333333 | AB11: 0 | AC11: 1 | AD11: 0 | AG11: ='MDA3'!Q11 -> 0 | AH11: ='MDA1'!M11 -> 47537 | AI11: ='MDA4'!U11 -> 17545 | AJ11: ='T1'!M11 -> 0 | AK11: =T3_R1!L11 -> 23552 | AM11: 88634 | AN11: 3 | AP11: x | AQ11: 3 | AU11: 1
A12: =IF(INTRO!$E$34<>0,INTRO!$E$34,"") -> Congo | B12: Bouenza | C12: Mouyondzi | D12: 90924 | E12: =IF(INTRO!$E$48="","",ROUND($D12*INTRO!$E$48,0)) -> 10493 | F12: =IF(INTRO!$E$49="","",ROUND($D12*INTRO!$E$49,0)) -> 24449 | G12: =IF(INTRO!$E$50="","",ROUND($D12*INTRO!$E$50,0)) -> 53281 | H12: 1 | I12: 1 | J12: 3 | K12: 3 | L12: 1 | M12: =IF(INTRO!$E$38="Endémique", IF($H12>0, IF($H12=4,"Inconnu", IF($H12=99,"Interrompu", $D12)), 0),"Non requis") -> 90924 | N12: 43984 | O12: =IF(INTRO!$E$42="Endémique", IF(AND($J12>1,$J12<5), IF($J12=4, "Inconnu", E12+F12), 0),"Non requis") -> 34942 | P12: =IF(INTRO!$E$44="Endémique", IF(AND($K12>0,$K12<5), IF($K12=4,"Inconnu", IF($K12=1, $F12*0.33, IF($K12=2, $F12*0.5+$G12*0.2, SUM(F12:G12)))), 0),"Non requis") -> 77730 | Q12: 1 | R12: 1 | S12: 1 | T12: 1 | U12: MDA1 (IVM+ALB) | V12: T1 (PZQ+ALB/MBD) | Y12: 12765 | Z12: Mouyondzi | AA12: 52.56355933 | AB12: 68.333333 | AC12: 3 | AD12: 3 | AG12: ='MDA3'!Q12 -> 0 | AH12: ='MDA1'!M12 -> 31952 | AI12: ='MDA4'!U12 -> 7083 | AJ12: ='T1'!M12 -> 14553 | AK12: =T3_R1!L12 -> 0 | AM12: 53588 | AN12: 3 | AQ12: 3 | AU12: 1
A13: =IF(INTRO!$E$34<>0,INTRO!$E$34,"") -> Congo | B13: Bouenza | C13: Nkayi | D13: 136922 | E13: =IF(INTRO!$E$48="","",ROUND($D13*INTRO!$E$48,0)) -> 15801 | F13: =IF(INTRO!$E$49="","",ROUND($D13*INTRO!$E$49,0)) -> 36818 | G13: =IF(INTRO!$E$50="","",ROUND($D13*INTRO!$E$50,0)) -> 80236 | H13: 0 | I13: 1 | J13: 2 | K13: 0 | L13: 1 | M13: =IF(INTRO!$E$38="Endémique", IF($H13>0, IF($H13=4,"Inconnu", IF($H13=99,"Interrompu", $D13)), 0),"Non requis") -> 0 | N13: 42057 | O13: =IF(INTRO!$E$42="Endémique", IF(AND($J13>1,$J13<5), IF($J13=4, "Inconnu", E13+F13), 0),"Non requis") -> 52619 | P13: =IF(INTRO!$E$44="Endémique", IF(AND($K13>0,$K13<5), IF($K13=4,"Inconnu", IF($K13=1, $F13*0.33, IF($K13=2, $F13*0.5+$G13*0.2, SUM(F13:G13)))), 0),"Non requis") -> 0 | Q13: 0 | R13: 1 | S13: 1 | T13: 1 | U13: MDA3 (IVM) | V13: T1 (PZQ+ALB/MBD) | Y13: 12832 | Z13: Nkayi | AA13: 35.1900585 | AB13: 0 | AC13: 2 | AD13: 0 | AG13: ='MDA3'!Q13 -> 37840 | AH13: ='MDA1'!M13 -> 0 | AI13: ='MDA4'!U13 -> 0 | AJ13: ='T1'!M13 -> 19766 | AK13: =T3_R1!L13 -> 0 | AM13: 19766 | AN13: 1 | AQ13: 1 | AU13: 1
A14: =IF(INTRO!$E$34<>0,INTRO!$E$34,"") -> Congo | B14: Brazzaville | C14: Bacongo | D14: 171810 | E14: =IF(INTRO!$E$48="","",ROUND($D14*INTRO!$E$48,0)) -> 19827 | F14: =IF(INTRO!$E$49="","",ROUND($D14*INTRO!$E$49,0)) -> 46200 | G14: =IF(INTRO!$E$50="","",ROUND($D14*INTRO!$E$50,0)) -> 100681 | H14: 0 | I14: 1 | J14: 4 | K14: 4 | L14: 1 | M14: =IF(INTRO!$E$38="Endémique", IF($H14>0, IF($H14=4,"Inconnu", IF($H14=99,"Interrompu", $D14)), 0),"Non requis") -> 0 | N14: 132180 | O14: =IF(INTRO!$E$42="Endémique", IF(AND($J14>1,$J14<5), IF($J14=4, "Inconnu", E14+F14), 0),"Non requis") -> Inconnu | P14: =IF(INTRO!$E$44="Endémique", IF(AND($K14>0,$K14<5), IF($K14=4,"Inconnu", IF($K14=1, $F14*0.33, IF($K14=2, $F14*0.5+$G14*0.2, SUM(F14:G14)))), 0),"Non requis") -> Inconnu | Q14: 0 | R14: 1 | S14: 1 | T14: 0 | U14: MDA3 (IVM) | V14: T3 (ALB/MBD) | Y14: 12800 | Z14: Bacongo | AC14: 4 | AD14: 4 | AG14: ='MDA3'!Q14 -> 63047 | AH14: ='MDA1'!M14 -> 0 | AI14: ='MDA4'!U14 -> 0 | AJ14: ='T1'!M14 -> 0 | AK14: =T3_R1!L14 -> 7806 | AM14: 7806 | AN14: 1 | AQ14: 1 | AU14: 1
A15: =IF(INTRO!$E$34<>0,INTRO!$E$34,"") -> Congo | B15: Brazzaville | C15: Djiri | D15: 196253 | E15: =IF(INTRO!$E$48="","",ROUND($D15*INTRO!$E$48,0)) -> 22648 | F15: =IF(INTRO!$E$49="","",ROUND($D15*INTRO!$E$49,0)) -> 52772 | G15: =IF(INTRO!$E$50="","",ROUND($D15*INTRO!$E$50,0)) -> 115004 | H15: 0 | I15: 4 | J15: 1 | K15: 0 | L15: 1 | M15: =IF(INTRO!$E$38="Endémique", IF($H15>0, IF($H15=4,"Inconnu", IF($H15=99,"Interrompu", $D15)), 0),"Non requis") -> 0 | N15: 0 | O15: =IF(INTRO!$E$42="Endémique", IF(AND($J15>1,$J15<5), IF($J15=4, "Inconnu", E15+F15), 0),"Non requis") -> 0 | P15: =IF(INTRO!$E$44="Endémique", IF(AND($K15>0,$K15<5), IF($K15=4,"Inconnu", IF($K15=1, $F15*0.33, IF($K15=2, $F15*0.5+$G15*0.2, SUM(F15:G15)))), 0),"Non requis") -> 0 | Q15: 0 | R15: 0 | S15: 1 | T15: 0 | V15: T3 (ALB/MBD) | Y15: 12847 | Z15: Djiri | AA15: 12.5 | AB15: 0 | AC15: 1 | AD15: 0 | AG15: ='MDA3'!Q15 -> 0 | AH15: ='MDA1'!M15 -> 0 | AI15: ='MDA4'!U15 -> 0 | AJ15: ='T1'!M15 -> 0 | AK15: =T3_R1!L15 -> 33640 | AM15: 33640 | AN15: 1 | AQ15: 1 | AU15: 1
A16: =IF(INTRO!$E$34<>0,INTRO!$E$34,"") -> Congo | B16: Brazzaville | C16: Île Mbamou | D16: 16754 | E16: =IF(INTRO!$E$48="","",ROUND($D16*INTRO!$E$48,0)) -> 1933 | F16: =IF(INTRO!$E$49="","",ROUND($D16*INTRO!$E$49,0)) -> 4505 | G16: =IF(INTRO!$E$50="","",ROUND($D16*INTRO!$E$50,0)) -> 9818 | H16: 0 | I16: 4 | J16: 4 | K16: 4 | L16: 1 | M16: =IF(INTRO!$E$38="Endémique", IF($H16>0, IF($H16=4,"Inconnu", IF($H16=99,"Interrompu", $D16)), 0),"Non requis") -> 0 | N16: 0 | O16: =IF(INTRO!$E$42="Endémique", IF(AND($J16>1,$J16<5), IF($J16=4, "Inconnu", E16+F16), 0),"Non requis") -> Inconnu | P16: =IF(INTRO!$E$44="Endémique", IF(AND($K16>0,$K16<5), IF($K16=4,"Inconnu", IF($K16=1, $F16*0.33, IF($K16=2, $F16*0.5+$G16*0.2, SUM(F16:G16)))), 0),"Non requis") -> Inconnu | Q16: 0 | R16: 0 | S16: 1 | T16: 0 | V16: T3 (ALB/MBD) | Y16: 12834 | Z16: Ile M'Bamou | AC16: 4 | AD16: 4 | AG16: ='MDA3'!Q16 -> 0 | AH16: ='MDA1'!M16 -> 0 | AI16: ='MDA4'!U16 -> 0 | AJ16: ='T1'!M16 -> 0 | AK16: =T3_R1!L16 -> 1319 | AM16: 1319 | AN16: 1 | AQ16: 1 | AU16: 1
A17: =IF(INTRO!$E$34<>0,INTRO!$E$34,"") -> Congo | B17: Brazzaville | C17: Madibou | D17: 193270 | E17: =IF(INTRO!$E$48="","",ROUND($D17*INTRO!$E$48,0)) -> 22303 | F17: =IF(INTRO!$E$49="","",ROUND($D17*INTRO!$E$49,0)) -> 51970 | G17: =IF(INTRO!$E$50="","",ROUND($D17*INTRO!$E$50,0)) -> 113256 | H17: 0 | I17: 1 | J17: 1 | K17: 0 | L17: 1 | M17: =IF(INTRO!$E$38="Endémique", IF($H17>0, IF($H17=4,"Inconnu", IF($H17=99,"Interrompu", $D17)), 0),"Non requis") -> 0 | N17: 104780 | O17: =IF(INTRO!$E$42="Endémique", IF(AND($J17>1,$J17<5), IF($J17=4, "Inconnu", E17+F17), 0),"Non requis") -> 0 | P17: =IF(INTRO!$E$44="Endémique", IF(AND($K17>0,$K17<5), IF($K17=4,"Inconnu", IF($K17=1, $F17*0.33, IF($K17=2, $F17*0.5+$G17*0.2, SUM(F17:G17)))), 0),"Non requis") -> 0 | Q17: 0 | R17: 1 | S17: 1 | T17: 0 | U17: MDA3 (IVM) | V17: T3 (ALB/MBD) | Y17: 12824 | Z17: Madibou | AA17: 3.125 | AB17: 0 | AC17: 1 | AD17: 0 | AG17: ='MDA3'!Q17 -> 64623 | AH17: ='MDA1'!M17 -> 0 | AI17: ='MDA4'!U17 -> 0 | AJ17: ='T1'!M17 -> 0 | AK17: =T3_R1!L17 -> 44662 | AM17: 44662 | AN17: 1 | AQ17: 1 | AU17: 1
A18: =IF(INTRO!$E$34<>0,INTRO!$E$34,"") -> Congo | B18: Brazzaville | C18: Makélékélé | D18: 250926 | E18: =IF(INTRO!$E$48="","",ROUND($D18*INTRO!$E$48,0)) -> 28957 | F18: =IF(INTRO!$E$49="","",ROUND($D18*INTRO!$E$49,0)) -> 67474 | G18: =IF(INTRO!$E$50="","",ROUND($D18*INTRO!$E$50,0)) -> 147043 | H18: 0 | I18: 1 | J18: 1 | K18: 1 | L18: 1 | M18: =IF(INTRO!$E$38="Endémique", IF($H18>0, IF($H18=4,"Inconnu", IF($H18=99,"Interrompu", $D18)), 0),"Non requis") -> 0 | N18: 101711 | O18: =IF(INTRO!$E$42="Endémique", IF(AND($J18>1,$J18<5), IF($J18=4, "Inconnu", E18+F18), 0),"Non requis") -> 0 | P18: =IF(INTRO!$E$44="Endémique", IF(AND($K18>0,$K18<5), IF($K18=4,"Inconnu", IF($K18=1, $F18*0.33, IF($K18=2, $F18*0.5+$G18*0.2, SUM(F18:G18)))), 0),"Non requis") -> 22266.42 | Q18: 0 | R18: 1 | S18: 1 | T18: 0 | U18: MDA3 (IVM) | V18: T3 (ALB/MBD) | Y18: 12805 | Z18: Makélékélé | AA18: 1.654957286 | AB18: 1.666667 | AC18: 1 | AD18: 1 | AG18: ='MDA3'!Q18 -> 55879 | AH18: ='MDA1'!M18 -> 0 | AI18: ='MDA4'!U18 -> 0 | AJ18: ='T1'!M18 -> 0 | AK18: =T3_R1!L18 -> 31955 | AM18: 31955 | AN18: 1 | AQ18: 1 | AU18: 1
A19: =IF(INTRO!$E$34<>0,INTRO!$E$34,"") -> Congo | B19: Brazzaville | C19: Mfilou | D19: 236370 | E19: =IF(INTRO!$E$48="","",ROUND($D19*INTRO!$E$48,0)) -> 27277 | F19: =IF(INTRO!$E$49="","",ROUND($D19*INTRO!$E$49,0)) -> 63560 | G19: =IF(INTRO!$E$50="","",ROUND($D19*INTRO!$E$50,0)) -> 138513 | H19: 0 | I19: 1 | J19: 1 | K19: 0 | L19: 1 | M19: =IF(INTRO!$E$38="Endémique", IF($H19>0, IF($H19=4,"Inconnu", IF($H19=99,"Interrompu", $D19)), 0),"Non requis") -> 0 | N19: 94117 | O19: =IF(INTRO!$E$42="Endémique", IF(AND($J19>1,$J19<5), IF($J19=4, "Inconnu", E19+F19), 0),"Non requis") -> 0 | P19: =IF(INTRO!$E$44="Endémique", IF(AND($K19>0,$K19<5), IF($K19=4,"Inconnu", IF($K19=1, $F19*0.33, IF($K19=2, $F19*0.5+$G19*0.2, SUM(F19:G19)))), 0),"Non requis") -> 0 | Q19: 0 | R19: 1 | S19: 1 | T19: 0 | U19: MDA3 (IVM) | V19: T3 (ALB/MBD) | Y19: 12806 | Z19: Mfilou | AA19: 8.333333 | AB19: 0 | AC19: 1 | AD19: 0 | AG19: ='MDA3'!Q19 -> 82654 | AH19: ='MDA1'!M19 -> 0 | AI19: ='MDA4'!U19 -> 0 | AJ19: ='T1'!M19 -> 0 | AK19: =T3_R1!L19 -> 32812 | AM19: 32812 | AN19: 1 | AQ19: 1 | AU19: 1
A20: =IF(INTRO!$E$34<>0,INTRO!$E$34,"") -> Congo | B20: Brazzaville | C20: Moungali | D20: 249813 | E20: =IF(INTRO!$E$48="","",ROUND($D20*INTRO!$E$48,0)) -> 28828 | F20: =IF(INTRO!$E$49="","",ROUND($D20*INTRO!$E$49,0)) -> 67175 | G20: =IF(INTRO!$E$50="","",ROUND($D20*INTRO!$E$50,0)) -> 146390 | H20: 0 | I20: 4 | J20: 1 | K20: 1 | L20: 1 | M20: =IF(INTRO!$E$38="Endémique", IF($H20>0, IF($H20=4,"Inconnu", IF($H20=99,"Interrompu", $D20)), 0),"Non requis") -> 0 | N20: 0 | O20: =IF(INTRO!$E$42="Endémique", IF(AND($J20>1,$J20<5), IF($J20=4, "Inconnu", E20+F20), 0),"Non requis") -> 0 | P20: =IF(INTRO!$E$44="Endémique", IF(AND($K20>0,$K20<5), IF($K20=4,"Inconnu", IF($K20=1, $F20*0.33, IF($K20=2, $F20*0.5+$G20*0.2, SUM(F20:G20)))), 0),"Non requis") -> 22167.75 | Q20: 0 | R20: 0 | S20: 1 | T20: 0 | V20: T3 (ALB/MBD) | Y20: 12808 | Z20: Moungali | AA20: 7.521016636 | AB20: 1.666667 | AC20: 1 | AD20: 1 | AG20: ='MDA3'!Q20 -> 0 | AH20: ='MDA1'!M20 -> 0 | AI20: ='MDA4'!U20 -> 0 | AJ20: ='T1'!M20 -> 0 | AK20: =T3_R1!L20 -> 22690 | AM20: 22690 | AN20: 1 | AQ20: 1 | AU20: 1
A21: =IF(INTRO!$E$34<>0,INTRO!$E$34,"") -> Congo | B21: Brazzaville | C21: Ouenzé | D21: 267087 | E21: =IF(INTRO!$E$48="","",ROUND($D21*INTRO!$E$48,0)) -> 30822 | F21: =IF(INTRO!$E$49="","",ROUND($D21*INTRO!$E$49,0)) -> 71820 | G21: =IF(INTRO!$E$50="","",ROUND($D21*INTRO!$E$50,0)) -> 156513 | H21: 0 | I21: 4 | J21: 1 | K21: 0 | L21: 1 | M21: =IF(INTRO!$E$38="Endémique", IF($H21>0, IF($H21=4,"Inconnu", IF($H21=99,"Interrompu", $D21)), 0),"Non requis") -> 0 | N21: 0 | O21: =IF(INTRO!$E$42="Endémique", IF(AND($J21>1,$J21<5), IF($J21=4, "Inconnu", E21+F21), 0),"Non requis") -> 0 | P21: =IF(INTRO!$E$44="Endémique", IF(AND($K21>0,$K21<5), IF($K21=4,"Inconnu", IF($K21=1, $F21*0.33, IF($K21=2, $F21*0.5+$G21*0.2, SUM(F21:G21)))), 0),"Non requis") -> 0 | Q21: 0 | R21: 0 | S21: 1 | T21: 0 | V21: T3 (ALB/MBD) | Y21: 12810 | Z21: Ouenzé | AA21: 6.779661 | AB21: 0 | AC21: 1 | AD21: 0 | AG21: ='MDA3'!Q21 -> 0 | AH21: ='MDA1'!M21 -> 0 | AI21: ='MDA4'!U21 -> 0 | AJ21: ='T1'!M21 -> 0 | AK21: =T3_R1!L21 -> 29882 | AM21: 29882 | AN21: 1 | AQ21: 1 | AU21: 1
A22: =IF(INTRO!$E$34<>0,INTRO!$E$34,"") -> Congo | B22: Brazzaville | C22: Poto-Poto | D22: 111163 | E22: =IF(INTRO!$E$48="","",ROUND($D22*INTRO!$E$48,0)) -> 12828 | F22: =IF(INTRO!$E$49="","",ROUND($D22*INTRO!$E$49,0)) -> 29892 | G22: =IF(INTRO!$E$50="","",ROUND($D22*INTRO!$E$50,0)) -> 65142 | H22: 0 | I22: 4 | J22: 1 | K22: 0 | L22: 1 | M22: =IF(INTRO!$E$38="Endémique", IF($H22>0, IF($H22=4,"Inconnu", IF($H22=99,"Interrompu", $D22)), 0),"Non requis") -> 0 | N22: 0 | O22: =IF(INTRO!$E$42="Endémique", IF(AND($J22>1,$J22<5), IF($J22=4, "Inconnu", E22+F22), 0),"Non requis") -> 0 | P22: =IF(INTRO!$E$44="Endémique", IF(AND($K22>0,$K22<5), IF($K22=4,"Inconnu", IF($K22=1, $F22*0.33, IF($K22=2, $F22*0.5+$G22*0.2, SUM(F22:G22)))), 0),"Non requis") -> 0 | Q22: 0 | R22: 0 | S22: 1 | T22: 0 | V22: T3 (ALB/MBD) | Y22: 12811 | Z22: Poto-Poto | AA22: 1.3333332 | AB22: 0 | AC22: 1 | AD22: 0 | AG22: ='MDA3'!Q22 -> 0 | AH22: ='MDA1'!M22 -> 0 | AI22: ='MDA4'!U22 -> 0 | AJ22: ='T1'!M22 -> 0 | AK22: =T3_R1!L22 -> 10113 | AM22: 10113 | AN22: 1 | AQ22: 1 | AU22: 1
A23: =IF(INTRO!$E$34<>0,INTRO!$E$34,"") -> Congo | B23: Brazzaville | C23: Talangaî | D23: 343417 | E23: =IF(INTRO!$E$48="","",ROUND($D23*INTRO!$E$48,0)) -> 39630 | F23: =IF(INTRO!$E$49="","",ROUND($D23*INTRO!$E$49,0)) -> 92345 | G23: =IF(INTRO!$E$50="","",ROUND($D23*INTRO!$E$50,0)) -> 201242 | H23: 0 | I23: 4 | J23: 0 | K23: 0 | L23: 1 | M23: =IF(INTRO!$E$38="Endémique", IF($H23>0, IF($H23=4,"Inconnu", IF($H23=99,"Interrompu", $D23)), 0),"Non requis") -> 0 | N23: 0 | O23: =IF(INTRO!$E$42="Endémique", IF(AND($J23>1,$J23<5), IF($J23=4, "Inconnu", E23+F23), 0),"Non requis") -> 0 | P23: =IF(INTRO!$E$44="Endémique", IF(AND($K23>0,$K23<5), IF($K23=4,"Inconnu", IF($K23=1, $F23*0.33, IF($K23=2, $F23*0.5+$G23*0.2, SUM(F23:G23)))), 0),"Non requis") -> 0 | Q23: 0 | R23: 0 | S23: 1 | T23: 0 | V23: T3 (ALB/MBD) | Y23: 12833 | Z23: Talangaï | AA23: 0.8333335 | AB23: 0 | AC23: 0 | AD23: 0 | AG23: ='MDA3'!Q23 -> 0 | AH23: ='MDA1'!M23 -> 0 | AI23: ='MDA4'!U23 -> 0 | AJ23: ='T1'!M23 -> 0 | AK23: =T3_R1!L23 -> 47429 | AM23: 47429 | AN23: 1 | AQ23: 1 | AU23: 1
A24: =IF(INTRO!$E$34<>0,INTRO!$E$34,"") -> Congo | B24: Cuvette | C24: Mossaka | D24: 70051 | E24: =IF(INTRO!$E$48="","",ROUND($D24*INTRO!$E$48,0)) -> 8084 | F24: =IF(INTRO!$E$49="","",ROUND($D24*INTRO!$E$49,0)) -> 18837 | G24: =IF(INTRO!$E$50="","",ROUND($D24*INTRO!$E$50,0)) -> 41050 | H24: 0 | I24: 4 | J24: 2 | K24: 1 | L24: 1 | M24: =IF(INTRO!$E$38="Endémique", IF($H24>0, IF($H24=4,"Inconnu", IF($H24=99,"Interrompu", $D24)), 0),"Non requis") -> 0 | N24: 0 | O24: =IF(INTRO!$E$42="Endémique", IF(AND($J24>1,$J24<5), IF($J24=4, "Inconnu", E24+F24), 0),"Non requis") -> 26921 | P24: =IF(INTRO!$E$44="Endémique", IF(AND($K24>0,$K24<5), IF($K24=4,"Inconnu", IF($K24=1, $F24*0.33, IF($K24=2, $F24*0.5+$G24*0.2, SUM(F24:G24)))), 0),"Non requis") -> 6216.21 | Q24: 0 | R24: 0 | S24: 1 | T24: 0 | V24: T3 (ALB/MBD) | Y24: 12773 | Z24: Mossaka | AA24: 22.1228071 | AB24: 1.666667 | AC24: 2 | AD24: 1 | AG24: ='MDA3'!Q24 -> 0 | AH24: ='MDA1'!M24 -> 0 | AI24: ='MDA4'!U24 -> 0 | AJ24: ='T1'!M24 -> 0 | AK24: =T3_R1!L24 -> 11649 | AM24: 11649 | AN24: 1 | AQ24: 1 | AU24: 1
A25: =IF(INTRO!$E$34<>0,INTRO!$E$34,"") -> Congo | B25: Cuvette | C25: Owando | D25: 102065 | E25: =IF(INTRO!$E$48="","",ROUND($D25*INTRO!$E$48,0)) -> 11778 | F25: =IF(INTRO!$E$49="","",ROUND($D25*INTRO!$E$49,0)) -> 27445 | G25: =IF(INTRO!$E$50="","",ROUND($D25*INTRO!$E$50,0)) -> 59810 | H25: 1 | I25: 4 | J25: 1 | K25: 1 | L25: 1 | M25: =IF(INTRO!$E$38="Endémique", IF($H25>0, IF($H25=4,"Inconnu", IF($H25=99,"Interrompu", $D25)), 0),"Non requis") -> 102065 | N25: 0 | O25: =IF(INTRO!$E$42="Endémique", IF(AND($J25>1,$J25<5), IF($J25=4, "Inconnu", E25+F25), 0),"Non requis") -> 0 | P25: =IF(INTRO!$E$44="Endémique", IF(AND($K25>0,$K25<5), IF($K25=4,"Inconnu", IF($K25=1, $F25*0.33, IF($K25=2, $F25*0.5+$G25*0.2, SUM(F25:G25)))), 0),"Non requis") -> 9056.85 | Q25: 1 | R25: 0 | S25: 3 | T25: 0 | U25: MDA4 (ALB/2*ALB) | V25: T3 (ALB/MBD) | Y25: 12775 | Z25: Owando | AA25: 5.009725 | AB25: 1.666667 | AC25: 1 | AD25: 1 | AG25: ='MDA3'!Q25 -> 0 | AH25: ='MDA1'!M25 -> 0 | AI25: ='MDA4'!U25 -> 71902 | AJ25: ='T1'!M25 -> 0 | AK25: =T3_R1!L25 -> 15114 | AM25: 87016 | AN25: 2 | AP25: x | AQ25: 2 | AU25: 1
A26: =IF(INTRO!$E$34<>0,INTRO!$E$34,"") -> Congo | B26: Cuvette | C26: Oyo-Alima | D26: 61290 | E26: =IF(INTRO!$E$48="","",ROUND($D26*INTRO!$E$48,0)) -> 7073 | F26: =IF(INTRO!$E$49="","",ROUND($D26*INTRO!$E$49,0)) -> 16481 | G26: =IF(INTRO!$E$50="","",ROUND($D26*INTRO!$E$50,0)) -> 35916 | H26: 0 | I26: 4 | J26: 1 | K26: 0 | L26: 1 | M26: =IF(INTRO!$E$38="Endémique", IF($H26>0, IF($H26=4,"Inconnu", IF($H26=99,"Interrompu", $D26)), 0),"Non requis") -> 0 | N26: 0 | O26: =IF(INTRO!$E$42="Endémique", IF(AND($J26>1,$J26<5), IF($J26=4, "Inconnu", E26+F26), 0),"Non requis") -> 0 | P26: =IF(INTRO!$E$44="Endémique", IF(AND($K26>0,$K26<5), IF($K26=4,"Inconnu", IF($K26=1, $F26*0.33, IF($K26=2, $F26*0.5+$G26*0.2, SUM(F26:G26)))), 0),"Non requis") -> 0 | Q26: 0 | R26: 0 | S26: 1 | T26: 0 | V26: T3 (ALB/MBD) | Y26: 12829 | Z26: Oyo-Alima | AA26: 9.021663 | AB26: 0 | AC26: 1 | AD26: 0 | AG26: ='MDA3'!Q26 -> 0 | AH26: ='MDA1'!M26 -> 0 | AI26: ='MDA4'!U26 -> 0 | AJ26: ='T1'!M26 -> 0 | AK26: =T3_R1!L26 -> 12222 | AM26: 12222 | AN26: 1 | AQ26: 1 | AU26: 1
A27: =IF(INTRO!$E$34<>0,INTRO!$E$34,"") -> Congo | B27: Cuvette-Ouest | C27: Etoumbi | D27: 45968 | E27: =IF(INTRO!$E$48="","",ROUND($D27*INTRO!$E$48,0)) -> 5305 | F27: =IF(INTRO!$E$49="","",ROUND($D27*INTRO!$E$49,0)) -> 12361 | G27: =IF(INTRO!$E$50="","",ROUND($D27*INTRO!$E$50,0)) -> 26937 | H27: 1 | I27: 4 | J27: 2 | K27: 0 | L27: 1 | M27: =IF(INTRO!$E$38="Endémique", IF($H27>0, IF($H27=4,"Inconnu", IF($H27=99,"Interrompu", $D27)), 0),"Non requis") -> 45968 | N27: 0 | O27: =IF(INTRO!$E$42="Endémique", IF(AND($J27>1,$J27<5), IF($J27=4, "Inconnu", E27+F27), 0),"Non requis") -> 17666 | P27: =IF(INTRO!$E$44="Endémique", IF(AND($K27>0,$K27<5), IF($K27=4,"Inconnu", IF($K27=1, $F27*0.33, IF($K27=2, $F27*0.5+$G27*0.2, SUM(F27:G27)))), 0),"Non requis") -> 0 | Q27: 1 | R27: 0 | S27: 3 | T27: 0 | U27: MDA4 (ALB/2*ALB) | V27: T3 (ALB/MBD) | Y27: 12822 | Z27: Etoumbi | AA27: 42.142857 | AB27: 0 | AC27: 2 | AD27: 0 | AG27: ='MDA3'!Q27 -> 0 | AH27: ='MDA1'!M27 -> 0 | AI27: ='MDA4'!U27 -> 29308 | AJ27: ='T1'!M27 -> 0 | AK27: =T3_R1!L27 -> 10251 | AM27: 39559 | AN27: 2 | AP27: x | AQ27: 2 | AU27: 1
A28: =IF(INTRO!$E$34<>0,INTRO!$E$34,"") -> Congo | B28: Cuvette-Ouest | C28: Ewo | D28: 79738 | E28: =IF(INTRO!$E$48="","",ROUND($D28*INTRO!$E$48,0)) -> 9202 | F28: =IF(INTRO!$E$49="","",ROUND($D28*INTRO!$E$49,0)) -> 21442 | G28: =IF(INTRO!$E$50="","",ROUND($D28*INTRO!$E$50,0)) -> 46726 | H28: 1 | I28: 4 | J28: 2 | K28: 1 | L28: 1 | M28: =IF(INTRO!$E$38="Endémique", IF($H28>0, IF($H28=4,"Inconnu", IF($H28=99,"Interrompu", $D28)), 0),"Non requis") -> 79738 | N28: 0 | O28: =IF(INTRO!$E$42="Endémique", IF(AND($J28>1,$J28<5), IF($J28=4, "Inconnu", E28+F28), 0),"Non requis") -> 30644 | P28: =IF(INTRO!$E$44="Endémique", IF(AND($K28>0,$K28<5), IF($K28=4,"Inconnu", IF($K28=1, $F28*0.33, IF($K28=2, $F28*0.5+$G28*0.2, SUM(F28:G28)))), 0),"Non requis") -> 7075.86 | Q28: 1 | R28: 0 | S28: 3 | T28: 0 | U28: MDA4 (ALB/2*ALB) | V28: T3 (ALB/MBD) | Y28: 12768 | Z28: Ewo | AA28: 38.3954802 | AB28: 1.694915 | AC28: 2 | AD28: 1 | AG28: ='MDA3'!Q28 -> 0 | AH28: ='MDA1'!M28 -> 0 | AI28: ='MDA4'!U28 -> 34367 | AJ28: ='T1'!M28 -> 0 | AK28: =T3_R1!L28 -> 15885 | AM28: 50252 | AN28: 2 | AP28: x | AQ28: 2 | AU28: 1
A29: =IF(INTRO!$E$34<>0,INTRO!$E$34,"") -> Congo | B29: Kouilou | C29: Hinda-Loango | D29: 51144 | E29: =IF(INTRO!$E$48="","",ROUND($D29*INTRO!$E$48,0)) -> 5902 | F29: =IF(INTRO!$E$49="","",ROUND($D29*INTRO!$E$49,0)) -> 13753 | G29: =IF(INTRO!$E$50="","",ROUND($D29*INTRO!$E$50,0)) -> 29970 | H29: 0 | I29: 4 | J29: 3 | K29: 2 | L29: 1 | M29: =IF(INTRO!$E$38="Endémique", IF($H29>0, IF($H29=4,"Inconnu", IF($H29=99,"Interrompu", $D29)), 0),"Non requis") -> 0 | N29: 0 | O29: =IF(INTRO!$E$42="Endémique", IF(AND($J29>1,$J29<5), IF($J29=4, "Inconnu", E29+F29), 0),"Non requis") -> 19655 | P29: =IF(INTRO!$E$44="Endémique", IF(AND($K29>0,$K29<5), IF($K29=4,"Inconnu", IF($K29=1, $F29*0.33, IF($K29=2, $F29*0.5+$G29*0.2, SUM(F29:G29)))), 0),"Non requis") -> 12870.5 | Q29: 0 | R29: 0 | S29: 1 | T29: 1 | V29: T1 (PZQ+ALB/MBD) | Y29: 12850 | Z29: Hinda-Loango | AA29: 52.5 | AB29: 13.333333 | AC29: 3 | AD29: 2 | AG29: ='MDA3'!Q29 -> 0 | AH29: ='MDA1'!M29 -> 0 | AI29: ='MDA4'!U29 -> 0 | AJ29: ='T1'!M29 -> 13930 | AK29: =T3_R1!L29 -> 0 | AM29: 13930 | AN29: 1 | AQ29: 1 | AU29: 1
A30: =IF(INTRO!$E$34<>0,INTRO!$E$34,"") -> Congo | B30: Kouilou | C30: Madingo Kayes-Nzambi | D30: 25157 | E30: =IF(INTRO!$E$48="","",ROUND($D30*INTRO!$E$48,0)) -> 2903 | F30: =IF(INTRO!$E$49="","",ROUND($D30*INTRO!$E$49,0)) -> 6765 | G30: =IF(INTRO!$E$50="","",ROUND($D30*INTRO!$E$50,0)) -> 14742 | H30: 0 | I30: 4 | J30: 3 | K30: 3 | L30: 1 | M30: =IF(INTRO!$E$38="Endémique", IF($H30>0, IF($H30=4,"Inconnu", IF($H30=99,"Interrompu", $D30)), 0),"Non requis") -> 0 | N30: 0 | O30: =IF(INTRO!$E$42="Endémique", IF(AND($J30>1,$J30<5), IF($J30=4, "Inconnu", E30+F30), 0),"Non requis") -> 9668 | P30: =IF(INTRO!$E$44="Endémique", IF(AND($K30>0,$K30<5), IF($K30=4,"Inconnu", IF($K30=1, $F30*0.33, IF($K30=2, $F30*0.5+$G30*0.2, SUM(F30:G30)))), 0),"Non requis") -> 21507 | Q30: 0 | R30: 0 | S30: 1 | T30: 1 | V30: T1 (PZQ+ALB/MBD) | Y30: 12849 | Z30: Madingo-Kayes Nzambi | AA30: 60.43930757 | AB30: 100 | AC30: 3 | AD30: 3 | AG30: ='MDA3'!Q30 -> 0 | AH30: ='MDA1'!M30 -> 0 | AI30: ='MDA4'!U30 -> 0 | AJ30: ='T1'!M30 -> 2571 | AK30: =T3_R1!L30 -> 0 | AM30: 2571 | AN30: 1 | AQ30: 1 | AU30: 1
A31: =IF(INTRO!$E$34<>0,INTRO!$E$34,"") -> Congo | B31: Kouilou | C31: Mvouti-Kakamouéka | D31: 40011 | E31: =IF(INTRO!$E$48="","",ROUND($D31*INTRO!$E$48,0)) -> 4617 | F31: =IF(INTRO!$E$49="","",ROUND($D31*INTRO!$E$49,0)) -> 10759 | G31: =IF(INTRO!$E$50="","",ROUND($D31*INTRO!$E$50,0)) -> 23446 | H31: 0 | I31: 1 | J31: 2 | K31: 3 | L31: 1 | M31: =IF(INTRO!$E$38="Endémique", IF($H31>0, IF($H31=4,"Inconnu", IF($H31=99,"Interrompu", $D31)), 0),"Non requis") -> 0 | N31: 1066 | O31: =IF(INTRO!$E$42="Endémique", IF(AND($J31>1,$J31<5), IF($J31=4, "Inconnu", E31+F31), 0),"Non requis") -> 15376 | P31: =IF(INTRO!$E$44="Endémique", IF(AND($K31>0,$K31<5), IF($K31=4,"Inconnu", IF($K31=1, $F31*0.33, IF($K31=2, $F31*0.5+$G31*0.2, SUM(F31:G31)))), 0),"Non requis") -> 34205 | Q31: 0 | R31: 1 | S31: 1 | T31: 1 | U31: MDA3 (IVM) | V31: T1 (PZQ+ALB/MBD) | Y31: 12848 | Z31: Mvouti-Kakamoueka | AA31: 42.6666667 | AB31: 55 | AC31: 2 | AD31: 3 | AG31: ='MDA3'!Q31 -> 1226 | AH31: ='MDA1'!M31 -> 0 | AI31: ='MDA4'!U31 -> 0 | AJ31: ='T1'!M31 -> 4576 | AK31: =T3_R1!L31 -> 0 | AM31: 4576 | AN31: 1 | AQ31: 1 | AU31: 1
A32: =IF(INTRO!$E$34<>0,INTRO!$E$34,"") -> Congo | B32: Lékoumou | C32: Sibiti | D32: 96023 | E32: =IF(INTRO!$E$48="","",ROUND($D32*INTRO!$E$48,0)) -> 11081 | F32: =IF(INTRO!$E$49="","",ROUND($D32*INTRO!$E$49,0)) -> 25821 | G32: =IF(INTRO!$E$50="","",ROUND($D32*INTRO!$E$50,0)) -> 56269 | H32: 0 | I32: 1 | J32: 2 | K32: 3 | L32: 1 | M32: =IF(INTRO!$E$38="Endémique", IF($H32>0, IF($H32=4,"Inconnu", IF($H32=99,"Interrompu", $D32)), 0),"Non requis") -> 0 | N32: 729 | O32: =IF(INTRO!$E$42="Endémique", IF(AND($J32>1,$J32<5), IF($J32=4, "Inconnu", E32+F32), 0),"Non requis") -> 36902 | P32: =IF(INTRO!$E$44="Endémique", IF(AND($K32>0,$K32<5), IF($K32=4,"Inconnu", IF($K32=1, $F32*0.33, IF($K32=2, $F32*0.5+$G32*0.2, SUM(F32:G32)))), 0),"Non requis") -> 82090 | Q32: 0 | R32: 1 | S32: 1 | T32: 1 | U32: MDA3 (IVM) | V32: T1 (PZQ+ALB/MBD) | Y32: 12784 | Z32: Sibiti | AA32: 44.25564983 | AB32: 51.666667 | AC32: 2 | AD32: 3 | AG32: ='MDA3'!Q32 -> 632 | AH32: ='MDA1'!M32 -> 0 | AI32: ='MDA4'!U32 -> 0 | AJ32: ='T1'!M32 -> 20489 | AK32: =T3_R1!L32 -> 0 | AM32: 20489 | AN32: 1 | AQ32: 1 | AU32: 1
A33: =IF(INTRO!$E$34<>0,INTRO!$E$34,"") -> Congo | B33: Lékoumou | C33: Zanaga | D33: 35187 | E33: =IF(INTRO!$E$48="","",ROUND($D33*INTRO!$E$48,0)) -> 4061 | F33: =IF(INTRO!$E$49="","",ROUND($D33*INTRO!$E$49,0)) -> 9462 | G33: =IF(INTRO!$E$50="","",ROUND($D33*INTRO!$E$50,0)) -> 20620 | H33: 0 | I33: 4 | J33: 2 | K33: 0 | L33: 1 | M33: =IF(INTRO!$E$38="Endémique", IF($H33>0, IF($H33=4,"Inconnu", IF($H33=99,"Interrompu", $D33)), 0),"Non requis") -> 0 | N33: 0 | O33: =IF(INTRO!$E$42="Endémique", IF(AND($J33>1,$J33<5), IF($J33=4, "Inconnu", E33+F33), 0),"Non requis") -> 13523 | P33: =IF(INTRO!$E$44="Endémique", IF(AND($K33>0,$K33<5), IF($K33=4,"Inconnu", IF($K33=1, $F33*0.33, IF($K33=2, $F33*0.5+$G33*0.2, SUM(F33:G33)))), 0),"Non requis") -> 0 | Q33: 0 | R33: 0 | S33: 1 | T33: 0 | V33: T3 (ALB/MBD) | Y33: 12785 | Z33: Zanaga | AA33: 47.22222233 | AB33: 0 | AC33: 2 | AD33: 0 | AG33: ='MDA3'!Q33 -> 0 | AH33: ='MDA1'!M33 -> 0 | AI33: ='MDA4'!U33 -> 0 | AJ33: ='T1'!M33 -> 0 | AK33: =T3_R1!L33 -> 6287 | AM33: 6287 | AN33: 1 | AQ33: 1 | AU33: 1
A34: =IF(INTRO!$E$34<>0,INTRO!$E$34,"") -> Congo | B34: Likouala | C34: Bétou | D34: 155450 | E34: =IF(INTRO!$E$48="","",ROUND($D34*INTRO!$E$48,0)) -> 17939 | F34: =IF(INTRO!$E$49="","",ROUND($D34*INTRO!$E$49,0)) -> 41801 | G34: =IF(INTRO!$E$50="","",ROUND($D34*INTRO!$E$50,0)) -> 91094 | H34: 0 | I34: 4 | J34: 2 | K34: 0 | L34: 1 | M34: =IF(INTRO!$E$38="Endémique", IF($H34>0, IF($H34=4,"Inconnu", IF($H34=99,"Interrompu", $D34)), 0),"Non requis") -> 0 | N34: 0 | O34: =IF(INTRO!$E$42="Endémique", IF(AND($J34>1,$J34<5), IF($J34=4, "Inconnu", E34+F34), 0),"Non requis") -> 59740 | P34: =IF(INTRO!$E$44="Endémique", IF(AND($K34>0,$K34<5), IF($K34=4,"Inconnu", IF($K34=1, $F34*0.33, IF($K34=2, $F34*0.5+$G34*0.2, SUM(F34:G34)))), 0),"Non requis") -> 0 | Q34: 0 | R34: 0 | S34: 1 | T34: 0 | V34: T3 (ALB/MBD) | Y34: 12786 | Z34: Bétou | AA34: 32.77777778 | AB34: 0 | AC34: 2 | AD34: 0 | AG34: ='MDA3'!Q34 -> 0 | AH34: ='MDA1'!M34 -> 0 | AI34: ='MDA4'!U34 -> 0 | AJ34: ='T1'!M34 -> 0 | AK34: =T3_R1!L34 -> 16046 | AM34: 16046 | AN34: 1 | AQ34: 1 | AU34: 1
A35: =IF(INTRO!$E$34<>0,INTRO!$E$34,"") -> Congo | B35: Likouala | C35: Impfondo | D35: 129626 | E35: =IF(INTRO!$E$48="","",ROUND($D35*INTRO!$E$48,0)) -> 14959 | F35: =IF(INTRO!$E$49="","",ROUND($D35*INTRO!$E$49,0)) -> 34856 | G35: =IF(INTRO!$E$50="","",ROUND($D35*INTRO!$E$50,0)) -> 75961 | H35: 1 | I35: 4 | J35: 2 | K35: 0 | L35: 1 | M35: =IF(INTRO!$E$38="Endémique", IF($H35>0, IF($H35=4,"Inconnu", IF($H35=99,"Interrompu", $D35)), 0),"Non requis") -> 129626 | N35: 0 | O35: =IF(INTRO!$E$42="Endémique", IF(AND($J35>1,$J35<5), IF($J35=4, "Inconnu", E35+F35), 0),"Non requis") -> 49815 | P35: =IF(INTRO!$E$44="Endémique", IF(AND($K35>0,$K35<5), IF($K35=4,"Inconnu", IF($K35=1, $F35*0.33, IF($K35=2, $F35*0.5+$G35*0.2, SUM(F35:G35)))), 0),"Non requis") -> 0 | Q35: 1 | R35: 0 | S35: 3 | T35: 0 | U35: MDA4 (ALB/2*ALB) | V35: T3 (ALB/MBD) | Y35: 12789 | Z35: Impfondo | AA35: 33.78787891 | AB35: 0 | AC35: 2 | AD35: 0 | AG35: ='MDA3'!Q35 -> 0 | AH35: ='MDA1'!M35 -> 0 | AI35: ='MDA4'!U35 -> 62661.1987 | AJ35: ='T1'!M35 -> 0 | AK35: =T3_R1!L35 -> 18292 | AM35: 80953.1987 | AN35: 2 | AP35: x | AQ35: 2 | AU35: 1
A36: =IF(INTRO!$E$34<>0,INTRO!$E$34,"") -> Congo | B36: Niari | C36: Dolisie | D36: 173086 | E36: =IF(INTRO!$E$48="","",ROUND($D36*INTRO!$E$48,0)) -> 19974 | F36: =IF(INTRO!$E$49="","",ROUND($D36*INTRO!$E$49,0)) -> 46543 | G36: =IF(INTRO!$E$50="","",ROUND($D36*INTRO!$E$50,0)) -> 101428 | H36: 1 | I36: 1 | J36: 2 | K36: 2 | L36: 1 | M36: =IF(INTRO!$E$38="Endémique", IF($H36>0, IF($H36=4,"Inconnu", IF($H36=99,"Interrompu", $D36)), 0),"Non requis") -> 173086 | N36: 11979 | O36: =IF(INTRO!$E$42="Endémique", IF(AND($J36>1,$J36<5), IF($J36=4, "Inconnu", E36+F36), 0),"Non requis") -> 66517 | P36: =IF(INTRO!$E$44="Endémique", IF(AND($K36>0,$K36<5), IF($K36=4,"Inconnu", IF($K36=1, $F36*0.33, IF($K36=2, $F36*0.5+$G36*0.2, SUM(F36:G36)))), 0),"Non requis") -> 43557.1 | Q36: 1 | R36: 1 | S36: 2 | T36: 0 | U36: MDA1 (IVM+ALB) | V36: T3 (ALB/MBD) | Y36: 12835 | Z36: Dolisie | AA36: 25.71230586 | AB36: 22.033898 | AC36: 2 | AD36: 2 | AG36: ='MDA3'!Q36 -> 0 | AH36: ='MDA1'!M36 -> 8956 | AI36: ='MDA4'!U36 -> 68812 | AJ36: ='T1'!M36 -> 0 | AK36: =T3_R1!L36 -> 34095 | AM36: 111863 | AN36: 3 | AP36: x | AQ36: 3 | AU36: 1
A37: =IF(INTRO!$E$34<>0,INTRO!$E$34,"") -> Congo | B37: Niari | C37: Kibangou | D37: 70882 | E37: =IF(INTRO!$E$48="","",ROUND($D37*INTRO!$E$48,0)) -> 8180 | F37: =IF(INTRO!$E$49="","",ROUND($D37*INTRO!$E$49,0)) -> 19060 | G37: =IF(INTRO!$E$50="","",ROUND($D37*INTRO!$E$50,0)) -> 41537 | H37: 1 | I37: 1 | J37: 3 | K37: 1 | L37: 1 | M37: =IF(INTRO!$E$38="Endémique", IF($H37>0, IF($H37=4,"Inconnu", IF($H37=99,"Interrompu", $D37)), 0),"Non requis") -> 70882 | N37: 11153 | O37: =IF(INTRO!$E$42="Endémique", IF(AND($J37>1,$J37<5), IF($J37=4, "Inconnu", E37+F37), 0),"Non requis") -> 27240 | P37: =IF(INTRO!$E$44="Endémique", IF(AND($K37>0,$K37<5), IF($K37=4,"Inconnu", IF($K37=1, $F37*0.33, IF($K37=2, $F37*0.5+$G37*0.2, SUM(F37:G37)))), 0),"Non requis") -> 6289.8 | Q37: 1 | R37: 1 | S37: 2 | T37: 0 | U37: MDA1 (IVM+ALB) | V37: T3 (ALB/MBD) | Y37: 12791 | Z37: Kibangou | AA37: 51.31924137 | AB37: 1.666667 | AC37: 3 | AD37: 1 | AG37: ='MDA3'!Q37 -> 0 | AH37: ='MDA1'!M37 -> 12781 | AI37: ='MDA4'!U37 -> 23798 | AJ37: ='T1'!M37 -> 0 | AK37: =T3_R1!L37 -> 7924 | AM37: 44503 | AN37: 3 | AP37: x | AQ37: 3 | AU37: 1
A38: =IF(INTRO!$E$34<>0,INTRO!$E$34,"") -> Congo | B38: Niari | C38: Kimongo-Londela Nkayes | D38: 42232 | E38: =IF(INTRO!$E$48="","",ROUND($D38*INTRO!$E$48,0)) -> 4874 | F38: =IF(INTRO!$E$49="","",ROUND($D38*INTRO!$E$49,0)) -> 11356 | G38: =IF(INTRO!$E$50="","",ROUND($D38*INTRO!$E$50,0)) -> 24748 | H38: 1 | I38: 4 | J38: 3 | K38: 2 | L38: 1 | M38: =IF(INTRO!$E$38="Endémique", IF($H38>0, IF($H38=4,"Inconnu", IF($H38=99,"Interrompu", $D38)), 0),"Non requis") -> 42232 | N38: 0 | O38: =IF(INTRO!$E$42="Endémique", IF(AND($J38>1,$J38<5), IF($J38=4, "Inconnu", E38+F38), 0),"Non requis") -> 16230 | P38: =IF(INTRO!$E$44="Endémique", IF(AND($K38>0,$K38<5), IF($K38=4,"Inconnu", IF($K38=1, $F38*0.33, IF($K38=2, $F38*0.5+$G38*0.2, SUM(F38:G38)))), 0),"Non requis") -> 10627.6 | Q38: 1 | R38: 0 | S38: 3 | T38: 0 | U38: MDA4 (ALB/2*ALB) | V38: T3 (ALB/MBD) | Y38: 12836 | Z38: Kimongo-Londela Nkayes | AA38: 70.67558567 | AB38: 14.545455 | AC38: 3 | AD38: 2 | AG38: ='MDA3'!Q38 -> 0 | AH38: ='MDA1'!M38 -> 0 | AI38: ='MDA4'!U38 -> 25477 | AJ38: ='T1'!M38 -> 0 | AK38: =T3_R1!L38 -> 6145 | AM38: 31622 | AN38: 2 | AP38: x | AQ38: 2 | AU38: 1
A39: =IF(INTRO!$E$34<>0,INTRO!$E$34,"") -> Congo | B39: Niari | C39: Mayoko | D39: 17433 | E39: =IF(INTRO!$E$48="","",ROUND($D39*INTRO!$E$48,0)) -> 2012 | F39: =IF(INTRO!$E$49="","",ROUND($D39*INTRO!$E$49,0)) -> 4688 | G39: =IF(INTRO!$E$50="","",ROUND($D39*INTRO!$E$50,0)) -> 10216 | H39: 0 | I39: 4 | J39: 2 | K39: 0 | L39: 1 | M39: =IF(INTRO!$E$38="Endémique", IF($H39>0, IF($H39=4,"Inconnu", IF($H39=99,"Interrompu", $D39)), 0),"Non requis") -> 0 | N39: 0 | O39: =IF(INTRO!$E$42="Endémique", IF(AND($J39>1,$J39<5), IF($J39=4, "Inconnu", E39+F39), 0),"Non requis") -> 6700 | P39: =IF(INTRO!$E$44="Endémique", IF(AND($K39>0,$K39<5), IF($K39=4,"Inconnu", IF($K39=1, $F39*0.33, IF($K39=2, $F39*0.5+$G39*0.2, SUM(F39:G39)))), 0),"Non requis") -> 0 | Q39: 0 | R39: 0 | S39: 1 | T39: 0 | V39: T3 (ALB/MBD) | Y39: 12838 | Z39: Mayoko | AA39: 43.684423 | AB39: 0 | AC39: 2 | AD39: 0 | AG39: ='MDA3'!Q39 -> 0 | AH39: ='MDA1'!M39 -> 0 | AI39: ='MDA4'!U39 -> 0 | AJ39: ='T1'!M39 -> 0 | AK39: =T3_R1!L39 -> 2603 | AM39: 2603 | AN39: 1 | AQ39: 1 | AU39: 1
A40: =IF(INTRO!$E$34<>0,INTRO!$E$34,"") -> Congo | B40: Niari | C40: Mossendjo | D40: 50184 | E40: =IF(INTRO!$E$48="","",ROUND($D40*INTRO!$E$48,0)) -> 5791 | F40: =IF(INTRO!$E$49="","",ROUND($D40*INTRO!$E$49,0)) -> 13494 | G40: =IF(INTRO!$E$50="","",ROUND($D40*INTRO!$E$50,0)) -> 29408 | H40: 0 | I40: 4 | J40: 2 | K40: 0 | L40: 1 | M40: =IF(INTRO!$E$38="Endémique", IF($H40>0, IF($H40=4,"Inconnu", IF($H40=99,"Interrompu", $D40)), 0),"Non requis") -> 0 | N40: 0 | O40: =IF(INTRO!$E$42="Endémique", IF(AND($J40>1,$J40<5), IF($J40=4, "Inconnu", E40+F40), 0),"Non requis") -> 19285 | P40: =IF(INTRO!$E$44="Endémique", IF(AND($K40>0,$K40<5), IF($K40=4,"Inconnu", IF($K40=1, $F40*0.33, IF($K40=2, $F40*0.5+$G40*0.2, SUM(F40:G40)))), 0),"Non requis") -> 0 | Q40: 0 | R40: 0 | S40: 1 | T40: 0 | V40: T3 (ALB/MBD) | Y40: 12837 | Z40: Mossendjo | AA40: 33.24051643 | AB40: 0 | AC40: 2 | AD40: 0 | AG40: ='MDA3'!Q40 -> 0 | AH40: ='MDA1'!M40 -> 0 | AI40: ='MDA4'!U40 -> 0 | AJ40: ='T1'!M40 -> 0 | AK40: =T3_R1!L40 -> 6701 | AM40: 6701 | AN40: 1 | AQ40: 1 | AU40: 1
A41: =IF(INTRO!$E$34<>0,INTRO!$E$34,"") -> Congo | B41: Plateaux | C41: Abala | D41: 48224 | E41: =IF(INTRO!$E$48="","",ROUND($D41*INTRO!$E$48,0)) -> 5565 | F41: =IF(INTRO!$E$49="","",ROUND($D41*INTRO!$E$49,0)) -> 12967 | G41: =IF(INTRO!$E$50="","",ROUND($D41*INTRO!$E$50,0)) -> 28259 | H41: 0 | I41: 4 | J41: 1 | K41: 0 | L41: 1 | M41: =IF(INTRO!$E$38="Endémique", IF($H41>0, IF($H41=4,"Inconnu", IF($H41=99,"Interrompu", $D41)), 0),"Non requis") -> 0 | N41: 0 | O41: =IF(INTRO!$E$42="Endémique", IF(AND($J41>1,$J41<5), IF($J41=4, "Inconnu", E41+F41), 0),"Non requis") -> 0 | P41: =IF(INTRO!$E$44="Endémique", IF(AND($K41>0,$K41<5), IF($K41=4,"Inconnu", IF($K41=1, $F41*0.33, IF($K41=2, $F41*0.5+$G41*0.2, SUM(F41:G41)))), 0),"Non requis") -> 0 | Q41: 0 | R41: 0 | S41: 1 | T41: 0 | V41: T3 (ALB/MBD) | Y41: 12830 | Z41: Abala | AA41: 10.0000001 | AB41: 0 | AC41: 1 | AD41: 0 | AG41: ='MDA3'!Q41 -> 0 | AH41: ='MDA1'!M41 -> 0 | AI41: ='MDA4'!U41 -> 0 | AJ41: ='T1'!M41 -> 0 | AK41: =T3_R1!L41 -> 9355 | AM41: =AH41+AI41+AJ41+AK41 -> 9355 | AN41: 1 | AQ41: 1 | AU41: 1
A42: =IF(INTRO!$E$34<>0,INTRO!$E$34,"") -> Congo | B42: Plateaux | C42: Djambala-Lékana | D42: 52273 | E42: =IF(INTRO!$E$48="","",ROUND($D42*INTRO!$E$48,0)) -> 6032 | F42: =IF(INTRO!$E$49="","",ROUND($D42*INTRO!$E$49,0)) -> 14056 | G42: =IF(INTRO!$E$50="","",ROUND($D42*INTRO!$E$50,0)) -> 30632 | H42: 0 | I42: 4 | J42: 3 | K42: 0 | L42: 1 | M42: =IF(INTRO!$E$38="Endémique", IF($H42>0, IF($H42=4,"Inconnu", IF($H42=99,"Interrompu", $D42)), 0),"Non requis") -> 0 | N42: 0 | O42: =IF(INTRO!$E$42="Endémique", IF(AND($J42>1,$J42<5), IF($J42=4, "Inconnu", E42+F42), 0),"Non requis") -> 20088 | P42: =IF(INTRO!$E$44="Endémique", IF(AND($K42>0,$K42<5), IF($K42=4,"Inconnu", IF($K42=1, $F42*0.33, IF($K42=2, $F42*0.5+$G42*0.2, SUM(F42:G42)))), 0),"Non requis") -> 0 | Q42: 0 | R42: 0 | S42: 1 | T42: 0 | V42: T3 (ALB/MBD) | Y42: 12839 | Z42: Djambala-Lékana | AA42: 57.0541561 | AB42: 0 | AC42: 3 | AD42: 0 | AG42: ='MDA3'!Q42 -> 0 | AH42: ='MDA1'!M42 -> 0 | AI42: ='MDA4'!U42 -> 0 | AJ42: ='T1'!M42 -> 0 | AK42: =T3_R1!L42 -> 9378 | AM42: 9378 | AN42: 1 | AQ42: 1 | AU42: 1
A43: =IF(INTRO!$E$34<>0,INTRO!$E$34,"") -> Congo | B43: Plateaux | C43: Gamboma | D43: 107915 | E43: =IF(INTRO!$E$48="","",ROUND($D43*INTRO!$E$48,0)) -> 12453 | F43: =IF(INTRO!$E$49="","",ROUND($D43*INTRO!$E$49,0)) -> 29018 | G43: =IF(INTRO!$E$50="","",ROUND($D43*INTRO!$E$50,0)) -> 63238 | H43: 0 | I43: 4 | J43: 2 | K43: 0 | L43: 1 | M43: =IF(INTRO!$E$38="Endémique", IF($H43>0, IF($H43=4,"Inconnu", IF($H43=99,"Interrompu", $D43)), 0),"Non requis") -> 0 | N43: 0 | O43: =IF(INTRO!$E$42="Endémique", IF(AND($J43>1,$J43<5), IF($J43=4, "Inconnu", E43+F43), 0),"Non requis") -> 41471 | P43: =IF(INTRO!$E$44="Endémique", IF(AND($K43>0,$K43<5), IF($K43=4,"Inconnu", IF($K43=1, $F43*0.33, IF($K43=2, $F43*0.5+$G43*0.2, SUM(F43:G43)))), 0),"Non requis") -> 0 | Q43: 0 | R43: 0 | S43: 1 | T43: 0 | V43: T3 (ALB/MBD) | Y43: 12798 | Z43: Gamboma | AA43: 44.322327 | AB43: 0 | AC43: 2 | AD43: 0 | AG43: ='MDA3'!Q43 -> 0 | AH43: ='MDA1'!M43 -> 0 | AI43: ='MDA4'!U43 -> 0 | AJ43: ='T1'!M43 -> 0 | AK43: =T3_R1!L43 -> 23505 | AM43: 23505 | AN43: 1 | AQ43: 1 | AU43: 1
A44: =IF(INTRO!$E$34<>0,INTRO!$E$34,"") -> Congo | B44: Plateaux | C44: Ngo Mpouya | D44: 39752 | E44: =IF(INTRO!$E$48="","",ROUND($D44*INTRO!$E$48,0)) -> 4587 | F44: =IF(INTRO!$E$49="","",ROUND($D44*INTRO!$E$49,0)) -> 10689 | G44: =IF(INTRO!$E$50="","",ROUND($D44*INTRO!$E$50,0)) -> 23295 | H44: 0 | I44: 4 | J44: 3 | K44: 0 | L44: 1 | M44: =IF(INTRO!$E$38="Endémique", IF($H44>0, IF($H44=4,"Inconnu", IF($H44=99,"Interrompu", $D44)), 0),"Non requis") -> 0 | N44: 0 | O44: =IF(INTRO!$E$42="Endémique", IF(AND($J44>1,$J44<5), IF($J44=4, "Inconnu", E44+F44), 0),"Non requis") -> 15276 | P44: =IF(INTRO!$E$44="Endémique", IF(AND($K44>0,$K44<5), IF($K44=4,"Inconnu", IF($K44=1, $F44*0.33, IF($K44=2, $F44*0.5+$G44*0.2, SUM(F44:G44)))), 0),"Non requis") -> 0 | Q44: 0 | R44: 0 | S44: 1 | T44: 0 | V44: T3 (ALB/MBD) | Y44: 12840 | Z44: Ngo-Mpouya | AA44: 60.176311 | AB44: 0 | AC44: 3 | AD44: 0 | AG44: ='MDA3'!Q44 -> 0 | AH44: ='MDA1'!M44 -> 0 | AI44: ='MDA4'!U44 -> 0 | AJ44: ='T1'!M44 -> 0 | AK44: =T3_R1!L44 -> 6053 | AM44: 6053 | AN44: 1 | AQ44: 1 | AU44: 1
A45: =IF(INTRO!$E$34<>0,INTRO!$E$34,"") -> Congo | B45: Pointe-Noire | C45: Loandjili | D45: 299532 | E45: =IF(INTRO!$E$48="","",ROUND($D45*INTRO!$E$48,0)) -> 34566 | F45: =IF(INTRO!$E$49="","",ROUND($D45*INTRO!$E$49,0)) -> 80544 | G45: =IF(INTRO!$E$50="","",ROUND($D45*INTRO!$E$50,0)) -> 175526 | H45: 0 | I45: 4 | J45: 1 | K45: 1 | L45: 1 | M45: =IF(INTRO!$E$38="Endémique", IF($H45>0, IF($H45=4,"Inconnu", IF($H45=99,"Interrompu", $D45)), 0),"Non requis") -> 0 | N45: 0 | O45: =IF(INTRO!$E$42="Endémique", IF(AND($J45>1,$J45<5), IF($J45=4, "Inconnu", E45+F45), 0),"Non requis") -> 0 | P45: =IF(INTRO!$E$44="Endémique", IF(AND($K45>0,$K45<5), IF($K45=4,"Inconnu", IF($K45=1, $F45*0.33, IF($K45=2, $F45*0.5+$G45*0.2, SUM(F45:G45)))), 0),"Non requis") -> 26579.52 | Q45: 0 | R45: 0 | S45: 1 | T45: 0 | V45: T3 (ALB/MBD) | Y45: 12777 | Z45: Loandjili | AA45: 11.770245 | AB45: 5.084746 | AC45: 1 | AD45: 1 | AG45: ='MDA3'!Q45 -> 0 | AH45: ='MDA1'!M45 -> 0 | AI45: ='MDA4'!U45 -> 0 | AJ45: ='T1'!M45 -> 0 | AK45: =T3_R1!L45 -> 52225 | AM45: 52225 | AN45: 1 | AQ45: 1 | AU45: 1
A46: =IF(INTRO!$E$34<>0,INTRO!$E$34,"") -> Congo | B46: Pointe-Noire | C46: Lumumba | D46: 188528 | E46: =IF(INTRO!$E$48="","",ROUND($D46*INTRO!$E$48,0)) -> 21756 | F46: =IF(INTRO!$E$49="","",ROUND($D46*INTRO!$E$49,0)) -> 50695 | G46: =IF(INTRO!$E$50="","",ROUND($D46*INTRO!$E$50,0)) -> 110477 | H46: 0 | I46: 4 | J46: 1 | K46: 1 | L46: 1 | M46: =IF(INTRO!$E$38="Endémique", IF($H46>0, IF($H46=4,"Inconnu", IF($H46=99,"Interrompu", $D46)), 0),"Non requis") -> 0 | N46: 0 | O46: =IF(INTRO!$E$42="Endémique", IF(AND($J46>1,$J46<5), IF($J46=4, "Inconnu", E46+F46), 0),"Non requis") -> 0 | P46: =IF(INTRO!$E$44="Endémique", IF(AND($K46>0,$K46<5), IF($K46=4,"Inconnu", IF($K46=1, $F46*0.33, IF($K46=2, $F46*0.5+$G46*0.2, SUM(F46:G46)))), 0),"Non requis") -> 16729.35 | Q46: 0 | R46: 0 | S46: 1 | T46: 0 | V46: T3 (ALB/MBD) | Y46: 12778 | Z46: Lumumba | AA46: 11.7981686 | AB46: 5.084746 | AC46: 1 | AD46: 1 | AG46: ='MDA3'!Q46 -> 0 | AH46: ='MDA1'!M46 -> 0 | AI46: ='MDA4'!U46 -> 0 | AJ46: ='T1'!M46 -> 0 | AK46: =T3_R1!L46 -> 30608 | AM46: 30608 | AN46: 1 | AQ46: 1 | AU46: 1
A47: =IF(INTRO!$E$34<>0,INTRO!$E$34,"") -> Congo | B47: Pointe-Noire | C47: Mongo-Poukou | D47: 197820 | E47: =IF(INTRO!$E$48="","",ROUND($D47*INTRO!$E$48,0)) -> 22828 | F47: =IF(INTRO!$E$49="","",ROUND($D47*INTRO!$E$49,0)) -> 53194 | G47: =IF(INTRO!$E$50="","",ROUND($D47*INTRO!$E$50,0)) -> 115923 | H47: 0 | I47: 4 | J47: 4 | K47: 4 | L47: 1 | M47: =IF(INTRO!$E$38="Endémique", IF($H47>0, IF($H47=4,"Inconnu", IF($H47=99,"Interrompu", $D47)), 0),"Non requis") -> 0 | N47: 0 | O47: =IF(INTRO!$E$42="Endémique", IF(AND($J47>1,$J47<5), IF($J47=4, "Inconnu", E47+F47), 0),"Non requis") -> Inconnu | P47: =IF(INTRO!$E$44="Endémique", IF(AND($K47>0,$K47<5), IF($K47=4,"Inconnu", IF($K47=1, $F47*0.33, IF($K47=2, $F47*0.5+$G47*0.2, SUM(F47:G47)))), 0),"Non requis") -> Inconnu | Q47: 0 | R47: 0 | S47: 1 | T47: 0 | V47: T3 (ALB/MBD) | Y47: 12825 | Z47: Mongo-Mpoukou | AC47: 4 | AD47: 4 | AG47: ='MDA3'!Q47 -> 0 | AH47: ='MDA1'!M47 -> 0 | AI47: ='MDA4'!U47 -> 0 | AJ47: ='T1'!M47 -> 0 | AK47: =T3_R1!L47 -> 53824 | AM47: 53824 | AN47: 1 | AQ47: 1 | AU47: 1
A48: =IF(INTRO!$E$34<>0,INTRO!$E$34,"") -> Congo | B48: Pointe-Noire | C48: Mvoumvou | D48: 127361 | E48: =IF(INTRO!$E$48="","",ROUND($D48*INTRO!$E$48,0)) -> 14697 | F48: =IF(INTRO!$E$49="","",ROUND($D48*INTRO!$E$49,0)) -> 34247 | G48: =IF(INTRO!$E$50="","",ROUND($D48*INTRO!$E$50,0)) -> 74634 | H48: 0 | I48: 4 | J48: 4 | K48: 4 | L48: 1 | M48: =IF(INTRO!$E$38="Endémique", IF($H48>0, IF($H48=4,"Inconnu", IF($H48=99,"Interrompu", $D48)), 0),"Non requis") -> 0 | N48: 0 | O48: =IF(INTRO!$E$42="Endémique", IF(AND($J48>1,$J48<5), IF($J48=4, "Inconnu", E48+F48), 0),"Non requis") -> Inconnu | P48: =IF(INTRO!$E$44="Endémique", IF(AND($K48>0,$K48<5), IF($K48=4,"Inconnu", IF($K48=1, $F48*0.33, IF($K48=2, $F48*0.5+$G48*0.2, SUM(F48:G48)))), 0),"Non requis") -> Inconnu | Q48: 0 | R48: 0 | S48: 1 | T48: 0 | V48: T3 (ALB/MBD) | Y48: 12780 | Z48: Mvoumvou | AC48: 4 | AD48: 4 | AG48: ='MDA3'!Q48 -> 0 | AH48: ='MDA1'!M48 -> 0 | AI48: ='MDA4'!U48 -> 0 | AJ48: ='T1'!M48 -> 0 | AK48: =T3_R1!L48 -> 13607 | AM48: 13607 | AN48: 1 | AQ48: 1 | AU48: 1
A49: =IF(INTRO!$E$34<>0,INTRO!$E$34,"") -> Congo | B49: Pointe-Noire | C49: Ngoyo | D49: 217077 | E49: =IF(INTRO!$E$48="","",ROUND($D49*INTRO!$E$48,0)) -> 25051 | F49: =IF(INTRO!$E$49="","",ROUND($D49*INTRO!$E$49,0)) -> 58372 | G49: =IF(INTRO!$E$50="","",ROUND($D49*INTRO!$E$50,0)) -> 127207 | H49: 0 | I49: 4 | J49: 2 | K49: 0 | L49: 1 | M49: =IF(INTRO!$E$38="Endémique", IF($H49>0, IF($H49=4,"Inconnu", IF($H49=99,"Interrompu", $D49)), 0),"Non requis") -> 0 | N49: 0 | O49: =IF(INTRO!$E$42="Endémique", IF(AND($J49>1,$J49<5), IF($J49=4, "Inconnu", E49+F49), 0),"Non requis") -> 83423 | P49: =IF(INTRO!$E$44="Endémique", IF(AND($K49>0,$K49<5), IF($K49=4,"Inconnu", IF($K49=1, $F49*0.33, IF($K49=2, $F49*0.5+$G49*0.2, SUM(F49:G49)))), 0),"Non requis") -> 0 | Q49: 0 | R49: 0 | S49: 1 | T49: 0 | V49: T3 (ALB/MBD) | Y49: 12826 | Z49: Ngoyo | AA49: 20 | AB49: 0 | AC49: 2 | AD49: 0 | AG49: ='MDA3'!Q49 -> 0 | AH49: ='MDA1'!M49 -> 0 | AI49: ='MDA4'!U49 -> 0 | AJ49: ='T1'!M49 -> 0 | AK49: =T3_R1!L49 -> 41096 | AM49: 41096 | AN49: 1 | AQ49: 1 | AU49: 1
A50: =IF(INTRO!$E$34<>0,INTRO!$E$34,"") -> Congo | B50: Pointe-Noire | C50: Tchiamba Nzassi | D50: 28817 | E50: =IF(INTRO!$E$48="","",ROUND($D50*INTRO!$E$48,0)) -> 3325 | F50: =IF(INTRO!$E$49="","",ROUND($D50*INTRO!$E$49,0)) -> 7749 | G50: =IF(INTRO!$E$50="","",ROUND($D50*INTRO!$E$50,0)) -> 16887 | H50: 0 | I50: 4 | J50: 2 | K50: 1 | L50: 1 | M50: =IF(INTRO!$E$38="Endémique", IF($H50>0, IF($H50=4,"Inconnu", IF($H50=99,"Interrompu", $D50)), 0),"Non requis") -> 0 | N50: 0 | O50: =IF(INTRO!$E$42="Endémique", IF(AND($J50>1,$J50<5), IF($J50=4, "Inconnu", E50+F50), 0),"Non requis") -> 11074 | P50: =IF(INTRO!$E$44="Endémique", IF(AND($K50>0,$K50<5), IF($K50=4,"Inconnu", IF($K50=1, $F50*0.33, IF($K50=2, $F50*0.5+$G50*0.2, SUM(F50:G50)))), 0),"Non requis") -> 2557.17 | Q50: 0 | R50: 0 | S50: 1 | T50: 0 | V50: T3 (ALB/MBD) | Y50: 12842 | Z50: Tchiamba Nzassi | AA50: 39.086629 | AB50: 8.333333 | AC50: 2 | AD50: 1 | AG50: ='MDA3'!Q50 -> 0 | AH50: ='MDA1'!M50 -> 0 | AI50: ='MDA4'!U50 -> 0 | AJ50: ='T1'!M50 -> 0 | AK50: =T3_R1!L50 -> 3495 | AM50: 3495 | AN50: 1 | AQ50: 1 | AU50: 1
A51: =IF(INTRO!$E$34<>0,INTRO!$E$34,"") -> Congo | B51: Pointe-Noire | C51: Tie-Tie | D51: 265909 | E51: =IF(INTRO!$E$48="","",ROUND($D51*INTRO!$E$48,0)) -> 30686 | F51: =IF(INTRO!$E$49="","",ROUND($D51*INTRO!$E$49,0)) -> 71503 | G51: =IF(INTRO!$E$50="","",ROUND($D51*INTRO!$E$50,0)) -> 155823 | H51: 0 | I51: 4 | J51: 1 | K51: 0 | L51: 1 | M51: =IF(INTRO!$E$38="Endémique", IF($H51>0, IF($H51=4,"Inconnu", IF($H51=99,"Interrompu", $D51)), 0),"Non requis") -> 0 | N51: 0 | O51: =IF(INTRO!$E$42="Endémique", IF(AND($J51>1,$J51<5), IF($J51=4, "Inconnu", E51+F51), 0),"Non requis") -> 0 | P51: =IF(INTRO!$E$44="Endémique", IF(AND($K51>0,$K51<5), IF($K51=4,"Inconnu", IF($K51=1, $F51*0.33, IF($K51=2, $F51*0.5+$G51*0.2, SUM(F51:G51)))), 0),"Non requis") -> 0 | Q51: 0 | R51: 0 | S51: 1 | T51: 0 | V51: T3 (ALB/MBD) | Y51: 12841 | Z51: Tié-Tié | AA51: 16.71374733 | AB51: 0 | AC51: 1 | AD51: 0 | AG51: ='MDA3'!Q51 -> 0 | AH51: ='MDA1'!M51 -> 0 | AI51: ='MDA4'!U51 -> 0 | AJ51: ='T1'!M51 -> 0 | AK51: =T3_R1!L51 -> 40928 | AM51: 40928 | AN51: 1 | AQ51: 1 | AU51: 1
A52: =IF(INTRO!$E$34<>0,INTRO!$E$34,"") -> Congo | B52: Pool | C52: Boko | D52: 31047 | E52: =IF(INTRO!$E$48="","",ROUND($D52*INTRO!$E$48,0)) -> 3583 | F52: =IF(INTRO!$E$49="","",ROUND($D52*INTRO!$E$49,0)) -> 8349 | G52: =IF(INTRO!$E$50="","",ROUND($D52*INTRO!$E$50,0)) -> 18194 | H52: 0 | I52: 1 | J52: 2 | K52: 0 | L52: 1 | M52: =IF(INTRO!$E$38="Endémique", IF($H52>0, IF($H52=4,"Inconnu", IF($H52=99,"Interrompu", $D52)), 0),"Non requis") -> 0 | N52: 26096 | O52: =IF(INTRO!$E$42="Endémique", IF(AND($J52>1,$J52<5), IF($J52=4, "Inconnu", E52+F52), 0),"Non requis") -> 11932 | P52: =IF(INTRO!$E$44="Endémique", IF(AND($K52>0,$K52<5), IF($K52=4,"Inconnu", IF($K52=1, $F52*0.33, IF($K52=2, $F52*0.5+$G52*0.2, SUM(F52:G52)))), 0),"Non requis") -> 0 | Q52: 0 | R52: 1 | S52: 1 | T52: 0 | U52: MDA3 (IVM) | V52: T3 (ALB/MBD) | Y52: 12844 | Z52: Boko | AA52: 27.46527767 | AB52: 0 | AC52: 2 | AD52: 0 | AG52: ='MDA3'!Q52 -> 22644 | AH52: ='MDA1'!M52 -> 0 | AI52: ='MDA4'!U52 -> 0 | AJ52: ='T1'!M52 -> 0 | AK52: =T3_R1!L52 -> 5786 | AM52: 5786 | AN52: 1 | AQ52: 1 | AU52: 1
A53: =IF(INTRO!$E$34<>0,INTRO!$E$34,"") -> Congo | B53: Pool | C53: Goma tsétsé | D53: 39166 | E53: =IF(INTRO!$E$48="","",ROUND($D53*INTRO!$E$48,0)) -> 4520 | F53: =IF(INTRO!$E$49="","",ROUND($D53*INTRO!$E$49,0)) -> 10532 | G53: =IF(INTRO!$E$50="","",ROUND($D53*INTRO!$E$50,0)) -> 22951 | H53: 0 | I53: 1 | J53: 1 | K53: 0 | L53: 1 | M53: =IF(INTRO!$E$38="Endémique", IF($H53>0, IF($H53=4,"Inconnu", IF($H53=99,"Interrompu", $D53)), 0),"Non requis") -> 0 | N53: 34590 | O53: =IF(INTRO!$E$42="Endémique", IF(AND($J53>1,$J53<5), IF($J53=4, "Inconnu", E53+F53), 0),"Non requis") -> 0 | P53: =IF(INTRO!$E$44="Endémique", IF(AND($K53>0,$K53<5), IF($K53=4,"Inconnu", IF($K53=1, $F53*0.33, IF($K53=2, $F53*0.5+$G53*0.2, SUM(F53:G53)))), 0),"Non requis") -> 0 | Q53: 0 | R53: 1 | S53: 1 | T53: 0 | U53: MDA3 (IVM) | V53: T3 (ALB/MBD) | Y53: 12802 | Z53: Goma Tsétsé | AA53: 16.91241389 | AB53: 0 | AC53: 1 | AD53: 0 | AG53: ='MDA3'!Q53 -> 27254 | AH53: ='MDA1'!M53 -> 0 | AI53: ='MDA4'!U53 -> 0 | AJ53: ='T1'!M53 -> 0 | AK53: =T3_R1!L53 -> 3996 | AM53: 3996 | AN53: 1 | AQ53: 1 | AU53: 1
A54: =IF(INTRO!$E$34<>0,INTRO!$E$34,"") -> Congo | B54: Pool | C54: Ignié | D54: 83774 | E54: =IF(INTRO!$E$48="","",ROUND($D54*INTRO!$E$48,0)) -> 9668 | F54: =IF(INTRO!$E$49="","",ROUND($D54*INTRO!$E$49,0)) -> 22527 | G54: =IF(INTRO!$E$50="","",ROUND($D54*INTRO!$E$50,0)) -> 49092 | H54: 1 | I54: 1 | J54: 2 | K54: 1 | L54: 1 | M54: =IF(INTRO!$E$38="Endémique", IF($H54>0, IF($H54=4,"Inconnu", IF($H54=99,"Interrompu", $D54)), 0),"Non requis") -> 83774 | N54: 3570 | O54: =IF(INTRO!$E$42="Endémique", IF(AND($J54>1,$J54<5), IF($J54=4, "Inconnu", E54+F54), 0),"Non requis") -> 32195 | P54: =IF(INTRO!$E$44="Endémique", IF(AND($K54>0,$K54<5), IF($K54=4,"Inconnu", IF($K54=1, $F54*0.33, IF($K54=2, $F54*0.5+$G54*0.2, SUM(F54:G54)))), 0),"Non requis") -> 7433.91 | Q54: 1 | R54: 1 | S54: 2 | T54: 0 | U54: MDA1 (IVM+ALB) | V54: T3 (ALB/MBD) | Y54: 12828 | Z54: Ignié | AA54: 46.19047629 | AB54: 1.666667 | AC54: 2 | AD54: 1 | AG54: ='MDA3'!Q54 -> 0 | AH54: ='MDA1'!M54 -> 4502 | AI54: ='MDA4'!U54 -> 50099 | AJ54: ='T1'!M54 -> 0 | AK54: =T3_R1!L54 -> 19167 | AM54: 73768 | AN54: 3 | AP54: x | AQ54: 3 | AU54: 1
A55: =IF(INTRO!$E$34<>0,INTRO!$E$34,"") -> Congo | B55: Pool | C55: Kindamba | D55: 34054 | E55: =IF(INTRO!$E$48="","",ROUND($D55*INTRO!$E$48,0)) -> 3930 | F55: =IF(INTRO!$E$49="","",ROUND($D55*INTRO!$E$49,0)) -> 9157 | G55: =IF(INTRO!$E$50="","",ROUND($D55*INTRO!$E$50,0)) -> 19956 | H55: 0 | I55: 1 | J55: 2 | K55: 0 | L55: 1 | M55: =IF(INTRO!$E$38="Endémique", IF($H55>0, IF($H55=4,"Inconnu", IF($H55=99,"Interrompu", $D55)), 0),"Non requis") -> 0 | N55: 12148 | O55: =IF(INTRO!$E$42="Endémique", IF(AND($J55>1,$J55<5), IF($J55=4, "Inconnu", E55+F55), 0),"Non requis") -> 13087 | P55: =IF(INTRO!$E$44="Endémique", IF(AND($K55>0,$K55<5), IF($K55=4,"Inconnu", IF($K55=1, $F55*0.33, IF($K55=2, $F55*0.5+$G55*0.2, SUM(F55:G55)))), 0),"Non requis") -> 0 | Q55: 0 | R55: 1 | S55: 1 | T55: 0 | U55: MDA3 (IVM) | V55: T3 (ALB/MBD) | Y55: 12803 | Z55: Kindamba | AA55: 35.91462644 | AB55: 0 | AC55: 2 | AD55: 0 | AG55: ='MDA3'!Q55 -> 12620 | AH55: ='MDA1'!M55 -> 0 | AI55: ='MDA4'!U55 -> 0 | AJ55: ='T1'!M55 -> 0 | AK55: =T3_R1!L55 -> 7890 | AM55: 7890 | AN55: 1 | AQ55: 1 | AU55: 1
A56: =IF(INTRO!$E$34<>0,INTRO!$E$34,"") -> Congo | B56: Pool | C56: Kinkala | D56: 47225 | E56: =IF(INTRO!$E$48="","",ROUND($D56*INTRO!$E$48,0)) -> 5450 | F56: =IF(INTRO!$E$49="","",ROUND($D56*INTRO!$E$49,0)) -> 12699 | G56: =IF(INTRO!$E$50="","",ROUND($D56*INTRO!$E$50,0)) -> 27674 | H56: 0 | I56: 1 | J56: 2 | K56: 0 | L56: 1 | M56: =IF(INTRO!$E$38="Endémique", IF($H56>0, IF($H56=4,"Inconnu", IF($H56=99,"Interrompu", $D56)), 0),"Non requis") -> 0 | N56: 20057 | O56: =IF(INTRO!$E$42="Endémique", IF(AND($J56>1,$J56<5), IF($J56=4, "Inconnu", E56+F56), 0),"Non requis") -> 18149 | P56: =IF(INTRO!$E$44="Endémique", IF(AND($K56>0,$K56<5), IF($K56=4,"Inconnu", IF($K56=1, $F56*0.33, IF($K56=2, $F56*0.5+$G56*0.2, SUM(F56:G56)))), 0),"Non requis") -> 0 | Q56: 0 | R56: 1 | S56: 1 | T56: 0 | U56: MDA3 (IVM) | V56: T3 (ALB/MBD) | Y56: 12843 | Z56: Kinkala | AA56: 28.888889 | AB56: 0 | AC56: 2 | AD56: 0 | AG56: ='MDA3'!Q56 -> 19712 | AH56: ='MDA1'!M56 -> 0 | AI56: ='MDA4'!U56 -> 0 | AJ56: ='T1'!M56 -> 0 | AK56: =T3_R1!L56 -> 7868 | AM56: 7868 | AN56: 1 | AQ56: 1 | AU56: 1
A57: =IF(INTRO!$E$34<>0,INTRO!$E$34,"") -> Congo | B57: Pool | C57: Kintélé | D57: 29284 | E57: =IF(INTRO!$E$48="","",ROUND($D57*INTRO!$E$48,0)) -> 3379 | F57: =IF(INTRO!$E$49="","",ROUND($D57*INTRO!$E$49,0)) -> 7874 | G57: =IF(INTRO!$E$50="","",ROUND($D57*INTRO!$E$50,0)) -> 17160 | H57: 0 | I57: 4 | J57: 4 | K57: 4 | L57: 1 | M57: =IF(INTRO!$E$38="Endémique", IF($H57>0, IF($H57=4,"Inconnu", IF($H57=99,"Interrompu", $D57)), 0),"Non requis") -> 0 | N57: 0 | O57: =IF(INTRO!$E$42="Endémique", IF(AND($J57>1,$J57<5), IF($J57=4, "Inconnu", E57+F57), 0),"Non requis") -> Inconnu | P57: =IF(INTRO!$E$44="Endémique", IF(AND($K57>0,$K57<5), IF($K57=4,"Inconnu", IF($K57=1, $F57*0.33, IF($K57=2, $F57*0.5+$G57*0.2, SUM(F57:G57)))), 0),"Non requis") -> Inconnu | Q57: 0 | R57: 0 | S57: 1 | T57: 0 | V57: T3 (ALB/MBD) | Y57: 12846 | Z57: Kintélé | AC57: 4 | AD57: 4 | AG57: ='MDA3'!Q57 -> 0 | AH57: ='MDA1'!M57 -> 0 | AI57: ='MDA4'!U57 -> 0 | AJ57: ='T1'!M57 -> 0 | AK57: =T3_R1!L57 -> 10103 | AM57: 10103 | AN57: 1 | AQ57: 1 | AU57: 1
A58: =IF(INTRO!$E$34<>0,INTRO!$E$34,"") -> Congo | B58: Pool | C58: Mindouli | D58: 51867 | E58: =IF(INTRO!$E$48="","",ROUND($D58*INTRO!$E$48,0)) -> 5985 | F58: =IF(INTRO!$E$49="","",ROUND($D58*INTRO!$E$49,0)) -> 13947 | G58: =IF(INTRO!$E$50="","",ROUND($D58*INTRO!$E$50,0)) -> 30394 | H58: 0 | I58: 1 | J58: 2 | K58: 1 | L58: 1 | M58: =IF(INTRO!$E$38="Endémique", IF($H58>0, IF($H58=4,"Inconnu", IF($H58=99,"Interrompu", $D58)), 0),"Non requis") -> 0 | N58: 59741 | O58: =IF(INTRO!$E$42="Endémique", IF(AND($J58>1,$J58<5), IF($J58=4, "Inconnu", E58+F58), 0),"Non requis") -> 19932 | P58: =IF(INTRO!$E$44="Endémique", IF(AND($K58>0,$K58<5), IF($K58=4,"Inconnu", IF($K58=1, $F58*0.33, IF($K58=2, $F58*0.5+$G58*0.2, SUM(F58:G58)))), 0),"Non requis") -> 4602.51 | Q58: 0 | R58: 1 | S58: 1 | T58: 0 | U58: MDA3 (IVM) | V58: T3 (ALB/MBD) | Y58: 12807 | Z58: Mindouli | AA58: 33.2285975 | AB58: 3.333333 | AC58: 2 | AD58: 1 | AG58: ='MDA3'!Q58 -> 49349 | AH58: ='MDA1'!M58 -> 0 | AI58: ='MDA4'!U58 -> 0 | AJ58: ='T1'!M58 -> 0 | AK58: =T3_R1!L58 -> 10456 | AM58: 10456 | AN58: 1 | AQ58: 1 | AU58: 1
A59: =IF(INTRO!$E$34<>0,INTRO!$E$34,"") -> Congo | B59: Sangha | C59: Ouesso | D59: 83588 | E59: =IF(INTRO!$E$48="","",ROUND($D59*INTRO!$E$48,0)) -> 9646 | F59: =IF(INTRO!$E$49="","",ROUND($D59*INTRO!$E$49,0)) -> 22477 | G59: =IF(INTRO!$E$50="","",ROUND($D59*INTRO!$E$50,0)) -> 48983 | H59: 1 | I59: 4 | J59: 2 | K59: 1 | L59: 1 | M59: =IF(INTRO!$E$38="Endémique", IF($H59>0, IF($H59=4,"Inconnu", IF($H59=99,"Interrompu", $D59)), 0),"Non requis") -> 83588 | N59: 0 | O59: =IF(INTRO!$E$42="Endémique", IF(AND($J59>1,$J59<5), IF($J59=4, "Inconnu", E59+F59), 0),"Non requis") -> 32123 | P59: =IF(INTRO!$E$44="Endémique", IF(AND($K59>0,$K59<5), IF($K59=4,"Inconnu", IF($K59=1, $F59*0.33, IF($K59=2, $F59*0.5+$G59*0.2, SUM(F59:G59)))), 0),"Non requis") -> 7417.41 | Q59: 1 | R59: 0 | S59: 3 | T59: 0 | U59: MDA4 (ALB/2*ALB) | V59: T3 (ALB/MBD) | Y59: 12813 | Z59: Ouesso | AA59: 44.5874605 | AB59: 1.724138 | AC59: 2 | AD59: 1 | AG59: ='MDA3'!Q59 -> 0 | AH59: ='MDA1'!M59 -> 0 | AI59: ='MDA4'!U59 -> 61096 | AJ59: ='T1'!M59 -> 0 | AK59: =T3_R1!L59 -> 19924 | AM59: 81020 | AN59: 2 | AP59: x | AQ59: 2 | AU59: 1
A60: =IF(INTRO!$E$34<>0,INTRO!$E$34,"") -> Congo | B60: Sangha | C60: Sembé-Souanké | D60: 37988 | E60: =IF(INTRO!$E$48="","",ROUND($D60*INTRO!$E$48,0)) -> 4384 | F60: =IF(INTRO!$E$49="","",ROUND($D60*INTRO!$E$49,0)) -> 10215 | G60: =IF(INTRO!$E$50="","",ROUND($D60*INTRO!$E$50,0)) -> 22261 | H60: 1 | I60: 4 | J60: 3 | K60: 0 | L60: 1 | M60: =IF(INTRO!$E$38="Endémique", IF($H60>0, IF($H60=4,"Inconnu", IF($H60=99,"Interrompu", $D60)), 0),"Non requis") -> 37988 | N60: 0 | O60: =IF(INTRO!$E$42="Endémique", IF(AND($J60>1,$J60<5), IF($J60=4, "Inconnu", E60+F60), 0),"Non requis") -> 14599 | P60: =IF(INTRO!$E$44="Endémique", IF(AND($K60>0,$K60<5), IF($K60=4,"Inconnu", IF($K60=1, $F60*0.33, IF($K60=2, $F60*0.5+$G60*0.2, SUM(F60:G60)))), 0),"Non requis") -> 0 | Q60: 1 | R60: 0 | S60: 3 | T60: 0 | U60: MDA4 (ALB/2*ALB) | V60: T3 (ALB/MBD) | Y60: 12814 | Z60: Sembé-Souanké | AA60: 58.466366 | AB60: 0 | AC60: 3 | AD60: 0 | AG60: ='MDA3'!Q60 -> 0 | AH60: ='MDA1'!M60 -> 0 | AI60: ='MDA4'!U60 -> 28719 | AJ60: ='T1'!M60 -> 0 | AK60: =T3_R1!L60 -> 6773 | AM60: 35492 | AN60: 2 | AP60: x | AQ60: 2 | AU60: 1

Sheet MDA1
A1: MDA 1 - Ivermectine (IVM) et Albendazole (ALB)
A2: Structure administrative, population nécessitant une chimioprévention par groupe d'âge, population traitée par groupe d'âge et couverture
A4: TOTAL | G4: =SUM(G$9:G$1000) -> 43250.6827 | H4: =SUM(H$9:H$1000) -> 117592.3173 | I4: =SUM(I$9:I$1000) -> 160843 | K4: =SUM(K$9:K$1000) -> 35917.5108 | L4: =SUM(L$9:L$1000) -> 97654.4892 | M4: =SUM(M$9:M$1000) -> 133572 | O4: =IF(G4<>0, IF(K4/G4*100=0, "-", K4/G4*100), " ") -> 83.04495688 | P4: =IF(H4<>0, IF(L4/H4*100=0, "-", L4/H4*100), " ") -> 83.04495688 | Q4: =IF(I4<>0, IF(M4/I4*100=0, "-", M4/I4*100), " ") -> 83.04495688
A6: Structure administrative du pays | D6: Mise en oeuvre de la CP | E6: Date | F6: Population ciblée pour MDA 1 | J6: Population traitée | N6: Couverture du Programme (%)
A7: Pays | B7: Région/Département | C7: District | F7: EAPréS | G7: EAS | H7: Adultes | I7: Total | J7: EAPréS | K7: EAS | L7: Adultes | M7: Total | N7: EAPréS | O7: EAS | P7: Adultes | Q7: Total
A9: =IF(COUNTRY_INFO!A9=0," ",COUNTRY_INFO!A9) -> Congo | B9: =IF(COUNTRY_INFO!B9=0," ",COUNTRY_INFO!B9) -> Bouenza | C9: =IF(COUNTRY_INFO!C9=0," ",COUNTRY_INFO!C9) -> Loudima | D9: =IF(COUNTRY_INFO!$U$9:$U$1000="MDA1 (IVM+ALB)", COUNTRY_INFO!$U$9:$U$1000, " ") ->  | I9: =SUM(F9:H9) -> 0 | M9: =SUM(J9:L9) -> 0 | O9: =IF(G9<>0, IF(K9/G9*100=0, "-", K9/G9*100), " ") ->  | P9: =IF(H9<>0, IF(L9/H9*100=0, "-", L9/H9*100), " ") ->  | Q9: =IF(I9<>0, IF(M9/I9*100=0, "-", M9/I9*100), " ") -> 
A10: =IF(COUNTRY_INFO!A10=0," ",COUNTRY_INFO!A10) -> Congo | B10: =IF(COUNTRY_INFO!B10=0," ",COUNTRY_INFO!B10) -> Bouenza | C10: =IF(COUNTRY_INFO!C10=0," ",COUNTRY_INFO!C10) -> Loutété | D10: =IF(COUNTRY_INFO!$U$9:$U$1000="MDA1 (IVM+ALB)", COUNTRY_INFO!$U$9:$U$1000, " ") -> MDA1 (IVM+ALB) | E10: Septembre 2022 | G10: 9190.7331 | H10: 24988.2669 | I10: =SUM(F10:H10) -> 34179 | K10: 7487.2516 | L10: 20356.7484 | M10: =SUM(J10:L10) -> 27844 | O10: =IF(G10<>0, IF(K10/G10*100=0, "-", K10/G10*100), " ") -> 81.46522719 | P10: =IF(H10<>0, IF(L10/H10*100=0, "-", L10/H10*100), " ") -> 81.46522719 | Q10: =IF(I10<>0, IF(M10/I10*100=0, "-", M10/I10*100), " ") -> 81.46522719
A11: =IF(COUNTRY_INFO!A11=0," ",COUNTRY_INFO!A11) -> Congo | B11: =IF(COUNTRY_INFO!B11=0," ",COUNTRY_INFO!B11) -> Bouenza | C11: =IF(COUNTRY_INFO!C11=0," ",COUNTRY_INFO!C11) -> Madingou | D11: =IF(COUNTRY_INFO!$U$9:$U$1000="MDA1 (IVM+ALB)", COUNTRY_INFO!$U$9:$U$1000, " ") -> MDA1 (IVM+ALB) | E11: Septembre 2022 | G11: 15394.2561 | H11: 41854.7439 | I11: 57249 | K11: 12782.6993 | L11: 34754.3007 | M11: 47537 | O11: 83.03551154 | P11: 83.03551154 | Q11: 83.03551154
A12: =IF(COUNTRY_INFO!A12=0," ",COUNTRY_INFO!A12) -> Congo | B12: =IF(COUNTRY_INFO!B12=0," ",COUNTRY_INFO!B12) -> Bouenza | C12: =IF(COUNTRY_INFO!C12=0," ",COUNTRY_INFO!C12) -> Mouyondzi | D12: =IF(COUNTRY_INFO!$U$9:$U$1000="MDA1 (IVM+ALB)", COUNTRY_INFO!$U$9:$U$1000, " ") -> MDA1 (IVM+ALB) | E12: Septembre 2022 | G12: 10348.0787 | H12: 28134.9213 | I12: 38483 | K12: 8591.8928 | L12: 23360.1072 | M12: 31952 | O12: 83.02886989 | P12: 83.02886989 | Q12: 83.02886989
A13: =IF(COUNTRY_INFO!A13=0," ",COUNTRY_INFO!A13) -> Congo | B13: =IF(COUNTRY_INFO!B13=0," ",COUNTRY_INFO!B13) -> Bouenza | C13: =IF(COUNTRY_INFO!C13=0," ",COUNTRY_INFO!C13) -> Nkayi | D13: =IF(COUNTRY_INFO!$U$9:$U$1000="MDA1 (IVM+ALB)", COUNTRY_INFO!$U$9:$U$1000, " ") ->  | I13: 0 | M13: 0
A14: =IF(COUNTRY_INFO!A14=0," ",COUNTRY_INFO!A14) -> Congo | B14: =IF(COUNTRY_INFO!B14=0," ",COUNTRY_INFO!B14) -> Brazzaville | C14: =IF(COUNTRY_INFO!C14=0," ",COUNTRY_INFO!C14) -> Bacongo | D14: =IF(COUNTRY_INFO!$U$9:$U$1000="MDA1 (IVM+ALB)", COUNTRY_INFO!$U$9:$U$1000, " ") ->  | I14: 0 | M14: 0
A15: =IF(COUNTRY_INFO!A15=0," ",COUNTRY_INFO!A15) -> Congo | B15: =IF(COUNTRY_INFO!B15=0," ",COUNTRY_INFO!B15) -> Brazzaville | C15: =IF(COUNTRY_INFO!C15=0," ",COUNTRY_INFO!C15) -> Djiri | D15: =IF(COUNTRY_INFO!$U$9:$U$1000="MDA1 (IVM+ALB)", COUNTRY_INFO!$U$9:$U$1000, " ") ->  | I15: 0 | M15: 0
A16: =IF(COUNTRY_INFO!A16=0," ",COUNTRY_INFO!A16) -> Congo | B16: =IF(COUNTRY_INFO!B16=0," ",COUNTRY_INFO!B16) -> Brazzaville | C16: =IF(COUNTRY_INFO!C16=0," ",COUNTRY_INFO!C16) -> Île Mbamou | D16: =IF(COUNTRY_INFO!$U$9:$U$1000="MDA1 (IVM+ALB)", COUNTRY_INFO!$U$9:$U$1000, " ") ->  | I16: 0 | M16: 0
A17: =IF(COUNTRY_INFO!A17=0," ",COUNTRY_INFO!A17) -> Congo | B17: =IF(COUNTRY_INFO!B17=0," ",COUNTRY_INFO!B17) -> Brazzaville | C17: =IF(COUNTRY_INFO!C17=0," ",COUNTRY_INFO!C17) -> Madibou | D17: =IF(COUNTRY_INFO!$U$9:$U$1000="MDA1 (IVM+ALB)", COUNTRY_INFO!$U$9:$U$1000, " ") ->  | I17: 0 | M17: 0
A18: =IF(COUNTRY_INFO!A18=0," ",COUNTRY_INFO!A18) -> Congo | B18: =IF(COUNTRY_INFO!B18=0," ",COUNTRY_INFO!B18) -> Brazzaville | C18: =IF(COUNTRY_INFO!C18=0," ",COUNTRY_INFO!C18) -> Makélékélé | D18: =IF(COUNTRY_INFO!$U$9:$U$1000="MDA1 (IVM+ALB)", COUNTRY_INFO!$U$9:$U$1000, " ") ->  | I18: 0 | M18: 0
A19: =IF(COUNTRY_INFO!A19=0," ",COUNTRY_INFO!A19) -> Congo | B19: =IF(COUNTRY_INFO!B19=0," ",COUNTRY_INFO!B19) -> Brazzaville | C19: =IF(COUNTRY_INFO!C19=0," ",COUNTRY_INFO!C19) -> Mfilou | D19: =IF(COUNTRY_INFO!$U$9:$U$1000="MDA1 (IVM+ALB)", COUNTRY_INFO!$U$9:$U$1000, " ") ->  | I19: 0 | M19: 0
A20: =IF(COUNTRY_INFO!A20=0," ",COUNTRY_INFO!A20) -> Congo | B20: =IF(COUNTRY_INFO!B20=0," ",COUNTRY_INFO!B20) -> Brazzaville | C20: =IF(COUNTRY_INFO!C20=0," ",COUNTRY_INFO!C20) -> Moungali | D20: =IF(COUNTRY_INFO!$U$9:$U$1000="MDA1 (IVM+ALB)", COUNTRY_INFO!$U$9:$U$1000, " ") ->  | I20: 0 | M20: 0
A21: =IF(COUNTRY_INFO!A21=0," ",COUNTRY_INFO!A21) -> Congo | B21: =IF(COUNTRY_INFO!B21=0," ",COUNTRY_INFO!B21) -> Brazzaville | C21: =IF(COUNTRY_INFO!C21=0," ",COUNTRY_INFO!C21) -> Ouenzé | D21: =IF(COUNTRY_INFO!$U$9:$U$1000="MDA1 (IVM+ALB)", COUNTRY_INFO!$U$9:$U$1000, " ") ->  | I21: 0 | M21: 0
A22: =IF(COUNTRY_INFO!A22=0," ",COUNTRY_INFO!A22) -> Congo | B22: =IF(COUNTRY_INFO!B22=0," ",COUNTRY_INFO!B22) -> Brazzaville | C22: =IF(COUNTRY_INFO!C22=0," ",COUNTRY_INFO!C22) -> Poto-Poto | D22: =IF(COUNTRY_INFO!$U$9:$U$1000="MDA1 (IVM+ALB)", COUNTRY_INFO!$U$9:$U$1000, " ") ->  | I22: 0 | M22: 0
A23: =IF(COUNTRY_INFO!A23=0," ",COUNTRY_INFO!A23) -> Congo | B23: =IF(COUNTRY_INFO!B23=0," ",COUNTRY_INFO!B23) -> Brazzaville | C23: =IF(COUNTRY_INFO!C23=0," ",COUNTRY_INFO!C23) -> Talangaî | D23: =IF(COUNTRY_INFO!$U$9:$U$1000="MDA1 (IVM+ALB)", COUNTRY_INFO!$U$9:$U$1000, " ") ->  | I23: 0 | M23: 0
A24: =IF(COUNTRY_INFO!A24=0," ",COUNTRY_INFO!A24) -> Congo | B24: =IF(COUNTRY_INFO!B24=0," ",COUNTRY_INFO!B24) -> Cuvette | C24: =IF(COUNTRY_INFO!C24=0," ",COUNTRY_INFO!C24) -> Mossaka | D24: =IF(COUNTRY_INFO!$U$9:$U$1000="MDA1 (IVM+ALB)", COUNTRY_INFO!$U$9:$U$1000, " ") ->  | I24: 0 | M24: 0
A25: =IF(COUNTRY_INFO!A25=0," ",COUNTRY_INFO!A25) -> Congo | B25: =IF(COUNTRY_INFO!B25=0," ",COUNTRY_INFO!B25) -> Cuvette | C25: =IF(COUNTRY_INFO!C25=0," ",COUNTRY_INFO!C25) -> Owando | D25: =IF(COUNTRY_INFO!$U$9:$U$1000="MDA1 (IVM+ALB)", COUNTRY_INFO!$U$9:$U$1000, " ") ->  | I25: 0 | M25: 0
A26: =IF(COUNTRY_INFO!A26=0," ",COUNTRY_INFO!A26) -> Congo | B26: =IF(COUNTRY_INFO!B26=0," ",COUNTRY_INFO!B26) -> Cuvette | C26: =IF(COUNTRY_INFO!C26=0," ",COUNTRY_INFO!C26) -> Oyo-Alima | D26: =IF(COUNTRY_INFO!$U$9:$U$1000="MDA1 (IVM+ALB)", COUNTRY_INFO!$U$9:$U$1000, " ") ->  | I26: 0 | M26: 0
A27: =IF(COUNTRY_INFO!A27=0," ",COUNTRY_INFO!A27) -> Congo | B27: =IF(COUNTRY_INFO!B27=0," ",COUNTRY_INFO!B27) -> Cuvette-Ouest | C27: =IF(COUNTRY_INFO!C27=0," ",COUNTRY_INFO!C27) -> Etoumbi | D27: =IF(COUNTRY_INFO!$U$9:$U$1000="MDA1 (IVM+ALB)", COUNTRY_INFO!$U$9:$U$1000, " ") ->  | I27: 0 | M27: 0
A28: =IF(COUNTRY_INFO!A28=0," ",COUNTRY_INFO!A28) -> Congo | B28: =IF(COUNTRY_INFO!B28=0," ",COUNTRY_INFO!B28) -> Cuvette-Ouest | C28: =IF(COUNTRY_INFO!C28=0," ",COUNTRY_INFO!C28) -> Ewo | D28: =IF(COUNTRY_INFO!$U$9:$U$1000="MDA1 (IVM+ALB)", COUNTRY_INFO!$U$9:$U$1000, " ") ->  | I28: 0 | M28: 0
A29: =IF(COUNTRY_INFO!A29=0," ",COUNTRY_INFO!A29) -> Congo | B29: =IF(COUNTRY_INFO!B29=0," ",COUNTRY_INFO!B29) -> Kouilou | C29: =IF(COUNTRY_INFO!C29=0," ",COUNTRY_INFO!C29) -> Hinda-Loango | D29: =IF(COUNTRY_INFO!$U$9:$U$1000="MDA1 (IVM+ALB)", COUNTRY_INFO!$U$9:$U$1000, " ") ->  | I29: 0 | M29: 0
A30: =IF(COUNTRY_INFO!A30=0," ",COUNTRY_INFO!A30) -> Congo | B30: =IF(COUNTRY_INFO!B30=0," ",COUNTRY_INFO!B30) -> Kouilou | C30: =IF(COUNTRY_INFO!C30=0," ",COUNTRY_INFO!C30) -> Madingo Kayes-Nzambi | D30: =IF(COUNTRY_INFO!$U$9:$U$1000="MDA1 (IVM+ALB)", COUNTRY_INFO!$U$9:$U$1000, " ") ->  | I30: 0 | M30: 0
A31: =IF(COUNTRY_INFO!A31=0," ",COUNTRY_INFO!A31) -> Congo | B31: =IF(COUNTRY_INFO!B31=0," ",COUNTRY_INFO!B31) -> Kouilou | C31: =IF(COUNTRY_INFO!C31=0," ",COUNTRY_INFO!C31) -> Mvouti-Kakamouéka | D31: =IF(COUNTRY_INFO!$U$9:$U$1000="MDA1 (IVM+ALB)", COUNTRY_INFO!$U$9:$U$1000, " ") ->  | I31: 0 | M31: 0
A32: =IF(COUNTRY_INFO!A32=0," ",COUNTRY_INFO!A32) -> Congo | B32: =IF(COUNTRY_INFO!B32=0," ",COUNTRY_INFO!B32) -> Lékoumou | C32: =IF(COUNTRY_INFO!C32=0," ",COUNTRY_INFO!C32) -> Sibiti | D32: =IF(COUNTRY_INFO!$U$9:$U$1000="MDA1 (IVM+ALB)", COUNTRY_INFO!$U$9:$U$1000, " ") ->  | I32: 0 | M32: 0
A33: =IF(COUNTRY_INFO!A33=0," ",COUNTRY_INFO!A33) -> Congo | B33: =IF(COUNTRY_INFO!B33=0," ",COUNTRY_INFO!B33) -> Lékoumou | C33: =IF(COUNTRY_INFO!C33=0," ",COUNTRY_INFO!C33) -> Zanaga | D33: =IF(COUNTRY_INFO!$U$9:$U$1000="MDA1 (IVM+ALB)", COUNTRY_INFO!$U$9:$U$1000, " ") ->  | I33: 0 | M33: 0
A34: =IF(COUNTRY_INFO!A34=0," ",COUNTRY_INFO!A34) -> Congo | B34: =IF(COUNTRY_INFO!B34=0," ",COUNTRY_INFO!B34) -> Likouala | C34: =IF(COUNTRY_INFO!C34=0," ",COUNTRY_INFO!C34) -> Bétou | D34: =IF(COUNTRY_INFO!$U$9:$U$1000="MDA1 (IVM+ALB)", COUNTRY_INFO!$U$9:$U$1000, " ") ->  | I34: 0 | M34: 0
A35: =IF(COUNTRY_INFO!A35=0," ",COUNTRY_INFO!A35) -> Congo | B35: =IF(COUNTRY_INFO!B35=0," ",COUNTRY_INFO!B35) -> Likouala | C35: =IF(COUNTRY_INFO!C35=0," ",COUNTRY_INFO!C35) -> Impfondo | D35: =IF(COUNTRY_INFO!$U$9:$U$1000="MDA1 (IVM+ALB)", COUNTRY_INFO!$U$9:$U$1000, " ") ->  | I35: 0 | M35: 0
A36: =IF(COUNTRY_INFO!A36=0," ",COUNTRY_INFO!A36) -> Congo | B36: =IF(COUNTRY_INFO!B36=0," ",COUNTRY_INFO!B36) -> Niari | C36: =IF(COUNTRY_INFO!C36=0," ",COUNTRY_INFO!C36) -> Dolisie | D36: =IF(COUNTRY_INFO!$U$9:$U$1000="MDA1 (IVM+ALB)", COUNTRY_INFO!$U$9:$U$1000, " ") -> MDA1 (IVM+ALB) | E36: Septembre 2022 | G36: 2874.2721 | H36: 7814.7279 | I36: 10689 | K36: 2408.2684 | L36: 6547.7316 | M36: 8956 | O36: 83.78707082 | P36: 83.78707082 | Q36: 83.78707082
A37: =IF(COUNTRY_INFO!A37=0," ",COUNTRY_INFO!A37) -> Congo | B37: =IF(COUNTRY_INFO!B37=0," ",COUNTRY_INFO!B37) -> Niari | C37: =IF(COUNTRY_INFO!C37=0," ",COUNTRY_INFO!C37) -> Kibangou | D37: =IF(COUNTRY_INFO!$U$9:$U$1000="MDA1 (IVM+ALB)", COUNTRY_INFO!$U$9:$U$1000, " ") -> MDA1 (IVM+ALB) | E37: Septembre 2022 | G37: 4045.3316 | H37: 10998.6684 | I37: 15044 | K37: 3436.8109 | L37: 9344.1891 | M37: 12781 | O37: 84.95745812 | P37: 84.95745812 | Q37: 84.95745812
A38: =IF(COUNTRY_INFO!A38=0," ",COUNTRY_INFO!A38) -> Congo | B38: =IF(COUNTRY_INFO!B38=0," ",COUNTRY_INFO!B38) -> Niari | C38: =IF(COUNTRY_INFO!C38=0," ",COUNTRY_INFO!C38) -> Kimongo-Londela Nkayes | D38: =IF(COUNTRY_INFO!$U$9:$U$1000="MDA1 (IVM+ALB)", COUNTRY_INFO!$U$9:$U$1000, " ") ->  | I38: 0 | M38: 0
A39: =IF(COUNTRY_INFO!A39=0," ",COUNTRY_INFO!A39) -> Congo | B39: =IF(COUNTRY_INFO!B39=0," ",COUNTRY_INFO!B39) -> Niari | C39: =IF(COUNTRY_INFO!C39=0," ",COUNTRY_INFO!C39) -> Mayoko | D39: =IF(COUNTRY_INFO!$U$9:$U$1000="MDA1 (IVM+ALB)", COUNTRY_INFO!$U$9:$U$1000, " ") ->  | I39: 0 | M39: 0
A40: =IF(COUNTRY_INFO!A40=0," ",COUNTRY_INFO!A40) -> Congo | B40: =IF(COUNTRY_INFO!B40=0," ",COUNTRY_INFO!B40) -> Niari | C40: =IF(COUNTRY_INFO!C40=0," ",COUNTRY_INFO!C40) -> Mossendjo | D40: =IF(COUNTRY_INFO!$U$9:$U$1000="MDA1 (IVM+ALB)", COUNTRY_INFO!$U$9:$U$1000, " ") ->  | I40: 0 | M40: 0
A41: =IF(COUNTRY_INFO!A41=0," ",COUNTRY_INFO!A41) -> Congo | B41: =IF(COUNTRY_INFO!B41=0," ",COUNTRY_INFO!B41) -> Plateaux | C41: =IF(COUNTRY_INFO!C41=0," ",COUNTRY_INFO!C41) -> Abala | D41: =IF(COUNTRY_INFO!$U$9:$U$1000="MDA1 (IVM+ALB)", COUNTRY_INFO!$U$9:$U$1000, " ") ->  | I41: 0 | M41: 0
A42: =IF(COUNTRY_INFO!A42=0," ",COUNTRY_INFO!A42) -> Congo | B42: =IF(COUNTRY_INFO!B42=0," ",COUNTRY_INFO!B42) -> Plateaux | C42: =IF(COUNTRY_INFO!C42=0," ",COUNTRY_INFO!C42) -> Djambala-Lékana | D42: =IF(COUNTRY_INFO!$U$9:$U$1000="MDA1 (IVM+ALB)", COUNTRY_INFO!$U$9:$U$1000, " ") ->  | I42: 0 | M42: 0
A43: =IF(COUNTRY_INFO!A43=0," ",COUNTRY_INFO!A43) -> Congo | B43: =IF(COUNTRY_INFO!B43=0," ",COUNTRY_INFO!B43) -> Plateaux | C43: =IF(COUNTRY_INFO!C43=0," ",COUNTRY_INFO!C43) -> Gamboma | D43: =IF(COUNTRY_INFO!$U$9:$U$1000="MDA1 (IVM+ALB)", COUNTRY_INFO!$U$9:$U$1000, " ") ->  | I43: 0 | M43: 0
A44: =IF(COUNTRY_INFO!A44=0," ",COUNTRY_INFO!A44) -> Congo | B44: =IF(COUNTRY_INFO!B44=0," ",COUNTRY_INFO!B44) -> Plateaux | C44: =IF(COUNTRY_INFO!C44=0," ",COUNTRY_INFO!C44) -> Ngo Mpouya | D44: =IF(COUNTRY_INFO!$U$9:$U$1000="MDA1 (IVM+ALB)", COUNTRY_INFO!$U$9:$U$1000, " ") ->  | I44: 0 | M44: 0
A45: =IF(COUNTRY_INFO!A45=0," ",COUNTRY_INFO!A45) -> Congo | B45: =IF(COUNTRY_INFO!B45=0," ",COUNTRY_INFO!B45) -> Pointe-Noire | C45: =IF(COUNTRY_INFO!C45=0," ",COUNTRY_INFO!C45) -> Loandjili | D45: =IF(COUNTRY_INFO!$U$9:$U$1000="MDA1 (IVM+ALB)", COUNTRY_INFO!$U$9:$U$1000, " ") ->  | I45: 0 | M45: 0
A46: =IF(COUNTRY_INFO!A46=0," ",COUNTRY_INFO!A46) -> Congo | B46: =IF(COUNTRY_INFO!B46=0," ",COUNTRY_INFO!B46) -> Pointe-Noire | C46: =IF(COUNTRY_INFO!C46=0," ",COUNTRY_INFO!C46) -> Lumumba | D46: =IF(COUNTRY_INFO!$U$9:$U$1000="MDA1 (IVM+ALB)", COUNTRY_INFO!$U$9:$U$1000, " ") ->  | I46: 0 | M46: 0
A47: =IF(COUNTRY_INFO!A47=0," ",COUNTRY_INFO!A47) -> Congo | B47: =IF(COUNTRY_INFO!B47=0," ",COUNTRY_INFO!B47) -> Pointe-Noire | C47: =IF(COUNTRY_INFO!C47=0," ",COUNTRY_INFO!C47) -> Mongo-Poukou | D47: =IF(COUNTRY_INFO!$U$9:$U$1000="MDA1 (IVM+ALB)", COUNTRY_INFO!$U$9:$U$1000, " ") ->  | I47: 0 | M47: 0
A48: =IF(COUNTRY_INFO!A48=0," ",COUNTRY_INFO!A48) -> Congo | B48: =IF(COUNTRY_INFO!B48=0," ",COUNTRY_INFO!B48) -> Pointe-Noire | C48: =IF(COUNTRY_INFO!C48=0," ",COUNTRY_INFO!C48) -> Mvoumvou | D48: =IF(COUNTRY_INFO!$U$9:$U$1000="MDA1 (IVM+ALB)", COUNTRY_INFO!$U$9:$U$1000, " ") ->  | I48: 0 | M48: 0
A49: =IF(COUNTRY_INFO!A49=0," ",COUNTRY_INFO!A49) -> Congo | B49: =IF(COUNTRY_INFO!B49=0," ",COUNTRY_INFO!B49) -> Pointe-Noire | C49: =IF(COUNTRY_INFO!C49=0," ",COUNTRY_INFO!C49) -> Ngoyo | D49: =IF(COUNTRY_INFO!$U$9:$U$1000="MDA1 (IVM+ALB)", COUNTRY_INFO!$U$9:$U$1000, " ") ->  | I49: 0 | M49: 0
A50: =IF(COUNTRY_INFO!A50=0," ",COUNTRY_INFO!A50) -> Congo | B50: =IF(COUNTRY_INFO!B50=0," ",COUNTRY_INFO!B50) -> Pointe-Noire | C50: =IF(COUNTRY_INFO!C50=0," ",COUNTRY_INFO!C50) -> Tchiamba Nzassi | D50: =IF(COUNTRY_INFO!$U$9:$U$1000="MDA1 (IVM+ALB)", COUNTRY_INFO!$U$9:$U$1000, " ") ->  | I50: 0 | M50: 0
A51: =IF(COUNTRY_INFO!A51=0," ",COUNTRY_INFO!A51) -> Congo | B51: =IF(COUNTRY_INFO!B51=0," ",COUNTRY_INFO!B51) -> Pointe-Noire | C51: =IF(COUNTRY_INFO!C51=0," ",COUNTRY_INFO!C51) -> Tie-Tie | D51: =IF(COUNTRY_INFO!$U$9:$U$1000="MDA1 (IVM+ALB)", COUNTRY_INFO!$U$9:$U$1000, " ") ->  | I51: 0 | M51: 0
A52: =IF(COUNTRY_INFO!A52=0," ",COUNTRY_INFO!A52) -> Congo | B52: =IF(COUNTRY_INFO!B52=0," ",COUNTRY_INFO!B52) -> Pool | C52: =IF(COUNTRY_INFO!C52=0," ",COUNTRY_INFO!C52) -> Boko | D52: =IF(COUNTRY_INFO!$U$9:$U$1000="MDA1 (IVM+ALB)", COUNTRY_INFO!$U$9:$U$1000, " ") ->  | I52: 0 | M52: 0
A53: =IF(COUNTRY_INFO!A53=0," ",COUNTRY_INFO!A53) -> Congo | B53: =IF(COUNTRY_INFO!B53=0," ",COUNTRY_INFO!B53) -> Pool | C53: =IF(COUNTRY_INFO!C53=0," ",COUNTRY_INFO!C53) -> Goma tsétsé | D53: =IF(COUNTRY_INFO!$U$9:$U$1000="MDA1 (IVM+ALB)", COUNTRY_INFO!$U$9:$U$1000, " ") ->  | I53: 0 | M53: 0
A54: =IF(COUNTRY_INFO!A54=0," ",COUNTRY_INFO!A54) -> Congo | B54: =IF(COUNTRY_INFO!B54=0," ",COUNTRY_INFO!B54) -> Pool | C54: =IF(COUNTRY_INFO!C54=0," ",COUNTRY_INFO!C54) -> Ignié | D54: =IF(COUNTRY_INFO!$U$9:$U$1000="MDA1 (IVM+ALB)", COUNTRY_INFO!$U$9:$U$1000, " ") -> MDA1 (IVM+ALB) | E54: Septembre 2022 | G54: 1398.0111 | H54: 3800.9889 | I54: 5199 | K54: 1210.5878 | L54: 3291.4122 | M54: 4502 | O54: 86.59357569 | P54: 86.59357569 | Q54: 86.59357569
A55: =IF(COUNTRY_INFO!A55=0," ",COUNTRY_INFO!A55) -> Congo | B55: =IF(COUNTRY_INFO!B55=0," ",COUNTRY_INFO!B55) -> Pool | C55: =IF(COUNTRY_INFO!C55=0," ",COUNTRY_INFO!C55) -> Kindamba | D55: =IF(COUNTRY_INFO!$U$9:$U$1000="MDA1 (IVM+ALB)", COUNTRY_INFO!$U$9:$U$1000, " ") ->  | I55: 0 | M55: 0
A56: =IF(COUNTRY_INFO!A56=0," ",COUNTRY_INFO!A56) -> Congo | B56: =IF(COUNTRY_INFO!B56=0," ",COUNTRY_INFO!B56) -> Pool | C56: =IF(COUNTRY_INFO!C56=0," ",COUNTRY_INFO!C56) -> Kinkala | D56: =IF(COUNTRY_INFO!$U$9:$U$1000="MDA1 (IVM+ALB)", COUNTRY_INFO!$U$9:$U$1000, " ") ->  | I56: 0 | M56: 0
A57: =IF(COUNTRY_INFO!A57=0," ",COUNTRY_INFO!A57) -> Congo | B57: =IF(COUNTRY_INFO!B57=0," ",COUNTRY_INFO!B57) -> Pool | C57: =IF(COUNTRY_INFO!C57=0," ",COUNTRY_INFO!C57) -> Kintélé | D57: =IF(COUNTRY_INFO!$U$9:$U$1000="MDA1 (IVM+ALB)", COUNTRY_INFO!$U$9:$U$1000, " ") ->  | I57: 0 | M57: 0
A58: =IF(COUNTRY_INFO!A58=0," ",COUNTRY_INFO!A58) -> Congo | B58: =IF(COUNTRY_INFO!B58=0," ",COUNTRY_INFO!B58) -> Pool | C58: =IF(COUNTRY_INFO!C58=0," ",COUNTRY_INFO!C58) -> Mindouli | D58: =IF(COUNTRY_INFO!$U$9:$U$1000="MDA1 (IVM+ALB)", COUNTRY_INFO!$U$9:$U$1000, " ") ->  | I58: 0 | M58: 0
A59: =IF(COUNTRY_INFO!A59=0," ",COUNTRY_INFO!A59) -> Congo | B59: =IF(COUNTRY_INFO!B59=0," ",COUNTRY_INFO!B59) -> Sangha | C59: =IF(COUNTRY_INFO!C59=0," ",COUNTRY_INFO!C59) -> Ouesso | D59: =IF(COUNTRY_INFO!$U$9:$U$1000="MDA1 (IVM+ALB)", COUNTRY_INFO!$U$9:$U$1000, " ") ->  | I59: 0 | M59: 0
A60: =IF(COUNTRY_INFO!A60=0," ",COUNTRY_INFO!A60) -> Congo | B60: =IF(COUNTRY_INFO!B60=0," ",COUNTRY_INFO!B60) -> Sangha | C60: =IF(COUNTRY_INFO!C60=0," ",COUNTRY_INFO!C60) -> Sembé-Souanké | D60: =IF(COUNTRY_INFO!$U$9:$U$1000="MDA1 (IVM+ALB)", COUNTRY_INFO!$U$9:$U$1000, " ") ->  | I60: 0 | M60: 0

Sheet MDA4
A1: MDA 4 - Albendazole (ALB) ou 2 x Albendazole (ALB)
A2: Structure administrative, population nécessitant une chimioprévention par groupe d'âge, population traitée par groupe d'âge et couverture
A4: TOTAL | F4: =SUM(F$9:F$1000) -> 0 | G4: =SUM(G$9:G$1000) -> 151864.2329 | H4: 412896.7671 | I4: 564761 | J4: 0 | K4: 120129.7839 | L4: 326615.4148 | M4: 446745.1987 | N4: 0 | O4: 123462.2335 | P4: 335675.8605 | Q4: 459138.094 | R4: 0 | S4: 130135.5529 | T4: 353819.6458 | U4: 483955.1987 | V4: =IF(F4<>0, IF(N4/F4*100=0, "-", N4/F4*100), " ") ->  | W4: =IF(G4<>0, IF(O4/G4*100=0, "-", O4/G4*100), " ") -> 81.29776914 | X4: =IF(H4<>0, IF(P4/H4*100=0, "-", P4/H4*100), " ") -> 81.29776914 | Y4: =IF(I4<>0, IF(Q4/I4*100=0, "-", Q4/I4*100), " ") -> 81.29776914
A6: Structure administrative du pays | D6: Mise en oeuvre de la CP | E6: Date | F6: Population ciblée pour MDA 4 | J6: Population traitée - tournée 1 | N6: Population traitée - tournée 2 | R6: Population traitée | V6: Couverture du Programme (%)
A7: Pays | B7: Région/Département | C7: District | F7: EAPréS | G7: EAS | H7: Adultes | I7: Total | J7: EAPréS | K7: EAS | L7: Adultes | M7: Total | N7: EAPréS | O7: EAS | P7: Adultes | Q7: Total | R7: EAPréS | S7: EAS | T7: Adultes | U7: Total | V7: EAPréS | W7: EAS | X7: Adultes | Y7: Total
A9: =IF(COUNTRY_INFO!A9=0," ",COUNTRY_INFO!A9) -> Congo | B9: =IF(COUNTRY_INFO!B9=0," ",COUNTRY_INFO!B9) -> Bouenza | C9: =IF(COUNTRY_INFO!C9=0," ",COUNTRY_INFO!C9) -> Loudima | D9: =IF(COUNTRY_INFO!$U$9:$U$1000="MDA4 (ALB/2*ALB)", COUNTRY_INFO!$U$9:$U$1000, " ") ->  | I9: =SUM(F9:H9) -> 0 | M9: =SUM(J9:L9) -> 0 | Q9: =SUM(N9:P9) -> 0 | R9: =MAX(J9,N9) -> 0 | S9: =MAX(K9,O9) -> 0 | T9: =MAX(L9,P9) -> 0 | U9: =SUM(R9:T9) -> 0 | V9: =IF(F9<>0, IF(R9/F9*100=0, "-",R9/F9*100), " ") ->  | W9: =IF(G9<>0, IF(S9/G9*100=0, "-", S9/G9*100), " ") ->  | X9: =IF(H9<>0, IF(T9/H9*100=0, "-", T9/H9*100), " ") ->  | Y9: =IF(I9<>0, IF(U9/I9*100=0, "-", U9/I9*100), " ") ->  | AC9: 0.1678908619 | AD9: 0.2518364795 | AE9: 0.5802726585
A10: =IF(COUNTRY_INFO!A10=0," ",COUNTRY_INFO!A10) -> Congo | B10: =IF(COUNTRY_INFO!B10=0," ",COUNTRY_INFO!B10) -> Bouenza | C10: =IF(COUNTRY_INFO!C10=0," ",COUNTRY_INFO!C10) -> Loutété | D10: MDA4 (ALB/2*ALB) | E10: Février/Septembre 2022 | G10: 900.5461 | H10: 2448.4539 | I10: =SUM(F10:H10) -> 3349 | K10: 830.3632 | L10: 2257.6368 | M10: =SUM(J10:L10) -> 3088 | O10: 763.1382 | P10: 2074.8618 | Q10: =SUM(N10:P10) -> 2838 | R10: 0 | S10: 830.3632 | T10: 2257.6368 | U10: 3088 | W10: 92.20662884 | X10: 92.20662884 | Y10: 92.20662884 | AA10: 3085 | AC10: =ROUND($AA10*AC$9,0) -> 518 | AD10: =ROUND($AA10*AD$9,0) -> 777 | AE10: 1790
A11: =IF(COUNTRY_INFO!A11=0," ",COUNTRY_INFO!A11) -> Congo | B11: =IF(COUNTRY_INFO!B11=0," ",COUNTRY_INFO!B11) -> Bouenza | C11: =IF(COUNTRY_INFO!C11=0," ",COUNTRY_INFO!C11) -> Madingou | D11: MDA4 (ALB/2*ALB) | E11: Février/Septembre 2022 | G11: 5572.1458 | H11: 15149.8542 | I11: 20722 | K11: 4717.8505 | L11: 12827.1495 | M11: 17545 | O11: 4579.0981 | P11: 12449.9019 | Q11: 17029 | R11: 0 | S11: 4717.8505 | T11: 12827.1495 | U11: 17545 | W11: 84.66846829 | X11: 84.66846829 | Y11: 84.66846829 | AA11: 21344 | AC11: =ROUND($AA11*AC$9,0) -> 3583 | AD11: 5375 | AE11: 12385
A12: =IF(COUNTRY_INFO!A12=0," ",COUNTRY_INFO!A12) -> Congo | B12: =IF(COUNTRY_INFO!B12=0," ",COUNTRY_INFO!B12) -> Bouenza | C12: =IF(COUNTRY_INFO!C12=0," ",COUNTRY_INFO!C12) -> Mouyondzi | D12: MDA4 (ALB/2*ALB) | E12: Février/Septembre 2022 | G12: 2167.8718 | H12: 5894.1282 | I12: 8062 | K12: 1904.6187 | L12: 5178.3813 | M12: 7083 | O12: 1832.8224 | P12: 4983.1776 | Q12: 6816 | R12: 0 | S12: 1904.6187 | T12: 5178.3813 | U12: 7083 | W12: 87.85661126 | X12: 87.85661126 | Y12: 87.85661126 | AA12: 8143 | AC12: 1367 | AD12: 2051 | AE12: 4725
A13: =IF(COUNTRY_INFO!A13=0," ",COUNTRY_INFO!A13) -> Congo | B13: =IF(COUNTRY_INFO!B13=0," ",COUNTRY_INFO!B13) -> Bouenza | C13: =IF(COUNTRY_INFO!C13=0," ",COUNTRY_INFO!C13) -> Nkayi | D13: =IF(COUNTRY_INFO!$U$9:$U$1000="MDA4 (ALB/2*ALB)", COUNTRY_INFO!$U$9:$U$1000, " ") ->  | I13: 0 | M13: 0 | Q13: 0 | R13: 0 | S13: 0 | T13: 0 | U13: 0
A14: =IF(COUNTRY_INFO!A14=0," ",COUNTRY_INFO!A14) -> Congo | B14: =IF(COUNTRY_INFO!B14=0," ",COUNTRY_INFO!B14) -> Brazzaville | C14: =IF(COUNTRY_INFO!C14=0," ",COUNTRY_INFO!C14) -> Bacongo | D14: =IF(COUNTRY_INFO!$U$9:$U$1000="MDA4 (ALB/2*ALB)", COUNTRY_INFO!$U$9:$U$1000, " ") ->  | I14: 0 | M14: 0 | Q14: 0 | R14: 0 | S14: 0 | T14: 0 | U14: 0
A15: =IF(COUNTRY_INFO!A15=0," ",COUNTRY_INFO!A15) -> Congo | B15: =IF(COUNTRY_INFO!B15=0," ",COUNTRY_INFO!B15) -> Brazzaville | C15: =IF(COUNTRY_INFO!C15=0," ",COUNTRY_INFO!C15) -> Djiri | D15: =IF(COUNTRY_INFO!$U$9:$U$1000="MDA4 (ALB/2*ALB)", COUNTRY_INFO!$U$9:$U$1000, " ") ->  | I15: 0 | M15: 0 | Q15: 0 | R15: 0 | S15: 0 | T15: 0 | U15: 0
A16: =IF(COUNTRY_INFO!A16=0," ",COUNTRY_INFO!A16) -> Congo | B16: =IF(COUNTRY_INFO!B16=0," ",COUNTRY_INFO!B16) -> Brazzaville | C16: =IF(COUNTRY_INFO!C16=0," ",COUNTRY_INFO!C16) -> Île Mbamou | D16: =IF(COUNTRY_INFO!$U$9:$U$1000="MDA4 (ALB/2*ALB)", COUNTRY_INFO!$U$9:$U$1000, " ") ->  | I16: 0 | M16: 0 | Q16: 0 | R16: 0 | S16: 0 | T16: 0 | U16: 0
A17: =IF(COUNTRY_INFO!A17=0," ",COUNTRY_INFO!A17) -> Congo | B17: =IF(COUNTRY_INFO!B17=0," ",COUNTRY_INFO!B17) -> Brazzaville | C17: =IF(COUNTRY_INFO!C17=0," ",COUNTRY_INFO!C17) -> Madibou | D17: =IF(COUNTRY_INFO!$U$9:$U$1000="MDA4 (ALB/2*ALB)", COUNTRY_INFO!$U$9:$U$1000, " ") ->  | I17: 0 | M17: 0 | Q17: 0 | R17: 0 | S17: 0 | T17: 0 | U17: 0
A18: =IF(COUNTRY_INFO!A18=0," ",COUNTRY_INFO!A18) -> Congo | B18: =IF(COUNTRY_INFO!B18=0," ",COUNTRY_INFO!B18) -> Brazzaville | C18: =IF(COUNTRY_INFO!C18=0," ",COUNTRY_INFO!C18) -> Makélékélé | D18: =IF(COUNTRY_INFO!$U$9:$U$1000="MDA4 (ALB/2*ALB)", COUNTRY_INFO!$U$9:$U$1000, " ") ->  | I18: 0 | M18: 0 | Q18: 0 | R18: 0 | S18: 0 | T18: 0 | U18: 0
A19: =IF(COUNTRY_INFO!A19=0," ",COUNTRY_INFO!A19) -> Congo | B19: =IF(COUNTRY_INFO!B19=0," ",COUNTRY_INFO!B19) -> Brazzaville | C19: =IF(COUNTRY_INFO!C19=0," ",COUNTRY_INFO!C19) -> Mfilou | D19: =IF(COUNTRY_INFO!$U$9:$U$1000="MDA4 (ALB/2*ALB)", COUNTRY_INFO!$U$9:$U$1000, " ") ->  | I19: 0 | M19: 0 | Q19: 0 | R19: 0 | S19: 0 | T19: 0 | U19: 0
A20: =IF(COUNTRY_INFO!A20=0," ",COUNTRY_INFO!A20) -> Congo | B20: =IF(COUNTRY_INFO!B20=0," ",COUNTRY_INFO!B20) -> Brazzaville | C20: =IF(COUNTRY_INFO!C20=0," ",COUNTRY_INFO!C20) -> Moungali | D20: =IF(COUNTRY_INFO!$U$9:$U$1000="MDA4 (ALB/2*ALB)", COUNTRY_INFO!$U$9:$U$1000, " ") ->  | I20: 0 | M20: 0 | Q20: 0 | R20: 0 | S20: 0 | T20: 0 | U20: 0
A21: =IF(COUNTRY_INFO!A21=0," ",COUNTRY_INFO!A21) -> Congo | B21: =IF(COUNTRY_INFO!B21=0," ",COUNTRY_INFO!B21) -> Brazzaville | C21: =IF(COUNTRY_INFO!C21=0," ",COUNTRY_INFO!C21) -> Ouenzé | D21: =IF(COUNTRY_INFO!$U$9:$U$1000="MDA4 (ALB/2*ALB)", COUNTRY_INFO!$U$9:$U$1000, " ") ->  | I21: 0 | M21: 0 | Q21: 0 | R21: 0 | S21: 0 | T21: 0 | U21: 0
A22: =IF(COUNTRY_INFO!A22=0," ",COUNTRY_INFO!A22) -> Congo | B22: =IF(COUNTRY_INFO!B22=0," ",COUNTRY_INFO!B22) -> Brazzaville | C22: =IF(COUNTRY_INFO!C22=0," ",COUNTRY_INFO!C22) -> Poto-Poto | D22: =IF(COUNTRY_INFO!$U$9:$U$1000="MDA4 (ALB/2*ALB)", COUNTRY_INFO!$U$9:$U$1000, " ") ->  | I22: 0 | M22: 0 | Q22: 0 | R22: 0 | S22: 0 | T22: 0 | U22: 0
A23: =IF(COUNTRY_INFO!A23=0," ",COUNTRY_INFO!A23) -> Congo | B23: =IF(COUNTRY_INFO!B23=0," ",COUNTRY_INFO!B23) -> Brazzaville | C23: =IF(COUNTRY_INFO!C23=0," ",COUNTRY_INFO!C23) -> Talangaî | D23: =IF(COUNTRY_INFO!$U$9:$U$1000="MDA4 (ALB/2*ALB)", COUNTRY_INFO!$U$9:$U$1000, " ") ->  | I23: 0 | M23: 0 | Q23: 0 | R23: 0 | S23: 0 | T23: 0 | U23: 0
A24: =IF(COUNTRY_INFO!A24=0," ",COUNTRY_INFO!A24) -> Congo | B24: =IF(COUNTRY_INFO!B24=0," ",COUNTRY_INFO!B24) -> Cuvette | C24: =IF(COUNTRY_INFO!C24=0," ",COUNTRY_INFO!C24) -> Mossaka | D24: =IF(COUNTRY_INFO!$U$9:$U$1000="MDA4 (ALB/2*ALB)", COUNTRY_INFO!$U$9:$U$1000, " ") ->  | I24: 0 | M24: 0 | Q24: 0 | R24: 0 | S24: 0 | T24: 0 | U24: 0
A25: =IF(COUNTRY_INFO!A25=0," ",COUNTRY_INFO!A25) -> Congo | B25: =IF(COUNTRY_INFO!B25=0," ",COUNTRY_INFO!B25) -> Cuvette | C25: =IF(COUNTRY_INFO!C25=0," ",COUNTRY_INFO!C25) -> Owando | D25: =IF(COUNTRY_INFO!$U$9:$U$1000="MDA4 (ALB/2*ALB)", COUNTRY_INFO!$U$9:$U$1000, " ") -> MDA4 (ALB/2*ALB) | E25: Février/Septembre 2022 | G25: 22910.28 | H25: 62289.72 | I25: 85200 | K25: 19334.4478 | L25: 52567.5522 | M25: 71902 | O25: 15466.3213 | P25: 42050.6787 | Q25: 57517 | R25: 0 | S25: 19334.4478 | T25: 52567.5522 | U25: 71902 | W25: 84.39201878 | X25: 84.39201878 | Y25: 84.39201878 | AA25: 78166 | AC25: =ROUND($AA25*AC$9,0) -> 13123 | AD25: 19685 | AE25: 45358
A26: =IF(COUNTRY_INFO!A26=0," ",COUNTRY_INFO!A26) -> Congo | B26: =IF(COUNTRY_INFO!B26=0," ",COUNTRY_INFO!B26) -> Cuvette | C26: =IF(COUNTRY_INFO!C26=0," ",COUNTRY_INFO!C26) -> Oyo-Alima | D26: =IF(COUNTRY_INFO!$U$9:$U$1000="MDA4 (ALB/2*ALB)", COUNTRY_INFO!$U$9:$U$1000, " ") ->  | I26: 0 | M26: 0 | Q26: 0 | R26: 0 | S26: 0 | T26: 0 | U26: 0
A27: =IF(COUNTRY_INFO!A27=0," ",COUNTRY_INFO!A27) -> Congo | B27: =IF(COUNTRY_INFO!B27=0," ",COUNTRY_INFO!B27) -> Cuvette-Ouest | C27: =IF(COUNTRY_INFO!C27=0," ",COUNTRY_INFO!C27) -> Etoumbi | D27: =IF(COUNTRY_INFO!$U$9:$U$1000="MDA4 (ALB/2*ALB)", COUNTRY_INFO!$U$9:$U$1000, " ") -> MDA4 (ALB/2*ALB) | E27: Février/Septembre 2022 | G27: 8967.2772 | H27: 24380.7228 | I27: 33348 | K27: 7461.1683 | L27: 20285.8317 | M27: 27747 | O27: 7880.9212 | P27: 21427.0788 | Q27: 29308 | R27: 0 | S27: 7880.9212 | T27: 21427.0788 | U27: 29308 | W27: 87.88533045 | X27: 87.88533045 | Y27: 87.88533045 | AA27: 32621 | AC27: =ROUND($AA27*AC$9,0) -> 5477 | AD27: 8215 | AE27: 18929
A28: =IF(COUNTRY_INFO!A28=0," ",COUNTRY_INFO!A28) -> Congo | B28: =IF(COUNTRY_INFO!B28=0," ",COUNTRY_INFO!B28) -> Cuvette-Ouest | C28: =IF(COUNTRY_INFO!C28=0," ",COUNTRY_INFO!C28) -> Ewo | D28: =IF(COUNTRY_INFO!$U$9:$U$1000="MDA4 (ALB/2*ALB)", COUNTRY_INFO!$U$9:$U$1000, " ") -> MDA4 (ALB/2*ALB) | E28: Février/Septembre 2022 | G28: 11123.5863 | H28: 30243.4137 | I28: 41367 | K28: 8769.0979 | L28: 23841.9021 | M28: 32611 | O28: 9241.2863 | P28: 25125.7137 | Q28: 34367 | R28: 0 | S28: 9241.2863 | T28: 25125.7137 | U28: 34367 | W28: 83.07829913 | X28: 83.07829913 | Y28: 83.07829913 | AA28: 38643 | AC28: 6488 | AD28: 9732 | AE28: 22423
A29: =IF(COUNTRY_INFO!A29=0," ",COUNTRY_INFO!A29) -> Congo | B29: =IF(COUNTRY_INFO!B29=0," ",COUNTRY_INFO!B29) -> Kouilou | C29: =IF(COUNTRY_INFO!C29=0," ",COUNTRY_INFO!C29) -> Hinda-Loango | D29: =IF(COUNTRY_INFO!$U$9:$U$1000="MDA4 (ALB/2*ALB)", COUNTRY_INFO!$U$9:$U$1000, " ") ->  | I29: 0 | M29: 0 | Q29: 0 | R29: 0 | S29: 0 | T29: 0 | U29: 0
A30: =IF(COUNTRY_INFO!A30=0," ",COUNTRY_INFO!A30) -> Congo | B30: =IF(COUNTRY_INFO!B30=0," ",COUNTRY_INFO!B30) -> Kouilou | C30: =IF(COUNTRY_INFO!C30=0," ",COUNTRY_INFO!C30) -> Madingo Kayes-Nzambi | D30: =IF(COUNTRY_INFO!$U$9:$U$1000="MDA4 (ALB/2*ALB)", COUNTRY_INFO!$U$9:$U$1000, " ") ->  | I30: 0 | M30: 0 | Q30: 0 | R30: 0 | S30: 0 | T30: 0 | U30: 0
A31: =IF(COUNTRY_INFO!A31=0," ",COUNTRY_INFO!A31) -> Congo | B31: =IF(COUNTRY_INFO!B31=0," ",COUNTRY_INFO!B31) -> Kouilou | C31: =IF(COUNTRY_INFO!C31=0," ",COUNTRY_INFO!C31) -> Mvouti-Kakamouéka | D31: =IF(COUNTRY_INFO!$U$9:$U$1000="MDA4 (ALB/2*ALB)", COUNTRY_INFO!$U$9:$U$1000, " ") ->  | I31: 0 | M31: 0 | Q31: 0 | R31: 0 | S31: 0 | T31: 0 | U31: 0
A32: =IF(COUNTRY_INFO!A32=0," ",COUNTRY_INFO!A32) -> Congo | B32: =IF(COUNTRY_INFO!B32=0," ",COUNTRY_INFO!B32) -> Lékoumou | C32: =IF(COUNTRY_INFO!C32=0," ",COUNTRY_INFO!C32) -> Sibiti | D32: =IF(COUNTRY_INFO!$U$9:$U$1000="MDA4 (ALB/2*ALB)", COUNTRY_INFO!$U$9:$U$1000, " ") ->  | I32: 0 | M32: 0 | Q32: 0 | R32: 0 | S32: 0 | T32: 0 | U32: 0
A33: =IF(COUNTRY_INFO!A33=0," ",COUNTRY_INFO!A33) -> Congo | B33: =IF(COUNTRY_INFO!B33=0," ",COUNTRY_INFO!B33) -> Lékoumou | C33: =IF(COUNTRY_INFO!C33=0," ",COUNTRY_INFO!C33) -> Zanaga | D33: =IF(COUNTRY_INFO!$U$9:$U$1000="MDA4 (ALB/2*ALB)", COUNTRY_INFO!$U$9:$U$1000, " ") ->  | I33: 0 | M33: 0 | Q33: 0 | R33: 0 | S33: 0 | T33: 0 | U33: 0
A34: =IF(COUNTRY_INFO!A34=0," ",COUNTRY_INFO!A34) -> Congo | B34: =IF(COUNTRY_INFO!B34=0," ",COUNTRY_INFO!B34) -> Likouala | C34: =IF(COUNTRY_INFO!C34=0," ",COUNTRY_INFO!C34) -> Bétou | D34: =IF(COUNTRY_INFO!$U$9:$U$1000="MDA4 (ALB/2*ALB)", COUNTRY_INFO!$U$9:$U$1000, " ") ->  | I34: 0 | M34: 0 | Q34: 0 | R34: 0 | S34: 0 | T34: 0 | U34: 0
A35: =IF(COUNTRY_INFO!A35=0," ",COUNTRY_INFO!A35) -> Congo | B35: =IF(COUNTRY_INFO!B35=0," ",COUNTRY_INFO!B35) -> Likouala | C35: =IF(COUNTRY_INFO!C35=0," ",COUNTRY_INFO!C35) -> Impfondo | D35: =IF(COUNTRY_INFO!$U$9:$U$1000="MDA4 (ALB/2*ALB)", COUNTRY_INFO!$U$9:$U$1000, " ") -> MDA4 (ALB/2*ALB) | E35: Février/Septembre 2022 | G35: 18914.6949 | H35: 51426.3051 | I35: 70341 | K35: 16849.59633 | L35: 45811.60237 | M35: 62661.1987 | O35: 15454.24608 | P35: 42017.84792 | Q35: 57472.094 | R35: 0 | S35: 16849.59633 | T35: 45811.60237 | U35: 62661.1987 | W35: 89.08204134 | X35: 89.08204134 | Y35: 89.08204134 | AA35: 80226 | AC35: =ROUND($AA35*AC$9,0) -> 13469 | AD35: 20204 | AE35: 46553
A36: =IF(COUNTRY_INFO!A36=0," ",COUNTRY_INFO!A36) -> Congo | B36: =IF(COUNTRY_INFO!B36=0," ",COUNTRY_INFO!B36) -> Niari | C36: =IF(COUNTRY_INFO!C36=0," ",COUNTRY_INFO!C36) -> Dolisie | D36: MDA4 (ALB/2*ALB) | E36: Février/Septembre 2022 | G36: 21973.4324 | H36: 59742.5676 | I36: 81716 | K36: 12327.4516 | L36: 33516.5484 | M36: 45844 | O36: 18503.5468 | P36: 50308.4532 | Q36: 68812 | R36: 0 | S36: 18503.5468 | T36: 50308.4532 | U36: 68812 | W36: 84.20872289 | X36: 84.20872289 | Y36: 84.20872289 | AA36: 92659 | AC36: 15557 | AD36: 23335 | AE36: 53767
A37: =IF(COUNTRY_INFO!A37=0," ",COUNTRY_INFO!A37) -> Congo | B37: =IF(COUNTRY_INFO!B37=0," ",COUNTRY_INFO!B37) -> Niari | C37: =IF(COUNTRY_INFO!C37=0," ",COUNTRY_INFO!C37) -> Kibangou | D37: MDA4 (ALB/2*ALB) | E37: Février/Septembre 2022 | G37: 7184.4702 | H37: 19533.5298 | I37: 26718 | K37: 6399.2822 | L37: 17398.7178 | M37: 23798 | O37: 5895.0947 | P37: 16027.9053 | Q37: 21923 | R37: 0 | S37: 6399.2822 | T37: 17398.7178 | U37: 23798 | W37: 89.07103825 | X37: 89.07103825 | Y37: 89.07103825 | AA37: 24981 | AC37: 4194 | AD37: 6291 | AE37: 14496
A38: =IF(COUNTRY_INFO!A38=0," ",COUNTRY_INFO!A38) -> Congo | B38: =IF(COUNTRY_INFO!B38=0," ",COUNTRY_INFO!B38) -> Niari | C38: =IF(COUNTRY_INFO!C38=0," ",COUNTRY_INFO!C38) -> Kimongo-Londela Nkayes | D38: =IF(COUNTRY_INFO!$U$9:$U$1000="MDA4 (ALB/2*ALB)", COUNTRY_INFO!$U$9:$U$1000, " ") -> MDA4 (ALB/2*ALB) | E38: Février/Septembre 2022 | G38: 8174.2911 | H38: 22224.7089 | I38: 30399 | K38: 6508.1867 | L38: 17694.8133 | M38: 24203 | O38: 6850.7653 | P38: 18626.2347 | Q38: 25477 | R38: 0 | S38: 6850.7653 | T38: 18626.2347 | U38: 25477 | W38: 83.80867792 | X38: 83.80867792 | Y38: 83.80867792 | AA38: 29322 | AC38: 4923 | AD38: 7384 | AE38: 17015
A39: =IF(COUNTRY_INFO!A39=0," ",COUNTRY_INFO!A39) -> Congo | B39: =IF(COUNTRY_INFO!B39=0," ",COUNTRY_INFO!B39) -> Niari | C39: =IF(COUNTRY_INFO!C39=0," ",COUNTRY_INFO!C39) -> Mayoko | D39: =IF(COUNTRY_INFO!$U$9:$U$1000="MDA4 (ALB/2*ALB)", COUNTRY_INFO!$U$9:$U$1000, " ") ->  | I39: 0 | M39: 0 | Q39: 0 | R39: 0 | S39: 0 | T39: 0 | U39: 0
A40: =IF(COUNTRY_INFO!A40=0," ",COUNTRY_INFO!A40) -> Congo | B40: =IF(COUNTRY_INFO!B40=0," ",COUNTRY_INFO!B40) -> Niari | C40: =IF(COUNTRY_INFO!C40=0," ",COUNTRY_INFO!C40) -> Mossendjo | D40: =IF(COUNTRY_INFO!$U$9:$U$1000="MDA4 (ALB/2*ALB)", COUNTRY_INFO!$U$9:$U$1000, " ") ->  | I40: 0 | M40: 0 | Q40: 0 | R40: 0 | S40: 0 | T40: 0 | U40: 0
A41: =IF(COUNTRY_INFO!A41=0," ",COUNTRY_INFO!A41) -> Congo | B41: =IF(COUNTRY_INFO!B41=0," ",COUNTRY_INFO!B41) -> Plateaux | C41: =IF(COUNTRY_INFO!C41=0," ",COUNTRY_INFO!C41) -> Abala | D41: =IF(COUNTRY_INFO!$U$9:$U$1000="MDA4 (ALB/2*ALB)", COUNTRY_INFO!$U$9:$U$1000, " ") ->  | I41: 0 | M41: 0 | Q41: 0 | R41: =MAX(J41,N41) -> 0 | S41: =MAX(K41,O41) -> 0 | T41: =MAX(L41,P41) -> 0 | U41: =SUM(R41:T41) -> 0 | V41: =IF(F41<>0, IF(R41/F41*100=0, "-",R41/F41*100), " ") ->  | W41: =IF(G41<>0, IF(S41/G41*100=0, "-", S41/G41*100), " ") ->  | X41: =IF(H41<>0, IF(T41/H41*100=0, "-", T41/H41*100), " ") ->  | Y41: =IF(I41<>0, IF(U41/I41*100=0, "-", U41/I41*100), " ") -> 
A42: =IF(COUNTRY_INFO!A42=0," ",COUNTRY_INFO!A42) -> Congo | B42: =IF(COUNTRY_INFO!B42=0," ",COUNTRY_INFO!B42) -> Plateaux | C42: =IF(COUNTRY_INFO!C42=0," ",COUNTRY_INFO!C42) -> Djambala-Lékana | D42: =IF(COUNTRY_INFO!$U$9:$U$1000="MDA4 (ALB/2*ALB)", COUNTRY_INFO!$U$9:$U$1000, " ") ->  | I42: 0 | M42: 0 | Q42: 0 | R42: 0 | S42: 0 | T42: 0 | U42: 0
A43: =IF(COUNTRY_INFO!A43=0," ",COUNTRY_INFO!A43) -> Congo | B43: =IF(COUNTRY_INFO!B43=0," ",COUNTRY_INFO!B43) -> Plateaux | C43: =IF(COUNTRY_INFO!C43=0," ",COUNTRY_INFO!C43) -> Gamboma | D43: =IF(COUNTRY_INFO!$U$9:$U$1000="MDA4 (ALB/2*ALB)", COUNTRY_INFO!$U$9:$U$1000, " ") ->  | I43: 0 | M43: 0 | Q43: 0 | R43: 0 | S43: 0 | T43: 0 | U43: 0
A44: =IF(COUNTRY_INFO!A44=0," ",COUNTRY_INFO!A44) -> Congo | B44: =IF(COUNTRY_INFO!B44=0," ",COUNTRY_INFO!B44) -> Plateaux | C44: =IF(COUNTRY_INFO!C44=0," ",COUNTRY_INFO!C44) -> Ngo Mpouya | D44: =IF(COUNTRY_INFO!$U$9:$U$1000="MDA4 (ALB/2*ALB)", COUNTRY_INFO!$U$9:$U$1000, " ") ->  | I44: 0 | M44: 0 | Q44: 0 | R44: 0 | S44: 0 | T44: 0 | U44: 0
A45: =IF(COUNTRY_INFO!A45=0," ",COUNTRY_INFO!A45) -> Congo | B45: =IF(COUNTRY_INFO!B45=0," ",COUNTRY_INFO!B45) -> Pointe-Noire | C45: =IF(COUNTRY_INFO!C45=0," ",COUNTRY_INFO!C45) -> Loandjili | D45: =IF(COUNTRY_INFO!$U$9:$U$1000="MDA4 (ALB/2*ALB)", COUNTRY_INFO!$U$9:$U$1000, " ") ->  | I45: 0 | M45: 0 | Q45: 0 | R45: 0 | S45: 0 | T45: 0 | U45: 0
A46: =IF(COUNTRY_INFO!A46=0," ",COUNTRY_INFO!A46) -> Congo | B46: =IF(COUNTRY_INFO!B46=0," ",COUNTRY_INFO!B46) -> Pointe-Noire | C46: =IF(COUNTRY_INFO!C46=0," ",COUNTRY_INFO!C46) -> Lumumba | D46: =IF(COUNTRY_INFO!$U$9:$U$1000="MDA4 (ALB/2*ALB)", COUNTRY_INFO!$U$9:$U$1000, " ") ->  | I46: 0 | M46: 0 | Q46: 0 | R46: 0 | S46: 0 | T46: 0 | U46: 0
A47: =IF(COUNTRY_INFO!A47=0," ",COUNTRY_INFO!A47) -> Congo | B47: =IF(COUNTRY_INFO!B47=0," ",COUNTRY_INFO!B47) -> Pointe-Noire | C47: =IF(COUNTRY_INFO!C47=0," ",COUNTRY_INFO!C47) -> Mongo-Poukou | D47: =IF(COUNTRY_INFO!$U$9:$U$1000="MDA4 (ALB/2*ALB)", COUNTRY_INFO!$U$9:$U$1000, " ") ->  | I47: 0 | M47: 0 | Q47: 0 | R47: 0 | S47: 0 | T47: 0 | U47: 0
A48: =IF(COUNTRY_INFO!A48=0," ",COUNTRY_INFO!A48) -> Congo | B48: =IF(COUNTRY_INFO!B48=0," ",COUNTRY_INFO!B48) -> Pointe-Noire | C48: =IF(COUNTRY_INFO!C48=0," ",COUNTRY_INFO!C48) -> Mvoumvou | D48: =IF(COUNTRY_INFO!$U$9:$U$1000="MDA4 (ALB/2*ALB)", COUNTRY_INFO!$U$9:$U$1000, " ") ->  | I48: 0 | M48: 0 | Q48: 0 | R48: 0 | S48: 0 | T48: 0 | U48: 0
A49: =IF(COUNTRY_INFO!A49=0," ",COUNTRY_INFO!A49) -> Congo | B49: =IF(COUNTRY_INFO!B49=0," ",COUNTRY_INFO!B49) -> Pointe-Noire | C49: =IF(COUNTRY_INFO!C49=0," ",COUNTRY_INFO!C49) -> Ngoyo | D49: =IF(COUNTRY_INFO!$U$9:$U$1000="MDA4 (ALB/2*ALB)", COUNTRY_INFO!$U$9:$U$1000, " ") ->  | I49: 0 | M49: 0 | Q49: 0 | R49: 0 | S49: 0 | T49: 0 | U49: 0
A50: =IF(COUNTRY_INFO!A50=0," ",COUNTRY_INFO!A50) -> Congo | B50: =IF(COUNTRY_INFO!B50=0," ",COUNTRY_INFO!B50) -> Pointe-Noire | C50: =IF(COUNTRY_INFO!C50=0," ",COUNTRY_INFO!C50) -> Tchiamba Nzassi | D50: =IF(COUNTRY_INFO!$U$9:$U$1000="MDA4 (ALB/2*ALB)", COUNTRY_INFO!$U$9:$U$1000, " ") ->  | I50: 0 | M50: 0 | Q50: 0 | R50: 0 | S50: 0 | T50: 0 | U50: 0
A51: =IF(COUNTRY_INFO!A51=0," ",COUNTRY_INFO!A51) -> Congo | B51: =IF(COUNTRY_INFO!B51=0," ",COUNTRY_INFO!B51) -> Pointe-Noire | C51: =IF(COUNTRY_INFO!C51=0," ",COUNTRY_INFO!C51) -> Tie-Tie | D51: =IF(COUNTRY_INFO!$U$9:$U$1000="MDA4 (ALB/2*ALB)", COUNTRY_INFO!$U$9:$U$1000, " ") ->  | I51: 0 | M51: 0 | Q51: 0 | R51: 0 | S51: 0 | T51: 0 | U51: 0
A52: =IF(COUNTRY_INFO!A52=0," ",COUNTRY_INFO!A52) -> Congo | B52: =IF(COUNTRY_INFO!B52=0," ",COUNTRY_INFO!B52) -> Pool | C52: =IF(COUNTRY_INFO!C52=0," ",COUNTRY_INFO!C52) -> Boko | D52: =IF(COUNTRY_INFO!$U$9:$U$1000="MDA4 (ALB/2*ALB)", COUNTRY_INFO!$U$9:$U$1000, " ") ->  | I52: 0 | M52: 0 | Q52: 0 | R52: 0 | S52: 0 | T52: 0 | U52: 0
A53: =IF(COUNTRY_INFO!A53=0," ",COUNTRY_INFO!A53) -> Congo | B53: =IF(COUNTRY_INFO!B53=0," ",COUNTRY_INFO!B53) -> Pool | C53: =IF(COUNTRY_INFO!C53=0," ",COUNTRY_INFO!C53) -> Goma tsétsé | D53: =IF(COUNTRY_INFO!$U$9:$U$1000="MDA4 (ALB/2*ALB)", COUNTRY_INFO!$U$9:$U$1000, " ") ->  | I53: 0 | M53: 0 | Q53: 0 | R53: 0 | S53: 0 | T53: 0 | U53: 0
A54: =IF(COUNTRY_INFO!A54=0," ",COUNTRY_INFO!A54) -> Congo | B54: =IF(COUNTRY_INFO!B54=0," ",COUNTRY_INFO!B54) -> Pool | C54: =IF(COUNTRY_INFO!C54=0," ",COUNTRY_INFO!C54) -> Ignié | D54: MDA4 (ALB/2*ALB) | E54: Février/Septembre 2022 | G54: 15071.0383 | H54: 40975.9617 | I54: 56047 | K54: 13471.6211 | L54: 36627.3789 | M54: 50099 | O54: 12843.7396 | P54: 34920.2604 | Q54: 47764 | R54: 0 | S54: 13471.6211 | T54: 36627.3789 | U54: 50099 | W54: 89.38747837 | X54: 89.38747837 | Y54: 89.38747837 | AA54: 56516 | AC54: =ROUND($AA54*AC$9,0) -> 9489 | AD54: 14233 | AE54: 32795
A55: =IF(COUNTRY_INFO!A55=0," ",COUNTRY_INFO!A55) -> Congo | B55: =IF(COUNTRY_INFO!B55=0," ",COUNTRY_INFO!B55) -> Pool | C55: =IF(COUNTRY_INFO!C55=0," ",COUNTRY_INFO!C55) -> Kindamba | D55: =IF(COUNTRY_INFO!$U$9:$U$1000="MDA4 (ALB/2*ALB)", COUNTRY_INFO!$U$9:$U$1000, " ") ->  | I55: 0 | M55: 0 | Q55: 0 | R55: 0 | S55: 0 | T55: 0 | U55: 0
A56: =IF(COUNTRY_INFO!A56=0," ",COUNTRY_INFO!A56) -> Congo | B56: =IF(COUNTRY_INFO!B56=0," ",COUNTRY_INFO!B56) -> Pool | C56: =IF(COUNTRY_INFO!C56=0," ",COUNTRY_INFO!C56) -> Kinkala | D56: =IF(COUNTRY_INFO!$U$9:$U$1000="MDA4 (ALB/2*ALB)", COUNTRY_INFO!$U$9:$U$1000, " ") ->  | I56: 0 | M56: 0 | Q56: 0 | R56: 0 | S56: 0 | T56: 0 | U56: 0
A57: =IF(COUNTRY_INFO!A57=0," ",COUNTRY_INFO!A57) -> Congo | B57: =IF(COUNTRY_INFO!B57=0," ",COUNTRY_INFO!B57) -> Pool | C57: =IF(COUNTRY_INFO!C57=0," ",COUNTRY_INFO!C57) -> Kintélé | D57: =IF(COUNTRY_INFO!$U$9:$U$1000="MDA4 (ALB/2*ALB)", COUNTRY_INFO!$U$9:$U$1000, " ") ->  | I57: 0 | M57: 0 | Q57: 0 | R57: 0 | S57: 0 | T57: 0 | U57: 0
A58: =IF(COUNTRY_INFO!A58=0," ",COUNTRY_INFO!A58) -> Congo | B58: =IF(COUNTRY_INFO!B58=0," ",COUNTRY_INFO!B58) -> Pool | C58: =IF(COUNTRY_INFO!C58=0," ",COUNTRY_INFO!C58) -> Mindouli | D58: =IF(COUNTRY_INFO!$U$9:$U$1000="MDA4 (ALB/2*ALB)", COUNTRY_INFO!$U$9:$U$1000, " ") ->  | I58: 0 | M58: 0 | Q58: 0 | R58: 0 | S58: 0 | T58: 0 | U58: 0
A59: =IF(COUNTRY_INFO!A59=0," ",COUNTRY_INFO!A59) -> Congo | B59: =IF(COUNTRY_INFO!B59=0," ",COUNTRY_INFO!B59) -> Sangha | C59: =IF(COUNTRY_INFO!C59=0," ",COUNTRY_INFO!C59) -> Ouesso | D59: =IF(COUNTRY_INFO!$U$9:$U$1000="MDA4 (ALB/2*ALB)", COUNTRY_INFO!$U$9:$U$1000, " ") -> MDA4 (ALB/2*ALB) | E59: Février/Septembre 2022 | G59: 19614.6416 | H59: 53329.3584 | I59: 72944 | K59: 14390.9902 | L59: 39127.0098 | M59: 53518 | O59: 16428.7144 | P59: 44667.2856 | Q59: 61096 | R59: 0 | S59: 16428.7144 | T59: 44667.2856 | U59: 61096 | W59: 83.75740294 | X59: 83.75740294 | Y59: 83.75740294 | AA59: 68958 | AC59: =ROUND($AA59*AC$9,0) -> 11577 | AD59: 17366 | AE59: 40014
A60: =IF(COUNTRY_INFO!A60=0," ",COUNTRY_INFO!A60) -> Congo | B60: =IF(COUNTRY_INFO!B60=0," ",COUNTRY_INFO!B60) -> Sangha | C60: =IF(COUNTRY_INFO!C60=0," ",COUNTRY_INFO!C60) -> Sembé-Souanké | D60: =IF(COUNTRY_INFO!$U$9:$U$1000="MDA4 (ALB/2*ALB)", COUNTRY_INFO!$U$9:$U$1000, " ") -> MDA4 (ALB/2*ALB) | E60: Février/Septembre 2022 | G60: 9289.9572 | H60: 25258.0428 | I60: 34548 | K60: 7165.1094 | L60: 19480.8906 | M60: 26646 | O60: 7722.5391 | P60: 20996.4609 | Q60: 28719 | R60: 0 | S60: 7722.5391 | T60: 20996.4609 | U60: 28719 | W60: 83.12782216 | X60: 83.12782216 | Y60: 83.12782216 | AA60: 34412 | AC60: 5777 | AD60: 8666 | AE60: 19968

Sheet MDA3
A1: MDA 3 - Ivermectine (IVM)
A2: Structure administrative, population nécessitant une chimioprévention par groupe d'âge, population traitée par groupe d'âge et couverture
A4: TOTAL | F4: =SUM(F$9:F$1000) -> 146566.3651 | G4: 398492.6349 | H4: 545059 | I4: 0 | J4: 0 | K4: 0 | L4: 141035.518 | M4: 307351.482 | N4: 448387 | O4: 141035.518 | P4: 307351.482 | Q4: 448387 | R4: =IF(F4<>0, IF(O4/F4*100=0, "-", O4/F4*100), " ") -> 96.22638718 | S4: =IF(G4<>0, IF(P4/G4*100=0, "-", P4/G4*100), " ") -> 77.12852262 | T4: =IF(H4<>0, IF(Q4/H4*100=0, "-", Q4/H4*100), " ") -> 82.2639384
A6: Structure administrative du pays | D6: Mise en oeuvre de la CP | E6: Date | F6: Population ciblée pour MDA 3 | I6: Population traitée - tournée 1 | L6: Population traitée - tournée 2 | O6: Population traitée | R6: Couverture du Programme (%)
A7: Pays | B7: Région/Département | C7: District | F7: EAS | G7: Adultes | H7: Total | I7: EAS | J7: Adultes | K7: Total | L7: EAS | M7: Adultes | N7: Total | O7: EAS | P7: Adultes | Q7: Total | R7: EAS | S7: Adultes | T7: Total
A9: =IF(COUNTRY_INFO!A9=0," ",COUNTRY_INFO!A9) -> Congo | B9: =IF(COUNTRY_INFO!B9=0," ",COUNTRY_INFO!B9) -> Bouenza | C9: =IF(COUNTRY_INFO!C9=0," ",COUNTRY_INFO!C9) -> Loudima | D9: =IF(COUNTRY_INFO!$U$9:$U$1000="MDA3 (IVM)", COUNTRY_INFO!$U$9:$U$1000, " ") -> MDA3 (IVM) | E9: septembre 2022 | F9: 3481.4483 | G9: 9465.5517 | H9: =SUM(F9:G9) -> 12947 | L9: 3430.684641 | M9: 7476.315359 | N9: 10907 | O9: =MAX(I9,L9) -> 3430.684641 | P9: =MAX(J9,M9) -> 7476.315359 | Q9: =SUM(O9:P9) -> 10907 | R9: =IF(F9<>0, IF(MAX(I9,L9)/F9*100=0, "-", MAX(I9,L9)/F9*100), " ") -> 98.54188102 | S9: =IF(G9<>0, IF(MAX(J9,M9)/G9*100=0, "-", MAX(J9,M9)/G9*100), " ") -> 78.98446488 | T9: =IF(H9<>0, IF((MAX(I9,L9)+MAX(J9,M9))/H9*100=0, "-",(MAX(I9,L9)+MAX(J9,M9))/H9*100), " ") -> 84.24345408 | V9: 11485 | X9: =ROUND($V9*0.3,0) -> 3446 | Y9: =ROUND($V9*0.7,0) -> 8040
A10: =IF(COUNTRY_INFO!A10=0," ",COUNTRY_INFO!A10) -> Congo | B10: =IF(COUNTRY_INFO!B10=0," ",COUNTRY_INFO!B10) -> Bouenza | C10: =IF(COUNTRY_INFO!C10=0," ",COUNTRY_INFO!C10) -> Loutété | D10: =IF(COUNTRY_INFO!$U$9:$U$1000="MDA3 (IVM)", COUNTRY_INFO!$U$9:$U$1000, " ") ->  | F10: 0 | G10: 0 | H10: =SUM(F10:G10) -> 0 | N10: 0 | O10: =MAX(I10,L10) -> 0 | P10: =MAX(J10,M10) -> 0 | Q10: =SUM(O10:P10) -> 0 | R10: =IF(F10<>0, IF(MAX(I10,L10)/F10*100=0, "-", MAX(I10,L10)/F10*100), " ") ->  | S10: =IF(G10<>0, IF(MAX(J10,M10)/G10*100=0, "-", MAX(J10,M10)/G10*100), " ") ->  | T10: =IF(H10<>0, IF((MAX(I10,L10)+MAX(J10,M10))/H10*100=0, "-",(MAX(I10,L10)+MAX(J10,M10))/H10*100), " ") -> 
A11: =IF(COUNTRY_INFO!A11=0," ",COUNTRY_INFO!A11) -> Congo | B11: =IF(COUNTRY_INFO!B11=0," ",COUNTRY_INFO!B11) -> Bouenza | C11: =IF(COUNTRY_INFO!C11=0," ",COUNTRY_INFO!C11) -> Madingou | D11: =IF(COUNTRY_INFO!$U$9:$U$1000="MDA3 (IVM)", COUNTRY_INFO!$U$9:$U$1000, " ") ->  | F11: 0 | G11: 0 | H11: 0 | N11: 0 | O11: 0 | P11: 0 | Q11: 0
A12: =IF(COUNTRY_INFO!A12=0," ",COUNTRY_INFO!A12) -> Congo | B12: =IF(COUNTRY_INFO!B12=0," ",COUNTRY_INFO!B12) -> Bouenza | C12: =IF(COUNTRY_INFO!C12=0," ",COUNTRY_INFO!C12) -> Mouyondzi | D12: =IF(COUNTRY_INFO!$U$9:$U$1000="MDA3 (IVM)", COUNTRY_INFO!$U$9:$U$1000, " ") ->  | F12: 0 | G12: 0 | H12: 0 | N12: 0 | O12: 0 | P12: 0 | Q12: 0
A13: =IF(COUNTRY_INFO!A13=0," ",COUNTRY_INFO!A13) -> Congo | B13: =IF(COUNTRY_INFO!B13=0," ",COUNTRY_INFO!B13) -> Bouenza | C13: =IF(COUNTRY_INFO!C13=0," ",COUNTRY_INFO!C13) -> Nkayi | D13: =IF(COUNTRY_INFO!$U$9:$U$1000="MDA3 (IVM)", COUNTRY_INFO!$U$9:$U$1000, " ") -> MDA3 (IVM) | E13: septembre 2022 | F13: 11799.8698 | G13: 32082.1302 | H13: 43882 | L13: 11902.18271 | M13: 25937.81729 | N13: 37840 | O13: 11902.18271 | P13: 25937.81729 | Q13: 37840 | R13: 100.8670681 | S13: 80.84817662 | T13: 86.23125655 | V13: 40375 | X13: =ROUND($V13*0.3,0) -> 12113 | Y13: =ROUND($V13*0.7,0) -> 28263
A14: =IF(COUNTRY_INFO!A14=0," ",COUNTRY_INFO!A14) -> Congo | B14: =IF(COUNTRY_INFO!B14=0," ",COUNTRY_INFO!B14) -> Brazzaville | C14: =IF(COUNTRY_INFO!C14=0," ",COUNTRY_INFO!C14) -> Bacongo | D14: =IF(COUNTRY_INFO!$U$9:$U$1000="MDA3 (IVM)", COUNTRY_INFO!$U$9:$U$1000, " ") -> MDA3 (IVM) | E14: septembre 2022 | F14: 21004.0479 | G14: 57106.9521 | H14: 78111 | L14: 19830.78524 | M14: 43216.21476 | N14: 63047 | O14: 19830.78524 | P14: 43216.21476 | Q14: 63047 | R14: 94.41411166 | S14: 75.67592591 | T14: 80.71462406 | V14: 100551 | X14: 30165 | Y14: 70386
A15: =IF(COUNTRY_INFO!A15=0," ",COUNTRY_INFO!A15) -> Congo | B15: =IF(COUNTRY_INFO!B15=0," ",COUNTRY_INFO!B15) -> Brazzaville | C15: =IF(COUNTRY_INFO!C15=0," ",COUNTRY_INFO!C15) -> Djiri | D15: =IF(COUNTRY_INFO!$U$9:$U$1000="MDA3 (IVM)", COUNTRY_INFO!$U$9:$U$1000, " ") ->  | F15: 0 | G15: 0 | H15: 0 | N15: 0 | O15: 0 | P15: 0 | Q15: 0
A16: =IF(COUNTRY_INFO!A16=0," ",COUNTRY_INFO!A16) -> Congo | B16: =IF(COUNTRY_INFO!B16=0," ",COUNTRY_INFO!B16) -> Brazzaville | C16: =IF(COUNTRY_INFO!C16=0," ",COUNTRY_INFO!C16) -> Île Mbamou | D16: =IF(COUNTRY_INFO!$U$9:$U$1000="MDA3 (IVM)", COUNTRY_INFO!$U$9:$U$1000, " ") ->  | F16: 0 | G16: 0 | H16: 0 | N16: 0 | O16: 0 | P16: 0 | Q16: 0
A17: =IF(COUNTRY_INFO!A17=0," ",COUNTRY_INFO!A17) -> Congo | B17: =IF(COUNTRY_INFO!B17=0," ",COUNTRY_INFO!B17) -> Brazzaville | C17: =IF(COUNTRY_INFO!C17=0," ",COUNTRY_INFO!C17) -> Madibou | D17: =IF(COUNTRY_INFO!$U$9:$U$1000="MDA3 (IVM)", COUNTRY_INFO!$U$9:$U$1000, " ") -> MDA3 (IVM) | E17: septembre 2022 | F17: 20572.1945 | G17: 55932.8055 | H17: 76505 | L17: 20326.49982 | M17: 44296.50018 | N17: 64623 | O17: 20326.49982 | P17: 44296.50018 | Q17: 64623 | R17: 98.80569535 | S17: 79.1959205 | T17: 84.46898895 | V17: 68495 | X17: =ROUND($V17*0.3,0) -> 20549 | Y17: =ROUND($V17*0.7,0) -> 47947
A18: =IF(COUNTRY_INFO!A18=0," ",COUNTRY_INFO!A18) -> Congo | B18: =IF(COUNTRY_INFO!B18=0," ",COUNTRY_INFO!B18) -> Brazzaville | C18: =IF(COUNTRY_INFO!C18=0," ",COUNTRY_INFO!C18) -> Makélékélé | D18: =IF(COUNTRY_INFO!$U$9:$U$1000="MDA3 (IVM)", COUNTRY_INFO!$U$9:$U$1000, " ") -> MDA3 (IVM) | E18: septembre 2022 | F18: 17748.2067 | G18: 48254.7933 | H18: 66003 | L18: 17576.16458 | M18: 38302.83542 | N18: 55879 | O18: 17576.16458 | P18: 38302.83542 | Q18: 55879 | R18: 99.03065069 | S18: 79.37622939 | T18: 84.66130327 | V18: 59670 | X18: 17901 | Y18: 41769
A19: =IF(COUNTRY_INFO!A19=0," ",COUNTRY_INFO!A19) -> Congo | B19: =IF(COUNTRY_INFO!B19=0," ",COUNTRY_INFO!B19) -> Brazzaville | C19: =IF(COUNTRY_INFO!C19=0," ",COUNTRY_INFO!C19) -> Mfilou | D19: =IF(COUNTRY_INFO!$U$9:$U$1000="MDA3 (IVM)", COUNTRY_INFO!$U$9:$U$1000, " ") -> MDA3 (IVM) | E19: septembre 2022 | F19: 27525.4107 | G19: 74837.5893 | H19: 102363 | L19: 25997.96538 | M19: 56656.03462 | N19: 82654 | O19: 25997.96538 | P19: 56656.03462 | Q19: 82654 | R19: 94.45078099 | S19: 75.70531755 | T19: 80.74597267 | V19: 33050 | X19: 9915 | Y19: 23135
A20: =IF(COUNTRY_INFO!A20=0," ",COUNTRY_INFO!A20) -> Congo | B20: =IF(COUNTRY_INFO!B20=0," ",COUNTRY_INFO!B20) -> Brazzaville | C20: =IF(COUNTRY_INFO!C20=0," ",COUNTRY_INFO!C20) -> Moungali | D20: =IF(COUNTRY_INFO!$U$9:$U$1000="MDA3 (IVM)", COUNTRY_INFO!$U$9:$U$1000, " ") ->  | F20: 0 | G20: 0 | H20: 0 | N20: 0 | O20: 0 | P20: 0 | Q20: 0
A21: =IF(COUNTRY_INFO!A21=0," ",COUNTRY_INFO!A21) -> Congo | B21: =IF(COUNTRY_INFO!B21=0," ",COUNTRY_INFO!B21) -> Brazzaville | C21: =IF(COUNTRY_INFO!C21=0," ",COUNTRY_INFO!C21) -> Ouenzé | D21: =IF(COUNTRY_INFO!$U$9:$U$1000="MDA3 (IVM)", COUNTRY_INFO!$U$9:$U$1000, " ") ->  | F21: 0 | G21: 0 | H21: 0 | N21: 0 | O21: 0 | P21: 0 | Q21: 0
A22: =IF(COUNTRY_INFO!A22=0," ",COUNTRY_INFO!A22) -> Congo | B22: =IF(COUNTRY_INFO!B22=0," ",COUNTRY_INFO!B22) -> Brazzaville | C22: =IF(COUNTRY_INFO!C22=0," ",COUNTRY_INFO!C22) -> Poto-Poto | D22: =IF(COUNTRY_INFO!$U$9:$U$1000="MDA3 (IVM)", COUNTRY_INFO!$U$9:$U$1000, " ") ->  | F22: 0 | G22: 0 | H22: 0 | N22: 0 | O22: 0 | P22: 0 | Q22: 0
A23: =IF(COUNTRY_INFO!A23=0," ",COUNTRY_INFO!A23) -> Congo | B23: =IF(COUNTRY_INFO!B23=0," ",COUNTRY_INFO!B23) -> Brazzaville | C23: =IF(COUNTRY_INFO!C23=0," ",COUNTRY_INFO!C23) -> Talangaî | D23: =IF(COUNTRY_INFO!$U$9:$U$1000="MDA3 (IVM)", COUNTRY_INFO!$U$9:$U$1000, " ") ->  | F23: 0 | G23: 0 | H23: 0 | N23: 0 | O23: 0 | P23: 0 | Q23: 0
A24: =IF(COUNTRY_INFO!A24=0," ",COUNTRY_INFO!A24) -> Congo | B24: =IF(COUNTRY_INFO!B24=0," ",COUNTRY_INFO!B24) -> Cuvette | C24: =IF(COUNTRY_INFO!C24=0," ",COUNTRY_INFO!C24) -> Mossaka | D24: =IF(COUNTRY_INFO!$U$9:$U$1000="MDA3 (IVM)", COUNTRY_INFO!$U$9:$U$1000, " ") ->  | F24: 0 | G24: 0 | H24: 0 | N24: 0 | O24: 0 | P24: 0 | Q24: 0
A25: =IF(COUNTRY_INFO!A25=0," ",COUNTRY_INFO!A25) -> Congo | B25: =IF(COUNTRY_INFO!B25=0," ",COUNTRY_INFO!B25) -> Cuvette | C25: =IF(COUNTRY_INFO!C25=0," ",COUNTRY_INFO!C25) -> Owando | D25: =IF(COUNTRY_INFO!$U$9:$U$1000="MDA3 (IVM)", COUNTRY_INFO!$U$9:$U$1000, " ") ->  | F25: 0 | G25: 0 | H25: 0 | N25: 0 | O25: 0 | P25: 0 | Q25: 0
A26: =IF(COUNTRY_INFO!A26=0," ",COUNTRY_INFO!A26) -> Congo | B26: =IF(COUNTRY_INFO!B26=0," ",COUNTRY_INFO!B26) -> Cuvette | C26: =IF(COUNTRY_INFO!C26=0," ",COUNTRY_INFO!C26) -> Oyo-Alima | D26: =IF(COUNTRY_INFO!$U$9:$U$1000="MDA3 (IVM)", COUNTRY_INFO!$U$9:$U$1000, " ") ->  | F26: 0 | G26: 0 | H26: 0 | N26: 0 | O26: 0 | P26: 0 | Q26: 0
A27: =IF(COUNTRY_INFO!A27=0," ",COUNTRY_INFO!A27) -> Congo | B27: =IF(COUNTRY_INFO!B27=0," ",COUNTRY_INFO!B27) -> Cuvette-Ouest | C27: =IF(COUNTRY_INFO!C27=0," ",COUNTRY_INFO!C27) -> Etoumbi | D27: =IF(COUNTRY_INFO!$U$9:$U$1000="MDA3 (IVM)", COUNTRY_INFO!$U$9:$U$1000, " ") ->  | F27: 0 | G27: 0 | H27: 0 | N27: 0 | O27: 0 | P27: 0 | Q27: 0
A28: =IF(COUNTRY_INFO!A28=0," ",COUNTRY_INFO!A28) -> Congo | B28: =IF(COUNTRY_INFO!B28=0," ",COUNTRY_INFO!B28) -> Cuvette-Ouest | C28: =IF(COUNTRY_INFO!C28=0," ",COUNTRY_INFO!C28) -> Ewo | D28: =IF(COUNTRY_INFO!$U$9:$U$1000="MDA3 (IVM)", COUNTRY_INFO!$U$9:$U$1000, " ") ->  | F28: 0 | G28: 0 | H28: 0 | N28: 0 | O28: 0 | P28: 0 | Q28: 0
A29: =IF(COUNTRY_INFO!A29=0," ",COUNTRY_INFO!A29) -> Congo | B29: =IF(COUNTRY_INFO!B29=0," ",COUNTRY_INFO!B29) -> Kouilou | C29: =IF(COUNTRY_INFO!C29=0," ",COUNTRY_INFO!C29) -> Hinda-Loango | D29: =IF(COUNTRY_INFO!$U$9:$U$1000="MDA3 (IVM)", COUNTRY_INFO!$U$9:$U$1000, " ") ->  | F29: 0 | G29: 0 | H29: 0 | N29: 0 | O29: 0 | P29: 0 | Q29: 0
A30: =IF(COUNTRY_INFO!A30=0," ",COUNTRY_INFO!A30) -> Congo | B30: =IF(COUNTRY_INFO!B30=0," ",COUNTRY_INFO!B30) -> Kouilou | C30: =IF(COUNTRY_INFO!C30=0," ",COUNTRY_INFO!C30) -> Madingo Kayes-Nzambi | D30: =IF(COUNTRY_INFO!$U$9:$U$1000="MDA3 (IVM)", COUNTRY_INFO!$U$9:$U$1000, " ") ->  | F30: 0 | G30: 0 | H30: 0 | N30: 0 | O30: 0 | P30: 0 | Q30: 0
A31: =IF(COUNTRY_INFO!A31=0," ",COUNTRY_INFO!A31) -> Congo | B31: =IF(COUNTRY_INFO!B31=0," ",COUNTRY_INFO!B31) -> Kouilou | C31: =IF(COUNTRY_INFO!C31=0," ",COUNTRY_INFO!C31) -> Mvouti-Kakamouéka | D31: =IF(COUNTRY_INFO!$U$9:$U$1000="MDA3 (IVM)", COUNTRY_INFO!$U$9:$U$1000, " ") -> MDA3 (IVM) | E31: septembre 2022 | F31: 396.6275 | G31: 1078.3725 | H31: 1475 | L31: 385.6256872 | M31: 840.3743128 | N31: 1226 | O31: 385.6256872 | P31: 840.3743128 | Q31: 1226 | R31: 97.22615986 | S31: 77.92987236 | T31: 83.11864407 | V31: 969 | X31: =ROUND($V31*0.3,0) -> 291 | Y31: =ROUND($V31*0.7,0) -> 678
A32: =IF(COUNTRY_INFO!A32=0," ",COUNTRY_INFO!A32) -> Congo | B32: =IF(COUNTRY_INFO!B32=0," ",COUNTRY_INFO!B32) -> Lékoumou | C32: =IF(COUNTRY_INFO!C32=0," ",COUNTRY_INFO!C32) -> Sibiti | D32: =IF(COUNTRY_INFO!$U$9:$U$1000="MDA3 (IVM)", COUNTRY_INFO!$U$9:$U$1000, " ") -> MDA3 (IVM) | E32: septembre 2022 | F32: 193.3391 | G32: 525.6609 | H32: 719 | L32: 198.7890981 | M32: 433.2109019 | N32: 632 | O32: 198.7890981 | P32: 433.2109019 | Q32: 632 | R32: 102.8188805 | S32: 82.41261655 | T32: 87.89986092 | V32: 702 | X32: 211 | Y32: 491
A33: =IF(COUNTRY_INFO!A33=0," ",COUNTRY_INFO!A33) -> Congo | B33: =IF(COUNTRY_INFO!B33=0," ",COUNTRY_INFO!B33) -> Lékoumou | C33: =IF(COUNTRY_INFO!C33=0," ",COUNTRY_INFO!C33) -> Zanaga | D33: =IF(COUNTRY_INFO!$U$9:$U$1000="MDA3 (IVM)", COUNTRY_INFO!$U$9:$U$1000, " ") ->  | F33: 0 | G33: 0 | H33: 0 | N33: 0 | O33: 0 | P33: 0 | Q33: 0
A34: =IF(COUNTRY_INFO!A34=0," ",COUNTRY_INFO!A34) -> Congo | B34: =IF(COUNTRY_INFO!B34=0," ",COUNTRY_INFO!B34) -> Likouala | C34: =IF(COUNTRY_INFO!C34=0," ",COUNTRY_INFO!C34) -> Bétou | D34: =IF(COUNTRY_INFO!$U$9:$U$1000="MDA3 (IVM)", COUNTRY_INFO!$U$9:$U$1000, " ") ->  | F34: 0 | G34: 0 | H34: 0 | N34: 0 | O34: 0 | P34: 0 | Q34: 0
A35: =IF(COUNTRY_INFO!A35=0," ",COUNTRY_INFO!A35) -> Congo | B35: =IF(COUNTRY_INFO!B35=0," ",COUNTRY_INFO!B35) -> Likouala | C35: =IF(COUNTRY_INFO!C35=0," ",COUNTRY_INFO!C35) -> Impfondo | D35: =IF(COUNTRY_INFO!$U$9:$U$1000="MDA3 (IVM)", COUNTRY_INFO!$U$9:$U$1000, " ") ->  | F35: 0 | G35: 0 | H35: 0 | N35: 0 | O35: 0 | P35: 0 | Q35: 0
A36: =IF(COUNTRY_INFO!A36=0," ",COUNTRY_INFO!A36) -> Congo | B36: =IF(COUNTRY_INFO!B36=0," ",COUNTRY_INFO!B36) -> Niari | C36: =IF(COUNTRY_INFO!C36=0," ",COUNTRY_INFO!C36) -> Dolisie | D36: =IF(COUNTRY_INFO!$U$9:$U$1000="MDA3 (IVM)", COUNTRY_INFO!$U$9:$U$1000, " ") ->  | F36: 0 | G36: 0 | H36: 0 | N36: 0 | O36: 0 | P36: 0 | Q36: 0
A37: =IF(COUNTRY_INFO!A37=0," ",COUNTRY_INFO!A37) -> Congo | B37: =IF(COUNTRY_INFO!B37=0," ",COUNTRY_INFO!B37) -> Niari | C37: =IF(COUNTRY_INFO!C37=0," ",COUNTRY_INFO!C37) -> Kibangou | D37: =IF(COUNTRY_INFO!$U$9:$U$1000="MDA3 (IVM)", COUNTRY_INFO!$U$9:$U$1000, " ") ->  | F37: 0 | G37: 0 | H37: 0 | N37: 0 | O37: 0 | P37: 0 | Q37: 0
A38: =IF(COUNTRY_INFO!A38=0," ",COUNTRY_INFO!A38) -> Congo | B38: =IF(COUNTRY_INFO!B38=0," ",COUNTRY_INFO!B38) -> Niari | C38: =IF(COUNTRY_INFO!C38=0," ",COUNTRY_INFO!C38) -> Kimongo-Londela Nkayes | D38: =IF(COUNTRY_INFO!$U$9:$U$1000="MDA3 (IVM)", COUNTRY_INFO!$U$9:$U$1000, " ") ->  | F38: 0 | G38: 0 | H38: 0 | N38: 0 | O38: 0 | P38: 0 | Q38: 0
A39: =IF(COUNTRY_INFO!A39=0," ",COUNTRY_INFO!A39) -> Congo | B39: =IF(COUNTRY_INFO!B39=0," ",COUNTRY_INFO!B39) -> Niari | C39: =IF(COUNTRY_INFO!C39=0," ",COUNTRY_INFO!C39) -> Mayoko | D39: =IF(COUNTRY_INFO!$U$9:$U$1000="MDA3 (IVM)", COUNTRY_INFO!$U$9:$U$1000, " ") ->  | F39: 0 | G39: 0 | H39: 0 | N39: 0 | O39: 0 | P39: 0 | Q39: 0
A40: =IF(COUNTRY_INFO!A40=0," ",COUNTRY_INFO!A40) -> Congo | B40: =IF(COUNTRY_INFO!B40=0," ",COUNTRY_INFO!B40) -> Niari | C40: =IF(COUNTRY_INFO!C40=0," ",COUNTRY_INFO!C40) -> Mossendjo | D40: =IF(COUNTRY_INFO!$U$9:$U$1000="MDA3 (IVM)", COUNTRY_INFO!$U$9:$U$1000, " ") ->  | F40: 0 | G40: 0 | H40: 0 | N40: 0 | O40: 0 | P40: 0 | Q40: 0
A41: =IF(COUNTRY_INFO!A41=0," ",COUNTRY_INFO!A41) -> Congo | B41: =IF(COUNTRY_INFO!B41=0," ",COUNTRY_INFO!B41) -> Plateaux | C41: =IF(COUNTRY_INFO!C41=0," ",COUNTRY_INFO!C41) -> Abala | D41: =IF(COUNTRY_INFO!$U$9:$U$1000="MDA3 (IVM)", COUNTRY_INFO!$U$9:$U$1000, " ") ->  | F41: 0 | G41: 0 | H41: 0 | N41: 0 | O41: 0 | P41: 0 | Q41: 0
A42: =IF(COUNTRY_INFO!A42=0," ",COUNTRY_INFO!A42) -> Congo | B42: =IF(COUNTRY_INFO!B42=0," ",COUNTRY_INFO!B42) -> Plateaux | C42: =IF(COUNTRY_INFO!C42=0," ",COUNTRY_INFO!C42) -> Djambala-Lékana | D42: =IF(COUNTRY_INFO!$U$9:$U$1000="MDA3 (IVM)", COUNTRY_INFO!$U$9:$U$1000, " ") ->  | F42: 0 | G42: 0 | H42: 0 | N42: 0 | O42: 0 | P42: 0 | Q42: 0
A43: =IF(COUNTRY_INFO!A43=0," ",COUNTRY_INFO!A43) -> Congo | B43: =IF(COUNTRY_INFO!B43=0," ",COUNTRY_INFO!B43) -> Plateaux | C43: =IF(COUNTRY_INFO!C43=0," ",COUNTRY_INFO!C43) -> Gamboma | D43: =IF(COUNTRY_INFO!$U$9:$U$1000="MDA3 (IVM)", COUNTRY_INFO!$U$9:$U$1000, " ") ->  | F43: 0 | G43: 0 | H43: 0 | N43: 0 | O43: 0 | P43: 0 | Q43: 0
A44: =IF(COUNTRY_INFO!A44=0," ",COUNTRY_INFO!A44) -> Congo | B44: =IF(COUNTRY_INFO!B44=0," ",COUNTRY_INFO!B44) -> Plateaux | C44: =IF(COUNTRY_INFO!C44=0," ",COUNTRY_INFO!C44) -> Ngo Mpouya | D44: =IF(COUNTRY_INFO!$U$9:$U$1000="MDA3 (IVM)", COUNTRY_INFO!$U$9:$U$1000, " ") ->  | F44: 0 | G44: 0 | H44: 0 | N44: 0 | O44: 0 | P44: 0 | Q44: 0
A45: =IF(COUNTRY_INFO!A45=0," ",COUNTRY_INFO!A45) -> Congo | B45: =IF(COUNTRY_INFO!B45=0," ",COUNTRY_INFO!B45) -> Pointe-Noire | C45: =IF(COUNTRY_INFO!C45=0," ",COUNTRY_INFO!C45) -> Loandjili | D45: =IF(COUNTRY_INFO!$U$9:$U$1000="MDA3 (IVM)", COUNTRY_INFO!$U$9:$U$1000, " ") ->  | F45: 0 | G45: 0 | H45: 0 | N45: 0 | O45: 0 | P45: 0 | Q45: 0
A46: =IF(COUNTRY_INFO!A46=0," ",COUNTRY_INFO!A46) -> Congo | B46: =IF(COUNTRY_INFO!B46=0," ",COUNTRY_INFO!B46) -> Pointe-Noire | C46: =IF(COUNTRY_INFO!C46=0," ",COUNTRY_INFO!C46) -> Lumumba | D46: =IF(COUNTRY_INFO!$U$9:$U$1000="MDA3 (IVM)", COUNTRY_INFO!$U$9:$U$1000, " ") ->  | F46: 0 | G46: 0 | H46: 0 | N46: 0 | O46: 0 | P46: 0 | Q46: 0
A47: =IF(COUNTRY_INFO!A47=0," ",COUNTRY_INFO!A47) -> Congo | B47: =IF(COUNTRY_INFO!B47=0," ",COUNTRY_INFO!B47) -> Pointe-Noire | C47: =IF(COUNTRY_INFO!C47=0," ",COUNTRY_INFO!C47) -> Mongo-Poukou | D47: =IF(COUNTRY_INFO!$U$9:$U$1000="MDA3 (IVM)", COUNTRY_INFO!$U$9:$U$1000, " ") ->  | F47: 0 | G47: 0 | H47: 0 | N47: 0 | O47: 0 | P47: 0 | Q47: 0
A48: =IF(COUNTRY_INFO!A48=0," ",COUNTRY_INFO!A48) -> Congo | B48: =IF(COUNTRY_INFO!B48=0," ",COUNTRY_INFO!B48) -> Pointe-Noire | C48: =IF(COUNTRY_INFO!C48=0," ",COUNTRY_INFO!C48) -> Mvoumvou | D48: =IF(COUNTRY_INFO!$U$9:$U$1000="MDA3 (IVM)", COUNTRY_INFO!$U$9:$U$1000, " ") ->  | F48: 0 | G48: 0 | H48: 0 | N48: 0 | O48: 0 | P48: 0 | Q48: 0
A49: =IF(COUNTRY_INFO!A49=0," ",COUNTRY_INFO!A49) -> Congo | B49: =IF(COUNTRY_INFO!B49=0," ",COUNTRY_INFO!B49) -> Pointe-Noire | C49: =IF(COUNTRY_INFO!C49=0," ",COUNTRY_INFO!C49) -> Ngoyo | D49: =IF(COUNTRY_INFO!$U$9:$U$1000="MDA3 (IVM)", COUNTRY_INFO!$U$9:$U$1000, " ") ->  | F49: 0 | G49: 0 | H49: 0 | N49: 0 | O49: 0 | P49: 0 | Q49: 0
A50: =IF(COUNTRY_INFO!A50=0," ",COUNTRY_INFO!A50) -> Congo | B50: =IF(COUNTRY_INFO!B50=0," ",COUNTRY_INFO!B50) -> Pointe-Noire | C50: =IF(COUNTRY_INFO!C50=0," ",COUNTRY_INFO!C50) -> Tchiamba Nzassi | D50: =IF(COUNTRY_INFO!$U$9:$U$1000="MDA3 (IVM)", COUNTRY_INFO!$U$9:$U$1000, " ") ->  | F50: 0 | G50: 0 | H50: 0 | N50: 0 | O50: 0 | P50: 0 | Q50: 0
A51: =IF(COUNTRY_INFO!A51=0," ",COUNTRY_INFO!A51) -> Congo | B51: =IF(COUNTRY_INFO!B51=0," ",COUNTRY_INFO!B51) -> Pointe-Noire | C51: =IF(COUNTRY_INFO!C51=0," ",COUNTRY_INFO!C51) -> Tie-Tie | D51: =IF(COUNTRY_INFO!$U$9:$U$1000="MDA3 (IVM)", COUNTRY_INFO!$U$9:$U$1000, " ") ->  | F51: 0 | G51: 0 | H51: 0 | N51: 0 | O51: 0 | P51: 0 | Q51: 0
A52: =IF(COUNTRY_INFO!A52=0," ",COUNTRY_INFO!A52) -> Congo | B52: =IF(COUNTRY_INFO!B52=0," ",COUNTRY_INFO!B52) -> Pool | C52: =IF(COUNTRY_INFO!C52=0," ",COUNTRY_INFO!C52) -> Boko | D52: =IF(COUNTRY_INFO!$U$9:$U$1000="MDA3 (IVM)", COUNTRY_INFO!$U$9:$U$1000, " ") -> MDA3 (IVM) | E52: septembre 2022 | F52: 7449.3367 | G52: 20253.6633 | H52: 27703 | L52: 7122.437244 | M52: 15521.56276 | N52: 22644 | O52: 7122.437244 | P52: 15521.56276 | Q52: 22644 | R52: 95.61169713 | S52: 76.63582892 | T52: 81.73843988 | V52: 18298 | X52: =ROUND($V52*0.3,0) -> 5489 | Y52: =ROUND($V52*0.7,0) -> 12809
A53: =IF(COUNTRY_INFO!A53=0," ",COUNTRY_INFO!A53) -> Congo | B53: =IF(COUNTRY_INFO!B53=0," ",COUNTRY_INFO!B53) -> Pool | C53: =IF(COUNTRY_INFO!C53=0," ",COUNTRY_INFO!C53) -> Goma tsétsé | D53: =IF(COUNTRY_INFO!$U$9:$U$1000="MDA3 (IVM)", COUNTRY_INFO!$U$9:$U$1000, " ") -> MDA3 (IVM) | E53: septembre 2022 | F53: 8943.0762 | G53: 24314.9238 | H53: 33258 | L53: 8572.465318 | M53: 18681.53468 | N53: 27254 | O53: 8572.465318 | P53: 18681.53468 | Q53: 27254 | R53: 95.85589037 | S53: 76.83155759 | T53: 81.94720067 | V53: 38019 | X53: 11406 | Y53: 26613
A54: =IF(COUNTRY_INFO!A54=0," ",COUNTRY_INFO!A54) -> Congo | B54: =IF(COUNTRY_INFO!B54=0," ",COUNTRY_INFO!B54) -> Pool | C54: =IF(COUNTRY_INFO!C54=0," ",COUNTRY_INFO!C54) -> Ignié | D54: =IF(COUNTRY_INFO!$U$9:$U$1000="MDA3 (IVM)", COUNTRY_INFO!$U$9:$U$1000, " ") ->  | F54: 0 | G54: 0 | H54: 0 | N54: 0 | O54: 0 | P54: 0 | Q54: 0
A55: =IF(COUNTRY_INFO!A55=0," ",COUNTRY_INFO!A55) -> Congo | B55: =IF(COUNTRY_INFO!B55=0," ",COUNTRY_INFO!B55) -> Pool | C55: =IF(COUNTRY_INFO!C55=0," ",COUNTRY_INFO!C55) -> Kindamba | D55: =IF(COUNTRY_INFO!$U$9:$U$1000="MDA3 (IVM)", COUNTRY_INFO!$U$9:$U$1000, " ") -> MDA3 (IVM) | E55: septembre 2022 | F55: 4230.8726 | G55: 11503.1274 | H55: 15734 | L55: 3969.491169 | M55: 8650.508831 | N55: 12620 | O55: 3969.491169 | P55: 8650.508831 | Q55: 12620 | R55: 93.82204438 | S55: 75.20136508 | T55: 80.20846574 | V55: 11233 | X55: =ROUND($V55*0.3,0) -> 3370 | Y55: =ROUND($V55*0.7,0) -> 7863
A56: =IF(COUNTRY_INFO!A56=0," ",COUNTRY_INFO!A56) -> Congo | B56: =IF(COUNTRY_INFO!B56=0," ",COUNTRY_INFO!B56) -> Pool | C56: =IF(COUNTRY_INFO!C56=0," ",COUNTRY_INFO!C56) -> Kinkala | D56: =IF(COUNTRY_INFO!$U$9:$U$1000="MDA3 (IVM)", COUNTRY_INFO!$U$9:$U$1000, " ") -> MDA3 (IVM) | E56: septembre 2022 | F56: 7707.7496 | G56: 20956.2504 | H56: 28664 | L56: 6200.206808 | M56: 13511.79319 | N56: 19712 | O56: 6200.206808 | P56: 13511.79319 | Q56: 19712 | R56: 80.44120696 | S56: 64.47619653 | T56: 68.76918783 | V56: 25515 | X56: 7655 | Y56: 17861
A57: =IF(COUNTRY_INFO!A57=0," ",COUNTRY_INFO!A57) -> Congo | B57: =IF(COUNTRY_INFO!B57=0," ",COUNTRY_INFO!B57) -> Pool | C57: =IF(COUNTRY_INFO!C57=0," ",COUNTRY_INFO!C57) -> Kintélé | D57: =IF(COUNTRY_INFO!$U$9:$U$1000="MDA3 (IVM)", COUNTRY_INFO!$U$9:$U$1000, " ") ->  | F57: 0 | G57: 0 | H57: 0 | N57: 0 | O57: 0 | P57: 0 | Q57: 0
A58: =IF(COUNTRY_INFO!A58=0," ",COUNTRY_INFO!A58) -> Congo | B58: =IF(COUNTRY_INFO!B58=0," ",COUNTRY_INFO!B58) -> Pool | C58: =IF(COUNTRY_INFO!C58=0," ",COUNTRY_INFO!C58) -> Mindouli | D58: =IF(COUNTRY_INFO!$U$9:$U$1000="MDA3 (IVM)", COUNTRY_INFO!$U$9:$U$1000, " ") -> MDA3 (IVM) | E58: septembre 2022 | F58: 15514.1855 | G58: 42180.8145 | H58: 57695 | L58: 15522.22026 | M58: 33826.77974 | N58: 49349 | O58: 15522.22026 | P58: 33826.77974 | Q58: 49349 | R58: 100.0517898 | S58: 80.19470497 | T58: 85.53427507 | V58: 56989 | X58: =ROUND($V58*0.3,0) -> 17097 | Y58: =ROUND($V58*0.7,0) -> 39892
A59: =IF(COUNTRY_INFO!A59=0," ",COUNTRY_INFO!A59) -> Congo | B59: =IF(COUNTRY_INFO!B59=0," ",COUNTRY_INFO!B59) -> Sangha | C59: =IF(COUNTRY_INFO!C59=0," ",COUNTRY_INFO!C59) -> Ouesso | D59: =IF(COUNTRY_INFO!$U$9:$U$1000="MDA3 (IVM)", COUNTRY_INFO!$U$9:$U$1000, " ") ->  | F59: 0 | G59: 0 | H59: 0 | N59: 0 | O59: 0 | P59: 0 | Q59: 0
A60: =IF(COUNTRY_INFO!A60=0," ",COUNTRY_INFO!A60) -> Congo | B60: =IF(COUNTRY_INFO!B60=0," ",COUNTRY_INFO!B60) -> Sangha | C60: =IF(COUNTRY_INFO!C60=0," ",COUNTRY_INFO!C60) -> Sembé-Souanké | D60: =IF(COUNTRY_INFO!$U$9:$U$1000="MDA3 (IVM)", COUNTRY_INFO!$U$9:$U$1000, " ") ->  | F60: 0 | G60: 0 | H60: 0 | N60: 0 | O60: 0 | P60: 0 | Q60: 0

Sheet T1
A1: T 1 - Praziquantel (PZQ) et Albendazole (ALB) ou Mebendazole (MBD)
A2: Structure administrative, population nécessitant une chimioprévention par groupe d'âge, population traitée par groupe d'âge et couverture
A4: TOTAL | G4: =SUM(G$9:G$1000) -> 0 | H4: 110046 | I4: 103215 | J4: 1339 | K4: =SUM(K$9:K$1000) -> 111385 | L4: 0 | M4: 89458 | N4: 1506 | O4: 90964 | P4: =IF(G4<>0, IF(L4/G4*100=0, "-", L4/G4*100), " ") ->  | Q4: =IF(OR(I4<>0,H4<>0), IF(M4/MAX(H4,I4)*100=0, "-", M4/MAX(H4,I4)*100), " ") -> 81.29145993 | R4: =IF(J4<>0, IF(N4/J4*100=0, "-", N4/J4*100), " ") -> 112.471994 | S4: =IF(K4<>0, IF(O4/K4*100=0, "-", O4/K4*100), " ") -> 81.66629259
A6: Structure administrative du pays | D6: Mise en oeuvre de la CP | E6: Médica-ment | F6: Date | G6: Population ciblée pour T1 | L6: Population traitée | P6: Couverture du Programme (%)
A7: Pays | B7: Région/Département | C7: District | G7: EAPréS (ALB) | H7: EAS (ALB) | I7: EAS (PZQ) | J7: Adultes (PZQ) | K7: Total | L7: EAPréS | M7: EAS | N7: Adultes | O7: Total | P7: EAPréS | Q7: EAS | R7: Adultes | S7: Total
A9: =IF(COUNTRY_INFO!A9=0," ",COUNTRY_INFO!A9) -> Congo | B9: =IF(COUNTRY_INFO!B9=0," ",COUNTRY_INFO!B9) -> Bouenza | C9: =IF(COUNTRY_INFO!C9=0," ",COUNTRY_INFO!C9) -> Loudima | D9: =IF(OR(COUNTRY_INFO!$U$9:$U$1000="T1 (PZQ+ALB/MBD)",COUNTRY_INFO!$V$9:$V$1000="T1 (PZQ+ALB/MBD)"), "T1 (PZQ+ALB/MBD)", " ") -> T1 (PZQ+ALB/MBD) | E9: PZQ+ALB | F9: janvier 2023 | H9: 10178 | I9: 10178 | J9: 79 | K9: =MAX(H9:I9)+G9+J9 -> 10257 | M9: 7099 | N9: 79 | O9: =SUM(L9:N9) -> 7178 | P9: =IF(G9<>0, IF(L9/G9*100=0, "-", L9/G9*100), " ") ->  | Q9: =IF(OR(I9<>0,H9<>0), IF(M9/MAX(H9,I9)*100=0, "-", M9/MAX(H9,I9)*100), " ") -> 69.74847711 | R9: =IF(J9<>0, IF(N9/J9*100=0, "-", N9/J9*100), " ") -> 100 | S9: =IF(K9<>0, IF(O9/K9*100=0, "-", O9/K9*100), " ") -> 69.98147607
A10: =IF(COUNTRY_INFO!A10=0," ",COUNTRY_INFO!A10) -> Congo | B10: =IF(COUNTRY_INFO!B10=0," ",COUNTRY_INFO!B10) -> Bouenza | C10: =IF(COUNTRY_INFO!C10=0," ",COUNTRY_INFO!C10) -> Loutété | D10: =IF(OR(COUNTRY_INFO!$U$9:$U$1000="T1 (PZQ+ALB/MBD)",COUNTRY_INFO!$V$9:$V$1000="T1 (PZQ+ALB/MBD)"), "T1 (PZQ+ALB/MBD)", " ") -> T1 (PZQ+ALB/MBD) | E10: PZQ+ALB | F10: janvier 2023 | H10: 9296 | I10: 9296 | J10: 52 | K10: =MAX(H10:I10)+G10+J10 -> 9348 | M10: 6474 | N10: 52 | O10: =SUM(L10:N10) -> 6526 | P10: =IF(G10<>0, IF(L10/G10*100=0, "-", L10/G10*100), " ") ->  | Q10: =IF(OR(I10<>0,H10<>0), IF(M10/MAX(H10,I10)*100=0, "-", M10/MAX(H10,I10)*100), " ") -> 69.64285714 | R10: =IF(J10<>0, IF(N10/J10*100=0, "-", N10/J10*100), " ") -> 100 | S10: =IF(K10<>0, IF(O10/K10*100=0, "-", O10/K10*100), " ") -> 69.81172443
A11: =IF(COUNTRY_INFO!A11=0," ",COUNTRY_INFO!A11) -> Congo | B11: =IF(COUNTRY_INFO!B11=0," ",COUNTRY_INFO!B11) -> Bouenza | C11: =IF(COUNTRY_INFO!C11=0," ",COUNTRY_INFO!C11) -> Madingou | D11: =IF(OR(COUNTRY_INFO!$U$9:$U$1000="T1 (PZQ+ALB/MBD)",COUNTRY_INFO!$V$9:$V$1000="T1 (PZQ+ALB/MBD)"), "T1 (PZQ+ALB/MBD)", " ") ->  | K11: 0 | O11: 0
A12: =IF(COUNTRY_INFO!A12=0," ",COUNTRY_INFO!A12) -> Congo | B12: =IF(COUNTRY_INFO!B12=0," ",COUNTRY_INFO!B12) -> Bouenza | C12: =IF(COUNTRY_INFO!C12=0," ",COUNTRY_INFO!C12) -> Mouyondzi | D12: =IF(OR(COUNTRY_INFO!$U$9:$U$1000="T1 (PZQ+ALB/MBD)",COUNTRY_INFO!$V$9:$V$1000="T1 (PZQ+ALB/MBD)"), "T1 (PZQ+ALB/MBD)", " ") -> T1 (PZQ+ALB/MBD) | E12: PZQ+ALB | F12: janvier 2023 | H12: 18644 | I12: 18644 | J12: 87 | K12: 18731 | M12: 14553 | N12: 87 | O12: 14640 | Q12: 78.05728384 | R12: 100 | S12: 78.15920132
A13: =IF(COUNTRY_INFO!A13=0," ",COUNTRY_INFO!A13) -> Congo | B13: =IF(COUNTRY_INFO!B13=0," ",COUNTRY_INFO!B13) -> Bouenza | C13: =IF(COUNTRY_INFO!C13=0," ",COUNTRY_INFO!C13) -> Nkayi | D13: =IF(OR(COUNTRY_INFO!$U$9:$U$1000="T1 (PZQ+ALB/MBD)",COUNTRY_INFO!$V$9:$V$1000="T1 (PZQ+ALB/MBD)"), "T1 (PZQ+ALB/MBD)", " ") -> T1 (PZQ+ALB/MBD) | E13: PZQ+ALB | F13: janvier 2023 | H13: 26313 | I13: 26313 | J13: 429 | K13: 26742 | M13: 19766 | N13: 429 | O13: 20195 | Q13: 75.11876259 | R13: 100 | S13: 75.5179119
A14: =IF(COUNTRY_INFO!A14=0," ",COUNTRY_INFO!A14) -> Congo | B14: =IF(COUNTRY_INFO!B14=0," ",COUNTRY_INFO!B14) -> Brazzaville | C14: =IF(COUNTRY_INFO!C14=0," ",COUNTRY_INFO!C14) -> Bacongo | D14: =IF(OR(COUNTRY_INFO!$U$9:$U$1000="T1 (PZQ+ALB/MBD)",COUNTRY_INFO!$V$9:$V$1000="T1 (PZQ+ALB/MBD)"), "T1 (PZQ+ALB/MBD)", " ") ->  | K14: 0 | O14: 0
A15: =IF(COUNTRY_INFO!A15=0," ",COUNTRY_INFO!A15) -> Congo | B15: =IF(COUNTRY_INFO!B15=0," ",COUNTRY_INFO!B15) -> Brazzaville | C15: =IF(COUNTRY_INFO!C15=0," ",COUNTRY_INFO!C15) -> Djiri | D15: =IF(OR(COUNTRY_INFO!$U$9:$U$1000="T1 (PZQ+ALB/MBD)",COUNTRY_INFO!$V$9:$V$1000="T1 (PZQ+ALB/MBD)"), "T1 (PZQ+ALB/MBD)", " ") ->  | K15: 0 | O15: 0
A16: =IF(COUNTRY_INFO!A16=0," ",COUNTRY_INFO!A16) -> Congo | B16: =IF(COUNTRY_INFO!B16=0," ",COUNTRY_INFO!B16) -> Brazzaville | C16: =IF(COUNTRY_INFO!C16=0," ",COUNTRY_INFO!C16) -> Île Mbamou | D16: =IF(OR(COUNTRY_INFO!$U$9:$U$1000="T1 (PZQ+ALB/MBD)",COUNTRY_INFO!$V$9:$V$1000="T1 (PZQ+ALB/MBD)"), "T1 (PZQ+ALB/MBD)", " ") ->  | K16: 0 | O16: 0
A17: =IF(COUNTRY_INFO!A17=0," ",COUNTRY_INFO!A17) -> Congo | B17: =IF(COUNTRY_INFO!B17=0," ",COUNTRY_INFO!B17) -> Brazzaville | C17: =IF(COUNTRY_INFO!C17=0," ",COUNTRY_INFO!C17) -> Madibou | D17: =IF(OR(COUNTRY_INFO!$U$9:$U$1000="T1 (PZQ+ALB/MBD)",COUNTRY_INFO!$V$9:$V$1000="T1 (PZQ+ALB/MBD)"), "T1 (PZQ+ALB/MBD)", " ") ->  | K17: 0 | O17: 0
A18: =IF(COUNTRY_INFO!A18=0," ",COUNTRY_INFO!A18) -> Congo | B18: =IF(COUNTRY_INFO!B18=0," ",COUNTRY_INFO!B18) -> Brazzaville | C18: =IF(COUNTRY_INFO!C18=0," ",COUNTRY_INFO!C18) -> Makélékélé | D18: =IF(OR(COUNTRY_INFO!$U$9:$U$1000="T1 (PZQ+ALB/MBD)",COUNTRY_INFO!$V$9:$V$1000="T1 (PZQ+ALB/MBD)"), "T1 (PZQ+ALB/MBD)", " ") ->  | K18: 0 | O18: 0
A19: =IF(COUNTRY_INFO!A19=0," ",COUNTRY_INFO!A19) -> Congo | B19: =IF(COUNTRY_INFO!B19=0," ",COUNTRY_INFO!B19) -> Brazzaville | C19: =IF(COUNTRY_INFO!C19=0," ",COUNTRY_INFO!C19) -> Mfilou | D19: =IF(OR(COUNTRY_INFO!$U$9:$U$1000="T1 (PZQ+ALB/MBD)",COUNTRY_INFO!$V$9:$V$1000="T1 (PZQ+ALB/MBD)"), "T1 (PZQ+ALB/MBD)", " ") ->  | K19: 0 | O19: 0
A20: =IF(COUNTRY_INFO!A20=0," ",COUNTRY_INFO!A20) -> Congo | B20: =IF(COUNTRY_INFO!B20=0," ",COUNTRY_INFO!B20) -> Brazzaville | C20: =IF(COUNTRY_INFO!C20=0," ",COUNTRY_INFO!C20) -> Moungali | D20: =IF(OR(COUNTRY_INFO!$U$9:$U$1000="T1 (PZQ+ALB/MBD)",COUNTRY_INFO!$V$9:$V$1000="T1 (PZQ+ALB/MBD)"), "T1 (PZQ+ALB/MBD)", " ") ->  | K20: 0 | O20: 0
A21: =IF(COUNTRY_INFO!A21=0," ",COUNTRY_INFO!A21) -> Congo | B21: =IF(COUNTRY_INFO!B21=0," ",COUNTRY_INFO!B21) -> Brazzaville | C21: =IF(COUNTRY_INFO!C21=0," ",COUNTRY_INFO!C21) -> Ouenzé | D21: =IF(OR(COUNTRY_INFO!$U$9:$U$1000="T1 (PZQ+ALB/MBD)",COUNTRY_INFO!$V$9:$V$1000="T1 (PZQ+ALB/MBD)"), "T1 (PZQ+ALB/MBD)", " ") ->  | K21: 0 | O21: 0
A22: =IF(COUNTRY_INFO!A22=0," ",COUNTRY_INFO!A22) -> Congo | B22: =IF(COUNTRY_INFO!B22=0," ",COUNTRY_INFO!B22) -> Brazzaville | C22: =IF(COUNTRY_INFO!C22=0," ",COUNTRY_INFO!C22) -> Poto-Poto | D22: =IF(OR(COUNTRY_INFO!$U$9:$U$1000="T1 (PZQ+ALB/MBD)",COUNTRY_INFO!$V$9:$V$1000="T1 (PZQ+ALB/MBD)"), "T1 (PZQ+ALB/MBD)", " ") ->  | K22: 0 | O22: 0
A23: =IF(COUNTRY_INFO!A23=0," ",COUNTRY_INFO!A23) -> Congo | B23: =IF(COUNTRY_INFO!B23=0," ",COUNTRY_INFO!B23) -> Brazzaville | C23: =IF(COUNTRY_INFO!C23=0," ",COUNTRY_INFO!C23) -> Talangaî | D23: =IF(OR(COUNTRY_INFO!$U$9:$U$1000="T1 (PZQ+ALB/MBD)",COUNTRY_INFO!$V$9:$V$1000="T1 (PZQ+ALB/MBD)"), "T1 (PZQ+ALB/MBD)", " ") ->  | K23: 0 | O23: 0
A24: =IF(COUNTRY_INFO!A24=0," ",COUNTRY_INFO!A24) -> Congo | B24: =IF(COUNTRY_INFO!B24=0," ",COUNTRY_INFO!B24) -> Cuvette | C24: =IF(COUNTRY_INFO!C24=0," ",COUNTRY_INFO!C24) -> Mossaka | D24: =IF(OR(COUNTRY_INFO!$U$9:$U$1000="T1 (PZQ+ALB/MBD)",COUNTRY_INFO!$V$9:$V$1000="T1 (PZQ+ALB/MBD)"), "T1 (PZQ+ALB/MBD)", " ") ->  | K24: 0 | O24: 0
A25: =IF(COUNTRY_INFO!A25=0," ",COUNTRY_INFO!A25) -> Congo | B25: =IF(COUNTRY_INFO!B25=0," ",COUNTRY_INFO!B25) -> Cuvette | C25: =IF(COUNTRY_INFO!C25=0," ",COUNTRY_INFO!C25) -> Owando | D25: =IF(OR(COUNTRY_INFO!$U$9:$U$1000="T1 (PZQ+ALB/MBD)",COUNTRY_INFO!$V$9:$V$1000="T1 (PZQ+ALB/MBD)"), "T1 (PZQ+ALB/MBD)", " ") ->  | K25: 0 | O25: 0
A26: =IF(COUNTRY_INFO!A26=0," ",COUNTRY_INFO!A26) -> Congo | B26: =IF(COUNTRY_INFO!B26=0," ",COUNTRY_INFO!B26) -> Cuvette | C26: =IF(COUNTRY_INFO!C26=0," ",COUNTRY_INFO!C26) -> Oyo-Alima | D26: =IF(OR(COUNTRY_INFO!$U$9:$U$1000="T1 (PZQ+ALB/MBD)",COUNTRY_INFO!$V$9:$V$1000="T1 (PZQ+ALB/MBD)"), "T1 (PZQ+ALB/MBD)", " ") ->  | K26: 0 | O26: 0
A27: =IF(COUNTRY_INFO!A27=0," ",COUNTRY_INFO!A27) -> Congo | B27: =IF(COUNTRY_INFO!B27=0," ",COUNTRY_INFO!B27) -> Cuvette-Ouest | C27: =IF(COUNTRY_INFO!C27=0," ",COUNTRY_INFO!C27) -> Etoumbi | D27: =IF(OR(COUNTRY_INFO!$U$9:$U$1000="T1 (PZQ+ALB/MBD)",COUNTRY_INFO!$V$9:$V$1000="T1 (PZQ+ALB/MBD)"), "T1 (PZQ+ALB/MBD)", " ") ->  | K27: 0 | O27: 0
A28: =IF(COUNTRY_INFO!A28=0," ",COUNTRY_INFO!A28) -> Congo | B28: =IF(COUNTRY_INFO!B28=0," ",COUNTRY_INFO!B28) -> Cuvette-Ouest | C28: =IF(COUNTRY_INFO!C28=0," ",COUNTRY_INFO!C28) -> Ewo | D28: =IF(OR(COUNTRY_INFO!$U$9:$U$1000="T1 (PZQ+ALB/MBD)",COUNTRY_INFO!$V$9:$V$1000="T1 (PZQ+ALB/MBD)"), "T1 (PZQ+ALB/MBD)", " ") ->  | K28: 0 | O28: 0
A29: =IF(COUNTRY_INFO!A29=0," ",COUNTRY_INFO!A29) -> Congo | B29: =IF(COUNTRY_INFO!B29=0," ",COUNTRY_INFO!B29) -> Kouilou | C29: =IF(COUNTRY_INFO!C29=0," ",COUNTRY_INFO!C29) -> Hinda-Loango | D29: =IF(OR(COUNTRY_INFO!$U$9:$U$1000="T1 (PZQ+ALB/MBD)",COUNTRY_INFO!$V$9:$V$1000="T1 (PZQ+ALB/MBD)"), "T1 (PZQ+ALB/MBD)", " ") -> T1 (PZQ+ALB/MBD) | E29: PZQ+ALB | F29: janvier 2023 | H29: 16230 | I29: 16230 | J29: 224 | K29: 16454 | M29: 13930 | N29: 224 | O29: 14154 | Q29: 85.82871226 | R29: 100 | S29: 86.02163608
A30: =IF(COUNTRY_INFO!A30=0," ",COUNTRY_INFO!A30) -> Congo | B30: =IF(COUNTRY_INFO!B30=0," ",COUNTRY_INFO!B30) -> Kouilou | C30: =IF(COUNTRY_INFO!C30=0," ",COUNTRY_INFO!C30) -> Madingo Kayes-Nzambi | D30: =IF(OR(COUNTRY_INFO!$U$9:$U$1000="T1 (PZQ+ALB/MBD)",COUNTRY_INFO!$V$9:$V$1000="T1 (PZQ+ALB/MBD)"), "T1 (PZQ+ALB/MBD)", " ") -> T1 (PZQ+ALB/MBD) | E30: PZQ+ALB | F30: janvier 2023 | H30: 3583 | I30: 3583 | J30: 86 | K30: 3669 | M30: 2571 | N30: 86 | O30: 2657 | Q30: 71.75551214 | R30: 100 | S30: 72.41755247
A31: =IF(COUNTRY_INFO!A31=0," ",COUNTRY_INFO!A31) -> Congo | B31: =IF(COUNTRY_INFO!B31=0," ",COUNTRY_INFO!B31) -> Kouilou | C31: =IF(COUNTRY_INFO!C31=0," ",COUNTRY_INFO!C31) -> Mvouti-Kakamouéka | D31: =IF(OR(COUNTRY_INFO!$U$9:$U$1000="T1 (PZQ+ALB/MBD)",COUNTRY_INFO!$V$9:$V$1000="T1 (PZQ+ALB/MBD)"), "T1 (PZQ+ALB/MBD)", " ") -> T1 (PZQ+ALB/MBD) | E31: PZQ+ALB | F31: janvier 2023 | H31: 6696 | I31: 6696 | J31: 210 | K31: 6906 | M31: 4576 | N31: 210 | O31: 4786 | Q31: 68.33930705 | R31: 100 | S31: 69.30205618
A32: =IF(COUNTRY_INFO!A32=0," ",COUNTRY_INFO!A32) -> Congo | B32: =IF(COUNTRY_INFO!B32=0," ",COUNTRY_INFO!B32) -> Lékoumou | C32: =IF(COUNTRY_INFO!C32=0," ",COUNTRY_INFO!C32) -> Sibiti | D32: =IF(OR(COUNTRY_INFO!$U$9:$U$1000="T1 (PZQ+ALB/MBD)",COUNTRY_INFO!$V$9:$V$1000="T1 (PZQ+ALB/MBD)"), "T1 (PZQ+ALB/MBD)", " ") -> T1 (PZQ+ALB/MBD) | E32: PZQ+ALB | F32: janvier 2023 | H32: 19106 | I32: 12275 | J32: 172 | K32: 19278 | M32: 20489 | N32: 339 | O32: 20828 | Q32: 107.2385638 | R32: 197.0930233 | S32: 108.0402531
A33: =IF(COUNTRY_INFO!A33=0," ",COUNTRY_INFO!A33) -> Congo | B33: =IF(COUNTRY_INFO!B33=0," ",COUNTRY_INFO!B33) -> Lékoumou | C33: =IF(COUNTRY_INFO!C33=0," ",COUNTRY_INFO!C33) -> Zanaga | D33: =IF(OR(COUNTRY_INFO!$U$9:$U$1000="T1 (PZQ+ALB/MBD)",COUNTRY_INFO!$V$9:$V$1000="T1 (PZQ+ALB/MBD)"), "T1 (PZQ+ALB/MBD)", " ") ->  | K33: 0 | O33: 0
A34: =IF(COUNTRY_INFO!A34=0," ",COUNTRY_INFO!A34) -> Congo | B34: =IF(COUNTRY_INFO!B34=0," ",COUNTRY_INFO!B34) -> Likouala | C34: =IF(COUNTRY_INFO!C34=0," ",COUNTRY_INFO!C34) -> Bétou | D34: =IF(OR(COUNTRY_INFO!$U$9:$U$1000="T1 (PZQ+ALB/MBD)",COUNTRY_INFO!$V$9:$V$1000="T1 (PZQ+ALB/MBD)"), "T1 (PZQ+ALB/MBD)", " ") ->  | K34: 0 | O34: 0
A35: =IF(COUNTRY_INFO!A35=0," ",COUNTRY_INFO!A35) -> Congo | B35: =IF(COUNTRY_INFO!B35=0," ",COUNTRY_INFO!B35) -> Likouala | C35: =IF(COUNTRY_INFO!C35=0," ",COUNTRY_INFO!C35) -> Impfondo | D35: =IF(OR(COUNTRY_INFO!$U$9:$U$1000="T1 (PZQ+ALB/MBD)",COUNTRY_INFO!$V$9:$V$1000="T1 (PZQ+ALB/MBD)"), "T1 (PZQ+ALB/MBD)", " ") ->  | K35: 0 | O35: 0
A36: =IF(COUNTRY_INFO!A36=0," ",COUNTRY_INFO!A36) -> Congo | B36: =IF(COUNTRY_INFO!B36=0," ",COUNTRY_INFO!B36) -> Niari | C36: =IF(COUNTRY_INFO!C36=0," ",COUNTRY_INFO!C36) -> Dolisie | D36: =IF(OR(COUNTRY_INFO!$U$9:$U$1000="T1 (PZQ+ALB/MBD)",COUNTRY_INFO!$V$9:$V$1000="T1 (PZQ+ALB/MBD)"), "T1 (PZQ+ALB/MBD)", " ") ->  | K36: 0 | O36: 0
A37: =IF(COUNTRY_INFO!A37=0," ",COUNTRY_INFO!A37) -> Congo | B37: =IF(COUNTRY_INFO!B37=0," ",COUNTRY_INFO!B37) -> Niari | C37: =IF(COUNTRY_INFO!C37=0," ",COUNTRY_INFO!C37) -> Kibangou | D37: =IF(OR(COUNTRY_INFO!$U$9:$U$1000="T1 (PZQ+ALB/MBD)",COUNTRY_INFO!$V$9:$V$1000="T1 (PZQ+ALB/MBD)"), "T1 (PZQ+ALB/MBD)", " ") ->  | K37: 0 | O37: 0
A38: =IF(COUNTRY_INFO!A38=0," ",COUNTRY_INFO!A38) -> Congo | B38: =IF(COUNTRY_INFO!B38=0," ",COUNTRY_INFO!B38) -> Niari | C38: =IF(COUNTRY_INFO!C38=0," ",COUNTRY_INFO!C38) -> Kimongo-Londela Nkayes | D38: =IF(OR(COUNTRY_INFO!$U$9:$U$1000="T1 (PZQ+ALB/MBD)",COUNTRY_INFO!$V$9:$V$1000="T1 (PZQ+ALB/MBD)"), "T1 (PZQ+ALB/MBD)", " ") ->  | K38: 0 | O38: 0
A39: =IF(COUNTRY_INFO!A39=0," ",COUNTRY_INFO!A39) -> Congo | B39: =IF(COUNTRY_INFO!B39=0," ",COUNTRY_INFO!B39) -> Niari | C39: =IF(COUNTRY_INFO!C39=0," ",COUNTRY_INFO!C39) -> Mayoko | D39: =IF(OR(COUNTRY_INFO!$U$9:$U$1000="T1 (PZQ+ALB/MBD)",COUNTRY_INFO!$V$9:$V$1000="T1 (PZQ+ALB/MBD)"), "T1 (PZQ+ALB/MBD)", " ") ->  | K39: 0 | O39: 0
A40: =IF(COUNTRY_INFO!A40=0," ",COUNTRY_INFO!A40) -> Congo | B40: =IF(COUNTRY_INFO!B40=0," ",COUNTRY_INFO!B40) -> Niari | C40: =IF(COUNTRY_INFO!C40=0," ",COUNTRY_INFO!C40) -> Mossendjo | D40: =IF(OR(COUNTRY_INFO!$U$9:$U$1000="T1 (PZQ+ALB/MBD)",COUNTRY_INFO!$V$9:$V$1000="T1 (PZQ+ALB/MBD)"), "T1 (PZQ+ALB/MBD)", " ") ->  | K40: 0 | O40: 0
A41: =IF(COUNTRY_INFO!A41=0," ",COUNTRY_INFO!A41) -> Congo | B41: =IF(COUNTRY_INFO!B41=0," ",COUNTRY_INFO!B41) -> Plateaux | C41: =IF(COUNTRY_INFO!C41=0," ",COUNTRY_INFO!C41) -> Abala | D41: =IF(OR(COUNTRY_INFO!$U$9:$U$1000="T1 (PZQ+ALB/MBD)",COUNTRY_INFO!$V$9:$V$1000="T1 (PZQ+ALB/MBD)"), "T1 (PZQ+ALB/MBD)", " ") ->  | K41: 0 | O41: 0
A42: =IF(COUNTRY_INFO!A42=0," ",COUNTRY_INFO!A42) -> Congo | B42: =IF(COUNTRY_INFO!B42=0," ",COUNTRY_INFO!B42) -> Plateaux | C42: =IF(COUNTRY_INFO!C42=0," ",COUNTRY_INFO!C42) -> Djambala-Lékana | D42: =IF(OR(COUNTRY_INFO!$U$9:$U$1000="T1 (PZQ+ALB/MBD)",COUNTRY_INFO!$V$9:$V$1000="T1 (PZQ+ALB/MBD)"), "T1 (PZQ+ALB/MBD)", " ") ->  | K42: 0 | O42: 0
A43: =IF(COUNTRY_INFO!A43=0," ",COUNTRY_INFO!A43) -> Congo | B43: =IF(COUNTRY_INFO!B43=0," ",COUNTRY_INFO!B43) -> Plateaux | C43: =IF(COUNTRY_INFO!C43=0," ",COUNTRY_INFO!C43) -> Gamboma | D43: =IF(OR(COUNTRY_INFO!$U$9:$U$1000="T1 (PZQ+ALB/MBD)",COUNTRY_INFO!$V$9:$V$1000="T1 (PZQ+ALB/MBD)"), "T1 (PZQ+ALB/MBD)", " ") ->  | K43: 0 | O43: 0
A44: =IF(COUNTRY_INFO!A44=0," ",COUNTRY_INFO!A44) -> Congo | B44: =IF(COUNTRY_INFO!B44=0," ",COUNTRY_INFO!B44) -> Plateaux | C44: =IF(COUNTRY_INFO!C44=0," ",COUNTRY_INFO!C44) -> Ngo Mpouya | D44: =IF(OR(COUNTRY_INFO!$U$9:$U$1000="T1 (PZQ+ALB/MBD)",COUNTRY_INFO!$V$9:$V$1000="T1 (PZQ+ALB/MBD)"), "T1 (PZQ+ALB/MBD)", " ") ->  | K44: 0 | O44: 0
A45: =IF(COUNTRY_INFO!A45=0," ",COUNTRY_INFO!A45) -> Congo | B45: =IF(COUNTRY_INFO!B45=0," ",COUNTRY_INFO!B45) -> Pointe-Noire | C45: =IF(COUNTRY_INFO!C45=0," ",COUNTRY_INFO!C45) -> Loandjili | D45: =IF(OR(COUNTRY_INFO!$U$9:$U$1000="T1 (PZQ+ALB/MBD)",COUNTRY_INFO!$V$9:$V$1000="T1 (PZQ+ALB/MBD)"), "T1 (PZQ+ALB/MBD)", " ") ->  | K45: 0 | O45: 0
A46: =IF(COUNTRY_INFO!A46=0," ",COUNTRY_INFO!A46) -> Congo | B46: =IF(COUNTRY_INFO!B46=0," ",COUNTRY_INFO!B46) -> Pointe-Noire | C46: =IF(COUNTRY_INFO!C46=0," ",COUNTRY_INFO!C46) -> Lumumba | D46: =IF(OR(COUNTRY_INFO!$U$9:$U$1000="T1 (PZQ+ALB/MBD)",COUNTRY_INFO!$V$9:$V$1000="T1 (PZQ+ALB/MBD)"), "T1 (PZQ+ALB/MBD)", " ") ->  | K46: 0 | O46: 0
A47: =IF(COUNTRY_INFO!A47=0," ",COUNTRY_INFO!A47) -> Congo | B47: =IF(COUNTRY_INFO!B47=0," ",COUNTRY_INFO!B47) -> Pointe-Noire | C47: =IF(COUNTRY_INFO!C47=0," ",COUNTRY_INFO!C47) -> Mongo-Poukou | D47: =IF(OR(COUNTRY_INFO!$U$9:$U$1000="T1 (PZQ+ALB/MBD)",COUNTRY_INFO!$V$9:$V$1000="T1 (PZQ+ALB/MBD)"), "T1 (PZQ+ALB/MBD)", " ") ->  | K47: 0 | O47: 0
A48: =IF(COUNTRY_INFO!A48=0," ",COUNTRY_INFO!A48) -> Congo | B48: =IF(COUNTRY_INFO!B48=0," ",COUNTRY_INFO!B48) -> Pointe-Noire | C48: =IF(COUNTRY_INFO!C48=0," ",COUNTRY_INFO!C48) -> Mvoumvou | D48: =IF(OR(COUNTRY_INFO!$U$9:$U$1000="T1 (PZQ+ALB/MBD)",COUNTRY_INFO!$V$9:$V$1000="T1 (PZQ+ALB/MBD)"), "T1 (PZQ+ALB/MBD)", " ") ->  | K48: 0 | O48: 0
A49: =IF(COUNTRY_INFO!A49=0," ",COUNTRY_INFO!A49) -> Congo | B49: =IF(COUNTRY_INFO!B49=0," ",COUNTRY_INFO!B49) -> Pointe-Noire | C49: =IF(COUNTRY_INFO!C49=0," ",COUNTRY_INFO!C49) -> Ngoyo | D49: =IF(OR(COUNTRY_INFO!$U$9:$U$1000="T1 (PZQ+ALB/MBD)",COUNTRY_INFO!$V$9:$V$1000="T1 (PZQ+ALB/MBD)"), "T1 (PZQ+ALB/MBD)", " ") ->  | K49: 0 | O49: 0
A50: =IF(COUNTRY_INFO!A50=0," ",COUNTRY_INFO!A50) -> Congo | B50: =IF(COUNTRY_INFO!B50=0," ",COUNTRY_INFO!B50) -> Pointe-Noire | C50: =IF(COUNTRY_INFO!C50=0," ",COUNTRY_INFO!C50) -> Tchiamba Nzassi | D50: =IF(OR(COUNTRY_INFO!$U$9:$U$1000="T1 (PZQ+ALB/MBD)",COUNTRY_INFO!$V$9:$V$1000="T1 (PZQ+ALB/MBD)"), "T1 (PZQ+ALB/MBD)", " ") ->  | K50: 0 | O50: 0
A51: =IF(COUNTRY_INFO!A51=0," ",COUNTRY_INFO!A51) -> Congo | B51: =IF(COUNTRY_INFO!B51=0," ",COUNTRY_INFO!B51) -> Pointe-Noire | C51: =IF(COUNTRY_INFO!C51=0," ",COUNTRY_INFO!C51) -> Tie-Tie | D51: =IF(OR(COUNTRY_INFO!$U$9:$U$1000="T1 (PZQ+ALB/MBD)",COUNTRY_INFO!$V$9:$V$1000="T1 (PZQ+ALB/MBD)"), "T1 (PZQ+ALB/MBD)", " ") ->  | K51: 0 | O51: 0
A52: =IF(COUNTRY_INFO!A52=0," ",COUNTRY_INFO!A52) -> Congo | B52: =IF(COUNTRY_INFO!B52=0," ",COUNTRY_INFO!B52) -> Pool | C52: =IF(COUNTRY_INFO!C52=0," ",COUNTRY_INFO!C52) -> Boko | D52: =IF(OR(COUNTRY_INFO!$U$9:$U$1000="T1 (PZQ+ALB/MBD)",COUNTRY_INFO!$V$9:$V$1000="T1 (PZQ+ALB/MBD)"), "T1 (PZQ+ALB/MBD)", " ") ->  | K52: 0 | O52: 0
A53: =IF(COUNTRY_INFO!A53=0," ",COUNTRY_INFO!A53) -> Congo | B53: =IF(COUNTRY_INFO!B53=0," ",COUNTRY_INFO!B53) -> Pool | C53: =IF(COUNTRY_INFO!C53=0," ",COUNTRY_INFO!C53) -> Goma tsétsé | D53: =IF(OR(COUNTRY_INFO!$U$9:$U$1000="T1 (PZQ+ALB/MBD)",COUNTRY_INFO!$V$9:$V$1000="T1 (PZQ+ALB/MBD)"), "T1 (PZQ+ALB/MBD)", " ") ->  | K53: 0 | O53: 0
A54: =IF(COUNTRY_INFO!A54=0," ",COUNTRY_INFO!A54) -> Congo | B54: =IF(COUNTRY_INFO!B54=0," ",COUNTRY_INFO!B54) -> Pool | C54: =IF(COUNTRY_INFO!C54=0," ",COUNTRY_INFO!C54) -> Ignié | D54: =IF(OR(COUNTRY_INFO!$U$9:$U$1000="T1 (PZQ+ALB/MBD)",COUNTRY_INFO!$V$9:$V$1000="T1 (PZQ+ALB/MBD)"), "T1 (PZQ+ALB/MBD)", " ") ->  | K54: 0 | O54: 0
A55: =IF(COUNTRY_INFO!A55=0," ",COUNTRY_INFO!A55) -> Congo | B55: =IF(COUNTRY_INFO!B55=0," ",COUNTRY_INFO!B55) -> Pool | C55: =IF(COUNTRY_INFO!C55=0," ",COUNTRY_INFO!C55) -> Kindamba | D55: =IF(OR(COUNTRY_INFO!$U$9:$U$1000="T1 (PZQ+ALB/MBD)",COUNTRY_INFO!$V$9:$V$1000="T1 (PZQ+ALB/MBD)"), "T1 (PZQ+ALB/MBD)", " ") ->  | K55: 0 | O55: 0
A56: =IF(COUNTRY_INFO!A56=0," ",COUNTRY_INFO!A56) -> Congo | B56: =IF(COUNTRY_INFO!B56=0," ",COUNTRY_INFO!B56) -> Pool | C56: =IF(COUNTRY_INFO!C56=0," ",COUNTRY_INFO!C56) -> Kinkala | D56: =IF(OR(COUNTRY_INFO!$U$9:$U$1000="T1 (PZQ+ALB/MBD)",COUNTRY_INFO!$V$9:$V$1000="T1 (PZQ+ALB/MBD)"), "T1 (PZQ+ALB/MBD)", " ") ->  | K56: 0 | O56: 0
A57: =IF(COUNTRY_INFO!A57=0," ",COUNTRY_INFO!A57) -> Congo | B57: =IF(COUNTRY_INFO!B57=0," ",COUNTRY_INFO!B57) -> Pool | C57: =IF(COUNTRY_INFO!C57=0," ",COUNTRY_INFO!C57) -> Kintélé | D57: =IF(OR(COUNTRY_INFO!$U$9:$U$1000="T1 (PZQ+ALB/MBD)",COUNTRY_INFO!$V$9:$V$1000="T1 (PZQ+ALB/MBD)"), "T1 (PZQ+ALB/MBD)", " ") ->  | K57: 0 | O57: 0
A58: =IF(COUNTRY_INFO!A58=0," ",COUNTRY_INFO!A58) -> Congo | B58: =IF(COUNTRY_INFO!B58=0," ",COUNTRY_INFO!B58) -> Pool | C58: =IF(COUNTRY_INFO!C58=0," ",COUNTRY_INFO!C58) -> Mindouli | D58: =IF(OR(COUNTRY_INFO!$U$9:$U$1000="T1 (PZQ+ALB/MBD)",COUNTRY_INFO!$V$9:$V$1000="T1 (PZQ+ALB/MBD)"), "T1 (PZQ+ALB/MBD)", " ") ->  | K58: 0 | O58: 0
A59: =IF(COUNTRY_INFO!A59=0," ",COUNTRY_INFO!A59) -> Congo | B59: =IF(COUNTRY_INFO!B59=0," ",COUNTRY_INFO!B59) -> Sangha | C59: =IF(COUNTRY_INFO!C59=0," ",COUNTRY_INFO!C59) -> Ouesso | D59: =IF(OR(COUNTRY_INFO!$U$9:$U$1000="T1 (PZQ+ALB/MBD)",COUNTRY_INFO!$V$9:$V$1000="T1 (PZQ+ALB/MBD)"), "T1 (PZQ+ALB/MBD)", " ") ->  | K59: 0 | O59: 0
A60: =IF(COUNTRY_INFO!A60=0," ",COUNTRY_INFO!A60) -> Congo | B60: =IF(COUNTRY_INFO!B60=0," ",COUNTRY_INFO!B60) -> Sangha | C60: =IF(COUNTRY_INFO!C60=0," ",COUNTRY_INFO!C60) -> Sembé-Souanké | D60: =IF(OR(COUNTRY_INFO!$U$9:$U$1000="T1 (PZQ+ALB/MBD)",COUNTRY_INFO!$V$9:$V$1000="T1 (PZQ+ALB/MBD)"), "T1 (PZQ+ALB/MBD)", " ") ->  | K60: 0 | O60: 0

Sheet T2
A1: T 2 - Praziquantel (PZQ)
A2: Structure administrative, population nécessitant une chimioprévention par groupe d'âge, population traitée par groupe d'âge et couverture
A4: TOTAL | F4: =SUM(F$9:F$1000) -> 0 | G4: 0 | H4: 0 | I4: 0 | J4: 0 | K4: 0 | L4: 0 | M4: 0 | N4: =IF(F4<>0, IF(J4/F4*100=0, "-", J4/F4*100), " ") ->  | O4: =IF(G4<>0, IF(K4/G4*100=0, "-", K4/G4*100), " ") ->  | P4: =IF(H4<>0, IF(L4/H4*100=0, "-", L4/H4*100), " ") ->  | Q4: =IF(I4<>0, IF(M4/I4*100=0, "-", M4/I4*100), " ") -> 
A6: Structure administrative du pays | D6: Mise en oeuvre de la CP | E6: Date | F6: Population ciblée pour T2 | J6: Population traitée | N6: Couverture du Programme (%)
A7: Pays | B7: Région/Département | C7: District | F7: EAPréS | G7: EAS | H7: Adultes | I7: Total | J7: EAPréS | K7: EAS | L7: Adultes | M7: Total | N7: EAPréS | O7: EAS | P7: Adultes | Q7: Total
A9: =IF(COUNTRY_INFO!A9=0," ",COUNTRY_INFO!A9) -> Congo | B9: =IF(COUNTRY_INFO!B9=0," ",COUNTRY_INFO!B9) -> Bouenza | C9: =IF(COUNTRY_INFO!C9=0," ",COUNTRY_INFO!C9) -> Loudima | D9: =IF(OR(COUNTRY_INFO!$U$9:$U$1000="T2 (PZQ)",COUNTRY_INFO!$V$9:$V$1000="T2 (PZQ)"), "T2 (PZQ)", " ") ->  | I9: =SUM(F9:H9) -> 0 | M9: =SUM(J9:L9) -> 0 | N9: =IF(F9<>0, IF(J9/F9*100=0, "-", J9/F9*100), " ") ->  | O9: =IF(G9<>0, IF(K9/G9*100=0, "-", K9/G9*100), " ") ->  | P9: =IF(H9<>0, IF(L9/H9*100=0, "-", L9/H9*100), " ") ->  | Q9: =IF(I9<>0, IF(M9/I9*100=0, "-", M9/I9*100), " ") -> 
A10: =IF(COUNTRY_INFO!A10=0," ",COUNTRY_INFO!A10) -> Congo | B10: =IF(COUNTRY_INFO!B10=0," ",COUNTRY_INFO!B10) -> Bouenza | C10: =IF(COUNTRY_INFO!C10=0," ",COUNTRY_INFO!C10) -> Loutété | D10: =IF(OR(COUNTRY_INFO!$U$9:$U$1000="T2 (PZQ)",COUNTRY_INFO!$V$9:$V$1000="T2 (PZQ)"), "T2 (PZQ)", " ") ->  | I10: =SUM(F10:H10) -> 0 | M10: =SUM(J10:L10) -> 0 | N10: =IF(F10<>0, IF(J10/F10*100=0, "-", J10/F10*100), " ") ->  | O10: =IF(G10<>0, IF(K10/G10*100=0, "-", K10/G10*100), " ") ->  | P10: =IF(H10<>0, IF(L10/H10*100=0, "-", L10/H10*100), " ") ->  | Q10: =IF(I10<>0, IF(M10/I10*100=0, "-", M10/I10*100), " ") -> 
A11: =IF(COUNTRY_INFO!A11=0," ",COUNTRY_INFO!A11) -> Congo | B11: =IF(COUNTRY_INFO!B11=0," ",COUNTRY_INFO!B11) -> Bouenza | C11: =IF(COUNTRY_INFO!C11=0," ",COUNTRY_INFO!C11) -> Madingou | D11: =IF(OR(COUNTRY_INFO!$U$9:$U$1000="T2 (PZQ)",COUNTRY_INFO!$V$9:$V$1000="T2 (PZQ)"), "T2 (PZQ)", " ") ->  | I11: 0 | M11: 0
A12: =IF(COUNTRY_INFO!A12=0," ",COUNTRY_INFO!A12) -> Congo | B12: =IF(COUNTRY_INFO!B12=0," ",COUNTRY_INFO!B12) -> Bouenza | C12: =IF(COUNTRY_INFO!C12=0," ",COUNTRY_INFO!C12) -> Mouyondzi | D12: =IF(OR(COUNTRY_INFO!$U$9:$U$1000="T2 (PZQ)",COUNTRY_INFO!$V$9:$V$1000="T2 (PZQ)"), "T2 (PZQ)", " ") ->  | I12: 0 | M12: 0
A13: =IF(COUNTRY_INFO!A13=0," ",COUNTRY_INFO!A13) -> Congo | B13: =IF(COUNTRY_INFO!B13=0," ",COUNTRY_INFO!B13) -> Bouenza | C13: =IF(COUNTRY_INFO!C13=0," ",COUNTRY_INFO!C13) -> Nkayi | D13: =IF(OR(COUNTRY_INFO!$U$9:$U$1000="T2 (PZQ)",COUNTRY_INFO!$V$9:$V$1000="T2 (PZQ)"), "T2 (PZQ)", " ") ->  | I13: 0 | M13: 0
A14: =IF(COUNTRY_INFO!A14=0," ",COUNTRY_INFO!A14) -> Congo | B14: =IF(COUNTRY_INFO!B14=0," ",COUNTRY_INFO!B14) -> Brazzaville | C14: =IF(COUNTRY_INFO!C14=0," ",COUNTRY_INFO!C14) -> Bacongo | D14: =IF(OR(COUNTRY_INFO!$U$9:$U$1000="T2 (PZQ)",COUNTRY_INFO!$V$9:$V$1000="T2 (PZQ)"), "T2 (PZQ)", " ") ->  | I14: 0 | M14: 0
A15: =IF(COUNTRY_INFO!A15=0," ",COUNTRY_INFO!A15) -> Congo | B15: =IF(COUNTRY_INFO!B15=0," ",COUNTRY_INFO!B15) -> Brazzaville | C15: =IF(COUNTRY_INFO!C15=0," ",COUNTRY_INFO!C15) -> Djiri | D15: =IF(OR(COUNTRY_INFO!$U$9:$U$1000="T2 (PZQ)",COUNTRY_INFO!$V$9:$V$1000="T2 (PZQ)"), "T2 (PZQ)", " ") ->  | I15: 0 | M15: 0
A16: =IF(COUNTRY_INFO!A16=0," ",COUNTRY_INFO!A16) -> Congo | B16: =IF(COUNTRY_INFO!B16=0," ",COUNTRY_INFO!B16) -> Brazzaville | C16: =IF(COUNTRY_INFO!C16=0," ",COUNTRY_INFO!C16) -> Île Mbamou | D16: =IF(OR(COUNTRY_INFO!$U$9:$U$1000="T2 (PZQ)",COUNTRY_INFO!$V$9:$V$1000="T2 (PZQ)"), "T2 (PZQ)", " ") ->  | I16: 0 | M16: 0
A17: =IF(COUNTRY_INFO!A17=0," ",COUNTRY_INFO!A17) -> Congo | B17: =IF(COUNTRY_INFO!B17=0," ",COUNTRY_INFO!B17) -> Brazzaville | C17: =IF(COUNTRY_INFO!C17=0," ",COUNTRY_INFO!C17) -> Madibou | D17: =IF(OR(COUNTRY_INFO!$U$9:$U$1000="T2 (PZQ)",COUNTRY_INFO!$V$9:$V$1000="T2 (PZQ)"), "T2 (PZQ)", " ") ->  | I17: 0 | M17: 0
A18: =IF(COUNTRY_INFO!A18=0," ",COUNTRY_INFO!A18) -> Congo | B18: =IF(COUNTRY_INFO!B18=0," ",COUNTRY_INFO!B18) -> Brazzaville | C18: =IF(COUNTRY_INFO!C18=0," ",COUNTRY_INFO!C18) -> Makélékélé | D18: =IF(OR(COUNTRY_INFO!$U$9:$U$1000="T2 (PZQ)",COUNTRY_INFO!$V$9:$V$1000="T2 (PZQ)"), "T2 (PZQ)", " ") ->  | I18: 0 | M18: 0
A19: =IF(COUNTRY_INFO!A19=0," ",COUNTRY_INFO!A19) -> Congo | B19: =IF(COUNTRY_INFO!B19=0," ",COUNTRY_INFO!B19) -> Brazzaville | C19: =IF(COUNTRY_INFO!C19=0," ",COUNTRY_INFO!C19) -> Mfilou | D19: =IF(OR(COUNTRY_INFO!$U$9:$U$1000="T2 (PZQ)",COUNTRY_INFO!$V$9:$V$1000="T2 (PZQ)"), "T2 (PZQ)", " ") ->  | I19: 0 | M19: 0
A20: =IF(COUNTRY_INFO!A20=0," ",COUNTRY_INFO!A20) -> Congo | B20: =IF(COUNTRY_INFO!B20=0," ",COUNTRY_INFO!B20) -> Brazzaville | C20: =IF(COUNTRY_INFO!C20=0," ",COUNTRY_INFO!C20) -> Moungali | D20: =IF(OR(COUNTRY_INFO!$U$9:$U$1000="T2 (PZQ)",COUNTRY_INFO!$V$9:$V$1000="T2 (PZQ)"), "T2 (PZQ)", " ") ->  | I20: 0 | M20: 0
A21: =IF(COUNTRY_INFO!A21=0," ",COUNTRY_INFO!A21) -> Congo | B21: =IF(COUNTRY_INFO!B21=0," ",COUNTRY_INFO!B21) -> Brazzaville | C21: =IF(COUNTRY_INFO!C21=0," ",COUNTRY_INFO!C21) -> Ouenzé | D21: =IF(OR(COUNTRY_INFO!$U$9:$U$1000="T2 (PZQ)",COUNTRY_INFO!$V$9:$V$1000="T2 (PZQ)"), "T2 (PZQ)", " ") ->  | I21: 0 | M21: 0
A22: =IF(COUNTRY_INFO!A22=0," ",COUNTRY_INFO!A22) -> Congo | B22: =IF(COUNTRY_INFO!B22=0," ",COUNTRY_INFO!B22) -> Brazzaville | C22: =IF(COUNTRY_INFO!C22=0," ",COUNTRY_INFO!C22) -> Poto-Poto | D22: =IF(OR(COUNTRY_INFO!$U$9:$U$1000="T2 (PZQ)",COUNTRY_INFO!$V$9:$V$1000="T2 (PZQ)"), "T2 (PZQ)", " ") ->  | I22: 0 | M22: 0
A23: =IF(COUNTRY_INFO!A23=0," ",COUNTRY_INFO!A23) -> Congo | B23: =IF(COUNTRY_INFO!B23=0," ",COUNTRY_INFO!B23) -> Brazzaville | C23: =IF(COUNTRY_INFO!C23=0," ",COUNTRY_INFO!C23) -> Talangaî | D23: =IF(OR(COUNTRY_INFO!$U$9:$U$1000="T2 (PZQ)",COUNTRY_INFO!$V$9:$V$1000="T2 (PZQ)"), "T2 (PZQ)", " ") ->  | I23: 0 | M23: 0
A24: =IF(COUNTRY_INFO!A24=0," ",COUNTRY_INFO!A24) -> Congo | B24: =IF(COUNTRY_INFO!B24=0," ",COUNTRY_INFO!B24) -> Cuvette | C24: =IF(COUNTRY_INFO!C24=0," ",COUNTRY_INFO!C24) -> Mossaka | D24: =IF(OR(COUNTRY_INFO!$U$9:$U$1000="T2 (PZQ)",COUNTRY_INFO!$V$9:$V$1000="T2 (PZQ)"), "T2 (PZQ)", " ") ->  | I24: 0 | M24: 0
A25: =IF(COUNTRY_INFO!A25=0," ",COUNTRY_INFO!A25) -> Congo | B25: =IF(COUNTRY_INFO!B25=0," ",COUNTRY_INFO!B25) -> Cuvette | C25: =IF(COUNTRY_INFO!C25=0," ",COUNTRY_INFO!C25) -> Owando | D25: =IF(OR(COUNTRY_INFO!$U$9:$U$1000="T2 (PZQ)",COUNTRY_INFO!$V$9:$V$1000="T2 (PZQ)"), "T2 (PZQ)", " ") ->  | I25: 0 | M25: 0
A26: =IF(COUNTRY_INFO!A26=0," ",COUNTRY_INFO!A26) -> Congo | B26: =IF(COUNTRY_INFO!B26=0," ",COUNTRY_INFO!B26) -> Cuvette | C26: =IF(COUNTRY_INFO!C26=0," ",COUNTRY_INFO!C26) -> Oyo-Alima | D26: =IF(OR(COUNTRY_INFO!$U$9:$U$1000="T2 (PZQ)",COUNTRY_INFO!$V$9:$V$1000="T2 (PZQ)"), "T2 (PZQ)", " ") ->  | I26: 0 | M26: 0
A27: =IF(COUNTRY_INFO!A27=0," ",COUNTRY_INFO!A27) -> Congo | B27: =IF(COUNTRY_INFO!B27=0," ",COUNTRY_INFO!B27) -> Cuvette-Ouest | C27: =IF(COUNTRY_INFO!C27=0," ",COUNTRY_INFO!C27) -> Etoumbi | D27: =IF(OR(COUNTRY_INFO!$U$9:$U$1000="T2 (PZQ)",COUNTRY_INFO!$V$9:$V$1000="T2 (PZQ)"), "T2 (PZQ)", " ") ->  | I27: 0 | M27: 0
A28: =IF(COUNTRY_INFO!A28=0," ",COUNTRY_INFO!A28) -> Congo | B28: =IF(COUNTRY_INFO!B28=0," ",COUNTRY_INFO!B28) -> Cuvette-Ouest | C28: =IF(COUNTRY_INFO!C28=0," ",COUNTRY_INFO!C28) -> Ewo | D28: =IF(OR(COUNTRY_INFO!$U$9:$U$1000="T2 (PZQ)",COUNTRY_INFO!$V$9:$V$1000="T2 (PZQ)"), "T2 (PZQ)", " ") ->  | I28: 0 | M28: 0
A29: =IF(COUNTRY_INFO!A29=0," ",COUNTRY_INFO!A29) -> Congo | B29: =IF(COUNTRY_INFO!B29=0," ",COUNTRY_INFO!B29) -> Kouilou | C29: =IF(COUNTRY_INFO!C29=0," ",COUNTRY_INFO!C29) -> Hinda-Loango | D29: =IF(OR(COUNTRY_INFO!$U$9:$U$1000="T2 (PZQ)",COUNTRY_INFO!$V$9:$V$1000="T2 (PZQ)"), "T2 (PZQ)", " ") ->  | I29: 0 | M29: 0
A30: =IF(COUNTRY_INFO!A30=0," ",COUNTRY_INFO!A30) -> Congo | B30: =IF(COUNTRY_INFO!B30=0," ",COUNTRY_INFO!B30) -> Kouilou | C30: =IF(COUNTRY_INFO!C30=0," ",COUNTRY_INFO!C30) -> Madingo Kayes-Nzambi | D30: =IF(OR(COUNTRY_INFO!$U$9:$U$1000="T2 (PZQ)",COUNTRY_INFO!$V$9:$V$1000="T2 (PZQ)"), "T2 (PZQ)", " ") ->  | I30: 0 | M30: 0
A31: =IF(COUNTRY_INFO!A31=0," ",COUNTRY_INFO!A31) -> Congo | B31: =IF(COUNTRY_INFO!B31=0," ",COUNTRY_INFO!B31) -> Kouilou | C31: =IF(COUNTRY_INFO!C31=0," ",COUNTRY_INFO!C31) -> Mvouti-Kakamouéka | D31: =IF(OR(COUNTRY_INFO!$U$9:$U$1000="T2 (PZQ)",COUNTRY_INFO!$V$9:$V$1000="T2 (PZQ)"), "T2 (PZQ)", " ") ->  | I31: 0 | M31: 0
A32: =IF(COUNTRY_INFO!A32=0," ",COUNTRY_INFO!A32) -> Congo | B32: =IF(COUNTRY_INFO!B32=0," ",COUNTRY_INFO!B32) -> Lékoumou | C32: =IF(COUNTRY_INFO!C32=0," ",COUNTRY_INFO!C32) -> Sibiti | D32: =IF(OR(COUNTRY_INFO!$U$9:$U$1000="T2 (PZQ)",COUNTRY_INFO!$V$9:$V$1000="T2 (PZQ)"), "T2 (PZQ)", " ") ->  | I32: 0 | M32: 0
A33: =IF(COUNTRY_INFO!A33=0," ",COUNTRY_INFO!A33) -> Congo | B33: =IF(COUNTRY_INFO!B33=0," ",COUNTRY_INFO!B33) -> Lékoumou | C33: =IF(COUNTRY_INFO!C33=0," ",COUNTRY_INFO!C33) -> Zanaga | D33: =IF(OR(COUNTRY_INFO!$U$9:$U$1000="T2 (PZQ)",COUNTRY_INFO!$V$9:$V$1000="T2 (PZQ)"), "T2 (PZQ)", " ") ->  | I33: 0 | M33: 0
A34: =IF(COUNTRY_INFO!A34=0," ",COUNTRY_INFO!A34) -> Congo | B34: =IF(COUNTRY_INFO!B34=0," ",COUNTRY_INFO!B34) -> Likouala | C34: =IF(COUNTRY_INFO!C34=0," ",COUNTRY_INFO!C34) -> Bétou | D34: =IF(OR(COUNTRY_INFO!$U$9:$U$1000="T2 (PZQ)",COUNTRY_INFO!$V$9:$V$1000="T2 (PZQ)"), "T2 (PZQ)", " ") ->  | I34: 0 | M34: 0
A35: =IF(COUNTRY_INFO!A35=0," ",COUNTRY_INFO!A35) -> Congo | B35: =IF(COUNTRY_INFO!B35=0," ",COUNTRY_INFO!B35) -> Likouala | C35: =IF(COUNTRY_INFO!C35=0," ",COUNTRY_INFO!C35) -> Impfondo | D35: =IF(OR(COUNTRY_INFO!$U$9:$U$1000="T2 (PZQ)",COUNTRY_INFO!$V$9:$V$1000="T2 (PZQ)"), "T2 (PZQ)", " ") ->  | I35: 0 | M35: 0
A36: =IF(COUNTRY_INFO!A36=0," ",COUNTRY_INFO!A36) -> Congo | B36: =IF(COUNTRY_INFO!B36=0," ",COUNTRY_INFO!B36) -> Niari | C36: =IF(COUNTRY_INFO!C36=0," ",COUNTRY_INFO!C36) -> Dolisie | D36: =IF(OR(COUNTRY_INFO!$U$9:$U$1000="T2 (PZQ)",COUNTRY_INFO!$V$9:$V$1000="T2 (PZQ)"), "T2 (PZQ)", " ") ->  | I36: 0 | M36: 0
A37: =IF(COUNTRY_INFO!A37=0," ",COUNTRY_INFO!A37) -> Congo | B37: =IF(COUNTRY_INFO!B37=0," ",COUNTRY_INFO!B37) -> Niari | C37: =IF(COUNTRY_INFO!C37=0," ",COUNTRY_INFO!C37) -> Kibangou | D37: =IF(OR(COUNTRY_INFO!$U$9:$U$1000="T2 (PZQ)",COUNTRY_INFO!$V$9:$V$1000="T2 (PZQ)"), "T2 (PZQ)", " ") ->  | I37: 0 | M37: 0
A38: =IF(COUNTRY_INFO!A38=0," ",COUNTRY_INFO!A38) -> Congo | B38: =IF(COUNTRY_INFO!B38=0," ",COUNTRY_INFO!B38) -> Niari | C38: =IF(COUNTRY_INFO!C38=0," ",COUNTRY_INFO!C38) -> Kimongo-Londela Nkayes | D38: =IF(OR(COUNTRY_INFO!$U$9:$U$1000="T2 (PZQ)",COUNTRY_INFO!$V$9:$V$1000="T2 (PZQ)"), "T2 (PZQ)", " ") ->  | I38: 0 | M38: 0
A39: =IF(COUNTRY_INFO!A39=0," ",COUNTRY_INFO!A39) -> Congo | B39: =IF(COUNTRY_INFO!B39=0," ",COUNTRY_INFO!B39) -> Niari | C39: =IF(COUNTRY_INFO!C39=0," ",COUNTRY_INFO!C39) -> Mayoko | D39: =IF(OR(COUNTRY_INFO!$U$9:$U$1000="T2 (PZQ)",COUNTRY_INFO!$V$9:$V$1000="T2 (PZQ)"), "T2 (PZQ)", " ") ->  | I39: 0 | M39: 0
A40: =IF(COUNTRY_INFO!A40=0," ",COUNTRY_INFO!A40) -> Congo | B40: =IF(COUNTRY_INFO!B40=0," ",COUNTRY_INFO!B40) -> Niari | C40: =IF(COUNTRY_INFO!C40=0," ",COUNTRY_INFO!C40) -> Mossendjo | D40: =IF(OR(COUNTRY_INFO!$U$9:$U$1000="T2 (PZQ)",COUNTRY_INFO!$V$9:$V$1000="T2 (PZQ)"), "T2 (PZQ)", " ") ->  | I40: 0 | M40: 0
A41: =IF(COUNTRY_INFO!A41=0," ",COUNTRY_INFO!A41) -> Congo | B41: =IF(COUNTRY_INFO!B41=0," ",COUNTRY_INFO!B41) -> Plateaux | C41: =IF(COUNTRY_INFO!C41=0," ",COUNTRY_INFO!C41) -> Abala | D41: =IF(OR(COUNTRY_INFO!$U$9:$U$1000="T2 (PZQ)",COUNTRY_INFO!$V$9:$V$1000="T2 (PZQ)"), "T2 (PZQ)", " ") ->  | I41: 0 | M41: 0
A42: =IF(COUNTRY_INFO!A42=0," ",COUNTRY_INFO!A42) -> Congo | B42: =IF(COUNTRY_INFO!B42=0," ",COUNTRY_INFO!B42) -> Plateaux | C42: =IF(COUNTRY_INFO!C42=0," ",COUNTRY_INFO!C42) -> Djambala-Lékana | D42: =IF(OR(COUNTRY_INFO!$U$9:$U$1000="T2 (PZQ)",COUNTRY_INFO!$V$9:$V$1000="T2 (PZQ)"), "T2 (PZQ)", " ") ->  | I42: 0 | M42: 0
A43: =IF(COUNTRY_INFO!A43=0," ",COUNTRY_INFO!A43) -> Congo | B43: =IF(COUNTRY_INFO!B43=0," ",COUNTRY_INFO!B43) -> Plateaux | C43: =IF(COUNTRY_INFO!C43=0," ",COUNTRY_INFO!C43) -> Gamboma | D43: =IF(OR(COUNTRY_INFO!$U$9:$U$1000="T2 (PZQ)",COUNTRY_INFO!$V$9:$V$1000="T2 (PZQ)"), "T2 (PZQ)", " ") ->  | I43: 0 | M43: 0
A44: =IF(COUNTRY_INFO!A44=0," ",COUNTRY_INFO!A44) -> Congo | B44: =IF(COUNTRY_INFO!B44=0," ",COUNTRY_INFO!B44) -> Plateaux | C44: =IF(COUNTRY_INFO!C44=0," ",COUNTRY_INFO!C44) -> Ngo Mpouya | D44: =IF(OR(COUNTRY_INFO!$U$9:$U$1000="T2 (PZQ)",COUNTRY_INFO!$V$9:$V$1000="T2 (PZQ)"), "T2 (PZQ)", " ") ->  | I44: 0 | M44: 0
A45: =IF(COUNTRY_INFO!A45=0," ",COUNTRY_INFO!A45) -> Congo | B45: =IF(COUNTRY_INFO!B45=0," ",COUNTRY_INFO!B45) -> Pointe-Noire | C45: =IF(COUNTRY_INFO!C45=0," ",COUNTRY_INFO!C45) -> Loandjili | D45: =IF(OR(COUNTRY_INFO!$U$9:$U$1000="T2 (PZQ)",COUNTRY_INFO!$V$9:$V$1000="T2 (PZQ)"), "T2 (PZQ)", " ") ->  | I45: 0 | M45: 0
A46: =IF(COUNTRY_INFO!A46=0," ",COUNTRY_INFO!A46) -> Congo | B46: =IF(COUNTRY_INFO!B46=0," ",COUNTRY_INFO!B46) -> Pointe-Noire | C46: =IF(COUNTRY_INFO!C46=0," ",COUNTRY_INFO!C46) -> Lumumba | D46: =IF(OR(COUNTRY_INFO!$U$9:$U$1000="T2 (PZQ)",COUNTRY_INFO!$V$9:$V$1000="T2 (PZQ)"), "T2 (PZQ)", " ") ->  | I46: 0 | M46: 0
A47: =IF(COUNTRY_INFO!A47=0," ",COUNTRY_INFO!A47) -> Congo | B47: =IF(COUNTRY_INFO!B47=0," ",COUNTRY_INFO!B47) -> Pointe-Noire | C47: =IF(COUNTRY_INFO!C47=0," ",COUNTRY_INFO!C47) -> Mongo-Poukou | D47: =IF(OR(COUNTRY_INFO!$U$9:$U$1000="T2 (PZQ)",COUNTRY_INFO!$V$9:$V$1000="T2 (PZQ)"), "T2 (PZQ)", " ") ->  | I47: 0 | M47: 0
A48: =IF(COUNTRY_INFO!A48=0," ",COUNTRY_INFO!A48) -> Congo | B48: =IF(COUNTRY_INFO!B48=0," ",COUNTRY_INFO!B48) -> Pointe-Noire | C48: =IF(COUNTRY_INFO!C48=0," ",COUNTRY_INFO!C48) -> Mvoumvou | D48: =IF(OR(COUNTRY_INFO!$U$9:$U$1000="T2 (PZQ)",COUNTRY_INFO!$V$9:$V$1000="T2 (PZQ)"), "T2 (PZQ)", " ") ->  | I48: 0 | M48: 0
A49: =IF(COUNTRY_INFO!A49=0," ",COUNTRY_INFO!A49) -> Congo | B49: =IF(COUNTRY_INFO!B49=0," ",COUNTRY_INFO!B49) -> Pointe-Noire | C49: =IF(COUNTRY_INFO!C49=0," ",COUNTRY_INFO!C49) -> Ngoyo | D49: =IF(OR(COUNTRY_INFO!$U$9:$U$1000="T2 (PZQ)",COUNTRY_INFO!$V$9:$V$1000="T2 (PZQ)"), "T2 (PZQ)", " ") ->  | I49: 0 | M49: 0
A50: =IF(COUNTRY_INFO!A50=0," ",COUNTRY_INFO!A50) -> Congo | B50: =IF(COUNTRY_INFO!B50=0," ",COUNTRY_INFO!B50) -> Pointe-Noire | C50: =IF(COUNTRY_INFO!C50=0," ",COUNTRY_INFO!C50) -> Tchiamba Nzassi | D50: =IF(OR(COUNTRY_INFO!$U$9:$U$1000="T2 (PZQ)",COUNTRY_INFO!$V$9:$V$1000="T2 (PZQ)"), "T2 (PZQ)", " ") ->  | I50: 0 | M50: 0
A51: =IF(COUNTRY_INFO!A51=0," ",COUNTRY_INFO!A51) -> Congo | B51: =IF(COUNTRY_INFO!B51=0," ",COUNTRY_INFO!B51) -> Pointe-Noire | C51: =IF(COUNTRY_INFO!C51=0," ",COUNTRY_INFO!C51) -> Tie-Tie | D51: =IF(OR(COUNTRY_INFO!$U$9:$U$1000="T2 (PZQ)",COUNTRY_INFO!$V$9:$V$1000="T2 (PZQ)"), "T2 (PZQ)", " ") ->  | I51: 0 | M51: 0
A52: =IF(COUNTRY_INFO!A52=0," ",COUNTRY_INFO!A52) -> Congo | B52: =IF(COUNTRY_INFO!B52=0," ",COUNTRY_INFO!B52) -> Pool | C52: =IF(COUNTRY_INFO!C52=0," ",COUNTRY_INFO!C52) -> Boko | D52: =IF(OR(COUNTRY_INFO!$U$9:$U$1000="T2 (PZQ)",COUNTRY_INFO!$V$9:$V$1000="T2 (PZQ)"), "T2 (PZQ)", " ") ->  | I52: 0 | M52: 0
A53: =IF(COUNTRY_INFO!A53=0," ",COUNTRY_INFO!A53) -> Congo | B53: =IF(COUNTRY_INFO!B53=0," ",COUNTRY_INFO!B53) -> Pool | C53: =IF(COUNTRY_INFO!C53=0," ",COUNTRY_INFO!C53) -> Goma tsétsé | D53: =IF(OR(COUNTRY_INFO!$U$9:$U$1000="T2 (PZQ)",COUNTRY_INFO!$V$9:$V$1000="T2 (PZQ)"), "T2 (PZQ)", " ") ->  | I53: 0 | M53: 0
A54: =IF(COUNTRY_INFO!A54=0," ",COUNTRY_INFO!A54) -> Congo | B54: =IF(COUNTRY_INFO!B54=0," ",COUNTRY_INFO!B54) -> Pool | C54: =IF(COUNTRY_INFO!C54=0," ",COUNTRY_INFO!C54) -> Ignié | D54: =IF(OR(COUNTRY_INFO!$U$9:$U$1000="T2 (PZQ)",COUNTRY_INFO!$V$9:$V$1000="T2 (PZQ)"), "T2 (PZQ)", " ") ->  | I54: 0 | M54: 0
A55: =IF(COUNTRY_INFO!A55=0," ",COUNTRY_INFO!A55) -> Congo | B55: =IF(COUNTRY_INFO!B55=0," ",COUNTRY_INFO!B55) -> Pool | C55: =IF(COUNTRY_INFO!C55=0," ",COUNTRY_INFO!C55) -> Kindamba | D55: =IF(OR(COUNTRY_INFO!$U$9:$U$1000="T2 (PZQ)",COUNTRY_INFO!$V$9:$V$1000="T2 (PZQ)"), "T2 (PZQ)", " ") ->  | I55: 0 | M55: 0
A56: =IF(COUNTRY_INFO!A56=0," ",COUNTRY_INFO!A56) -> Congo | B56: =IF(COUNTRY_INFO!B56=0," ",COUNTRY_INFO!B56) -> Pool | C56: =IF(COUNTRY_INFO!C56=0," ",COUNTRY_INFO!C56) -> Kinkala | D56: =IF(OR(COUNTRY_INFO!$U$9:$U$1000="T2 (PZQ)",COUNTRY_INFO!$V$9:$V$1000="T2 (PZQ)"), "T2 (PZQ)", " ") ->  | I56: 0 | M56: 0
A57: =IF(COUNTRY_INFO!A57=0," ",COUNTRY_INFO!A57) -> Congo | B57: =IF(COUNTRY_INFO!B57=0," ",COUNTRY_INFO!B57) -> Pool | C57: =IF(COUNTRY_INFO!C57=0," ",COUNTRY_INFO!C57) -> Kintélé | D57: =IF(OR(COUNTRY_INFO!$U$9:$U$1000="T2 (PZQ)",COUNTRY_INFO!$V$9:$V$1000="T2 (PZQ)"), "T2 (PZQ)", " ") ->  | I57: 0 | M57: 0
A58: =IF(COUNTRY_INFO!A58=0," ",COUNTRY_INFO!A58) -> Congo | B58: =IF(COUNTRY_INFO!B58=0," ",COUNTRY_INFO!B58) -> Pool | C58: =IF(COUNTRY_INFO!C58=0," ",COUNTRY_INFO!C58) -> Mindouli | D58: =IF(OR(COUNTRY_INFO!$U$9:$U$1000="T2 (PZQ)",COUNTRY_INFO!$V$9:$V$1000="T2 (PZQ)"), "T2 (PZQ)", " ") ->  | I58: 0 | M58: 0
A59: =IF(COUNTRY_INFO!A59=0," ",COUNTRY_INFO!A59) -> Congo | B59: =IF(COUNTRY_INFO!B59=0," ",COUNTRY_INFO!B59) -> Sangha | C59: =IF(COUNTRY_INFO!C59=0," ",COUNTRY_INFO!C59) -> Ouesso | D59: =IF(OR(COUNTRY_INFO!$U$9:$U$1000="T2 (PZQ)",COUNTRY_INFO!$V$9:$V$1000="T2 (PZQ)"), "T2 (PZQ)", " ") ->  | I59: 0 | M59: 0
A60: =IF(COUNTRY_INFO!A60=0," ",COUNTRY_INFO!A60) -> Congo | B60: =IF(COUNTRY_INFO!B60=0," ",COUNTRY_INFO!B60) -> Sangha | C60: =IF(COUNTRY_INFO!C60=0," ",COUNTRY_INFO!C60) -> Sembé-Souanké | D60: =IF(OR(COUNTRY_INFO!$U$9:$U$1000="T2 (PZQ)",COUNTRY_INFO!$V$9:$V$1000="T2 (PZQ)"), "T2 (PZQ)", " ") ->  | I60: 0 | M60: 0

Sheet T3_R1
A1: T 3 - Albendazole (ALB) ou Mebendazole (MBD) - Tournée 1
A2: Structure administrative, population nécessitant une chimioprévention par groupe d'âge, population traitée par groupe d'âge et couverture
A4: TOTAL | G4: =SUM(G$9:G$1000) -> 0 | H4: 979386 | I4: 8981 | J4: 988367 | K4: 0 | L4: 825111 | M4: 8981 | N4: 834092 | O4: =IF(G4<>0, IF(K4/G4*100=0, "-", K4/G4*100), " ") ->  | P4: =IF(H4<>0, IF(L4/H4*100=0, "-", L4/H4*100), " ") -> 84.24778382 | Q4: =IF(I4<>0, IF(M4/I4*100=0, "-", M4/I4*100), " ") -> 100 | R4: =IF(J4<>0, IF(N4/J4*100=0, "-", N4/J4*100), " ") -> 84.39091957
A6: Structure administrative du pays | D6: Mise en oeuvre de la CP | E6: Médica-ment | F6: Date | G6: Population ciblée pour T3 | K6: Population traitée | O6: Couverture du Programme (%)
A7: Pays | B7: Région/Département | C7: District | G7: EAPréS | H7: EAS | I7: Adultes | J7: Total | K7: EAPréS | L7: EAS | M7: Adultes | N7: Total | O7: EAPréS | P7: EAS | Q7: Adultes | R7: Total
A9: =IF(COUNTRY_INFO!A9=0," ",COUNTRY_INFO!A9) -> Congo | B9: =IF(COUNTRY_INFO!B9=0," ",COUNTRY_INFO!B9) -> Bouenza | C9: =IF(COUNTRY_INFO!C9=0," ",COUNTRY_INFO!C9) -> Loudima | D9: =IF(OR(COUNTRY_INFO!$U$9:$U$1000="T3 (ALB/MBD)",COUNTRY_INFO!$V$9:$V$1000="T3 (ALB/MBD)"), "T3 (ALB/MBD)", " ") ->  | J9: =SUM(G9:I9) -> 0 | N9: =SUM(K9:M9) -> 0 | O9: =IF(G9<>0, IF(K9/G9*100=0, "-", K9/G9*100), " ") ->  | P9: =IF(H9<>0, IF(L9/H9*100=0, "-", L9/H9*100), " ") ->  | Q9: =IF(I9<>0, IF(M9/I9*100=0, "-", M9/I9*100), " ") ->  | R9: =IF(J9<>0, IF(N9/J9*100=0, "-", N9/J9*100), " ") ->  | T9: =COUNTRY_INFO!AP9 -> 0
A10: =IF(COUNTRY_INFO!A10=0," ",COUNTRY_INFO!A10) -> Congo | B10: =IF(COUNTRY_INFO!B10=0," ",COUNTRY_INFO!B10) -> Bouenza | C10: =IF(COUNTRY_INFO!C10=0," ",COUNTRY_INFO!C10) -> Loutété | D10: =IF(OR(COUNTRY_INFO!$U$9:$U$1000="T3 (ALB/MBD)",COUNTRY_INFO!$V$9:$V$1000="T3 (ALB/MBD)"), "T3 (ALB/MBD)", " ") ->  | J10: =SUM(G10:I10) -> 0 | N10: =SUM(K10:M10) -> 0 | O10: =IF(G10<>0, IF(K10/G10*100=0, "-", K10/G10*100), " ") ->  | P10: =IF(H10<>0, IF(L10/H10*100=0, "-", L10/H10*100), " ") ->  | Q10: =IF(I10<>0, IF(M10/I10*100=0, "-", M10/I10*100), " ") ->  | R10: =IF(J10<>0, IF(N10/J10*100=0, "-", N10/J10*100), " ") ->  | T10: =COUNTRY_INFO!AP10 -> 0
A11: =IF(COUNTRY_INFO!A11=0," ",COUNTRY_INFO!A11) -> Congo | B11: =IF(COUNTRY_INFO!B11=0," ",COUNTRY_INFO!B11) -> Bouenza | C11: =IF(COUNTRY_INFO!C11=0," ",COUNTRY_INFO!C11) -> Madingou | D11: =IF(OR(COUNTRY_INFO!$U$9:$U$1000="T3 (ALB/MBD)",COUNTRY_INFO!$V$9:$V$1000="T3 (ALB/MBD)"), "T3 (ALB/MBD)", " ") -> T3 (ALB/MBD) | E11: ALB | F11: janvier 2023 | H11: =W11 -> 31551 | I11: =X11 -> 243 | J11: 31794 | L11: =AA11 -> 23552 | M11: =AB11 -> 243 | N11: 23795 | P11: 74.64739628 | Q11: 100 | R11: 74.841165 | T11: =COUNTRY_INFO!AP11 -> x | W11: 31551 | X11: 243 | Y11: 31794 | AA11: 23552 | AB11: 243
A12: =IF(COUNTRY_INFO!A12=0," ",COUNTRY_INFO!A12) -> Congo | B12: =IF(COUNTRY_INFO!B12=0," ",COUNTRY_INFO!B12) -> Bouenza | C12: =IF(COUNTRY_INFO!C12=0," ",COUNTRY_INFO!C12) -> Mouyondzi | D12: =IF(OR(COUNTRY_INFO!$U$9:$U$1000="T3 (ALB/MBD)",COUNTRY_INFO!$V$9:$V$1000="T3 (ALB/MBD)"), "T3 (ALB/MBD)", " ") ->  | J12: 0 | N12: 0 | T12: =COUNTRY_INFO!AP12 -> 0
A13: =IF(COUNTRY_INFO!A13=0," ",COUNTRY_INFO!A13) -> Congo | B13: =IF(COUNTRY_INFO!B13=0," ",COUNTRY_INFO!B13) -> Bouenza | C13: =IF(COUNTRY_INFO!C13=0," ",COUNTRY_INFO!C13) -> Nkayi | D13: =IF(OR(COUNTRY_INFO!$U$9:$U$1000="T3 (ALB/MBD)",COUNTRY_INFO!$V$9:$V$1000="T3 (ALB/MBD)"), "T3 (ALB/MBD)", " ") ->  | J13: 0 | N13: 0 | T13: =COUNTRY_INFO!AP13 -> 0
A14: =IF(COUNTRY_INFO!A14=0," ",COUNTRY_INFO!A14) -> Congo | B14: =IF(COUNTRY_INFO!B14=0," ",COUNTRY_INFO!B14) -> Brazzaville | C14: =IF(COUNTRY_INFO!C14=0," ",COUNTRY_INFO!C14) -> Bacongo | D14: =IF(OR(COUNTRY_INFO!$U$9:$U$1000="T3 (ALB/MBD)",COUNTRY_INFO!$V$9:$V$1000="T3 (ALB/MBD)"), "T3 (ALB/MBD)", " ") -> T3 (ALB/MBD) | E14: ALB | F14: janvier 2023 | H14: 10309 | I14: 2 | J14: 10311 | L14: 7806 | M14: 2 | N14: 7808 | P14: 75.72024445 | Q14: 100 | R14: 75.72495393 | T14: =COUNTRY_INFO!AP14 -> 0 | W14: 10309 | X14: 2 | Y14: 10311 | AA14: 7806 | AB14: 2
A15: =IF(COUNTRY_INFO!A15=0," ",COUNTRY_INFO!A15) -> Congo | B15: =IF(COUNTRY_INFO!B15=0," ",COUNTRY_INFO!B15) -> Brazzaville | C15: =IF(COUNTRY_INFO!C15=0," ",COUNTRY_INFO!C15) -> Djiri | D15: =IF(OR(COUNTRY_INFO!$U$9:$U$1000="T3 (ALB/MBD)",COUNTRY_INFO!$V$9:$V$1000="T3 (ALB/MBD)"), "T3 (ALB/MBD)", " ") -> T3 (ALB/MBD) | E15: ALB | F15: janvier 2023 | H15: 37631 | I15: 12 | J15: 37643 | L15: 33640 | M15: 12 | N15: 33652 | P15: 89.39438229 | Q15: 100 | R15: 89.3977632 | T15: =COUNTRY_INFO!AP15 -> 0 | W15: 37631 | X15: 12 | Y15: 37643 | AA15: 33640 | AB15: 12
A16: =IF(COUNTRY_INFO!A16=0," ",COUNTRY_INFO!A16) -> Congo | B16: =IF(COUNTRY_INFO!B16=0," ",COUNTRY_INFO!B16) -> Brazzaville | C16: =IF(COUNTRY_INFO!C16=0," ",COUNTRY_INFO!C16) -> Île Mbamou | D16: =IF(OR(COUNTRY_INFO!$U$9:$U$1000="T3 (ALB/MBD)",COUNTRY_INFO!$V$9:$V$1000="T3 (ALB/MBD)"), "T3 (ALB/MBD)", " ") -> T3 (ALB/MBD) | E16: ALB | F16: janvier 2023 | H16: 1366 | I16: 0 | J16: 1366 | L16: 1319 | M16: 0 | N16: 1319 | P16: 96.55929722 | R16: 96.55929722 | T16: =COUNTRY_INFO!AP16 -> 0 | W16: 1366 | Y16: 1366 | AA16: 1319
A17: =IF(COUNTRY_INFO!A17=0," ",COUNTRY_INFO!A17) -> Congo | B17: =IF(COUNTRY_INFO!B17=0," ",COUNTRY_INFO!B17) -> Brazzaville | C17: =IF(COUNTRY_INFO!C17=0," ",COUNTRY_INFO!C17) -> Madibou | D17: =IF(OR(COUNTRY_INFO!$U$9:$U$1000="T3 (ALB/MBD)",COUNTRY_INFO!$V$9:$V$1000="T3 (ALB/MBD)"), "T3 (ALB/MBD)", " ") -> T3 (ALB/MBD) | E17: ALB | F17: janvier 2023 | H17: 46907 | I17: 1023 | J17: 47930 | L17: 44662 | M17: 1023 | N17: 45685 | P17: 95.21393395 | Q17: 100 | R17: 95.31608596 | T17: =COUNTRY_INFO!AP17 -> 0 | W17: 46907 | X17: 1023 | Y17: 47930 | AA17: 44662 | AB17: 1023
A18: =IF(COUNTRY_INFO!A18=0," ",COUNTRY_INFO!A18) -> Congo | B18: =IF(COUNTRY_INFO!B18=0," ",COUNTRY_INFO!B18) -> Brazzaville | C18: =IF(COUNTRY_INFO!C18=0," ",COUNTRY_INFO!C18) -> Makélékélé | D18: =IF(OR(COUNTRY_INFO!$U$9:$U$1000="T3 (ALB/MBD)",COUNTRY_INFO!$V$9:$V$1000="T3 (ALB/MBD)"), "T3 (ALB/MBD)", " ") -> T3 (ALB/MBD) | E18: ALB | F18: janvier 2023 | H18: 44650 | I18: 218 | J18: 44868 | L18: 31955 | M18: 218 | N18: 32173 | P18: 71.56774916 | Q18: 100 | R18: 71.70589284 | T18: =COUNTRY_INFO!AP18 -> 0 | W18: 44650 | X18: 218 | Y18: 44868 | AA18: 31955 | AB18: 218
A19: =IF(COUNTRY_INFO!A19=0," ",COUNTRY_INFO!A19) -> Congo | B19: =IF(COUNTRY_INFO!B19=0," ",COUNTRY_INFO!B19) -> Brazzaville | C19: =IF(COUNTRY_INFO!C19=0," ",COUNTRY_INFO!C19) -> Mfilou | D19: =IF(OR(COUNTRY_INFO!$U$9:$U$1000="T3 (ALB/MBD)",COUNTRY_INFO!$V$9:$V$1000="T3 (ALB/MBD)"), "T3 (ALB/MBD)", " ") -> T3 (ALB/MBD) | E19: ALB | F19: janvier 2023 | H19: 43368 | I19: 0 | J19: 43368 | L19: 32812 | M19: 0 | N19: 32812 | P19: 75.65947242 | R19: 75.65947242 | T19: =COUNTRY_INFO!AP19 -> 0 | W19: 43368 | Y19: 43368 | AA19: 32812
A20: =IF(COUNTRY_INFO!A20=0," ",COUNTRY_INFO!A20) -> Congo | B20: =IF(COUNTRY_INFO!B20=0," ",COUNTRY_INFO!B20) -> Brazzaville | C20: =IF(COUNTRY_INFO!C20=0," ",COUNTRY_INFO!C20) -> Moungali | D20: =IF(OR(COUNTRY_INFO!$U$9:$U$1000="T3 (ALB/MBD)",COUNTRY_INFO!$V$9:$V$1000="T3 (ALB/MBD)"), "T3 (ALB/MBD)", " ") -> T3 (ALB/MBD) | E20: ALB | F20: janvier 2023 | H20: 27838 | I20: 159 | J20: 27997 | L20: 22690 | M20: 159 | N20: 22849 | P20: 81.50729219 | Q20: 100 | R20: 81.61231561 | T20: =COUNTRY_INFO!AP20 -> 0 | W20: 27838 | X20: 159 | Y20: 27997 | AA20: 22690 | AB20: 159
A21: =IF(COUNTRY_INFO!A21=0," ",COUNTRY_INFO!A21) -> Congo | B21: =IF(COUNTRY_INFO!B21=0," ",COUNTRY_INFO!B21) -> Brazzaville | C21: =IF(COUNTRY_INFO!C21=0," ",COUNTRY_INFO!C21) -> Ouenzé | D21: =IF(OR(COUNTRY_INFO!$U$9:$U$1000="T3 (ALB/MBD)",COUNTRY_INFO!$V$9:$V$1000="T3 (ALB/MBD)"), "T3 (ALB/MBD)", " ") -> T3 (ALB/MBD) | E21: ALB | F21: janvier 2023 | H21: 37958 | I21: 225 | J21: 38183 | L21: 29882 | M21: 225 | N21: 30107 | P21: 78.72385268 | Q21: 100 | R21: 78.8492261 | T21: =COUNTRY_INFO!AP21 -> 0 | W21: 37958 | X21: 225 | Y21: 38183 | AA21: 29882 | AB21: 225
A22: =IF(COUNTRY_INFO!A22=0," ",COUNTRY_INFO!A22) -> Congo | B22: =IF(COUNTRY_INFO!B22=0," ",COUNTRY_INFO!B22) -> Brazzaville | C22: =IF(COUNTRY_INFO!C22=0," ",COUNTRY_INFO!C22) -> Poto-Poto | D22: =IF(OR(COUNTRY_INFO!$U$9:$U$1000="T3 (ALB/MBD)",COUNTRY_INFO!$V$9:$V$1000="T3 (ALB/MBD)"), "T3 (ALB/MBD)", " ") -> T3 (ALB/MBD) | E22: ALB | F22: janvier 2023 | H22: 12780 | I22: 9 | J22: 12789 | L22: 10113 | M22: 9 | N22: 10122 | P22: 79.1314554 | Q22: 100 | R22: 79.14614122 | T22: =COUNTRY_INFO!AP22 -> 0 | W22: 12780 | X22: 9 | Y22: 12789 | AA22: 10113 | AB22: 9
A23: =IF(COUNTRY_INFO!A23=0," ",COUNTRY_INFO!A23) -> Congo | B23: =IF(COUNTRY_INFO!B23=0," ",COUNTRY_INFO!B23) -> Brazzaville | C23: =IF(COUNTRY_INFO!C23=0," ",COUNTRY_INFO!C23) -> Talangaî | D23: =IF(OR(COUNTRY_INFO!$U$9:$U$1000="T3 (ALB/MBD)",COUNTRY_INFO!$V$9:$V$1000="T3 (ALB/MBD)"), "T3 (ALB/MBD)", " ") -> T3 (ALB/MBD) | E23: ALB | F23: janvier 2023 | H23: 56166 | I23: 565 | J23: 56731 | L23: 47429 | M23: 565 | N23: 47994 | P23: 84.44432575 | Q23: 100 | R23: 84.59924909 | T23: =COUNTRY_INFO!AP23 -> 0 | W23: 56166 | X23: 565 | Y23: 56731 | AA23: 47429 | AB23: 565
A24: =IF(COUNTRY_INFO!A24=0," ",COUNTRY_INFO!A24) -> Congo | B24: =IF(COUNTRY_INFO!B24=0," ",COUNTRY_INFO!B24) -> Cuvette | C24: =IF(COUNTRY_INFO!C24=0," ",COUNTRY_INFO!C24) -> Mossaka | D24: =IF(OR(COUNTRY_INFO!$U$9:$U$1000="T3 (ALB/MBD)",COUNTRY_INFO!$V$9:$V$1000="T3 (ALB/MBD)"), "T3 (ALB/MBD)", " ") -> T3 (ALB/MBD) | E24: ALB | F24: janvier 2023 | H24: 12077 | I24: 135 | J24: 12212 | L24: 11649 | M24: 135 | N24: 11784 | P24: 96.45607353 | Q24: 100 | R24: 96.49525057 | T24: =COUNTRY_INFO!AP24 -> 0 | W24: 12077 | X24: 135 | Y24: 12212 | AA24: 11649 | AB24: 135
A25: =IF(COUNTRY_INFO!A25=0," ",COUNTRY_INFO!A25) -> Congo | B25: =IF(COUNTRY_INFO!B25=0," ",COUNTRY_INFO!B25) -> Cuvette | C25: =IF(COUNTRY_INFO!C25=0," ",COUNTRY_INFO!C25) -> Owando | D25: =IF(OR(COUNTRY_INFO!$U$9:$U$1000="T3 (ALB/MBD)",COUNTRY_INFO!$V$9:$V$1000="T3 (ALB/MBD)"), "T3 (ALB/MBD)", " ") -> T3 (ALB/MBD) | E25: ALB | F25: janvier 2023 | H25: =W25 -> 15663 | I25: =X25 -> 109 | J25: 15772 | L25: =AA25 -> 15114 | M25: =AB25 -> 109 | N25: 15223 | P25: 96.49492434 | Q25: 100 | R25: 96.51914786 | T25: =COUNTRY_INFO!AP25 -> x | W25: 15663 | X25: 109 | Y25: 15772 | AA25: 15114 | AB25: 109
A26: =IF(COUNTRY_INFO!A26=0," ",COUNTRY_INFO!A26) -> Congo | B26: =IF(COUNTRY_INFO!B26=0," ",COUNTRY_INFO!B26) -> Cuvette | C26: =IF(COUNTRY_INFO!C26=0," ",COUNTRY_INFO!C26) -> Oyo-Alima | D26: =IF(OR(COUNTRY_INFO!$U$9:$U$1000="T3 (ALB/MBD)",COUNTRY_INFO!$V$9:$V$1000="T3 (ALB/MBD)"), "T3 (ALB/MBD)", " ") -> T3 (ALB/MBD) | E26: ALB | F26: janvier 2023 | H26: 12032 | I26: 65 | J26: 12097 | L26: 12222 | M26: 65 | N26: 12287 | P26: 101.5791223 | Q26: 100 | R26: 101.5706373 | T26: =COUNTRY_INFO!AP26 -> 0 | W26: 12032 | X26: 65 | Y26: 12097 | AA26: 12222 | AB26: 65
A27: =IF(COUNTRY_INFO!A27=0," ",COUNTRY_INFO!A27) -> Congo | B27: =IF(COUNTRY_INFO!B27=0," ",COUNTRY_INFO!B27) -> Cuvette-Ouest | C27: =IF(COUNTRY_INFO!C27=0," ",COUNTRY_INFO!C27) -> Etoumbi | D27: =IF(OR(COUNTRY_INFO!$U$9:$U$1000="T3 (ALB/MBD)",COUNTRY_INFO!$V$9:$V$1000="T3 (ALB/MBD)"), "T3 (ALB/MBD)", " ") -> T3 (ALB/MBD) | E27: ALB | F27: janvier 2023 | H27: =W27 -> 11650 | I27: =X27 -> 0 | J27: 11650 | L27: =AA27 -> 10251 | M27: =AB27 -> 0 | N27: 10251 | P27: 87.99141631 | R27: 87.99141631 | T27: =COUNTRY_INFO!AP27 -> x | W27: 11650 | Y27: 11650 | AA27: 10251
A28: =IF(COUNTRY_INFO!A28=0," ",COUNTRY_INFO!A28) -> Congo | B28: =IF(COUNTRY_INFO!B28=0," ",COUNTRY_INFO!B28) -> Cuvette-Ouest | C28: =IF(COUNTRY_INFO!C28=0," ",COUNTRY_INFO!C28) -> Ewo | D28: =IF(OR(COUNTRY_INFO!$U$9:$U$1000="T3 (ALB/MBD)",COUNTRY_INFO!$V$9:$V$1000="T3 (ALB/MBD)"), "T3 (ALB/MBD)", " ") -> T3 (ALB/MBD) | E28: ALB | F28: janvier 2023 | H28: 12230 | I28: 11 | J28: 12241 | L28: 15885 | M28: 11 | N28: 15896 | P28: 129.8855274 | Q28: 100 | R28: 129.8586717 | T28: =COUNTRY_INFO!AP28 -> x | W28: 12230 | X28: 11 | Y28: 12241 | AA28: 15885 | AB28: 11
A29: =IF(COUNTRY_INFO!A29=0," ",COUNTRY_INFO!A29) -> Congo | B29: =IF(COUNTRY_INFO!B29=0," ",COUNTRY_INFO!B29) -> Kouilou | C29: =IF(COUNTRY_INFO!C29=0," ",COUNTRY_INFO!C29) -> Hinda-Loango | D29: =IF(OR(COUNTRY_INFO!$U$9:$U$1000="T3 (ALB/MBD)",COUNTRY_INFO!$V$9:$V$1000="T3 (ALB/MBD)"), "T3 (ALB/MBD)", " ") ->  | J29: 0 | N29: 0 | T29: =COUNTRY_INFO!AP29 -> 0
A30: =IF(COUNTRY_INFO!A30=0," ",COUNTRY_INFO!A30) -> Congo | B30: =IF(COUNTRY_INFO!B30=0," ",COUNTRY_INFO!B30) -> Kouilou | C30: =IF(COUNTRY_INFO!C30=0," ",COUNTRY_INFO!C30) -> Madingo Kayes-Nzambi | D30: =IF(OR(COUNTRY_INFO!$U$9:$U$1000="T3 (ALB/MBD)",COUNTRY_INFO!$V$9:$V$1000="T3 (ALB/MBD)"), "T3 (ALB/MBD)", " ") ->  | J30: 0 | N30: 0 | T30: =COUNTRY_INFO!AP30 -> 0
A31: =IF(COUNTRY_INFO!A31=0," ",COUNTRY_INFO!A31) -> Congo | B31: =IF(COUNTRY_INFO!B31=0," ",COUNTRY_INFO!B31) -> Kouilou | C31: =IF(COUNTRY_INFO!C31=0," ",COUNTRY_INFO!C31) -> Mvouti-Kakamouéka | D31: =IF(OR(COUNTRY_INFO!$U$9:$U$1000="T3 (ALB/MBD)",COUNTRY_INFO!$V$9:$V$1000="T3 (ALB/MBD)"), "T3 (ALB/MBD)", " ") ->  | J31: 0 | N31: 0 | T31: =COUNTRY_INFO!AP31 -> 0
A32: =IF(COUNTRY_INFO!A32=0," ",COUNTRY_INFO!A32) -> Congo | B32: =IF(COUNTRY_INFO!B32=0," ",COUNTRY_INFO!B32) -> Lékoumou | C32: =IF(COUNTRY_INFO!C32=0," ",COUNTRY_INFO!C32) -> Sibiti | D32: =IF(OR(COUNTRY_INFO!$U$9:$U$1000="T3 (ALB/MBD)",COUNTRY_INFO!$V$9:$V$1000="T3 (ALB/MBD)"), "T3 (ALB/MBD)", " ") ->  | J32: 0 | N32: 0 | T32: =COUNTRY_INFO!AP32 -> 0
A33: =IF(COUNTRY_INFO!A33=0," ",COUNTRY_INFO!A33) -> Congo | B33: =IF(COUNTRY_INFO!B33=0," ",COUNTRY_INFO!B33) -> Lékoumou | C33: =IF(COUNTRY_INFO!C33=0," ",COUNTRY_INFO!C33) -> Zanaga | D33: =IF(OR(COUNTRY_INFO!$U$9:$U$1000="T3 (ALB/MBD)",COUNTRY_INFO!$V$9:$V$1000="T3 (ALB/MBD)"), "T3 (ALB/MBD)", " ") -> T3 (ALB/MBD) | E33: ALB | F33: janvier 2023 | H33: 5925 | I33: 71 | J33: 5996 | L33: 6287 | M33: 71 | N33: 6358 | P33: 106.1097046 | Q33: 100 | R33: 106.0373582 | T33: =COUNTRY_INFO!AP33 -> 0 | W33: 5925 | X33: 71 | Y33: 5996 | AA33: 6287 | AB33: 71
A34: =IF(COUNTRY_INFO!A34=0," ",COUNTRY_INFO!A34) -> Congo | B34: =IF(COUNTRY_INFO!B34=0," ",COUNTRY_INFO!B34) -> Likouala | C34: =IF(COUNTRY_INFO!C34=0," ",COUNTRY_INFO!C34) -> Bétou | D34: =IF(OR(COUNTRY_INFO!$U$9:$U$1000="T3 (ALB/MBD)",COUNTRY_INFO!$V$9:$V$1000="T3 (ALB/MBD)"), "T3 (ALB/MBD)", " ") -> T3 (ALB/MBD) | E34: ALB | F34: janvier 2023 | H34: 20921 | I34: 1204 | J34: 22125 | L34: 16046 | M34: 1204 | N34: 17250 | P34: 76.69805459 | Q34: 100 | R34: 77.96610169 | T34: =COUNTRY_INFO!AP34 -> 0 | W34: 20921 | X34: 1204 | Y34: 22125 | AA34: 16046 | AB34: 1204
A35: =IF(COUNTRY_INFO!A35=0," ",COUNTRY_INFO!A35) -> Congo | B35: =IF(COUNTRY_INFO!B35=0," ",COUNTRY_INFO!B35) -> Likouala | C35: =IF(COUNTRY_INFO!C35=0," ",COUNTRY_INFO!C35) -> Impfondo | D35: =IF(OR(COUNTRY_INFO!$U$9:$U$1000="T3 (ALB/MBD)",COUNTRY_INFO!$V$9:$V$1000="T3 (ALB/MBD)"), "T3 (ALB/MBD)", " ") -> T3 (ALB/MBD) | E35: ALB | F35: janvier 2023 | H35: =W35 -> 23882 | I35: =X35 -> 360 | J35: 24242 | L35: =AA35 -> 18292 | M35: =AB35 -> 360 | N35: 18652 | P35: 76.59325015 | Q35: 100 | R35: 76.94084646 | T35: =COUNTRY_INFO!AP35 -> x | W35: 23882 | X35: 360 | Y35: 24242 | AA35: 18292 | AB35: 360
A36: =IF(COUNTRY_INFO!A36=0," ",COUNTRY_INFO!A36) -> Congo | B36: =IF(COUNTRY_INFO!B36=0," ",COUNTRY_INFO!B36) -> Niari | C36: =IF(COUNTRY_INFO!C36=0," ",COUNTRY_INFO!C36) -> Dolisie | D36: =IF(OR(COUNTRY_INFO!$U$9:$U$1000="T3 (ALB/MBD)",COUNTRY_INFO!$V$9:$V$1000="T3 (ALB/MBD)"), "T3 (ALB/MBD)", " ") -> T3 (ALB/MBD) | E36: ALB | F36: janvier 2023 | H36: 46942 | I36: 263 | J36: 47205 | L36: 34095 | M36: 263 | N36: 34358 | P36: 72.6321844 | Q36: 100 | R36: 72.78466264 | T36: =COUNTRY_INFO!AP36 -> x | W36: 46942 | X36: 263 | Y36: 47205 | AA36: 34095 | AB36: 263
A37: =IF(COUNTRY_INFO!A37=0," ",COUNTRY_INFO!A37) -> Congo | B37: =IF(COUNTRY_INFO!B37=0," ",COUNTRY_INFO!B37) -> Niari | C37: =IF(COUNTRY_INFO!C37=0," ",COUNTRY_INFO!C37) -> Kibangou | D37: =IF(OR(COUNTRY_INFO!$U$9:$U$1000="T3 (ALB/MBD)",COUNTRY_INFO!$V$9:$V$1000="T3 (ALB/MBD)"), "T3 (ALB/MBD)", " ") -> T3 (ALB/MBD) | E37: ALB | F37: janvier 2023 | H37: 7537 | I37: 286 | J37: 7823 | L37: 7924 | M37: 286 | N37: 8210 | P37: 105.134669 | Q37: 100 | R37: 104.9469513 | T37: =COUNTRY_INFO!AP37 -> x | W37: 7537 | X37: 286 | Y37: 7823 | AA37: 7924 | AB37: 286
A38: =IF(COUNTRY_INFO!A38=0," ",COUNTRY_INFO!A38) -> Congo | B38: =IF(COUNTRY_INFO!B38=0," ",COUNTRY_INFO!B38) -> Niari | C38: =IF(COUNTRY_INFO!C38=0," ",COUNTRY_INFO!C38) -> Kimongo-Londela Nkayes | D38: =IF(OR(COUNTRY_INFO!$U$9:$U$1000="T3 (ALB/MBD)",COUNTRY_INFO!$V$9:$V$1000="T3 (ALB/MBD)"), "T3 (ALB/MBD)", " ") -> T3 (ALB/MBD) | E38: ALB | F38: janvier 2023 | H38: 6012 | I38: 120 | J38: 6132 | L38: 6145 | M38: 120 | N38: 6265 | P38: 102.2122422 | Q38: 100 | R38: 102.1689498 | T38: =COUNTRY_INFO!AP38 -> x | W38: 6012 | X38: 120 | Y38: 6132 | AA38: 6145 | AB38: 120
A39: =IF(COUNTRY_INFO!A39=0," ",COUNTRY_INFO!A39) -> Congo | B39: =IF(COUNTRY_INFO!B39=0," ",COUNTRY_INFO!B39) -> Niari | C39: =IF(COUNTRY_INFO!C39=0," ",COUNTRY_INFO!C39) -> Mayoko | D39: =IF(OR(COUNTRY_INFO!$U$9:$U$1000="T3 (ALB/MBD)",COUNTRY_INFO!$V$9:$V$1000="T3 (ALB/MBD)"), "T3 (ALB/MBD)", " ") -> T3 (ALB/MBD) | E39: ALB | F39: janvier 2023 | H39: 2676 | I39: 74 | J39: 2750 | L39: 2603 | M39: 74 | N39: 2677 | P39: 97.27204783 | Q39: 100 | R39: 97.34545455 | T39: =COUNTRY_INFO!AP39 -> 0 | W39: 2676 | X39: 74 | Y39: 2750 | AA39: 2603 | AB39: 74
A40: =IF(COUNTRY_INFO!A40=0," ",COUNTRY_INFO!A40) -> Congo | B40: =IF(COUNTRY_INFO!B40=0," ",COUNTRY_INFO!B40) -> Niari | C40: =IF(COUNTRY_INFO!C40=0," ",COUNTRY_INFO!C40) -> Mossendjo | D40: =IF(OR(COUNTRY_INFO!$U$9:$U$1000="T3 (ALB/MBD)",COUNTRY_INFO!$V$9:$V$1000="T3 (ALB/MBD)"), "T3 (ALB/MBD)", " ") -> T3 (ALB/MBD) | E40: ALB | F40: janvier 2023 | H40: 6576 | I40: 155 | J40: 6731 | L40: 6701 | M40: 155 | N40: 6856 | P40: 101.9008516 | Q40: 100 | R40: 101.8570792 | T40: =COUNTRY_INFO!AP40 -> 0 | W40: 6576 | X40: 155 | Y40: 6731 | AA40: 6701 | AB40: 155
A41: =IF(COUNTRY_INFO!A41=0," ",COUNTRY_INFO!A41) -> Congo | B41: =IF(COUNTRY_INFO!B41=0," ",COUNTRY_INFO!B41) -> Plateaux | C41: =IF(COUNTRY_INFO!C41=0," ",COUNTRY_INFO!C41) -> Abala | D41: =IF(OR(COUNTRY_INFO!$U$9:$U$1000="T3 (ALB/MBD)",COUNTRY_INFO!$V$9:$V$1000="T3 (ALB/MBD)"), "T3 (ALB/MBD)", " ") -> T3 (ALB/MBD) | E41: ALB | F41: janvier 2023 | H41: 10301 | I41: 60 | J41: 10361 | L41: 9355 | M41: 60 | N41: 9415 | P41: 90.81642559 | Q41: 100 | R41: 90.86960718 | T41: =COUNTRY_INFO!AP41 -> 0 | W41: 10301 | X41: 60 | Y41: 10361 | AA41: 9355 | AB41: 60
A42: =IF(COUNTRY_INFO!A42=0," ",COUNTRY_INFO!A42) -> Congo | B42: =IF(COUNTRY_INFO!B42=0," ",COUNTRY_INFO!B42) -> Plateaux | C42: =IF(COUNTRY_INFO!C42=0," ",COUNTRY_INFO!C42) -> Djambala-Lékana | D42: =IF(OR(COUNTRY_INFO!$U$9:$U$1000="T3 (ALB/MBD)",COUNTRY_INFO!$V$9:$V$1000="T3 (ALB/MBD)"), "T3 (ALB/MBD)", " ") -> T3 (ALB/MBD) | E42: ALB | F42: janvier 2023 | H42: 11371 | I42: 13 | J42: 11384 | L42: 9378 | M42: 13 | N42: 9391 | P42: 82.47295752 | Q42: 100 | R42: 82.49297259 | T42: =COUNTRY_INFO!AP42 -> 0 | W42: 11371 | X42: 13 | Y42: 11384 | AA42: 9378 | AB42: 13
A43: =IF(COUNTRY_INFO!A43=0," ",COUNTRY_INFO!A43) -> Congo | B43: =IF(COUNTRY_INFO!B43=0," ",COUNTRY_INFO!B43) -> Plateaux | C43: =IF(COUNTRY_INFO!C43=0," ",COUNTRY_INFO!C43) -> Gamboma | D43: =IF(OR(COUNTRY_INFO!$U$9:$U$1000="T3 (ALB/MBD)",COUNTRY_INFO!$V$9:$V$1000="T3 (ALB/MBD)"), "T3 (ALB/MBD)", " ") -> T3 (ALB/MBD) | E43: ALB | F43: janvier 2023 | H43: 25700 | I43: 32 | J43: 25732 | L43: 23505 | M43: 32 | N43: 23537 | P43: 91.45914397 | Q43: 100 | R43: 91.46976527 | T43: =COUNTRY_INFO!AP43 -> 0 | W43: 25700 | X43: 32 | Y43: 25732 | AA43: 23505 | AB43: 32
A44: =IF(COUNTRY_INFO!A44=0," ",COUNTRY_INFO!A44) -> Congo | B44: =IF(COUNTRY_INFO!B44=0," ",COUNTRY_INFO!B44) -> Plateaux | C44: =IF(COUNTRY_INFO!C44=0," ",COUNTRY_INFO!C44) -> Ngo Mpouya | D44: =IF(OR(COUNTRY_INFO!$U$9:$U$1000="T3 (ALB/MBD)",COUNTRY_INFO!$V$9:$V$1000="T3 (ALB/MBD)"), "T3 (ALB/MBD)", " ") -> T3 (ALB/MBD) | E44: ALB | F44: janvier 2023 | H44: 8260 | I44: 69 | J44: 8329 | L44: 6053 | M44: 69 | N44: 6122 | P44: 73.28087167 | Q44: 100 | R44: 73.50222116 | T44: =COUNTRY_INFO!AP44 -> 0 | W44: 8260 | X44: 69 | Y44: 8329 | AA44: 6053 | AB44: 69
A45: =IF(COUNTRY_INFO!A45=0," ",COUNTRY_INFO!A45) -> Congo | B45: =IF(COUNTRY_INFO!B45=0," ",COUNTRY_INFO!B45) -> Pointe-Noire | C45: =IF(COUNTRY_INFO!C45=0," ",COUNTRY_INFO!C45) -> Loandjili | D45: =IF(OR(COUNTRY_INFO!$U$9:$U$1000="T3 (ALB/MBD)",COUNTRY_INFO!$V$9:$V$1000="T3 (ALB/MBD)"), "T3 (ALB/MBD)", " ") -> T3 (ALB/MBD) | E45: ALB | F45: janvier 2023 | H45: 65048 | I45: 340 | J45: 65388 | L45: 52225 | M45: 340 | N45: 52565 | P45: 80.28686508 | Q45: 100 | R45: 80.38936808 | T45: =COUNTRY_INFO!AP45 -> 0 | W45: 65048 | X45: 340 | Y45: 65388 | AA45: 52225 | AB45: 340
A46: =IF(COUNTRY_INFO!A46=0," ",COUNTRY_INFO!A46) -> Congo | B46: =IF(COUNTRY_INFO!B46=0," ",COUNTRY_INFO!B46) -> Pointe-Noire | C46: =IF(COUNTRY_INFO!C46=0," ",COUNTRY_INFO!C46) -> Lumumba | D46: =IF(OR(COUNTRY_INFO!$U$9:$U$1000="T3 (ALB/MBD)",COUNTRY_INFO!$V$9:$V$1000="T3 (ALB/MBD)"), "T3 (ALB/MBD)", " ") -> T3 (ALB/MBD) | E46: ALB | F46: janvier 2023 | H46: 39824 | I46: 299 | J46: 40123 | L46: 30608 | M46: 299 | N46: 30907 | P46: 76.85817597 | Q46: 100 | R46: 77.03063081 | T46: =COUNTRY_INFO!AP46 -> 0 | W46: 39824 | X46: 299 | Y46: 40123 | AA46: 30608 | AB46: 299
A47: =IF(COUNTRY_INFO!A47=0," ",COUNTRY_INFO!A47) -> Congo | B47: =IF(COUNTRY_INFO!B47=0," ",COUNTRY_INFO!B47) -> Pointe-Noire | C47: =IF(COUNTRY_INFO!C47=0," ",COUNTRY_INFO!C47) -> Mongo-Poukou | D47: =IF(OR(COUNTRY_INFO!$U$9:$U$1000="T3 (ALB/MBD)",COUNTRY_INFO!$V$9:$V$1000="T3 (ALB/MBD)"), "T3 (ALB/MBD)", " ") -> T3 (ALB/MBD) | E47: ALB | F47: janvier 2023 | H47: 62772 | I47: 586 | J47: 63358 | L47: 53824 | M47: 586 | N47: 54410 | P47: 85.74523673 | Q47: 100 | R47: 85.87707945 | T47: =COUNTRY_INFO!AP47 -> 0 | W47: 62772 | X47: 586 | Y47: 63358 | AA47: 53824 | AB47: 586
A48: =IF(COUNTRY_INFO!A48=0," ",COUNTRY_INFO!A48) -> Congo | B48: =IF(COUNTRY_INFO!B48=0," ",COUNTRY_INFO!B48) -> Pointe-Noire | C48: =IF(COUNTRY_INFO!C48=0," ",COUNTRY_INFO!C48) -> Mvoumvou | D48: =IF(OR(COUNTRY_INFO!$U$9:$U$1000="T3 (ALB/MBD)",COUNTRY_INFO!$V$9:$V$1000="T3 (ALB/MBD)"), "T3 (ALB/MBD)", " ") -> T3 (ALB/MBD) | E48: ALB | F48: janvier 2023 | H48: 14415 | I48: 172 | J48: 14587 | L48: 13607 | M48: 172 | N48: 13779 | P48: 94.39472771 | Q48: 100 | R48: 94.46082128 | T48: =COUNTRY_INFO!AP48 -> 0 | W48: 14415 | X48: 172 | Y48: 14587 | AA48: 13607 | AB48: 172
A49: =IF(COUNTRY_INFO!A49=0," ",COUNTRY_INFO!A49) -> Congo | B49: =IF(COUNTRY_INFO!B49=0," ",COUNTRY_INFO!B49) -> Pointe-Noire | C49: =IF(COUNTRY_INFO!C49=0," ",COUNTRY_INFO!C49) -> Ngoyo | D49: =IF(OR(COUNTRY_INFO!$U$9:$U$1000="T3 (ALB/MBD)",COUNTRY_INFO!$V$9:$V$1000="T3 (ALB/MBD)"), "T3 (ALB/MBD)", " ") -> T3 (ALB/MBD) | E49: ALB | F49: janvier 2023 | H49: 54213 | I49: 318 | J49: 54531 | L49: 41096 | M49: 318 | N49: 41414 | P49: 75.80469629 | Q49: 100 | R49: 75.9457923 | T49: =COUNTRY_INFO!AP49 -> 0 | W49: 54213 | X49: 318 | Y49: 54531 | AA49: 41096 | AB49: 318
A50: =IF(COUNTRY_INFO!A50=0," ",COUNTRY_INFO!A50) -> Congo | B50: =IF(COUNTRY_INFO!B50=0," ",COUNTRY_INFO!B50) -> Pointe-Noire | C50: =IF(COUNTRY_INFO!C50=0," ",COUNTRY_INFO!C50) -> Tchiamba Nzassi | D50: =IF(OR(COUNTRY_INFO!$U$9:$U$1000="T3 (ALB/MBD)",COUNTRY_INFO!$V$9:$V$1000="T3 (ALB/MBD)"), "T3 (ALB/MBD)", " ") -> T3 (ALB/MBD) | E50: ALB | F50: janvier 2023 | H50: 3544 | I50: 116 | J50: 3660 | L50: 3495 | M50: 116 | N50: 3611 | P50: 98.61738149 | Q50: 100 | R50: 98.66120219 | T50: =COUNTRY_INFO!AP50 -> 0 | W50: 3544 | X50: 116 | Y50: 3660 | AA50: 3495 | AB50: 116
A51: =IF(COUNTRY_INFO!A51=0," ",COUNTRY_INFO!A51) -> Congo | B51: =IF(COUNTRY_INFO!B51=0," ",COUNTRY_INFO!B51) -> Pointe-Noire | C51: =IF(COUNTRY_INFO!C51=0," ",COUNTRY_INFO!C51) -> Tie-Tie | D51: =IF(OR(COUNTRY_INFO!$U$9:$U$1000="T3 (ALB/MBD)",COUNTRY_INFO!$V$9:$V$1000="T3 (ALB/MBD)"), "T3 (ALB/MBD)", " ") -> T3 (ALB/MBD) | E51: ALB | F51: janvier 2023 | H51: 44379 | I51: 367 | J51: 44746 | L51: 40928 | M51: 367 | N51: 41295 | P51: 92.22379954 | Q51: 100 | R51: 92.28757878 | T51: =COUNTRY_INFO!AP51 -> 0 | W51: 44379 | X51: 367 | Y51: 44746 | AA51: 40928 | AB51: 367
A52: =IF(COUNTRY_INFO!A52=0," ",COUNTRY_INFO!A52) -> Congo | B52: =IF(COUNTRY_INFO!B52=0," ",COUNTRY_INFO!B52) -> Pool | C52: =IF(COUNTRY_INFO!C52=0," ",COUNTRY_INFO!C52) -> Boko | D52: =IF(OR(COUNTRY_INFO!$U$9:$U$1000="T3 (ALB/MBD)",COUNTRY_INFO!$V$9:$V$1000="T3 (ALB/MBD)"), "T3 (ALB/MBD)", " ") -> T3 (ALB/MBD) | E52: ALB | F52: janvier 2023 | H52: 9523 | I52: 147 | J52: 9670 | L52: 5786 | M52: 147 | N52: 5933 | P52: 60.75816444 | Q52: 100 | R52: 61.35470527 | T52: =COUNTRY_INFO!AP52 -> 0 | W52: 9523 | X52: 147 | Y52: 9670 | AA52: 5786 | AB52: 147
A53: =IF(COUNTRY_INFO!A53=0," ",COUNTRY_INFO!A53) -> Congo | B53: =IF(COUNTRY_INFO!B53=0," ",COUNTRY_INFO!B53) -> Pool | C53: =IF(COUNTRY_INFO!C53=0," ",COUNTRY_INFO!C53) -> Goma tsétsé | D53: =IF(OR(COUNTRY_INFO!$U$9:$U$1000="T3 (ALB/MBD)",COUNTRY_INFO!$V$9:$V$1000="T3 (ALB/MBD)"), "T3 (ALB/MBD)", " ") -> T3 (ALB/MBD) | E53: ALB | F53: janvier 2023 | H53: 8351 | I53: 92 | J53: 8443 | L53: 3996 | M53: 92 | N53: 4088 | P53: 47.85055682 | Q53: 100 | R53: 48.41880848 | T53: =COUNTRY_INFO!AP53 -> 0 | W53: 8351 | X53: 92 | Y53: 8443 | AA53: 3996 | AB53: 92
A54: =IF(COUNTRY_INFO!A54=0," ",COUNTRY_INFO!A54) -> Congo | B54: =IF(COUNTRY_INFO!B54=0," ",COUNTRY_INFO!B54) -> Pool | C54: =IF(COUNTRY_INFO!C54=0," ",COUNTRY_INFO!C54) -> Ignié | D54: =IF(OR(COUNTRY_INFO!$U$9:$U$1000="T3 (ALB/MBD)",COUNTRY_INFO!$V$9:$V$1000="T3 (ALB/MBD)"), "T3 (ALB/MBD)", " ") -> T3 (ALB/MBD) | E54: ALB | F54: janvier 2023 | H54: =W54 -> 17058 | I54: =X54 -> 110 | J54: 17168 | L54: =AA54 -> 19167 | M54: =AB54 -> 110 | N54: 19277 | P54: 112.3637003 | Q54: 100 | R54: 112.2844828 | T54: =COUNTRY_INFO!AP54 -> x | W54: 17058 | X54: 110 | Y54: 17168 | AA54: 19167 | AB54: 110
A55: =IF(COUNTRY_INFO!A55=0," ",COUNTRY_INFO!A55) -> Congo | B55: =IF(COUNTRY_INFO!B55=0," ",COUNTRY_INFO!B55) -> Pool | C55: =IF(COUNTRY_INFO!C55=0," ",COUNTRY_INFO!C55) -> Kindamba | D55: =IF(OR(COUNTRY_INFO!$U$9:$U$1000="T3 (ALB/MBD)",COUNTRY_INFO!$V$9:$V$1000="T3 (ALB/MBD)"), "T3 (ALB/MBD)", " ") -> T3 (ALB/MBD) | E55: ALB | F55: janvier 2023 | H55: 9132 | I55: 127 | J55: 9259 | L55: 7890 | M55: 127 | N55: 8017 | P55: 86.39947438 | Q55: 100 | R55: 86.58602441 | T55: =COUNTRY_INFO!AP55 -> 0 | W55: 9132 | X55: 127 | Y55: 9259 | AA55: 7890 | AB55: 127
A56: =IF(COUNTRY_INFO!A56=0," ",COUNTRY_INFO!A56) -> Congo | B56: =IF(COUNTRY_INFO!B56=0," ",COUNTRY_INFO!B56) -> Pool | C56: =IF(COUNTRY_INFO!C56=0," ",COUNTRY_INFO!C56) -> Kinkala | D56: =IF(OR(COUNTRY_INFO!$U$9:$U$1000="T3 (ALB/MBD)",COUNTRY_INFO!$V$9:$V$1000="T3 (ALB/MBD)"), "T3 (ALB/MBD)", " ") -> T3 (ALB/MBD) | E56: ALB | F56: janvier 2023 | H56: 11401 | I56: 161 | J56: 11562 | L56: 7868 | M56: 161 | N56: 8029 | P56: 69.01149022 | Q56: 100 | R56: 69.44300294 | T56: =COUNTRY_INFO!AP56 -> 0 | W56: 11401 | X56: 161 | Y56: 11562 | AA56: 7868 | AB56: 161
A57: =IF(COUNTRY_INFO!A57=0," ",COUNTRY_INFO!A57) -> Congo | B57: =IF(COUNTRY_INFO!B57=0," ",COUNTRY_INFO!B57) -> Pool | C57: =IF(COUNTRY_INFO!C57=0," ",COUNTRY_INFO!C57) -> Kintélé | D57: =IF(OR(COUNTRY_INFO!$U$9:$U$1000="T3 (ALB/MBD)",COUNTRY_INFO!$V$9:$V$1000="T3 (ALB/MBD)"), "T3 (ALB/MBD)", " ") -> T3 (ALB/MBD) | E57: ALB | F57: janvier 2023 | H57: 7874 | I57: 16 | J57: 7890 | L57: 10103 | M57: 16 | N57: 10119 | P57: 128.3083566 | Q57: 100 | R57: 128.2509506 | T57: =COUNTRY_INFO!AP57 -> 0 | W57: 4825 | X57: 16 | Y57: 4841 | AA57: 10103 | AB57: 16
A58: =IF(COUNTRY_INFO!A58=0," ",COUNTRY_INFO!A58) -> Congo | B58: =IF(COUNTRY_INFO!B58=0," ",COUNTRY_INFO!B58) -> Pool | C58: =IF(COUNTRY_INFO!C58=0," ",COUNTRY_INFO!C58) -> Mindouli | D58: =IF(OR(COUNTRY_INFO!$U$9:$U$1000="T3 (ALB/MBD)",COUNTRY_INFO!$V$9:$V$1000="T3 (ALB/MBD)"), "T3 (ALB/MBD)", " ") -> T3 (ALB/MBD) | E58: ALB | F58: janvier 2023 | H58: 11652 | I58: 185 | J58: 11837 | L58: 10456 | M58: 185 | N58: 10641 | P58: 89.7356677 | Q58: 100 | R58: 89.89608854 | T58: =COUNTRY_INFO!AP58 -> 0 | W58: 11652 | X58: 185 | Y58: 11837 | AA58: 10456 | AB58: 185
A59: =IF(COUNTRY_INFO!A59=0," ",COUNTRY_INFO!A59) -> Congo | B59: =IF(COUNTRY_INFO!B59=0," ",COUNTRY_INFO!B59) -> Sangha | C59: =IF(COUNTRY_INFO!C59=0," ",COUNTRY_INFO!C59) -> Ouesso | D59: =IF(OR(COUNTRY_INFO!$U$9:$U$1000="T3 (ALB/MBD)",COUNTRY_INFO!$V$9:$V$1000="T3 (ALB/MBD)"), "T3 (ALB/MBD)", " ") -> T3 (ALB/MBD) | E59: ALB | F59: janvier 2023 | H59: =W59 -> 20546 | I59: =X59 -> 395 | J59: 20941 | L59: =AA59 -> 19924 | M59: =AB59 -> 395 | N59: 20319 | P59: 96.97264674 | Q59: 100 | R59: 97.02975025 | T59: =COUNTRY_INFO!AP59 -> x | W59: 20546 | X59: 395 | Y59: 20941 | AA59: 19924 | AB59: 395
A60: =IF(COUNTRY_INFO!A60=0," ",COUNTRY_INFO!A60) -> Congo | B60: =IF(COUNTRY_INFO!B60=0," ",COUNTRY_INFO!B60) -> Sangha | C60: =IF(COUNTRY_INFO!C60=0," ",COUNTRY_INFO!C60) -> Sembé-Souanké | D60: =IF(OR(COUNTRY_INFO!$U$9:$U$1000="T3 (ALB/MBD)",COUNTRY_INFO!$V$9:$V$1000="T3 (ALB/MBD)"), "T3 (ALB/MBD)", " ") -> T3 (ALB/MBD) | E60: ALB | F60: janvier 2023 | H60: 9375 | I60: 67 | J60: 9442 | L60: 6773 | M60: 67 | N60: 6840 | P60: 72.24533333 | Q60: 100 | R60: 72.44227918 | T60: =COUNTRY_INFO!AP60 -> x | W60: 9375 | X60: 67 | Y60: 9442 | AA60: 6773 | AB60: 67

Sheet T3_R2
A1: T 3 - Albendazole (ALB) ou Mebendazole (MBD) - Tournée 2
A2: Structure administrative, population nécessitant une chimioprévention par groupe d'âge, population traitée par groupe d'âge et couverture
A4: TOTAL | G4: =SUM(G$9:G$1000) -> 0 | H4: 0 | I4: 0 | J4: 0 | K4: 0 | L4: 0 | M4: 0 | N4: 0 | O4: =IF(G4<>0, IF(K4/G4*100=0, "-", K4/G4*100), " ") ->  | P4: =IF(H4<>0, IF(L4/H4*100=0, "-", L4/H4*100), " ") ->  | Q4: =IF(I4<>0, IF(M4/I4*100=0, "-", M4/I4*100), " ") ->  | R4: =IF(J4<>0, IF(N4/J4*100=0, "-", N4/J4*100), " ") -> 
A6: Structure administrative du pays | D6: Mise en oeuvre de la CP | E6: Médica-ment | F6: Date | G6: Population ciblée pour T3 | K6: Population traitée | O6: Couverture du Programme (%)
A7: Pays | B7: Région/Département | C7: District | G7: EAPréS | H7: EAS | I7: Adultes | J7: Total | K7: EAPréS | L7: EAS | M7: Adultes | N7: Total | O7: EAPréS | P7: EAS | Q7: Adultes | R7: Total
A9: =IF(COUNTRY_INFO!A9=0," ",COUNTRY_INFO!A9) -> Congo | B9: =IF(COUNTRY_INFO!B9=0," ",COUNTRY_INFO!B9) -> Bouenza | C9: =IF(COUNTRY_INFO!C9=0," ",COUNTRY_INFO!C9) -> Loudima | D9: =IF(AND(COUNTRY_INFO!$U$9:$U$1000="T3 (ALB/MBD)",COUNTRY_INFO!$V$9:$V$1000="T3 (ALB/MBD)"), "T3 (ALB/MBD)", " ") ->  | J9: =SUM(G9:I9) -> 0 | N9: =SUM(K9:M9) -> 0 | O9: =IF(G9<>0, IF(K9/G9*100=0, "-", K9/G9*100), " ") ->  | P9: =IF(H9<>0, IF(L9/H9*100=0, "-", L9/H9*100), " ") ->  | Q9: =IF(I9<>0, IF(M9/I9*100=0, "-", M9/I9*100), " ") ->  | R9: =IF(J9<>0, IF(N9/J9*100=0, "-", N9/J9*100), " ") -> 
A10: =IF(COUNTRY_INFO!A10=0," ",COUNTRY_INFO!A10) -> Congo | B10: =IF(COUNTRY_INFO!B10=0," ",COUNTRY_INFO!B10) -> Bouenza | C10: =IF(COUNTRY_INFO!C10=0," ",COUNTRY_INFO!C10) -> Loutété | D10: =IF(AND(COUNTRY_INFO!$U$9:$U$1000="T3 (ALB/MBD)",COUNTRY_INFO!$V$9:$V$1000="T3 (ALB/MBD)"), "T3 (ALB/MBD)", " ") ->  | J10: =SUM(G10:I10) -> 0 | N10: =SUM(K10:M10) -> 0 | O10: =IF(G10<>0, IF(K10/G10*100=0, "-", K10/G10*100), " ") ->  | P10: =IF(H10<>0, IF(L10/H10*100=0, "-", L10/H10*100), " ") ->  | Q10: =IF(I10<>0, IF(M10/I10*100=0, "-", M10/I10*100), " ") ->  | R10: =IF(J10<>0, IF(N10/J10*100=0, "-", N10/J10*100), " ") -> 
A11: =IF(COUNTRY_INFO!A11=0," ",COUNTRY_INFO!A11) -> Congo | B11: =IF(COUNTRY_INFO!B11=0," ",COUNTRY_INFO!B11) -> Bouenza | C11: =IF(COUNTRY_INFO!C11=0," ",COUNTRY_INFO!C11) -> Madingou | D11: =IF(AND(COUNTRY_INFO!$U$9:$U$1000="T3 (ALB/MBD)",COUNTRY_INFO!$V$9:$V$1000="T3 (ALB/MBD)"), "T3 (ALB/MBD)", " ") ->  | J11: 0 | N11: 0
A12: =IF(COUNTRY_INFO!A12=0," ",COUNTRY_INFO!A12) -> Congo | B12: =IF(COUNTRY_INFO!B12=0," ",COUNTRY_INFO!B12) -> Bouenza | C12: =IF(COUNTRY_INFO!C12=0," ",COUNTRY_INFO!C12) -> Mouyondzi | D12: =IF(AND(COUNTRY_INFO!$U$9:$U$1000="T3 (ALB/MBD)",COUNTRY_INFO!$V$9:$V$1000="T3 (ALB/MBD)"), "T3 (ALB/MBD)", " ") ->  | J12: 0 | N12: 0
A13: =IF(COUNTRY_INFO!A13=0," ",COUNTRY_INFO!A13) -> Congo | B13: =IF(COUNTRY_INFO!B13=0," ",COUNTRY_INFO!B13) -> Bouenza | C13: =IF(COUNTRY_INFO!C13=0," ",COUNTRY_INFO!C13) -> Nkayi | D13: =IF(AND(COUNTRY_INFO!$U$9:$U$1000="T3 (ALB/MBD)",COUNTRY_INFO!$V$9:$V$1000="T3 (ALB/MBD)"), "T3 (ALB/MBD)", " ") ->  | J13: 0 | N13: 0
A14: =IF(COUNTRY_INFO!A14=0," ",COUNTRY_INFO!A14) -> Congo | B14: =IF(COUNTRY_INFO!B14=0," ",COUNTRY_INFO!B14) -> Brazzaville | C14: =IF(COUNTRY_INFO!C14=0," ",COUNTRY_INFO!C14) -> Bacongo | D14: =IF(AND(COUNTRY_INFO!$U$9:$U$1000="T3 (ALB/MBD)",COUNTRY_INFO!$V$9:$V$1000="T3 (ALB/MBD)"), "T3 (ALB/MBD)", " ") ->  | J14: 0 | N14: 0
A15: =IF(COUNTRY_INFO!A15=0," ",COUNTRY_INFO!A15) -> Congo | B15: =IF(COUNTRY_INFO!B15=0," ",COUNTRY_INFO!B15) -> Brazzaville | C15: =IF(COUNTRY_INFO!C15=0," ",COUNTRY_INFO!C15) -> Djiri | D15: =IF(AND(COUNTRY_INFO!$U$9:$U$1000="T3 (ALB/MBD)",COUNTRY_INFO!$V$9:$V$1000="T3 (ALB/MBD)"), "T3 (ALB/MBD)", " ") ->  | J15: 0 | N15: 0
A16: =IF(COUNTRY_INFO!A16=0," ",COUNTRY_INFO!A16) -> Congo | B16: =IF(COUNTRY_INFO!B16=0," ",COUNTRY_INFO!B16) -> Brazzaville | C16: =IF(COUNTRY_INFO!C16=0," ",COUNTRY_INFO!C16) -> Île Mbamou | D16: =IF(AND(COUNTRY_INFO!$U$9:$U$1000="T3 (ALB/MBD)",COUNTRY_INFO!$V$9:$V$1000="T3 (ALB/MBD)"), "T3 (ALB/MBD)", " ") ->  | J16: 0 | N16: 0
A17: =IF(COUNTRY_INFO!A17=0," ",COUNTRY_INFO!A17) -> Congo | B17: =IF(COUNTRY_INFO!B17=0," ",COUNTRY_INFO!B17) -> Brazzaville | C17: =IF(COUNTRY_INFO!C17=0," ",COUNTRY_INFO!C17) -> Madibou | D17: =IF(AND(COUNTRY_INFO!$U$9:$U$1000="T3 (ALB/MBD)",COUNTRY_INFO!$V$9:$V$1000="T3 (ALB/MBD)"), "T3 (ALB/MBD)", " ") ->  | J17: 0 | N17: 0
A18: =IF(COUNTRY_INFO!A18=0," ",COUNTRY_INFO!A18) -> Congo | B18: =IF(COUNTRY_INFO!B18=0," ",COUNTRY_INFO!B18) -> Brazzaville | C18: =IF(COUNTRY_INFO!C18=0," ",COUNTRY_INFO!C18) -> Makélékélé | D18: =IF(AND(COUNTRY_INFO!$U$9:$U$1000="T3 (ALB/MBD)",COUNTRY_INFO!$V$9:$V$1000="T3 (ALB/MBD)"), "T3 (ALB/MBD)", " ") ->  | J18: 0 | N18: 0
A19: =IF(COUNTRY_INFO!A19=0," ",COUNTRY_INFO!A19) -> Congo | B19: =IF(COUNTRY_INFO!B19=0," ",COUNTRY_INFO!B19) -> Brazzaville | C19: =IF(COUNTRY_INFO!C19=0," ",COUNTRY_INFO!C19) -> Mfilou | D19: =IF(AND(COUNTRY_INFO!$U$9:$U$1000="T3 (ALB/MBD)",COUNTRY_INFO!$V$9:$V$1000="T3 (ALB/MBD)"), "T3 (ALB/MBD)", " ") ->  | J19: 0 | N19: 0
A20: =IF(COUNTRY_INFO!A20=0," ",COUNTRY_INFO!A20) -> Congo | B20: =IF(COUNTRY_INFO!B20=0," ",COUNTRY_INFO!B20) -> Brazzaville | C20: =IF(COUNTRY_INFO!C20=0," ",COUNTRY_INFO!C20) -> Moungali | D20: =IF(AND(COUNTRY_INFO!$U$9:$U$1000="T3 (ALB/MBD)",COUNTRY_INFO!$V$9:$V$1000="T3 (ALB/MBD)"), "T3 (ALB/MBD)", " ") ->  | J20: 0 | N20: 0
A21: =IF(COUNTRY_INFO!A21=0," ",COUNTRY_INFO!A21) -> Congo | B21: =IF(COUNTRY_INFO!B21=0," ",COUNTRY_INFO!B21) -> Brazzaville | C21: =IF(COUNTRY_INFO!C21=0," ",COUNTRY_INFO!C21) -> Ouenzé | D21: =IF(AND(COUNTRY_INFO!$U$9:$U$1000="T3 (ALB/MBD)",COUNTRY_INFO!$V$9:$V$1000="T3 (ALB/MBD)"), "T3 (ALB/MBD)", " ") ->  | J21: 0 | N21: 0
A22: =IF(COUNTRY_INFO!A22=0," ",COUNTRY_INFO!A22) -> Congo | B22: =IF(COUNTRY_INFO!B22=0," ",COUNTRY_INFO!B22) -> Brazzaville | C22: =IF(COUNTRY_INFO!C22=0," ",COUNTRY_INFO!C22) -> Poto-Poto | D22: =IF(AND(COUNTRY_INFO!$U$9:$U$1000="T3 (ALB/MBD)",COUNTRY_INFO!$V$9:$V$1000="T3 (ALB/MBD)"), "T3 (ALB/MBD)", " ") ->  | J22: 0 | N22: 0
A23: =IF(COUNTRY_INFO!A23=0," ",COUNTRY_INFO!A23) -> Congo | B23: =IF(COUNTRY_INFO!B23=0," ",COUNTRY_INFO!B23) -> Brazzaville | C23: =IF(COUNTRY_INFO!C23=0," ",COUNTRY_INFO!C23) -> Talangaî | D23: =IF(AND(COUNTRY_INFO!$U$9:$U$1000="T3 (ALB/MBD)",COUNTRY_INFO!$V$9:$V$1000="T3 (ALB/MBD)"), "T3 (ALB/MBD)", " ") ->  | J23: 0 | N23: 0
A24: =IF(COUNTRY_INFO!A24=0," ",COUNTRY_INFO!A24) -> Congo | B24: =IF(COUNTRY_INFO!B24=0," ",COUNTRY_INFO!B24) -> Cuvette | C24: =IF(COUNTRY_INFO!C24=0," ",COUNTRY_INFO!C24) -> Mossaka | D24: =IF(AND(COUNTRY_INFO!$U$9:$U$1000="T3 (ALB/MBD)",COUNTRY_INFO!$V$9:$V$1000="T3 (ALB/MBD)"), "T3 (ALB/MBD)", " ") ->  | J24: 0 | N24: 0
A25: =IF(COUNTRY_INFO!A25=0," ",COUNTRY_INFO!A25) -> Congo | B25: =IF(COUNTRY_INFO!B25=0," ",COUNTRY_INFO!B25) -> Cuvette | C25: =IF(COUNTRY_INFO!C25=0," ",COUNTRY_INFO!C25) -> Owando | D25: =IF(AND(COUNTRY_INFO!$U$9:$U$1000="T3 (ALB/MBD)",COUNTRY_INFO!$V$9:$V$1000="T3 (ALB/MBD)"), "T3 (ALB/MBD)", " ") ->  | J25: 0 | N25: 0
A26: =IF(COUNTRY_INFO!A26=0," ",COUNTRY_INFO!A26) -> Congo | B26: =IF(COUNTRY_INFO!B26=0," ",COUNTRY_INFO!B26) -> Cuvette | C26: =IF(COUNTRY_INFO!C26=0," ",COUNTRY_INFO!C26) -> Oyo-Alima | D26: =IF(AND(COUNTRY_INFO!$U$9:$U$1000="T3 (ALB/MBD)",COUNTRY_INFO!$V$9:$V$1000="T3 (ALB/MBD)"), "T3 (ALB/MBD)", " ") ->  | J26: 0 | N26: 0
A27: =IF(COUNTRY_INFO!A27=0," ",COUNTRY_INFO!A27) -> Congo | B27: =IF(COUNTRY_INFO!B27=0," ",COUNTRY_INFO!B27) -> Cuvette-Ouest | C27: =IF(COUNTRY_INFO!C27=0," ",COUNTRY_INFO!C27) -> Etoumbi | D27: =IF(AND(COUNTRY_INFO!$U$9:$U$1000="T3 (ALB/MBD)",COUNTRY_INFO!$V$9:$V$1000="T3 (ALB/MBD)"), "T3 (ALB/MBD)", " ") ->  | J27: 0 | N27: 0
A28: =IF(COUNTRY_INFO!A28=0," ",COUNTRY_INFO!A28) -> Congo | B28: =IF(COUNTRY_INFO!B28=0," ",COUNTRY_INFO!B28) -> Cuvette-Ouest | C28: =IF(COUNTRY_INFO!C28=0," ",COUNTRY_INFO!C28) -> Ewo | D28: =IF(AND(COUNTRY_INFO!$U$9:$U$1000="T3 (ALB/MBD)",COUNTRY_INFO!$V$9:$V$1000="T3 (ALB/MBD)"), "T3 (ALB/MBD)", " ") ->  | J28: 0 | N28: 0
A29: =IF(COUNTRY_INFO!A29=0," ",COUNTRY_INFO!A29) -> Congo | B29: =IF(COUNTRY_INFO!B29=0," ",COUNTRY_INFO!B29) -> Kouilou | C29: =IF(COUNTRY_INFO!C29=0," ",COUNTRY_INFO!C29) -> Hinda-Loango | D29: =IF(AND(COUNTRY_INFO!$U$9:$U$1000="T3 (ALB/MBD)",COUNTRY_INFO!$V$9:$V$1000="T3 (ALB/MBD)"), "T3 (ALB/MBD)", " ") ->  | J29: 0 | N29: 0
A30: =IF(COUNTRY_INFO!A30=0," ",COUNTRY_INFO!A30) -> Congo | B30: =IF(COUNTRY_INFO!B30=0," ",COUNTRY_INFO!B30) -> Kouilou | C30: =IF(COUNTRY_INFO!C30=0," ",COUNTRY_INFO!C30) -> Madingo Kayes-Nzambi | D30: =IF(AND(COUNTRY_INFO!$U$9:$U$1000="T3 (ALB/MBD)",COUNTRY_INFO!$V$9:$V$1000="T3 (ALB/MBD)"), "T3 (ALB/MBD)", " ") ->  | J30: 0 | N30: 0
A31: =IF(COUNTRY_INFO!A31=0," ",COUNTRY_INFO!A31) -> Congo | B31: =IF(COUNTRY_INFO!B31=0," ",COUNTRY_INFO!B31) -> Kouilou | C31: =IF(COUNTRY_INFO!C31=0," ",COUNTRY_INFO!C31) -> Mvouti-Kakamouéka | D31: =IF(AND(COUNTRY_INFO!$U$9:$U$1000="T3 (ALB/MBD)",COUNTRY_INFO!$V$9:$V$1000="T3 (ALB/MBD)"), "T3 (ALB/MBD)", " ") ->  | J31: 0 | N31: 0
A32: =IF(COUNTRY_INFO!A32=0," ",COUNTRY_INFO!A32) -> Congo | B32: =IF(COUNTRY_INFO!B32=0," ",COUNTRY_INFO!B32) -> Lékoumou | C32: =IF(COUNTRY_INFO!C32=0," ",COUNTRY_INFO!C32) -> Sibiti | D32: =IF(AND(COUNTRY_INFO!$U$9:$U$1000="T3 (ALB/MBD)",COUNTRY_INFO!$V$9:$V$1000="T3 (ALB/MBD)"), "T3 (ALB/MBD)", " ") ->  | J32: 0 | N32: 0
A33: =IF(COUNTRY_INFO!A33=0," ",COUNTRY_INFO!A33) -> Congo | B33: =IF(COUNTRY_INFO!B33=0," ",COUNTRY_INFO!B33) -> Lékoumou | C33: =IF(COUNTRY_INFO!C33=0," ",COUNTRY_INFO!C33) -> Zanaga | D33: =IF(AND(COUNTRY_INFO!$U$9:$U$1000="T3 (ALB/MBD)",COUNTRY_INFO!$V$9:$V$1000="T3 (ALB/MBD)"), "T3 (ALB/MBD)", " ") ->  | J33: 0 | N33: 0
A34: =IF(COUNTRY_INFO!A34=0," ",COUNTRY_INFO!A34) -> Congo | B34: =IF(COUNTRY_INFO!B34=0," ",COUNTRY_INFO!B34) -> Likouala | C34: =IF(COUNTRY_INFO!C34=0," ",COUNTRY_INFO!C34) -> Bétou | D34: =IF(AND(COUNTRY_INFO!$U$9:$U$1000="T3 (ALB/MBD)",COUNTRY_INFO!$V$9:$V$1000="T3 (ALB/MBD)"), "T3 (ALB/MBD)", " ") ->  | J34: 0 | N34: 0
A35: =IF(COUNTRY_INFO!A35=0," ",COUNTRY_INFO!A35) -> Congo | B35: =IF(COUNTRY_INFO!B35=0," ",COUNTRY_INFO!B35) -> Likouala | C35: =IF(COUNTRY_INFO!C35=0," ",COUNTRY_INFO!C35) -> Impfondo | D35: =IF(AND(COUNTRY_INFO!$U$9:$U$1000="T3 (ALB/MBD)",COUNTRY_INFO!$V$9:$V$1000="T3 (ALB/MBD)"), "T3 (ALB/MBD)", " ") ->  | J35: 0 | N35: 0
A36: =IF(COUNTRY_INFO!A36=0," ",COUNTRY_INFO!A36) -> Congo | B36: =IF(COUNTRY_INFO!B36=0," ",COUNTRY_INFO!B36) -> Niari | C36: =IF(COUNTRY_INFO!C36=0," ",COUNTRY_INFO!C36) -> Dolisie | D36: =IF(AND(COUNTRY_INFO!$U$9:$U$1000="T3 (ALB/MBD)",COUNTRY_INFO!$V$9:$V$1000="T3 (ALB/MBD)"), "T3 (ALB/MBD)", " ") ->  | J36: 0 | N36: 0
A37: =IF(COUNTRY_INFO!A37=0," ",COUNTRY_INFO!A37) -> Congo | B37: =IF(COUNTRY_INFO!B37=0," ",COUNTRY_INFO!B37) -> Niari | C37: =IF(COUNTRY_INFO!C37=0," ",COUNTRY_INFO!C37) -> Kibangou | D37: =IF(AND(COUNTRY_INFO!$U$9:$U$1000="T3 (ALB/MBD)",COUNTRY_INFO!$V$9:$V$1000="T3 (ALB/MBD)"), "T3 (ALB/MBD)", " ") ->  | J37: 0 | N37: 0
A38: =IF(COUNTRY_INFO!A38=0," ",COUNTRY_INFO!A38) -> Congo | B38: =IF(COUNTRY_INFO!B38=0," ",COUNTRY_INFO!B38) -> Niari | C38: =IF(COUNTRY_INFO!C38=0," ",COUNTRY_INFO!C38) -> Kimongo-Londela Nkayes | D38: =IF(AND(COUNTRY_INFO!$U$9:$U$1000="T3 (ALB/MBD)",COUNTRY_INFO!$V$9:$V$1000="T3 (ALB/MBD)"), "T3 (ALB/MBD)", " ") ->  | J38: 0 | N38: 0
A39: =IF(COUNTRY_INFO!A39=0," ",COUNTRY_INFO!A39) -> Congo | B39: =IF(COUNTRY_INFO!B39=0," ",COUNTRY_INFO!B39) -> Niari | C39: =IF(COUNTRY_INFO!C39=0," ",COUNTRY_INFO!C39) -> Mayoko | D39: =IF(AND(COUNTRY_INFO!$U$9:$U$1000="T3 (ALB/MBD)",COUNTRY_INFO!$V$9:$V$1000="T3 (ALB/MBD)"), "T3 (ALB/MBD)", " ") ->  | J39: 0 | N39: 0
A40: =IF(COUNTRY_INFO!A40=0," ",COUNTRY_INFO!A40) -> Congo | B40: =IF(COUNTRY_INFO!B40=0," ",COUNTRY_INFO!B40) -> Niari | C40: =IF(COUNTRY_INFO!C40=0," ",COUNTRY_INFO!C40) -> Mossendjo | D40: =IF(AND(COUNTRY_INFO!$U$9:$U$1000="T3 (ALB/MBD)",COUNTRY_INFO!$V$9:$V$1000="T3 (ALB/MBD)"), "T3 (ALB/MBD)", " ") ->  | J40: 0 | N40: 0
A41: =IF(COUNTRY_INFO!A41=0," ",COUNTRY_INFO!A41) -> Congo | B41: =IF(COUNTRY_INFO!B41=0," ",COUNTRY_INFO!B41) -> Plateaux | C41: =IF(COUNTRY_INFO!C41=0," ",COUNTRY_INFO!C41) -> Abala | D41: =IF(AND(COUNTRY_INFO!$U$9:$U$1000="T3 (ALB/MBD)",COUNTRY_INFO!$V$9:$V$1000="T3 (ALB/MBD)"), "T3 (ALB/MBD)", " ") ->  | J41: 0 | N41: 0
A42: =IF(COUNTRY_INFO!A42=0," ",COUNTRY_INFO!A42) -> Congo | B42: =IF(COUNTRY_INFO!B42=0," ",COUNTRY_INFO!B42) -> Plateaux | C42: =IF(COUNTRY_INFO!C42=0," ",COUNTRY_INFO!C42) -> Djambala-Lékana | D42: =IF(AND(COUNTRY_INFO!$U$9:$U$1000="T3 (ALB/MBD)",COUNTRY_INFO!$V$9:$V$1000="T3 (ALB/MBD)"), "T3 (ALB/MBD)", " ") ->  | J42: 0 | N42: 0
A43: =IF(COUNTRY_INFO!A43=0," ",COUNTRY_INFO!A43) -> Congo | B43: =IF(COUNTRY_INFO!B43=0," ",COUNTRY_INFO!B43) -> Plateaux | C43: =IF(COUNTRY_INFO!C43=0," ",COUNTRY_INFO!C43) -> Gamboma | D43: =IF(AND(COUNTRY_INFO!$U$9:$U$1000="T3 (ALB/MBD)",COUNTRY_INFO!$V$9:$V$1000="T3 (ALB/MBD)"), "T3 (ALB/MBD)", " ") ->  | J43: 0 | N43: 0
A44: =IF(COUNTRY_INFO!A44=0," ",COUNTRY_INFO!A44) -> Congo | B44: =IF(COUNTRY_INFO!B44=0," ",COUNTRY_INFO!B44) -> Plateaux | C44: =IF(COUNTRY_INFO!C44=0," ",COUNTRY_INFO!C44) -> Ngo Mpouya | D44: =IF(AND(COUNTRY_INFO!$U$9:$U$1000="T3 (ALB/MBD)",COUNTRY_INFO!$V$9:$V$1000="T3 (ALB/MBD)"), "T3 (ALB/MBD)", " ") ->  | J44: 0 | N44: 0
A45: =IF(COUNTRY_INFO!A45=0," ",COUNTRY_INFO!A45) -> Congo | B45: =IF(COUNTRY_INFO!B45=0," ",COUNTRY_INFO!B45) -> Pointe-Noire | C45: =IF(COUNTRY_INFO!C45=0," ",COUNTRY_INFO!C45) -> Loandjili | D45: =IF(AND(COUNTRY_INFO!$U$9:$U$1000="T3 (ALB/MBD)",COUNTRY_INFO!$V$9:$V$1000="T3 (ALB/MBD)"), "T3 (ALB/MBD)", " ") ->  | J45: 0 | N45: 0
A46: =IF(COUNTRY_INFO!A46=0," ",COUNTRY_INFO!A46) -> Congo | B46: =IF(COUNTRY_INFO!B46=0," ",COUNTRY_INFO!B46) -> Pointe-Noire | C46: =IF(COUNTRY_INFO!C46=0," ",COUNTRY_INFO!C46) -> Lumumba | D46: =IF(AND(COUNTRY_INFO!$U$9:$U$1000="T3 (ALB/MBD)",COUNTRY_INFO!$V$9:$V$1000="T3 (ALB/MBD)"), "T3 (ALB/MBD)", " ") ->  | J46: 0 | N46: 0
A47: =IF(COUNTRY_INFO!A47=0," ",COUNTRY_INFO!A47) -> Congo | B47: =IF(COUNTRY_INFO!B47=0," ",COUNTRY_INFO!B47) -> Pointe-Noire | C47: =IF(COUNTRY_INFO!C47=0," ",COUNTRY_INFO!C47) -> Mongo-Poukou | D47: =IF(AND(COUNTRY_INFO!$U$9:$U$1000="T3 (ALB/MBD)",COUNTRY_INFO!$V$9:$V$1000="T3 (ALB/MBD)"), "T3 (ALB/MBD)", " ") ->  | J47: 0 | N47: 0
A48: =IF(COUNTRY_INFO!A48=0," ",COUNTRY_INFO!A48) -> Congo | B48: =IF(COUNTRY_INFO!B48=0," ",COUNTRY_INFO!B48) -> Pointe-Noire | C48: =IF(COUNTRY_INFO!C48=0," ",COUNTRY_INFO!C48) -> Mvoumvou | D48: =IF(AND(COUNTRY_INFO!$U$9:$U$1000="T3 (ALB/MBD)",COUNTRY_INFO!$V$9:$V$1000="T3 (ALB/MBD)"), "T3 (ALB/MBD)", " ") ->  | J48: 0 | N48: 0
A49: =IF(COUNTRY_INFO!A49=0," ",COUNTRY_INFO!A49) -> Congo | B49: =IF(COUNTRY_INFO!B49=0," ",COUNTRY_INFO!B49) -> Pointe-Noire | C49: =IF(COUNTRY_INFO!C49=0," ",COUNTRY_INFO!C49) -> Ngoyo | D49: =IF(AND(COUNTRY_INFO!$U$9:$U$1000="T3 (ALB/MBD)",COUNTRY_INFO!$V$9:$V$1000="T3 (ALB/MBD)"), "T3 (ALB/MBD)", " ") ->  | J49: 0 | N49: 0
A50: =IF(COUNTRY_INFO!A50=0," ",COUNTRY_INFO!A50) -> Congo | B50: =IF(COUNTRY_INFO!B50=0," ",COUNTRY_INFO!B50) -> Pointe-Noire | C50: =IF(COUNTRY_INFO!C50=0," ",COUNTRY_INFO!C50) -> Tchiamba Nzassi | D50: =IF(AND(COUNTRY_INFO!$U$9:$U$1000="T3 (ALB/MBD)",COUNTRY_INFO!$V$9:$V$1000="T3 (ALB/MBD)"), "T3 (ALB/MBD)", " ") ->  | J50: 0 | N50: 0
A51: =IF(COUNTRY_INFO!A51=0," ",COUNTRY_INFO!A51) -> Congo | B51: =IF(COUNTRY_INFO!B51=0," ",COUNTRY_INFO!B51) -> Pointe-Noire | C51: =IF(COUNTRY_INFO!C51=0," ",COUNTRY_INFO!C51) -> Tie-Tie | D51: =IF(AND(COUNTRY_INFO!$U$9:$U$1000="T3 (ALB/MBD)",COUNTRY_INFO!$V$9:$V$1000="T3 (ALB/MBD)"), "T3 (ALB/MBD)", " ") ->  | J51: 0 | N51: 0
A52: =IF(COUNTRY_INFO!A52=0," ",COUNTRY_INFO!A52) -> Congo | B52: =IF(COUNTRY_INFO!B52=0," ",COUNTRY_INFO!B52) -> Pool | C52: =IF(COUNTRY_INFO!C52=0," ",COUNTRY_INFO!C52) -> Boko | D52: =IF(AND(COUNTRY_INFO!$U$9:$U$1000="T3 (ALB/MBD)",COUNTRY_INFO!$V$9:$V$1000="T3 (ALB/MBD)"), "T3 (ALB/MBD)", " ") ->  | J52: 0 | N52: 0
A53: =IF(COUNTRY_INFO!A53=0," ",COUNTRY_INFO!A53) -> Congo | B53: =IF(COUNTRY_INFO!B53=0," ",COUNTRY_INFO!B53) -> Pool | C53: =IF(COUNTRY_INFO!C53=0," ",COUNTRY_INFO!C53) -> Goma tsétsé | D53: =IF(AND(COUNTRY_INFO!$U$9:$U$1000="T3 (ALB/MBD)",COUNTRY_INFO!$V$9:$V$1000="T3 (ALB/MBD)"), "T3 (ALB/MBD)", " ") ->  | J53: 0 | N53: 0
A54: =IF(COUNTRY_INFO!A54=0," ",COUNTRY_INFO!A54) -> Congo | B54: =IF(COUNTRY_INFO!B54=0," ",COUNTRY_INFO!B54) -> Pool | C54: =IF(COUNTRY_INFO!C54=0," ",COUNTRY_INFO!C54) -> Ignié | D54: =IF(AND(COUNTRY_INFO!$U$9:$U$1000="T3 (ALB/MBD)",COUNTRY_INFO!$V$9:$V$1000="T3 (ALB/MBD)"), "T3 (ALB/MBD)", " ") ->  | J54: 0 | N54: 0
A55: =IF(COUNTRY_INFO!A55=0," ",COUNTRY_INFO!A55) -> Congo | B55: =IF(COUNTRY_INFO!B55=0," ",COUNTRY_INFO!B55) -> Pool | C55: =IF(COUNTRY_INFO!C55=0," ",COUNTRY_INFO!C55) -> Kindamba | D55: =IF(AND(COUNTRY_INFO!$U$9:$U$1000="T3 (ALB/MBD)",COUNTRY_INFO!$V$9:$V$1000="T3 (ALB/MBD)"), "T3 (ALB/MBD)", " ") ->  | J55: 0 | N55: 0
A56: =IF(COUNTRY_INFO!A56=0," ",COUNTRY_INFO!A56) -> Congo | B56: =IF(COUNTRY_INFO!B56=0," ",COUNTRY_INFO!B56) -> Pool | C56: =IF(COUNTRY_INFO!C56=0," ",COUNTRY_INFO!C56) -> Kinkala | D56: =IF(AND(COUNTRY_INFO!$U$9:$U$1000="T3 (ALB/MBD)",COUNTRY_INFO!$V$9:$V$1000="T3 (ALB/MBD)"), "T3 (ALB/MBD)", " ") ->  | J56: 0 | N56: 0
A57: =IF(COUNTRY_INFO!A57=0," ",COUNTRY_INFO!A57) -> Congo | B57: =IF(COUNTRY_INFO!B57=0," ",COUNTRY_INFO!B57) -> Pool | C57: =IF(COUNTRY_INFO!C57=0," ",COUNTRY_INFO!C57) -> Kintélé | D57: =IF(AND(COUNTRY_INFO!$U$9:$U$1000="T3 (ALB/MBD)",COUNTRY_INFO!$V$9:$V$1000="T3 (ALB/MBD)"), "T3 (ALB/MBD)", " ") ->  | J57: 0 | N57: 0
A58: =IF(COUNTRY_INFO!A58=0," ",COUNTRY_INFO!A58) -> Congo | B58: =IF(COUNTRY_INFO!B58=0," ",COUNTRY_INFO!B58) -> Pool | C58: =IF(COUNTRY_INFO!C58=0," ",COUNTRY_INFO!C58) -> Mindouli | D58: =IF(AND(COUNTRY_INFO!$U$9:$U$1000="T3 (ALB/MBD)",COUNTRY_INFO!$V$9:$V$1000="T3 (ALB/MBD)"), "T3 (ALB/MBD)", " ") ->  | J58: 0 | N58: 0
A59: =IF(COUNTRY_INFO!A59=0," ",COUNTRY_INFO!A59) -> Congo | B59: =IF(COUNTRY_INFO!B59=0," ",COUNTRY_INFO!B59) -> Sangha | C59: =IF(COUNTRY_INFO!C59=0," ",COUNTRY_INFO!C59) -> Ouesso | D59: =IF(AND(COUNTRY_INFO!$U$9:$U$1000="T3 (ALB/MBD)",COUNTRY_INFO!$V$9:$V$1000="T3 (ALB/MBD)"), "T3 (ALB/MBD)", " ") ->  | J59: 0 | N59: 0
A60: =IF(COUNTRY_INFO!A60=0," ",COUNTRY_INFO!A60) -> Congo | B60: =IF(COUNTRY_INFO!B60=0," ",COUNTRY_INFO!B60) -> Sangha | C60: =IF(COUNTRY_INFO!C60=0," ",COUNTRY_INFO!C60) -> Sembé-Souanké | D60: =IF(AND(COUNTRY_INFO!$U$9:$U$1000="T3 (ALB/MBD)",COUNTRY_INFO!$V$9:$V$1000="T3 (ALB/MBD)"), "T3 (ALB/MBD)", " ") ->  | J60: 0 | N60: 0

Sheet DISTRICT
A1: Nombre d'individus traités
A2: Structure administrative, population traitée par groupe d'âge et sexe
A4: TOTAL | D4: =SUM(D$9:D$1000) -> 1114335 | E4: =SUM(E$9:E$1000) -> 0 | F4: =SUM(F$9:F$1000) -> 0 | G4: =SUM(G$9:G$1000) -> 563572.1987 | H4: =SUM(H$9:H$1000) -> 563572.1987 | I4: =IF(D4>0, IF(H4/D4*100<>0, H4/D4*100, "-"),0) -> 50.57475523 | J4: =SUM(J$9:J$1000) -> 804412 | K4: =SUM(K$9:K$1000) -> 0 | L4: =SUM(L$9:L$1000) -> 0 | M4: =SUM(M$9:M$1000) -> 581959 | N4: =SUM(N$9:N$1000) -> 578767 | O4: =IF(J4>0, IF(N4/J4*100<>0, N4/J4*100, "-"),0) -> 71.94907585 | P4: =SUM(P$9:P$1000) -> 839886 | Q4: =SUM(Q$9:Q$1000) -> 0 | R4: =SUM(R$9:R$1000) -> 0 | S4: =SUM(S$9:S$1000) -> 1341869.638 | T4: =SUM(T$9:T$1000) -> 0 | V4: =SUM(V$9:V$1000) -> 382119.556 | X4: =SUM(X$9:X$1000) -> 382119.556 | Y4: =IF(P4>0, IF(X4/P4*100<>0, X4/P4*100, "-"),0) -> 45.49659787 | Z4: =SUM(Z$9:Z$1000) -> 482646.46 | AA4: 0 | AB4: 0 | AC4: 90964 | AD4: 62638.5 | AF4: 1077 | AH4: 63715.5 | AI4: =IF(Z4>0, IF(AH4/Z4*100<>0, AH4/Z4*100, "-"),0) -> 13.2012778
A6: Structure administrative du pays | D6: Population nécessitant la CP pour FL | E6: Population traitée pour la filariose lymphatique | J6: Population nécessitant la CP pour ONCHO | K6: Population traitée pour l'onchocercose | P6: Population nécessitant la CP pour STH | Q6: Population traitée pour les géohelminthiases | Z6: Population nécessitant la CP pour SCH | AA6: Population traitée pour la schistosomiase | AP6: =SUM(AP9:AP1000) -> 52267.9151 | AQ6: =SUM(AQ9:AQ1000) -> 333903.0866 | AR6: =SUM(AR9:AR1000) -> 853790.2219 | AS6: =SUM(AS9:AS1000) -> 1153057.261 | AT6: =SUM(AT9:AT1000) -> 2393018.485 | AU6: =COUNTIF(AU9:AU1000,"Y") -> 27 | AV6: =SUM(AV9:AV1000) -> 0 | AW6: 944461.9119 | AX6: 724751.1165 | AY6: =SUM(AY9:AY1000) -> 1669213.028 | AZ6: 0 | BA6: 520042.2409 | BB6: 719689.1165 | BC6: 1239731.357 | BD6: =IF(AT6<>0,BC6/AT6,0) -> 0.5180617557
A7: Pays | B7: Région/Département | C7: District | E7: Masculine | F7: Féminine | G7: Total traité | H7: Total traité ayant besoin de CP | I7: (%) | K7: Masculine | L7: Féminine | M7: Total traité | N7: Total traité ayant besoin de CP | O7: (%) | Q7: Masculine | R7: Féminine | S7: Total traité | T7: EAPréS traité ayant besoin de CP | U7: EAPréS (%) | V7: EAS traité ayant besoin de CP | W7: EAS (%) | X7: Total traité ayant besoin de CP | Y7: (%) | AA7: Masculine | AB7: Féminine | AC7: Total traité | AD7: EAS traité ayant besoin de CP | AE7: EAS (%) | AF7: Adultes traité ayant besoin de CP | AG7: Adultes (%) | AH7: Total traité ayant besoin de CP | AI7: (%) | AK7: LF | AL7: ONCHO | AM7: STH | AN7: SCH-SAC | AO7: SCH_Adults | AP7: <1 | AQ7: PreSAC | AR7: SAC | AS7: Adults | AT7: Total | AU7: Dis | AV7: PreSAC | AW7: SAC | AX7: Adults | AY7: Total | AZ7: PreSAC | BA7: SAC | BB7: Adults | BC7: Total | BD7: Coverage
A9: =IF(COUNTRY_INFO!A9=0," ",COUNTRY_INFO!A9) -> Congo | B9: =IF(COUNTRY_INFO!B9=0," ",COUNTRY_INFO!B9) -> Bouenza | C9: =IF(COUNTRY_INFO!C9=0," ",COUNTRY_INFO!C9) -> Loudima | D9: =COUNTRY_INFO!M9 -> 0 | G9: =MAX('MDA1'!M9,'MDA4'!U9) -> 0 | H9: =IF(AND(COUNTRY_INFO!H9>0,COUNTRY_INFO!H9<4),IF(D9>MAX('MDA1'!M9,'MDA4'!U9),MAX('MDA1'!M9,'MDA4'!U9),D9),0) -> 0 | I9: =IF(AND(COUNTRY_INFO!H9>0,COUNTRY_INFO!H9<4), IF(G9/D9*100<>0, IF(G9/D9*100>100,100,G9/D9*100), "-"),0) -> 0 | J9: =COUNTRY_INFO!N9 -> 16268 | M9: =MAX('MDA1'!M9,MAX('MDA3'!I9,'MDA3'!L9)+MAX('MDA3'!J9,'MDA3'!M9)) -> 10907 | N9: =IF(AND(COUNTRY_INFO!I9>0,COUNTRY_INFO!I9<4),IF(J9>MAX('MDA1'!M9,MAX('MDA3'!I9,'MDA3'!L9)+MAX('MDA3'!J9,'MDA3'!M9)),MAX('MDA1'!M9,MAX('MDA3'!I9,'MDA3'!L9)+MAX('MDA3'!J9,'MDA3'!M9)),J9),0) -> 10907 | O9: =IF(AND(COUNTRY_INFO!I9>0,COUNTRY_INFO!I9<4), IF(M9/J9*100<>0, IF(M9/J9*100>100,100,M9/J9*100), "-"),0) -> 67.04573396 | P9: =COUNTRY_INFO!O9 -> 0 | S9: =SUM(MAX('MDA4'!R9, 'T1'!L9, MAX(T3_R1!K9, T3_R2!K9)), MAX('MDA1'!K9, 'MDA4'!S9, 'T1'!M9, MAX(T3_R1!L9, T3_R2!L9)), MAX('MDA1'!L9, 'MDA4'!T9, 'T1'!N9, MAX(T3_R1!M9, T3_R2!M9))) -> 7178 | T9: =IF(AND(COUNTRY_INFO!J9>1,COUNTRY_INFO!J9<4),IF(COUNTRY_INFO!E9>MAX('MDA4'!R9,'T1'!L9,MAX(T3_R1!K9,T3_R2!K9)),MAX('MDA4'!R9,'T1'!L9,MAX(T3_R1!K9,T3_R2!K9)),COUNTRY_INFO!E9),0) -> 0 | U9: =IF(AND(COUNTRY_INFO!J9>1,COUNTRY_INFO!J9<4), IF(T9/COUNTRY_INFO!E9*100<>0, IF(T9/COUNTRY_INFO!E9*100>100,100,T9/COUNTRY_INFO!E9*100), "-"),0) -> 0 | V9: =IF(AND(COUNTRY_INFO!J9>1,COUNTRY_INFO!J9<4),IF(COUNTRY_INFO!F9>MAX('MDA1'!K9,'MDA4'!S9,'T1'!M9,MAX(T3_R1!L9,T3_R2!L9)),MAX('MDA1'!K9,'MDA4'!S9,'T1'!M9,MAX(T3_R1!L9,T3_R2!L9)),COUNTRY_INFO!F9),0) -> 0 | W9: =IF(AND(COUNTRY_INFO!J9>1,COUNTRY_INFO!J9<4), IF(V9/COUNTRY_INFO!F9*100<>0, IF(V9/COUNTRY_INFO!F9*100>100,100,V9/COUNTRY_INFO!F9*100), "-"),0) -> 0 | X9: =SUM(T9,V9) -> 0 | Y9: =IF(AND(COUNTRY_INFO!J9>1,COUNTRY_INFO!J9<4), IF(S9/P9*100<>0, IF(X9/P9*100>100,100,X9/P9*100), "-"),0) -> 0 | Z9: =COUNTRY_INFO!P9 -> 46544 | AC9: =MAX('T1'!L9,'T2'!J9)+MAX('T1'!M9,'T2'!K9)+MAX('T1'!N9,'T2'!L9) -> 7178 | AD9: =IF(COUNTRY_INFO!K9=1,IF(COUNTRY_INFO!F9*0.33>MAX('T1'!M9,'T2'!K9),MAX('T1'!M9,'T2'!K9),COUNTRY_INFO!F9*0.33),IF(COUNTRY_INFO!K9=2,IF(COUNTRY_INFO!F9*0.5>MAX('T1'!M9,'T2'!K9),MAX('T1'!M9,'T2'!K9),COUNTRY_INFO!F9*0.5),IF(COUNTRY_INFO!K9=3,IF(COUNTRY_INFO!F9>MAX('T1'!M9,'T2'!K9),MAX('T1'!M9,'T2'!K9),COUNTRY_INFO!F9),0))) -> 7099 | AE9: =IF(AND(COUNTRY_INFO!K9>0,COUNTRY_INFO!K9<4),IF(Z9>0,IF(COUNTRY_INFO!K9=1, AD9/(COUNTRY_INFO!F9*0.33)*100, IF(COUNTRY_INFO!K9=2, AD9/(COUNTRY_INFO!F9*0.5)*100, IF(COUNTRY_INFO!K9=3, AD9/COUNTRY_INFO!F9*100))),"-"),0) -> 48.49043716 | AF9: =IF(COUNTRY_INFO!K9=2,IF(COUNTRY_INFO!G9*0.2>MAX('T1'!N9,'T2'!L9),MAX('T1'!N9,'T2'!L9),COUNTRY_INFO!G9*0.2),IF(COUNTRY_INFO!K9=3,IF(COUNTRY_INFO!G9>MAX('T1'!N9,'T2'!L9),MAX('T1'!N9,'T2'!L9),COUNTRY_INFO!G9),0)) -> 79 | AG9: =IF(AND(COUNTRY_INFO!K9>0,COUNTRY_INFO!K9<4),IF(Z9>0,IF(COUNTRY_INFO!K9=1, 0, IF(COUNTRY_INFO!K9=2, AF9/(COUNTRY_INFO!G9*0.2)*100, IF(COUNTRY_INFO!K9=3, AF9/COUNTRY_INFO!G9*100))),"-"),0) -> 0.2476178536 | AH9: =SUM(AD9,AF9) -> 7178 | AI9: =IF(AND(COUNTRY_INFO!K9>0,COUNTRY_INFO!K9<4), IF(AC9/Z9*100<>0, IF(AH9/Z9*100>100,100,AH9/Z9*100), "-"),0) -> 15.42196631 | AK9: =IF(AND(D9<>0, D9<>"Inconnu",D9<>"Interrompu",D9<>"Non requis"),D9/COUNTRY_INFO!D9, 0) -> 0 | AL9: =IF(AND(J9<>0,J9<>"Inconnu",J9<>"Interrompu",J9<>"Non requis"),J9/COUNTRY_INFO!D9, 0) -> 0.2988079276 | AM9: =IF(AND(P9<>0,P9<>"Inconnu",P9<>"Non requis"),P9/(COUNTRY_INFO!E9+COUNTRY_INFO!F9), 0) -> 0 | AN9: =IF(AND(Z9<>0,Z9<>"Inconnu",Z9<>"Non requis"),IF(COUNTRY_INFO!K9=1,1,IF(COUNTRY_INFO!K9=2,0.5*COUNTRY_INFO!F9/(0.5*COUNTRY_INFO!F9+0.2*COUNTRY_INFO!G9),IF(COUNTRY_INFO!K9=3,COUNTRY_INFO!F9/(COUNTRY_INFO!F9+COUNTRY_INFO!G9)))),0) -> 0.3145410794 | AO9: =IF(AND(Z9<>0,Z9<>"Inconnu",Z9<>"Non requis"),IF(COUNTRY_INFO!K9=1,0,IF(COUNTRY_INFO!K9=2,0.2*COUNTRY_INFO!G9/(0.5*COUNTRY_INFO!F9+0.2*COUNTRY_INFO!G9),IF(COUNTRY_INFO!K9=3,COUNTRY_INFO!G9/(COUNTRY_INFO!F9+COUNTRY_INFO!G9)))),0) -> 0.6854589206 | AP9: =MAX(COUNTRY_INFO!D9*AK9*PROFILE!$G$7,COUNTRY_INFO!D9*AL9*PROFILE!$G$7) -> 483.1561576 | AQ9: =MAX(COUNTRY_INFO!D9*AK9*PROFILE!$G$8,COUNTRY_INFO!D9*AL9*PROFILE!$G$8,COUNTRY_INFO!D9*AM9*PROFILE!$G$8) -> 1877.325226 | AR9: =MAX(COUNTRY_INFO!D9*AK9*PROFILE!$G$9,COUNTRY_INFO!D9*AL9*PROFILE!$G$9,COUNTRY_INFO!D9*AM9*PROFILE!$G$9,IF(AND(DISTRICT!Z9<>"Inconnu",Z9<>"Non requis"),COUNTRY_INFO!P9*DISTRICT!AN9,0)) -> 14640 | AS9: =MAX(COUNTRY_INFO!D9*AK9*PROFILE!$G$10,COUNTRY_INFO!D9*AL9*PROFILE!$G$10,IF(AND(DISTRICT!Z9<>"Inconnu",Z9<>"Non requis"),COUNTRY_INFO!P9*DISTRICT!AO9,0)) -> 31904 | AT9: =SUM(AP9:AS9) -> 48904.48138 | AU9: =IF(COUNTIFS(AK9:AN9,">0")=0,0, IF(COUNTIFS(AK9:AN9,">0")<=IF(AND(OR(D9>=0,D9="Non requis",D9="Inconnu",D9="Interrompu"),D9>0,H9>0),1,0)+IF(AND(OR(J9>=0,J9="Non requis",J9="Inconnu",J9="Interrompu"),J9>0,N9>0),1,0)+IF(AND(OR(P9>=0,P9="Non requis",P9="Inconnu"),P9>0,X9>0),1,0)+IF(AND(OR(Z9>=0,Z9="Non requis",Z9="Inconnu"),Z9>0,AH9>0),1,0),"Y",0)) -> Y | AV9: =MAX('MDA4'!R9,'T1'!L9,'T2'!J9,T3_R1!K9,T3_R2!K9) -> 0 | AW9: =MAX('MDA1'!K9,'MDA4'!S9,'MDA3'!I9,'MDA3'!L9,'T1'!M9,'T2'!K9,T3_R1!L9,T3_R2!L9) -> 7099 | AX9: =MAX('MDA1'!L9,'MDA4'!T9,'MDA3'!J9,'MDA3'!M9,'T1'!N9,'T2'!L9,T3_R1!M9,T3_R2!M9) -> 7476.315359 | AY9: =SUM(AV9:AX9) -> 14575.31536 | AZ9: =MAX('MDA4'!R9,T9) -> 0 | BA9: =MAX('MDA1'!K9,'MDA4'!S9,'MDA3'!I9,'MDA3'!L9,V9,AD9) -> 7099 | BB9: =MAX('MDA1'!L9,'MDA4'!T9,'MDA3'!J9,'MDA3'!M9,AF9) -> 7476.315359 | BC9: =IF(AT9<SUM(AZ9:BB9), AT9,SUM(AZ9:BB9)) -> 14575.31536 | BD9: =IF(AT9<>0,BC9/AT9*100,0) -> 29.80363956
A10: =IF(COUNTRY_INFO!A10=0," ",COUNTRY_INFO!A10) -> Congo | B10: =IF(COUNTRY_INFO!B10=0," ",COUNTRY_INFO!B10) -> Bouenza | C10: =IF(COUNTRY_INFO!C10=0," ",COUNTRY_INFO!C10) -> Loutété | D10: =COUNTRY_INFO!M10 -> 60094 | G10: =MAX('MDA1'!M10,'MDA4'!U10) -> 27844 | H10: =IF(AND(COUNTRY_INFO!H10>0,COUNTRY_INFO!H10<4),IF(D10>MAX('MDA1'!M10,'MDA4'!U10),MAX('MDA1'!M10,'MDA4'!U10),D10),0) -> 27844 | I10: =IF(AND(COUNTRY_INFO!H10>0,COUNTRY_INFO!H10<4), IF(G10/D10*100<>0, IF(G10/D10*100>100,100,G10/D10*100), "-"),0) -> 46.33407661 | J10: =COUNTRY_INFO!N10 -> 34171 | M10: =MAX('MDA1'!M10,MAX('MDA3'!I10,'MDA3'!L10)+MAX('MDA3'!J10,'MDA3'!M10)) -> 27844 | N10: =IF(AND(COUNTRY_INFO!I10>0,COUNTRY_INFO!I10<4),IF(J10>MAX('MDA1'!M10,MAX('MDA3'!I10,'MDA3'!L10)+MAX('MDA3'!J10,'MDA3'!M10)),MAX('MDA1'!M10,MAX('MDA3'!I10,'MDA3'!L10)+MAX('MDA3'!J10,'MDA3'!M10)),J10),0) -> 27844 | O10: =IF(AND(COUNTRY_INFO!I10>0,COUNTRY_INFO!I10<4), IF(M10/J10*100<>0, IF(M10/J10*100>100,100,M10/J10*100), "-"),0) -> 81.48429955 | P10: =COUNTRY_INFO!O10 -> 23094 | S10: =SUM(MAX('MDA4'!R10, 'T1'!L10, MAX(T3_R1!K10, T3_R2!K10)), MAX('MDA1'!K10, 'MDA4'!S10, 'T1'!M10, MAX(T3_R1!L10, T3_R2!L10)), MAX('MDA1'!L10, 'MDA4'!T10, 'T1'!N10, MAX(T3_R1!M10, T3_R2!M10))) -> 27844 | T10: =IF(AND(COUNTRY_INFO!J10>1,COUNTRY_INFO!J10<4),IF(COUNTRY_INFO!E10>MAX('MDA4'!R10,'T1'!L10,MAX(T3_R1!K10,T3_R2!K10)),MAX('MDA4'!R10,'T1'!L10,MAX(T3_R1!K10,T3_R2!K10)),COUNTRY_INFO!E10),0) -> 0 | U10: =IF(AND(COUNTRY_INFO!J10>1,COUNTRY_INFO!J10<4), IF(T10/COUNTRY_INFO!E10*100<>0, IF(T10/COUNTRY_INFO!E10*100>100,100,T10/COUNTRY_INFO!E10*100), "-"),0) -> - | V10: =IF(AND(COUNTRY_INFO!J10>1,COUNTRY_INFO!J10<4),IF(COUNTRY_INFO!F10>MAX('MDA1'!K10,'MDA4'!S10,'T1'!M10,MAX(T3_R1!L10,T3_R2!L10)),MAX('MDA1'!K10,'MDA4'!S10,'T1'!M10,MAX(T3_R1!L10,T3_R2!L10)),COUNTRY_INFO!F10),0) -> 7487.2516 | W10: =IF(AND(COUNTRY_INFO!J10>1,COUNTRY_INFO!J10<4), IF(V10/COUNTRY_INFO!F10*100<>0, IF(V10/COUNTRY_INFO!F10*100>100,100,V10/COUNTRY_INFO!F10*100), "-"),0) -> 46.33486973 | X10: =SUM(T10,V10) -> 7487.2516 | Y10: =IF(AND(COUNTRY_INFO!J10>1,COUNTRY_INFO!J10<4), IF(S10/P10*100<>0, IF(X10/P10*100>100,100,X10/P10*100), "-"),0) -> 32.42076557 | Z10: =COUNTRY_INFO!P10 -> 15122.5 | AC10: =MAX('T1'!L10,'T2'!J10)+MAX('T1'!M10,'T2'!K10)+MAX('T1'!N10,'T2'!L10) -> 6526 | AD10: =IF(COUNTRY_INFO!K10=1,IF(COUNTRY_INFO!F10*0.33>MAX('T1'!M10,'T2'!K10),MAX('T1'!M10,'T2'!K10),COUNTRY_INFO!F10*0.33),IF(COUNTRY_INFO!K10=2,IF(COUNTRY_INFO!F10*0.5>MAX('T1'!M10,'T2'!K10),MAX('T1'!M10,'T2'!K10),COUNTRY_INFO!F10*0.5),IF(COUNTRY_INFO!K10=3,IF(COUNTRY_INFO!F10>MAX('T1'!M10,'T2'!K10),MAX('T1'!M10,'T2'!K10),COUNTRY_INFO!F10),0))) -> 6474 | AE10: =IF(AND(COUNTRY_INFO!K10>0,COUNTRY_INFO!K10<4),IF(Z10>0,IF(COUNTRY_INFO!K10=1, AD10/(COUNTRY_INFO!F10*0.33)*100, IF(COUNTRY_INFO!K10=2, AD10/(COUNTRY_INFO!F10*0.5)*100, IF(COUNTRY_INFO!K10=3, AD10/COUNTRY_INFO!F10*100))),"-"),0) -> 80.12872084 | AF10: =IF(COUNTRY_INFO!K10=2,IF(COUNTRY_INFO!G10*0.2>MAX('T1'!N10,'T2'!L10),MAX('T1'!N10,'T2'!L10),COUNTRY_INFO!G10*0.2),IF(COUNTRY_INFO!K10=3,IF(COUNTRY_INFO!G10>MAX('T1'!N10,'T2'!L10),MAX('T1'!N10,'T2'!L10),COUNTRY_INFO!G10),0)) -> 52 | AG10: =IF(AND(COUNTRY_INFO!K10>0,COUNTRY_INFO!K10<4),IF(Z10>0,IF(COUNTRY_INFO!K10=1, 0, IF(COUNTRY_INFO!K10=2, AF10/(COUNTRY_INFO!G10*0.2)*100, IF(COUNTRY_INFO!K10=3, AF10/COUNTRY_INFO!G10*100))),"-"),0) -> 0.7383217379 | AH10: =SUM(AD10,AF10) -> 6526 | AI10: =IF(AND(COUNTRY_INFO!K10>0,COUNTRY_INFO!K10<4), IF(AC10/Z10*100<>0, IF(AH10/Z10*100>100,100,AH10/Z10*100), "-"),0) -> 43.15424037 | AK10: =IF(AND(D10<>0, D10<>"Inconnu",D10<>"Interrompu",D10<>"Non requis"),D10/COUNTRY_INFO!D10, 0) -> 1 | AL10: =IF(AND(J10<>0,J10<>"Inconnu",J10<>"Interrompu",J10<>"Non requis"),J10/COUNTRY_INFO!D10, 0) -> 0.5686258195 | AM10: =IF(AND(P10<>0,P10<>"Inconnu",P10<>"Non requis"),P10/(COUNTRY_INFO!E10+COUNTRY_INFO!F10), 0) -> 1 | AN10: =IF(AND(Z10<>0,Z10<>"Inconnu",Z10<>"Non requis"),IF(COUNTRY_INFO!K10=1,1,IF(COUNTRY_INFO!K10=2,0.5*COUNTRY_INFO!F10/(0.5*COUNTRY_INFO!F10+0.2*COUNTRY_INFO!G10),IF(COUNTRY_INFO!K10=3,COUNTRY_INFO!F10/(COUNTRY_INFO!F10+COUNTRY_INFO!G10)))),0) -> 0.5342701273 | AO10: =IF(AND(Z10<>0,Z10<>"Inconnu",Z10<>"Non requis"),IF(COUNTRY_INFO!K10=1,0,IF(COUNTRY_INFO!K10=2,0.2*COUNTRY_INFO!G10/(0.5*COUNTRY_INFO!F10+0.2*COUNTRY_INFO!G10),IF(COUNTRY_INFO!K10=3,COUNTRY_INFO!G10/(COUNTRY_INFO!F10+COUNTRY_INFO!G10)))),0) -> 0.4657298727 | AP10: =MAX(COUNTRY_INFO!D10*AK10*PROFILE!$G$7,COUNTRY_INFO!D10*AL10*PROFILE!$G$7) -> 1784.779084 | AQ10: =MAX(COUNTRY_INFO!D10*AK10*PROFILE!$G$8,COUNTRY_INFO!D10*AL10*PROFILE!$G$8,COUNTRY_INFO!D10*AM10*PROFILE!$G$8) -> 6934.84031 | AR10: =MAX(COUNTRY_INFO!D10*AK10*PROFILE!$G$9,COUNTRY_INFO!D10*AL10*PROFILE!$G$9,COUNTRY_INFO!D10*AM10*PROFILE!$G$9,IF(AND(DISTRICT!Z10<>"Inconnu",Z10<>"Non requis"),COUNTRY_INFO!P10*DISTRICT!AN10,0)) -> 16159.28181 | AS10: =MAX(COUNTRY_INFO!D10*AK10*PROFILE!$G$10,COUNTRY_INFO!D10*AL10*PROFILE!$G$10,IF(AND(DISTRICT!Z10<>"Inconnu",Z10<>"Non requis"),COUNTRY_INFO!P10*DISTRICT!AO10,0)) -> 35215.0988 | AT10: =SUM(AP10:AS10) -> 60094 | AU10: Y | AV10: =MAX('MDA4'!R10,'T1'!L10,'T2'!J10,T3_R1!K10,T3_R2!K10) -> 0 | AW10: =MAX('MDA1'!K10,'MDA4'!S10,'MDA3'!I10,'MDA3'!L10,'T1'!M10,'T2'!K10,T3_R1!L10,T3_R2!L10) -> 7487.2516 | AX10: =MAX('MDA1'!L10,'MDA4'!T10,'MDA3'!J10,'MDA3'!M10,'T1'!N10,'T2'!L10,T3_R1!M10,T3_R2!M10) -> 20356.7484 | AY10: =SUM(AV10:AX10) -> 27844 | AZ10: =MAX('MDA4'!R10,T10) -> 0 | BA10: =MAX('MDA1'!K10,'MDA4'!S10,'MDA3'!I10,'MDA3'!L10,V10,AD10) -> 7487.2516 | BB10: =MAX('MDA1'!L10,'MDA4'!T10,'MDA3'!J10,'MDA3'!M10,AF10) -> 20356.7484 | BC10: 27844 | BD10: 46.33407661
A11: =IF(COUNTRY_INFO!A11=0," ",COUNTRY_INFO!A11) -> Congo | B11: =IF(COUNTRY_INFO!B11=0," ",COUNTRY_INFO!B11) -> Bouenza | C11: =IF(COUNTRY_INFO!C11=0," ",COUNTRY_INFO!C11) -> Madingou | D11: =COUNTRY_INFO!M11 -> 114370 | G11: =MAX('MDA1'!M11,'MDA4'!U11) -> 47537 | H11: =IF(AND(COUNTRY_INFO!H11>0,COUNTRY_INFO!H11<4),IF(D11>MAX('MDA1'!M11,'MDA4'!U11),MAX('MDA1'!M11,'MDA4'!U11),D11),0) -> 47537 | I11: =IF(AND(COUNTRY_INFO!H11>0,COUNTRY_INFO!H11<4), IF(G11/D11*100<>0, IF(G11/D11*100>100,100,G11/D11*100), "-"),0) -> 41.56422139 | J11: =COUNTRY_INFO!N11 -> 54015 | M11: =MAX('MDA1'!M11,MAX('MDA3'!I11,'MDA3'!L11)+MAX('MDA3'!J11,'MDA3'!M11)) -> 47537 | N11: =IF(AND(COUNTRY_INFO!I11>0,COUNTRY_INFO!I11<4),IF(J11>MAX('MDA1'!M11,MAX('MDA3'!I11,'MDA3'!L11)+MAX('MDA3'!J11,'MDA3'!M11)),MAX('MDA1'!M11,MAX('MDA3'!I11,'MDA3'!L11)+MAX('MDA3'!J11,'MDA3'!M11)),J11),0) -> 47537 | O11: =IF(AND(COUNTRY_INFO!I11>0,COUNTRY_INFO!I11<4), IF(M11/J11*100<>0, IF(M11/J11*100>100,100,M11/J11*100), "-"),0) -> 88.00703508 | P11: =COUNTRY_INFO!O11 -> 0 | S11: =SUM(MAX('MDA4'!R11, 'T1'!L11, MAX(T3_R1!K11, T3_R2!K11)), MAX('MDA1'!K11, 'MDA4'!S11, 'T1'!M11, MAX(T3_R1!L11, T3_R2!L11)), MAX('MDA1'!L11, 'MDA4'!T11, 'T1'!N11, MAX(T3_R1!M11, T3_R2!M11))) -> 58306.3007 | T11: =IF(AND(COUNTRY_INFO!J11>1,COUNTRY_INFO!J11<4),IF(COUNTRY_INFO!E11>MAX('MDA4'!R11,'T1'!L11,MAX(T3_R1!K11,T3_R2!K11)),MAX('MDA4'!R11,'T1'!L11,MAX(T3_R1!K11,T3_R2!K11)),COUNTRY_INFO!E11),0) -> 0 | U11: =IF(AND(COUNTRY_INFO!J11>1,COUNTRY_INFO!J11<4), IF(T11/COUNTRY_INFO!E11*100<>0, IF(T11/COUNTRY_INFO!E11*100>100,100,T11/COUNTRY_INFO!E11*100), "-"),0) -> 0 | V11: =IF(AND(COUNTRY_INFO!J11>1,COUNTRY_INFO!J11<4),IF(COUNTRY_INFO!F11>MAX('MDA1'!K11,'MDA4'!S11,'T1'!M11,MAX(T3_R1!L11,T3_R2!L11)),MAX('MDA1'!K11,'MDA4'!S11,'T1'!M11,MAX(T3_R1!L11,T3_R2!L11)),COUNTRY_INFO!F11),0) -> 0 | W11: =IF(AND(COUNTRY_INFO!J11>1,COUNTRY_INFO!J11<4), IF(V11/COUNTRY_INFO!F11*100<>0, IF(V11/COUNTRY_INFO!F11*100>100,100,V11/COUNTRY_INFO!F11*100), "-"),0) -> 0 | X11: 0 | Y11: =IF(AND(COUNTRY_INFO!J11>1,COUNTRY_INFO!J11<4), IF(S11/P11*100<>0, IF(X11/P11*100>100,100,X11/P11*100), "-"),0) -> 0 | Z11: =COUNTRY_INFO!P11 -> 0 | AC11: =MAX('T1'!L11,'T2'!J11)+MAX('T1'!M11,'T2'!K11)+MAX('T1'!N11,'T2'!L11) -> 0 | AD11: =IF(COUNTRY_INFO!K11=1,IF(COUNTRY_INFO!F11*0.33>MAX('T1'!M11,'T2'!K11),MAX('T1'!M11,'T2'!K11),COUNTRY_INFO!F11*0.33),IF(COUNTRY_INFO!K11=2,IF(COUNTRY_INFO!F11*0.5>MAX('T1'!M11,'T2'!K11),MAX('T1'!M11,'T2'!K11),COUNTRY_INFO!F11*0.5),IF(COUNTRY_INFO!K11=3,IF(COUNTRY_INFO!F11>MAX('T1'!M11,'T2'!K11),MAX('T1'!M11,'T2'!K11),COUNTRY_INFO!F11),0))) -> 0 | AE11: =IF(AND(COUNTRY_INFO!K11>0,COUNTRY_INFO!K11<4),IF(Z11>0,IF(COUNTRY_INFO!K11=1, AD11/(COUNTRY_INFO!F11*0.33)*100, IF(COUNTRY_INFO!K11=2, AD11/(COUNTRY_INFO!F11*0.5)*100, IF(COUNTRY_INFO!K11=3, AD11/COUNTRY_INFO!F11*100))),"-"),0) -> 0 | AF11: =IF(COUNTRY_INFO!K11=2,IF(COUNTRY_INFO!G11*0.2>MAX('T1'!N11,'T2'!L11),MAX('T1'!N11,'T2'!L11),COUNTRY_INFO!G11*0.2),IF(COUNTRY_INFO!K11=3,IF(COUNTRY_INFO!G11>MAX('T1'!N11,'T2'!L11),MAX('T1'!N11,'T2'!L11),COUNTRY_INFO!G11),0)) -> 0 | AG11: =IF(AND(COUNTRY_INFO!K11>0,COUNTRY_INFO!K11<4),IF(Z11>0,IF(COUNTRY_INFO!K11=1, 0, IF(COUNTRY_INFO!K11=2, AF11/(COUNTRY_INFO!G11*0.2)*100, IF(COUNTRY_INFO!K11=3, AF11/COUNTRY_INFO!G11*100))),"-"),0) -> 0 | AH11: 0 | AI11: =IF(AND(COUNTRY_INFO!K11>0,COUNTRY_INFO!K11<4), IF(AC11/Z11*100<>0, IF(AH11/Z11*100>100,100,AH11/Z11*100), "-"),0) -> 0 | AK11: =IF(AND(D11<>0, D11<>"Inconnu",D11<>"Interrompu",D11<>"Non requis"),D11/COUNTRY_INFO!D11, 0) -> 1 | AL11: =IF(AND(J11<>0,J11<>"Inconnu",J11<>"Interrompu",J11<>"Non requis"),J11/COUNTRY_INFO!D11, 0) -> 0.4722829413 | AM11: =IF(AND(P11<>0,P11<>"Inconnu",P11<>"Non requis"),P11/(COUNTRY_INFO!E11+COUNTRY_INFO!F11), 0) -> 0 | AN11: =IF(AND(Z11<>0,Z11<>"Inconnu",Z11<>"Non requis"),IF(COUNTRY_INFO!K11=1,1,IF(COUNTRY_INFO!K11=2,0.5*COUNTRY_INFO!F11/(0.5*COUNTRY_INFO!F11+0.2*COUNTRY_INFO!G11),IF(COUNTRY_INFO!K11=3,COUNTRY_INFO!F11/(COUNTRY_INFO!F11+COUNTRY_INFO!G11)))),0) -> 0 | AO11: =IF(AND(Z11<>0,Z11<>"Inconnu",Z11<>"Non requis"),IF(COUNTRY_INFO!K11=1,0,IF(COUNTRY_INFO!K11=2,0.2*COUNTRY_INFO!G11/(0.5*COUNTRY_INFO!F11+0.2*COUNTRY_INFO!G11),IF(COUNTRY_INFO!K11=3,COUNTRY_INFO!G11/(COUNTRY_INFO!F11+COUNTRY_INFO!G11)))),0) -> 0 | AP11: =MAX(COUNTRY_INFO!D11*AK11*PROFILE!$G$7,COUNTRY_INFO!D11*AL11*PROFILE!$G$7) -> 3396.764799 | AQ11: =MAX(COUNTRY_INFO!D11*AK11*PROFILE!$G$8,COUNTRY_INFO!D11*AL11*PROFILE!$G$8,COUNTRY_INFO!D11*AM11*PROFILE!$G$8) -> 13198.28413 | AR11: =MAX(COUNTRY_INFO!D11*AK11*PROFILE!$G$9,COUNTRY_INFO!D11*AL11*PROFILE!$G$9,COUNTRY_INFO!D11*AM11*PROFILE!$G$9,IF(AND(DISTRICT!Z11<>"Inconnu",Z11<>"Non requis"),COUNTRY_INFO!P11*DISTRICT!AN11,0)) -> 30754.10291 | AS11: =MAX(COUNTRY_INFO!D11*AK11*PROFILE!$G$10,COUNTRY_INFO!D11*AL11*PROFILE!$G$10,IF(AND(DISTRICT!Z11<>"Inconnu",Z11<>"Non requis"),COUNTRY_INFO!P11*DISTRICT!AO11,0)) -> 67020.84816 | AT11: 114370 | AU11: Y | AV11: =MAX('MDA4'!R11,'T1'!L11,'T2'!J11,T3_R1!K11,T3_R2!K11) -> 0 | AW11: =MAX('MDA1'!K11,'MDA4'!S11,'MDA3'!I11,'MDA3'!L11,'T1'!M11,'T2'!K11,T3_R1!L11,T3_R2!L11) -> 23552 | AX11: =MAX('MDA1'!L11,'MDA4'!T11,'MDA3'!J11,'MDA3'!M11,'T1'!N11,'T2'!L11,T3_R1!M11,T3_R2!M11) -> 34754.3007 | AY11: 58306.3007 | AZ11: =MAX('MDA4'!R11,T11) -> 0 | BA11: =MAX('MDA1'!K11,'MDA4'!S11,'MDA3'!I11,'MDA3'!L11,V11,AD11) -> 12782.6993 | BB11: =MAX('MDA1'!L11,'MDA4'!T11,'MDA3'!J11,'MDA3'!M11,AF11) -> 34754.3007 | BC11: 47537 | BD11: 41.56422139
A12: =IF(COUNTRY_INFO!A12=0," ",COUNTRY_INFO!A12) -> Congo | B12: =IF(COUNTRY_INFO!B12=0," ",COUNTRY_INFO!B12) -> Bouenza | C12: =IF(COUNTRY_INFO!C12=0," ",COUNTRY_INFO!C12) -> Mouyondzi | D12: =COUNTRY_INFO!M12 -> 90924 | G12: =MAX('MDA1'!M12,'MDA4'!U12) -> 31952 | H12: =IF(AND(COUNTRY_INFO!H12>0,COUNTRY_INFO!H12<4),IF(D12>MAX('MDA1'!M12,'MDA4'!U12),MAX('MDA1'!M12,'MDA4'!U12),D12),0) -> 31952 | I12: =IF(AND(COUNTRY_INFO!H12>0,COUNTRY_INFO!H12<4), IF(G12/D12*100<>0, IF(G12/D12*100>100,100,G12/D12*100), "-"),0) -> 35.1414368 | J12: =COUNTRY_INFO!N12 -> 43984 | M12: =MAX('MDA1'!M12,MAX('MDA3'!I12,'MDA3'!L12)+MAX('MDA3'!J12,'MDA3'!M12)) -> 31952 | N12: =IF(AND(COUNTRY_INFO!I12>0,COUNTRY_INFO!I12<4),IF(J12>MAX('MDA1'!M12,MAX('MDA3'!I12,'MDA3'!L12)+MAX('MDA3'!J12,'MDA3'!M12)),MAX('MDA1'!M12,MAX('MDA3'!I12,'MDA3'!L12)+MAX('MDA3'!J12,'MDA3'!M12)),J12),0) -> 31952 | O12: =IF(AND(COUNTRY_INFO!I12>0,COUNTRY_INFO!I12<4), IF(M12/J12*100<>0, IF(M12/J12*100>100,100,M12/J12*100), "-"),0) -> 72.64459804 | P12: =COUNTRY_INFO!O12 -> 34942 | S12: =SUM(MAX('MDA4'!R12, 'T1'!L12, MAX(T3_R1!K12, T3_R2!K12)), MAX('MDA1'!K12, 'MDA4'!S12, 'T1'!M12, MAX(T3_R1!L12, T3_R2!L12)), MAX('MDA1'!L12, 'MDA4'!T12, 'T1'!N12, MAX(T3_R1!M12, T3_R2!M12))) -> 37913.1072 | T12: =IF(AND(COUNTRY_INFO!J12>1,COUNTRY_INFO!J12<4),IF(COUNTRY_INFO!E12>MAX('MDA4'!R12,'T1'!L12,MAX(T3_R1!K12,T3_R2!K12)),MAX('MDA4'!R12,'T1'!L12,MAX(T3_R1!K12,T3_R2!K12)),COUNTRY_INFO!E12),0) -> 0 | U12: =IF(AND(COUNTRY_INFO!J12>1,COUNTRY_INFO!J12<4), IF(T12/COUNTRY_INFO!E12*100<>0, IF(T12/COUNTRY_INFO!E12*100>100,100,T12/COUNTRY_INFO!E12*100), "-"),0) -> - | V12: =IF(AND(COUNTRY_INFO!J12>1,COUNTRY_INFO!J12<4),IF(COUNTRY_INFO!F12>MAX('MDA1'!K12,'MDA4'!S12,'T1'!M12,MAX(T3_R1!L12,T3_R2!L12)),MAX('MDA1'!K12,'MDA4'!S12,'T1'!M12,MAX(T3_R1!L12,T3_R2!L12)),COUNTRY_INFO!F12),0) -> 14553 | W12: =IF(AND(COUNTRY_INFO!J12>1,COUNTRY_INFO!J12<4), IF(V12/COUNTRY_INFO!F12*100<>0, IF(V12/COUNTRY_INFO!F12*100>100,100,V12/COUNTRY_INFO!F12*100), "-"),0) -> 59.52390691 | X12: 14553 | Y12: =IF(AND(COUNTRY_INFO!J12>1,COUNTRY_INFO!J12<4), IF(S12/P12*100<>0, IF(X12/P12*100>100,100,X12/P12*100), "-"),0) -> 41.64901837 | Z12: =COUNTRY_INFO!P12 -> 77730 | AC12: =MAX('T1'!L12,'T2'!J12)+MAX('T1'!M12,'T2'!K12)+MAX('T1'!N12,'T2'!L12) -> 14640 | AD12: =IF(COUNTRY_INFO!K12=1,IF(COUNTRY_INFO!F12*0.33>MAX('T1'!M12,'T2'!K12),MAX('T1'!M12,'T2'!K12),COUNTRY_INFO!F12*0.33),IF(COUNTRY_INFO!K12=2,IF(COUNTRY_INFO!F12*0.5>MAX('T1'!M12,'T2'!K12),MAX('T1'!M12,'T2'!K12),COUNTRY_INFO!F12*0.5),IF(COUNTRY_INFO!K12=3,IF(COUNTRY_INFO!F12>MAX('T1'!M12,'T2'!K12),MAX('T1'!M12,'T2'!K12),COUNTRY_INFO!F12),0))) -> 14553 | AE12: =IF(AND(COUNTRY_INFO!K12>0,COUNTRY_INFO!K12<4),IF(Z12>0,IF(COUNTRY_INFO!K12=1, AD12/(COUNTRY_INFO!F12*0.33)*100, IF(COUNTRY_INFO!K12=2, AD12/(COUNTRY_INFO!F12*0.5)*100, IF(COUNTRY_INFO!K12=3, AD12/COUNTRY_INFO!F12*100))),"-"),0) -> 59.52390691 | AF12: =IF(COUNTRY_INFO!K12=2,IF(COUNTRY_INFO!G12*0.2>MAX('T1'!N12,'T2'!L12),MAX('T1'!N12,'T2'!L12),COUNTRY_INFO!G12*0.2),IF(COUNTRY_INFO!K12=3,IF(COUNTRY_INFO!G12>MAX('T1'!N12,'T2'!L12),MAX('T1'!N12,'T2'!L12),COUNTRY_INFO!G12),0)) -> 87 | AG12: =IF(AND(COUNTRY_INFO!K12>0,COUNTRY_INFO!K12<4),IF(Z12>0,IF(COUNTRY_INFO!K12=1, 0, IF(COUNTRY_INFO!K12=2, AF12/(COUNTRY_INFO!G12*0.2)*100, IF(COUNTRY_INFO!K12=3, AF12/COUNTRY_INFO!G12*100))),"-"),0) -> 0.1632852236 | AH12: 14640 | AI12: =IF(AND(COUNTRY_INFO!K12>0,COUNTRY_INFO!K12<4), IF(AC12/Z12*100<>0, IF(AH12/Z12*100>100,100,AH12/Z12*100), "-"),0) -> 18.83442686 | AK12: =IF(AND(D12<>0, D12<>"Inconnu",D12<>"Interrompu",D12<>"Non requis"),D12/COUNTRY_INFO!D12, 0) -> 1 | AL12: =IF(AND(J12<>0,J12<>"Inconnu",J12<>"Interrompu",J12<>"Non requis"),J12/COUNTRY_INFO!D12, 0) -> 0.4837446659 | AM12: =IF(AND(P12<>0,P12<>"Inconnu",P12<>"Non requis"),P12/(COUNTRY_INFO!E12+COUNTRY_INFO!F12), 0) -> 1 | AN12: =IF(AND(Z12<>0,Z12<>"Inconnu",Z12<>"Non requis"),IF(COUNTRY_INFO!K12=1,1,IF(COUNTRY_INFO!K12=2,0.5*COUNTRY_INFO!F12/(0.5*COUNTRY_INFO!F12+0.2*COUNTRY_INFO!G12),IF(COUNTRY_INFO!K12=3,COUNTRY_INFO!F12/(COUNTRY_INFO!F12+COUNTRY_INFO!G12)))),0) -> 0.3145375016 | AO12: =IF(AND(Z12<>0,Z12<>"Inconnu",Z12<>"Non requis"),IF(COUNTRY_INFO!K12=1,0,IF(COUNTRY_INFO!K12=2,0.2*COUNTRY_INFO!G12/(0.5*COUNTRY_INFO!F12+0.2*COUNTRY_INFO!G12),IF(COUNTRY_INFO!K12=3,COUNTRY_INFO!G12/(COUNTRY_INFO!F12+COUNTRY_INFO!G12)))),0) -> 0.6854624984 | AP12: =MAX(COUNTRY_INFO!D12*AK12*PROFILE!$G$7,COUNTRY_INFO!D12*AL12*PROFILE!$G$7) -> 2700.42356 | AQ12: =MAX(COUNTRY_INFO!D12*AK12*PROFILE!$G$8,COUNTRY_INFO!D12*AL12*PROFILE!$G$8,COUNTRY_INFO!D12*AM12*PROFILE!$G$8) -> 10492.61857 | AR12: =MAX(COUNTRY_INFO!D12*AK12*PROFILE!$G$9,COUNTRY_INFO!D12*AL12*PROFILE!$G$9,COUNTRY_INFO!D12*AM12*PROFILE!$G$9,IF(AND(DISTRICT!Z12<>"Inconnu",Z12<>"Non requis"),COUNTRY_INFO!P12*DISTRICT!AN12,0)) -> 24449.47148 | AS12: =MAX(COUNTRY_INFO!D12*AK12*PROFILE!$G$10,COUNTRY_INFO!D12*AL12*PROFILE!$G$10,IF(AND(DISTRICT!Z12<>"Inconnu",Z12<>"Non requis"),COUNTRY_INFO!P12*DISTRICT!AO12,0)) -> 53281.48639 | AT12: 90924 | AU12: Y | AV12: =MAX('MDA4'!R12,'T1'!L12,'T2'!J12,T3_R1!K12,T3_R2!K12) -> 0 | AW12: =MAX('MDA1'!K12,'MDA4'!S12,'MDA3'!I12,'MDA3'!L12,'T1'!M12,'T2'!K12,T3_R1!L12,T3_R2!L12) -> 14553 | AX12: =MAX('MDA1'!L12,'MDA4'!T12,'MDA3'!J12,'MDA3'!M12,'T1'!N12,'T2'!L12,T3_R1!M12,T3_R2!M12) -> 23360.1072 | AY12: 37913.1072 | AZ12: =MAX('MDA4'!R12,T12) -> 0 | BA12: =MAX('MDA1'!K12,'MDA4'!S12,'MDA3'!I12,'MDA3'!L12,V12,AD12) -> 14553 | BB12: =MAX('MDA1'!L12,'MDA4'!T12,'MDA3'!J12,'MDA3'!M12,AF12) -> 23360.1072 | BC12: 37913.1072 | BD12: 41.69757952
A13: =IF(COUNTRY_INFO!A13=0," ",COUNTRY_INFO!A13) -> Congo | B13: =IF(COUNTRY_INFO!B13=0," ",COUNTRY_INFO!B13) -> Bouenza | C13: =IF(COUNTRY_INFO!C13=0," ",COUNTRY_INFO!C13) -> Nkayi | D13: =COUNTRY_INFO!M13 -> 0 | G13: =MAX('MDA1'!M13,'MDA4'!U13) -> 0 | H13: =IF(AND(COUNTRY_INFO!H13>0,COUNTRY_INFO!H13<4),IF(D13>MAX('MDA1'!M13,'MDA4'!U13),MAX('MDA1'!M13,'MDA4'!U13),D13),0) -> 0 | I13: =IF(AND(COUNTRY_INFO!H13>0,COUNTRY_INFO!H13<4), IF(G13/D13*100<>0, IF(G13/D13*100>100,100,G13/D13*100), "-"),0) -> 0 | J13: =COUNTRY_INFO!N13 -> 42057 | M13: =MAX('MDA1'!M13,MAX('MDA3'!I13,'MDA3'!L13)+MAX('MDA3'!J13,'MDA3'!M13)) -> 37840 | N13: =IF(AND(COUNTRY_INFO!I13>0,COUNTRY_INFO!I13<4),IF(J13>MAX('MDA1'!M13,MAX('MDA3'!I13,'MDA3'!L13)+MAX('MDA3'!J13,'MDA3'!M13)),MAX('MDA1'!M13,MAX('MDA3'!I13,'MDA3'!L13)+MAX('MDA3'!J13,'MDA3'!M13)),J13),0) -> 37840 | O13: =IF(AND(COUNTRY_INFO!I13>0,COUNTRY_INFO!I13<4), IF(M13/J13*100<>0, IF(M13/J13*100>100,100,M13/J13*100), "-"),0) -> 89.9731317 | P13: =COUNTRY_INFO!O13 -> 52619 | S13: =SUM(MAX('MDA4'!R13, 'T1'!L13, MAX(T3_R1!K13, T3_R2!K13)), MAX('MDA1'!K13, 'MDA4'!S13, 'T1'!M13, MAX(T3_R1!L13, T3_R2!L13)), MAX('MDA1'!L13, 'MDA4'!T13, 'T1'!N13, MAX(T3_R1!M13, T3_R2!M13))) -> 20195 | T13: =IF(AND(COUNTRY_INFO!J13>1,COUNTRY_INFO!J13<4),IF(COUNTRY_INFO!E13>MAX('MDA4'!R13,'T1'!L13,MAX(T3_R1!K13,T3_R2!K13)),MAX('MDA4'!R13,'T1'!L13,MAX(T3_R1!K13,T3_R2!K13)),COUNTRY_INFO!E13),0) -> 0 | U13: =IF(AND(COUNTRY_INFO!J13>1,COUNTRY_INFO!J13<4), IF(T13/COUNTRY_INFO!E13*100<>0, IF(T13/COUNTRY_INFO!E13*100>100,100,T13/COUNTRY_INFO!E13*100), "-"),0) -> - | V13: =IF(AND(COUNTRY_INFO!J13>1,COUNTRY_INFO!J13<4),IF(COUNTRY_INFO!F13>MAX('MDA1'!K13,'MDA4'!S13,'T1'!M13,MAX(T3_R1!L13,T3_R2!L13)),MAX('MDA1'!K13,'MDA4'!S13,'T1'!M13,MAX(T3_R1!L13,T3_R2!L13)),COUNTRY_INFO!F13),0) -> 19766 | W13: =IF(AND(COUNTRY_INFO!J13>1,COUNTRY_INFO!J13<4), IF(V13/COUNTRY_INFO!F13*100<>0, IF(V13/COUNTRY_INFO!F13*100>100,100,V13/COUNTRY_INFO!F13*100), "-"),0) -> 53.68569721 | X13: 19766 | Y13: =IF(AND(COUNTRY_INFO!J13>1,COUNTRY_INFO!J13<4), IF(S13/P13*100<>0, IF(X13/P13*100>100,100,X13/P13*100), "-"),0) -> 37.56437789 | Z13: =COUNTRY_INFO!P13 -> 0 | AC13: =MAX('T1'!L13,'T2'!J13)+MAX('T1'!M13,'T2'!K13)+MAX('T1'!N13,'T2'!L13) -> 20195 | AD13: =IF(COUNTRY_INFO!K13=1,IF(COUNTRY_INFO!F13*0.33>MAX('T1'!M13,'T2'!K13),MAX('T1'!M13,'T2'!K13),COUNTRY_INFO!F13*0.33),IF(COUNTRY_INFO!K13=2,IF(COUNTRY_INFO!F13*0.5>MAX('T1'!M13,'T2'!K13),MAX('T1'!M13,'T2'!K13),COUNTRY_INFO!F13*0.5),IF(COUNTRY_INFO!K13=3,IF(COUNTRY_INFO!F13>MAX('T1'!M13,'T2'!K13),MAX('T1'!M13,'T2'!K13),COUNTRY_INFO!F13),0))) -> 0 | AE13: =IF(AND(COUNTRY_INFO!K13>0,COUNTRY_INFO!K13<4),IF(Z13>0,IF(COUNTRY_INFO!K13=1, AD13/(COUNTRY_INFO!F13*0.33)*100, IF(COUNTRY_INFO!K13=2, AD13/(COUNTRY_INFO!F13*0.5)*100, IF(COUNTRY_INFO!K13=3, AD13/COUNTRY_INFO!F13*100))),"-"),0) -> 0 | AF13: =IF(COUNTRY_INFO!K13=2,IF(COUNTRY_INFO!G13*0.2>MAX('T1'!N13,'T2'!L13),MAX('T1'!N13,'T2'!L13),COUNTRY_INFO!G13*0.2),IF(COUNTRY_INFO!K13=3,IF(COUNTRY_INFO!G13>MAX('T1'!N13,'T2'!L13),MAX('T1'!N13,'T2'!L13),COUNTRY_INFO!G13),0)) -> 0 | AG13: =IF(AND(COUNTRY_INFO!K13>0,COUNTRY_INFO!K13<4),IF(Z13>0,IF(COUNTRY_INFO!K13=1, 0, IF(COUNTRY_INFO!K13=2, AF13/(COUNTRY_INFO!G13*0.2)*100, IF(COUNTRY_INFO!K13=3, AF13/COUNTRY_INFO!G13*100))),"-"),0) -> 0 | AH13: 0 | AI13: =IF(AND(COUNTRY_INFO!K13>0,COUNTRY_INFO!K13<4), IF(AC13/Z13*100<>0, IF(AH13/Z13*100>100,100,AH13/Z13*100), "-"),0) -> 0 | AK13: =IF(AND(D13<>0, D13<>"Inconnu",D13<>"Interrompu",D13<>"Non requis"),D13/COUNTRY_INFO!D13, 0) -> 0 | AL13: =IF(AND(J13<>0,J13<>"Inconnu",J13<>"Interrompu",J13<>"Non requis"),J13/COUNTRY_INFO!D13, 0) -> 0.307160281 | AM13: =IF(AND(P13<>0,P13<>"Inconnu",P13<>"Non requis"),P13/(COUNTRY_INFO!E13+COUNTRY_INFO!F13), 0) -> 1 | AN13: =IF(AND(Z13<>0,Z13<>"Inconnu",Z13<>"Non requis"),IF(COUNTRY_INFO!K13=1,1,IF(COUNTRY_INFO!K13=2,0.5*COUNTRY_INFO!F13/(0.5*COUNTRY_INFO!F13+0.2*COUNTRY_INFO!G13),IF(COUNTRY_INFO!K13=3,COUNTRY_INFO!F13/(COUNTRY_INFO!F13+COUNTRY_INFO!G13)))),0) -> 0 | AO13: =IF(AND(Z13<>0,Z13<>"Inconnu",Z13<>"Non requis"),IF(COUNTRY_INFO!K13=1,0,IF(COUNTRY_INFO!K13=2,0.2*COUNTRY_INFO!G13/(0.5*COUNTRY_INFO!F13+0.2*COUNTRY_INFO!G13),IF(COUNTRY_INFO!K13=3,COUNTRY_INFO!G13/(COUNTRY_INFO!F13+COUNTRY_INFO!G13)))),0) -> 0 | AP13: =MAX(COUNTRY_INFO!D13*AK13*PROFILE!$G$7,COUNTRY_INFO!D13*AL13*PROFILE!$G$7) -> 1249.084001 | AQ13: =MAX(COUNTRY_INFO!D13*AK13*PROFILE!$G$8,COUNTRY_INFO!D13*AL13*PROFILE!$G$8,COUNTRY_INFO!D13*AM13*PROFILE!$G$8) -> 15800.78219 | AR13: =MAX(COUNTRY_INFO!D13*AK13*PROFILE!$G$9,COUNTRY_INFO!D13*AL13*PROFILE!$G$9,COUNTRY_INFO!D13*AM13*PROFILE!$G$9,IF(AND(DISTRICT!Z13<>"Inconnu",Z13<>"Non requis"),COUNTRY_INFO!P13*DISTRICT!AN13,0)) -> 36818.33767 | AS13: =MAX(COUNTRY_INFO!D13*AK13*PROFILE!$G$10,COUNTRY_INFO!D13*AL13*PROFILE!$G$10,IF(AND(DISTRICT!Z13<>"Inconnu",Z13<>"Non requis"),COUNTRY_INFO!P13*DISTRICT!AO13,0)) -> 24645.41236 | AT13: 78513.61621 | AU13: Y | AV13: =MAX('MDA4'!R13,'T1'!L13,'T2'!J13,T3_R1!K13,T3_R2!K13) -> 0 | AW13: =MAX('MDA1'!K13,'MDA4'!S13,'MDA3'!I13,'MDA3'!L13,'T1'!M13,'T2'!K13,T3_R1!L13,T3_R2!L13) -> 19766 | AX13: =MAX('MDA1'!L13,'MDA4'!T13,'MDA3'!J13,'MDA3'!M13,'T1'!N13,'T2'!L13,T3_R1!M13,T3_R2!M13) -> 25937.81729 | AY13: 45703.81729 | AZ13: =MAX('MDA4'!R13,T13) -> 0 | BA13: =MAX('MDA1'!K13,'MDA4'!S13,'MDA3'!I13,'MDA3'!L13,V13,AD13) -> 19766 | BB13: =MAX('MDA1'!L13,'MDA4'!T13,'MDA3'!J13,'MDA3'!M13,AF13) -> 25937.81729 | BC13: 45703.81729 | BD13: 58.21132625
A14: =IF(COUNTRY_INFO!A14=0," ",COUNTRY_INFO!A14) -> Congo | B14: =IF(COUNTRY_INFO!B14=0," ",COUNTRY_INFO!B14) -> Brazzaville | C14: =IF(COUNTRY_INFO!C14=0," ",COUNTRY_INFO!C14) -> Bacongo | D14: =COUNTRY_INFO!M14 -> 0 | G14: =MAX('MDA1'!M14,'MDA4'!U14) -> 0 | H14: =IF(AND(COUNTRY_INFO!H14>0,COUNTRY_INFO!H14<4),IF(D14>MAX('MDA1'!M14,'MDA4'!U14),MAX('MDA1'!M14,'MDA4'!U14),D14),0) -> 0 | I14: =IF(AND(COUNTRY_INFO!H14>0,COUNTRY_INFO!H14<4), IF(G14/D14*100<>0, IF(G14/D14*100>100,100,G14/D14*100), "-"),0) -> 0 | J14: =COUNTRY_INFO!N14 -> 132180 | M14: =MAX('MDA1'!M14,MAX('MDA3'!I14,'MDA3'!L14)+MAX('MDA3'!J14,'MDA3'!M14)) -> 63047 | N14: =IF(AND(COUNTRY_INFO!I14>0,COUNTRY_INFO!I14<4),IF(J14>MAX('MDA1'!M14,MAX('MDA3'!I14,'MDA3'!L14)+MAX('MDA3'!J14,'MDA3'!M14)),MAX('MDA1'!M14,MAX('MDA3'!I14,'MDA3'!L14)+MAX('MDA3'!J14,'MDA3'!M14)),J14),0) -> 63047 | O14: =IF(AND(COUNTRY_INFO!I14>0,COUNTRY_INFO!I14<4), IF(M14/J14*100<>0, IF(M14/J14*100>100,100,M14/J14*100), "-"),0) -> 47.69783628 | P14: =COUNTRY_INFO!O14 -> Inconnu | S14: =SUM(MAX('MDA4'!R14, 'T1'!L14, MAX(T3_R1!K14, T3_R2!K14)), MAX('MDA1'!K14, 'MDA4'!S14, 'T1'!M14, MAX(T3_R1!L14, T3_R2!L14)), MAX('MDA1'!L14, 'MDA4'!T14, 'T1'!N14, MAX(T3_R1!M14, T3_R2!M14))) -> 7808 | T14: =IF(AND(COUNTRY_INFO!J14>1,COUNTRY_INFO!J14<4),IF(COUNTRY_INFO!E14>MAX('MDA4'!R14,'T1'!L14,MAX(T3_R1!K14,T3_R2!K14)),MAX('MDA4'!R14,'T1'!L14,MAX(T3_R1!K14,T3_R2!K14)),COUNTRY_INFO!E14),0) -> 0 | U14: =IF(AND(COUNTRY_INFO!J14>1,COUNTRY_INFO!J14<4), IF(T14/COUNTRY_INFO!E14*100<>0, IF(T14/COUNTRY_INFO!E14*100>100,100,T14/COUNTRY_INFO!E14*100), "-"),0) -> 0 | V14: =IF(AND(COUNTRY_INFO!J14>1,COUNTRY_INFO!J14<4),IF(COUNTRY_INFO!F14>MAX('MDA1'!K14,'MDA4'!S14,'T1'!M14,MAX(T3_R1!L14,T3_R2!L14)),MAX('MDA1'!K14,'MDA4'!S14,'T1'!M14,MAX(T3_R1!L14,T3_R2!L14)),COUNTRY_INFO!F14),0) -> 0 | W14: =IF(AND(COUNTRY_INFO!J14>1,COUNTRY_INFO!J14<4), IF(V14/COUNTRY_INFO!F14*100<>0, IF(V14/COUNTRY_INFO!F14*100>100,100,V14/COUNTRY_INFO!F14*100), "-"),0) -> 0 | X14: 0 | Y14: =IF(AND(COUNTRY_INFO!J14>1,COUNTRY_INFO!J14<4), IF(S14/P14*100<>0, IF(X14/P14*100>100,100,X14/P14*100), "-"),0) -> 0 | Z14: =COUNTRY_INFO!P14 -> Inconnu | AC14: =MAX('T1'!L14,'T2'!J14)+MAX('T1'!M14,'T2'!K14)+MAX('T1'!N14,'T2'!L14) -> 0 | AD14: =IF(COUNTRY_INFO!K14=1,IF(COUNTRY_INFO!F14*0.33>MAX('T1'!M14,'T2'!K14),MAX('T1'!M14,'T2'!K14),COUNTRY_INFO!F14*0.33),IF(COUNTRY_INFO!K14=2,IF(COUNTRY_INFO!F14*0.5>MAX('T1'!M14,'T2'!K14),MAX('T1'!M14,'T2'!K14),COUNTRY_INFO!F14*0.5),IF(COUNTRY_INFO!K14=3,IF(COUNTRY_INFO!F14>MAX('T1'!M14,'T2'!K14),MAX('T1'!M14,'T2'!K14),COUNTRY_INFO!F14),0))) -> 0 | AE14: =IF(AND(COUNTRY_INFO!K14>0,COUNTRY_INFO!K14<4),IF(Z14>0,IF(COUNTRY_INFO!K14=1, AD14/(COUNTRY_INFO!F14*0.33)*100, IF(COUNTRY_INFO!K14=2, AD14/(COUNTRY_INFO!F14*0.5)*100, IF(COUNTRY_INFO!K14=3, AD14/COUNTRY_INFO!F14*100))),"-"),0) -> 0 | AF14: =IF(COUNTRY_INFO!K14=2,IF(COUNTRY_INFO!G14*0.2>MAX('T1'!N14,'T2'!L14),MAX('T1'!N14,'T2'!L14),COUNTRY_INFO!G14*0.2),IF(COUNTRY_INFO!K14=3,IF(COUNTRY_INFO!G14>MAX('T1'!N14,'T2'!L14),MAX('T1'!N14,'T2'!L14),COUNTRY_INFO!G14),0)) -> 0 | AG14: =IF(AND(COUNTRY_INFO!K14>0,COUNTRY_INFO!K14<4),IF(Z14>0,IF(COUNTRY_INFO!K14=1, 0, IF(COUNTRY_INFO!K14=2, AF14/(COUNTRY_INFO!G14*0.2)*100, IF(COUNTRY_INFO!K14=3, AF14/COUNTRY_INFO!G14*100))),"-"),0) -> 0 | AH14: 0 | AI14: =IF(AND(COUNTRY_INFO!K14>0,COUNTRY_INFO!K14<4), IF(AC14/Z14*100<>0, IF(AH14/Z14*100>100,100,AH14/Z14*100), "-"),0) -> 0 | AK14: =IF(AND(D14<>0, D14<>"Inconnu",D14<>"Interrompu",D14<>"Non requis"),D14/COUNTRY_INFO!D14, 0) -> 0 | AL14: =IF(AND(J14<>0,J14<>"Inconnu",J14<>"Interrompu",J14<>"Non requis"),J14/COUNTRY_INFO!D14, 0) -> 0.7693382225 | AM14: =IF(AND(P14<>0,P14<>"Inconnu",P14<>"Non requis"),P14/(COUNTRY_INFO!E14+COUNTRY_INFO!F14), 0) -> 0 | AN14: =IF(AND(Z14<>0,Z14<>"Inconnu",Z14<>"Non requis"),IF(COUNTRY_INFO!K14=1,1,IF(COUNTRY_INFO!K14=2,0.5*COUNTRY_INFO!F14/(0.5*COUNTRY_INFO!F14+0.2*COUNTRY_INFO!G14),IF(COUNTRY_INFO!K14=3,COUNTRY_INFO!F14/(COUNTRY_INFO!F14+COUNTRY_INFO!G14)))),0) -> 0 | AO14: =IF(AND(Z14<>0,Z14<>"Inconnu",Z14<>"Non requis"),IF(COUNTRY_INFO!K14=1,0,IF(COUNTRY_INFO!K14=2,0.2*COUNTRY_INFO!G14/(0.5*COUNTRY_INFO!F14+0.2*COUNTRY_INFO!G14),IF(COUNTRY_INFO!K14=3,COUNTRY_INFO!G14/(COUNTRY_INFO!F14+COUNTRY_INFO!G14)))),0) -> 0 | AP14: =MAX(COUNTRY_INFO!D14*AK14*PROFILE!$G$7,COUNTRY_INFO!D14*AL14*PROFILE!$G$7) -> 3925.71803 | AQ14: =MAX(COUNTRY_INFO!D14*AK14*PROFILE!$G$8,COUNTRY_INFO!D14*AL14*PROFILE!$G$8,COUNTRY_INFO!D14*AM14*PROFILE!$G$8) -> 15253.55596 | AR14: =MAX(COUNTRY_INFO!D14*AK14*PROFILE!$G$9,COUNTRY_INFO!D14*AL14*PROFILE!$G$9,COUNTRY_INFO!D14*AM14*PROFILE!$G$9,IF(AND(DISTRICT!Z14<>"Inconnu",Z14<>"Non requis"),COUNTRY_INFO!P14*DISTRICT!AN14,0)) -> 35543.21346 | AS14: =MAX(COUNTRY_INFO!D14*AK14*PROFILE!$G$10,COUNTRY_INFO!D14*AL14*PROFILE!$G$10,IF(AND(DISTRICT!Z14<>"Inconnu",Z14<>"Non requis"),COUNTRY_INFO!P14*DISTRICT!AO14,0)) -> 77457.51255 | AT14: 132180 | AU14: Y | AV14: =MAX('MDA4'!R14,'T1'!L14,'T2'!J14,T3_R1!K14,T3_R2!K14) -> 0 | AW14: =MAX('MDA1'!K14,'MDA4'!S14,'MDA3'!I14,'MDA3'!L14,'T1'!M14,'T2'!K14,T3_R1!L14,T3_R2!L14) -> 19830.78524 | AX14: =MAX('MDA1'!L14,'MDA4'!T14,'MDA3'!J14,'MDA3'!M14,'T1'!N14,'T2'!L14,T3_R1!M14,T3_R2!M14) -> 43216.21476 | AY14: 63047 | AZ14: =MAX('MDA4'!R14,T14) -> 0 | BA14: =MAX('MDA1'!K14,'MDA4'!S14,'MDA3'!I14,'MDA3'!L14,V14,AD14) -> 19830.78524 | BB14: =MAX('MDA1'!L14,'MDA4'!T14,'MDA3'!J14,'MDA3'!M14,AF14) -> 43216.21476 | BC14: 63047 | BD14: 47.69783628
A15: =IF(COUNTRY_INFO!A15=0," ",COUNTRY_INFO!A15) -> Congo | B15: =IF(COUNTRY_INFO!B15=0," ",COUNTRY_INFO!B15) -> Brazzaville | C15: =IF(COUNTRY_INFO!C15=0," ",COUNTRY_INFO!C15) -> Djiri | D15: =COUNTRY_INFO!M15 -> 0 | G15: =MAX('MDA1'!M15,'MDA4'!U15) -> 0 | H15: =IF(AND(COUNTRY_INFO!H15>0,COUNTRY_INFO!H15<4),IF(D15>MAX('MDA1'!M15,'MDA4'!U15),MAX('MDA1'!M15,'MDA4'!U15),D15),0) -> 0 | I15: =IF(AND(COUNTRY_INFO!H15>0,COUNTRY_INFO!H15<4), IF(G15/D15*100<>0, IF(G15/D15*100>100,100,G15/D15*100), "-"),0) -> 0 | J15: =COUNTRY_INFO!N15 -> 0 | M15: =MAX('MDA1'!M15,MAX('MDA3'!I15,'MDA3'!L15)+MAX('MDA3'!J15,'MDA3'!M15)) -> 0 | N15: =IF(AND(COUNTRY_INFO!I15>0,COUNTRY_INFO!I15<4),IF(J15>MAX('MDA1'!M15,MAX('MDA3'!I15,'MDA3'!L15)+MAX('MDA3'!J15,'MDA3'!M15)),MAX('MDA1'!M15,MAX('MDA3'!I15,'MDA3'!L15)+MAX('MDA3'!J15,'MDA3'!M15)),J15),0) -> 0 | O15: =IF(AND(COUNTRY_INFO!I15>0,COUNTRY_INFO!I15<4), IF(M15/J15*100<>0, IF(M15/J15*100>100,100,M15/J15*100), "-"),0) -> 0 | P15: =COUNTRY_INFO!O15 -> 0 | S15: =SUM(MAX('MDA4'!R15, 'T1'!L15, MAX(T3_R1!K15, T3_R2!K15)), MAX('MDA1'!K15, 'MDA4'!S15, 'T1'!M15, MAX(T3_R1!L15, T3_R2!L15)), MAX('MDA1'!L15, 'MDA4'!T15, 'T1'!N15, MAX(T3_R1!M15, T3_R2!M15))) -> 33652 | T15: =IF(AND(COUNTRY_INFO!J15>1,COUNTRY_INFO!J15<4),IF(COUNTRY_INFO!E15>MAX('MDA4'!R15,'T1'!L15,MAX(T3_R1!K15,T3_R2!K15)),MAX('MDA4'!R15,'T1'!L15,MAX(T3_R1!K15,T3_R2!K15)),COUNTRY_INFO!E15),0) -> 0 | U15: =IF(AND(COUNTRY_INFO!J15>1,COUNTRY_INFO!J15<4), IF(T15/COUNTRY_INFO!E15*100<>0, IF(T15/COUNTRY_INFO!E15*100>100,100,T15/COUNTRY_INFO!E15*100), "-"),0) -> 0 | V15: =IF(AND(COUNTRY_INFO!J15>1,COUNTRY_INFO!J15<4),IF(COUNTRY_INFO!F15>MAX('MDA1'!K15,'MDA4'!S15,'T1'!M15,MAX(T3_R1!L15,T3_R2!L15)),MAX('MDA1'!K15,'MDA4'!S15,'T1'!M15,MAX(T3_R1!L15,T3_R2!L15)),COUNTRY_INFO!F15),0) -> 0 | W15: =IF(AND(COUNTRY_INFO!J15>1,COUNTRY_INFO!J15<4), IF(V15/COUNTRY_INFO!F15*100<>0, IF(V15/COUNTRY_INFO!F15*100>100,100,V15/COUNTRY_INFO!F15*100), "-"),0) -> 0 | X15: 0 | Y15: =IF(AND(COUNTRY_INFO!J15>1,COUNTRY_INFO!J15<4), IF(S15/P15*100<>0, IF(X15/P15*100>100,100,X15/P15*100), "-"),0) -> 0 | Z15: =COUNTRY_INFO!P15 -> 0 | AC15: =MAX('T1'!L15,'T2'!J15)+MAX('T1'!M15,'T2'!K15)+MAX('T1'!N15,'T2'!L15) -> 0 | AD15: =IF(COUNTRY_INFO!K15=1,IF(COUNTRY_INFO!F15*0.33>MAX('T1'!M15,'T2'!K15),MAX('T1'!M15,'T2'!K15),COUNTRY_INFO!F15*0.33),IF(COUNTRY_INFO!K15=2,IF(COUNTRY_INFO!F15*0.5>MAX('T1'!M15,'T2'!K15),MAX('T1'!M15,'T2'!K15),COUNTRY_INFO!F15*0.5),IF(COUNTRY_INFO!K15=3,IF(COUNTRY_INFO!F15>MAX('T1'!M15,'T2'!K15),MAX('T1'!M15,'T2'!K15),COUNTRY_INFO!F15),0))) -> 0 | AE15: =IF(AND(COUNTRY_INFO!K15>0,COUNTRY_INFO!K15<4),IF(Z15>0,IF(COUNTRY_INFO!K15=1, AD15/(COUNTRY_INFO!F15*0.33)*100, IF(COUNTRY_INFO!K15=2, AD15/(COUNTRY_INFO!F15*0.5)*100, IF(COUNTRY_INFO!K15=3, AD15/COUNTRY_INFO!F15*100))),"-"),0) -> 0 | AF15: =IF(COUNTRY_INFO!K15=2,IF(COUNTRY_INFO!G15*0.2>MAX('T1'!N15,'T2'!L15),MAX('T1'!N15,'T2'!L15),COUNTRY_INFO!G15*0.2),IF(COUNTRY_INFO!K15=3,IF(COUNTRY_INFO!G15>MAX('T1'!N15,'T2'!L15),MAX('T1'!N15,'T2'!L15),COUNTRY_INFO!G15),0)) -> 0 | AG15: =IF(AND(COUNTRY_INFO!K15>0,COUNTRY_INFO!K15<4),IF(Z15>0,IF(COUNTRY_INFO!K15=1, 0, IF(COUNTRY_INFO!K15=2, AF15/(COUNTRY_INFO!G15*0.2)*100, IF(COUNTRY_INFO!K15=3, AF15/COUNTRY_INFO!G15*100))),"-"),0) -> 0 | AH15: 0 | AI15: =IF(AND(COUNTRY_INFO!K15>0,COUNTRY_INFO!K15<4), IF(AC15/Z15*100<>0, IF(AH15/Z15*100>100,100,AH15/Z15*100), "-"),0) -> 0 | AK15: =IF(AND(D15<>0, D15<>"Inconnu",D15<>"Interrompu",D15<>"Non requis"),D15/COUNTRY_INFO!D15, 0) -> 0 | AL15: =IF(AND(J15<>0,J15<>"Inconnu",J15<>"Interrompu",J15<>"Non requis"),J15/COUNTRY_INFO!D15, 0) -> 0 | AM15: =IF(AND(P15<>0,P15<>"Inconnu",P15<>"Non requis"),P15/(COUNTRY_INFO!E15+COUNTRY_INFO!F15), 0) -> 0 | AN15: =IF(AND(Z15<>0,Z15<>"Inconnu",Z15<>"Non requis"),IF(COUNTRY_INFO!K15=1,1,IF(COUNTRY_INFO!K15=2,0.5*COUNTRY_INFO!F15/(0.5*COUNTRY_INFO!F15+0.2*COUNTRY_INFO!G15),IF(COUNTRY_INFO!K15=3,COUNTRY_INFO!F15/(COUNTRY_INFO!F15+COUNTRY_INFO!G15)))),0) -> 0 | AO15: =IF(AND(Z15<>0,Z15<>"Inconnu",Z15<>"Non requis"),IF(COUNTRY_INFO!K15=1,0,IF(COUNTRY_INFO!K15=2,0.2*COUNTRY_INFO!G15/(0.5*COUNTRY_INFO!F15+0.2*COUNTRY_INFO!G15),IF(COUNTRY_INFO!K15=3,COUNTRY_INFO!G15/(COUNTRY_INFO!F15+COUNTRY_INFO!G15)))),0) -> 0 | AP15: =MAX(COUNTRY_INFO!D15*AK15*PROFILE!$G$7,COUNTRY_INFO!D15*AL15*PROFILE!$G$7) -> 0 | AQ15: =MAX(COUNTRY_INFO!D15*AK15*PROFILE!$G$8,COUNTRY_INFO!D15*AL15*PROFILE!$G$8,COUNTRY_INFO!D15*AM15*PROFILE!$G$8) -> 0 | AR15: =MAX(COUNTRY_INFO!D15*AK15*PROFILE!$G$9,COUNTRY_INFO!D15*AL15*PROFILE!$G$9,COUNTRY_INFO!D15*AM15*PROFILE!$G$9,IF(AND(DISTRICT!Z15<>"Inconnu",Z15<>"Non requis"),COUNTRY_INFO!P15*DISTRICT!AN15,0)) -> 0 | AS15: =MAX(COUNTRY_INFO!D15*AK15*PROFILE!$G$10,COUNTRY_INFO!D15*AL15*PROFILE!$G$10,IF(AND(DISTRICT!Z15<>"Inconnu",Z15<>"Non requis"),COUNTRY_INFO!P15*DISTRICT!AO15,0)) -> 0 | AT15: 0 | AU15: 0 | AV15: =MAX('MDA4'!R15,'T1'!L15,'T2'!J15,T3_R1!K15,T3_R2!K15) -> 0 | AW15: =MAX('MDA1'!K15,'MDA4'!S15,'MDA3'!I15,'MDA3'!L15,'T1'!M15,'T2'!K15,T3_R1!L15,T3_R2!L15) -> 33640 | AX15: =MAX('MDA1'!L15,'MDA4'!T15,'MDA3'!J15,'MDA3'!M15,'T1'!N15,'T2'!L15,T3_R1!M15,T3_R2!M15) -> 12 | AY15: 33652 | AZ15: =MAX('MDA4'!R15,T15) -> 0 | BA15: =MAX('MDA1'!K15,'MDA4'!S15,'MDA3'!I15,'MDA3'!L15,V15,AD15) -> 0 | BB15: =MAX('MDA1'!L15,'MDA4'!T15,'MDA3'!J15,'MDA3'!M15,AF15) -> 0 | BC15: 0 | BD15: 0
A16: =IF(COUNTRY_INFO!A16=0," ",COUNTRY_INFO!A16) -> Congo | B16: =IF(COUNTRY_INFO!B16=0," ",COUNTRY_INFO!B16) -> Brazzaville | C16: =IF(COUNTRY_INFO!C16=0," ",COUNTRY_INFO!C16) -> Île Mbamou | D16: =COUNTRY_INFO!M16 -> 0 | G16: =MAX('MDA1'!M16,'MDA4'!U16) -> 0 | H16: =IF(AND(COUNTRY_INFO!H16>0,COUNTRY_INFO!H16<4),IF(D16>MAX('MDA1'!M16,'MDA4'!U16),MAX('MDA1'!M16,'MDA4'!U16),D16),0) -> 0 | I16: =IF(AND(COUNTRY_INFO!H16>0,COUNTRY_INFO!H16<4), IF(G16/D16*100<>0, IF(G16/D16*100>100,100,G16/D16*100), "-"),0) -> 0 | J16: =COUNTRY_INFO!N16 -> 0 | M16: =MAX('MDA1'!M16,MAX('MDA3'!I16,'MDA3'!L16)+MAX('MDA3'!J16,'MDA3'!M16)) -> 0 | N16: =IF(AND(COUNTRY_INFO!I16>0,COUNTRY_INFO!I16<4),IF(J16>MAX('MDA1'!M16,MAX('MDA3'!I16,'MDA3'!L16)+MAX('MDA3'!J16,'MDA3'!M16)),MAX('MDA1'!M16,MAX('MDA3'!I16,'MDA3'!L16)+MAX('MDA3'!J16,'MDA3'!M16)),J16),0) -> 0 | O16: =IF(AND(COUNTRY_INFO!I16>0,COUNTRY_INFO!I16<4), IF(M16/J16*100<>0, IF(M16/J16*100>100,100,M16/J16*100), "-"),0) -> 0 | P16: =COUNTRY_INFO!O16 -> Inconnu | S16: =SUM(MAX('MDA4'!R16, 'T1'!L16, MAX(T3_R1!K16, T3_R2!K16)), MAX('MDA1'!K16, 'MDA4'!S16, 'T1'!M16, MAX(T3_R1!L16, T3_R2!L16)), MAX('MDA1'!L16, 'MDA4'!T16, 'T1'!N16, MAX(T3_R1!M16, T3_R2!M16))) -> 1319 | T16: =IF(AND(COUNTRY_INFO!J16>1,COUNTRY_INFO!J16<4),IF(COUNTRY_INFO!E16>MAX('MDA4'!R16,'T1'!L16,MAX(T3_R1!K16,T3_R2!K16)),MAX('MDA4'!R16,'T1'!L16,MAX(T3_R1!K16,T3_R2!K16)),COUNTRY_INFO!E16),0) -> 0 | U16: =IF(AND(COUNTRY_INFO!J16>1,COUNTRY_INFO!J16<4), IF(T16/COUNTRY_INFO!E16*100<>0, IF(T16/COUNTRY_INFO!E16*100>100,100,T16/COUNTRY_INFO!E16*100), "-"),0) -> 0 | V16: =IF(AND(COUNTRY_INFO!J16>1,COUNTRY_INFO!J16<4),IF(COUNTRY_INFO!F16>MAX('MDA1'!K16,'MDA4'!S16,'T1'!M16,MAX(T3_R1!L16,T3_R2!L16)),MAX('MDA1'!K16,'MDA4'!S16,'T1'!M16,MAX(T3_R1!L16,T3_R2!L16)),COUNTRY_INFO!F16),0) -> 0 | W16: =IF(AND(COUNTRY_INFO!J16>1,COUNTRY_INFO!J16<4), IF(V16/COUNTRY_INFO!F16*100<>0, IF(V16/COUNTRY_INFO!F16*100>100,100,V16/COUNTRY_INFO!F16*100), "-"),0) -> 0 | X16: 0 | Y16: =IF(AND(COUNTRY_INFO!J16>1,COUNTRY_INFO!J16<4), IF(S16/P16*100<>0, IF(X16/P16*100>100,100,X16/P16*100), "-"),0) -> 0 | Z16: =COUNTRY_INFO!P16 -> Inconnu | AC16: =MAX('T1'!L16,'T2'!J16)+MAX('T1'!M16,'T2'!K16)+MAX('T1'!N16,'T2'!L16) -> 0 | AD16: =IF(COUNTRY_INFO!K16=1,IF(COUNTRY_INFO!F16*0.33>MAX('T1'!M16,'T2'!K16),MAX('T1'!M16,'T2'!K16),COUNTRY_INFO!F16*0.33),IF(COUNTRY_INFO!K16=2,IF(COUNTRY_INFO!F16*0.5>MAX('T1'!M16,'T2'!K16),MAX('T1'!M16,'T2'!K16),COUNTRY_INFO!F16*0.5),IF(COUNTRY_INFO!K16=3,IF(COUNTRY_INFO!F16>MAX('T1'!M16,'T2'!K16),MAX('T1'!M16,'T2'!K16),COUNTRY_INFO!F16),0))) -> 0 | AE16: =IF(AND(COUNTRY_INFO!K16>0,COUNTRY_INFO!K16<4),IF(Z16>0,IF(COUNTRY_INFO!K16=1, AD16/(COUNTRY_INFO!F16*0.33)*100, IF(COUNTRY_INFO!K16=2, AD16/(COUNTRY_INFO!F16*0.5)*100, IF(COUNTRY_INFO!K16=3, AD16/COUNTRY_INFO!F16*100))),"-"),0) -> 0 | AF16: =IF(COUNTRY_INFO!K16=2,IF(COUNTRY_INFO!G16*0.2>MAX('T1'!N16,'T2'!L16),MAX('T1'!N16,'T2'!L16),COUNTRY_INFO!G16*0.2),IF(COUNTRY_INFO!K16=3,IF(COUNTRY_INFO!G16>MAX('T1'!N16,'T2'!L16),MAX('T1'!N16,'T2'!L16),COUNTRY_INFO!G16),0)) -> 0 | AG16: =IF(AND(COUNTRY_INFO!K16>0,COUNTRY_INFO!K16<4),IF(Z16>0,IF(COUNTRY_INFO!K16=1, 0, IF(COUNTRY_INFO!K16=2, AF16/(COUNTRY_INFO!G16*0.2)*100, IF(COUNTRY_INFO!K16=3, AF16/COUNTRY_INFO!G16*100))),"-"),0) -> 0 | AH16: 0 | AI16: =IF(AND(COUNTRY_INFO!K16>0,COUNTRY_INFO!K16<4), IF(AC16/Z16*100<>0, IF(AH16/Z16*100>100,100,AH16/Z16*100), "-"),0) -> 0 | AK16: =IF(AND(D16<>0, D16<>"Inconnu",D16<>"Interrompu",D16<>"Non requis"),D16/COUNTRY_INFO!D16, 0) -> 0 | AL16: =IF(AND(J16<>0,J16<>"Inconnu",J16<>"Interrompu",J16<>"Non requis"),J16/COUNTRY_INFO!D16, 0) -> 0 | AM16: =IF(AND(P16<>0,P16<>"Inconnu",P16<>"Non requis"),P16/(COUNTRY_INFO!E16+COUNTRY_INFO!F16), 0) -> 0 | AN16: =IF(AND(Z16<>0,Z16<>"Inconnu",Z16<>"Non requis"),IF(COUNTRY_INFO!K16=1,1,IF(COUNTRY_INFO!K16=2,0.5*COUNTRY_INFO!F16/(0.5*COUNTRY_INFO!F16+0.2*COUNTRY_INFO!G16),IF(COUNTRY_INFO!K16=3,COUNTRY_INFO!F16/(COUNTRY_INFO!F16+COUNTRY_INFO!G16)))),0) -> 0 | AO16: =IF(AND(Z16<>0,Z16<>"Inconnu",Z16<>"Non requis"),IF(COUNTRY_INFO!K16=1,0,IF(COUNTRY_INFO!K16=2,0.2*COUNTRY_INFO!G16/(0.5*COUNTRY_INFO!F16+0.2*COUNTRY_INFO!G16),IF(COUNTRY_INFO!K16=3,COUNTRY_INFO!G16/(COUNTRY_INFO!F16+COUNTRY_INFO!G16)))),0) -> 0 | AP16: =MAX(COUNTRY_INFO!D16*AK16*PROFILE!$G$7,COUNTRY_INFO!D16*AL16*PROFILE!$G$7) -> 0 | AQ16: =MAX(COUNTRY_INFO!D16*AK16*PROFILE!$G$8,COUNTRY_INFO!D16*AL16*PROFILE!$G$8,COUNTRY_INFO!D16*AM16*PROFILE!$G$8) -> 0 | AR16: =MAX(COUNTRY_INFO!D16*AK16*PROFILE!$G$9,COUNTRY_INFO!D16*AL16*PROFILE!$G$9,COUNTRY_INFO!D16*AM16*PROFILE!$G$9,IF(AND(DISTRICT!Z16<>"Inconnu",Z16<>"Non requis"),COUNTRY_INFO!P16*DISTRICT!AN16,0)) -> 0 | AS16: =MAX(COUNTRY_INFO!D16*AK16*PROFILE!$G$10,COUNTRY_INFO!D16*AL16*PROFILE!$G$10,IF(AND(DISTRICT!Z16<>"Inconnu",Z16<>"Non requis"),COUNTRY_INFO!P16*DISTRICT!AO16,0)) -> 0 | AT16: 0 | AU16: 0 | AV16: =MAX('MDA4'!R16,'T1'!L16,'T2'!J16,T3_R1!K16,T3_R2!K16) -> 0 | AW16: =MAX('MDA1'!K16,'MDA4'!S16,'MDA3'!I16,'MDA3'!L16,'T1'!M16,'T2'!K16,T3_R1!L16,T3_R2!L16) -> 1319 | AX16: =MAX('MDA1'!L16,'MDA4'!T16,'MDA3'!J16,'MDA3'!M16,'T1'!N16,'T2'!L16,T3_R1!M16,T3_R2!M16) -> 0 | AY16: 1319 | AZ16: =MAX('MDA4'!R16,T16) -> 0 | BA16: =MAX('MDA1'!K16,'MDA4'!S16,'MDA3'!I16,'MDA3'!L16,V16,AD16) -> 0 | BB16: =MAX('MDA1'!L16,'MDA4'!T16,'MDA3'!J16,'MDA3'!M16,AF16) -> 0 | BC16: 0 | BD16: 0
A17: =IF(COUNTRY_INFO!A17=0," ",COUNTRY_INFO!A17) -> Congo | B17: =IF(COUNTRY_INFO!B17=0," ",COUNTRY_INFO!B17) -> Brazzaville | C17: =IF(COUNTRY_INFO!C17=0," ",COUNTRY_INFO!C17) -> Madibou | D17: =COUNTRY_INFO!M17 -> 0 | G17: =MAX('MDA1'!M17,'MDA4'!U17) -> 0 | H17: =IF(AND(COUNTRY_INFO!H17>0,COUNTRY_INFO!H17<4),IF(D17>MAX('MDA1'!M17,'MDA4'!U17),MAX('MDA1'!M17,'MDA4'!U17),D17),0) -> 0 | I17: =IF(AND(COUNTRY_INFO!H17>0,COUNTRY_INFO!H17<4), IF(G17/D17*100<>0, IF(G17/D17*100>100,100,G17/D17*100), "-"),0) -> 0 | J17: =COUNTRY_INFO!N17 -> 104780 | M17: =MAX('MDA1'!M17,MAX('MDA3'!I17,'MDA3'!L17)+MAX('MDA3'!J17,'MDA3'!M17)) -> 64623 | N17: =IF(AND(COUNTRY_INFO!I17>0,COUNTRY_INFO!I17<4),IF(J17>MAX('MDA1'!M17,MAX('MDA3'!I17,'MDA3'!L17)+MAX('MDA3'!J17,'MDA3'!M17)),MAX('MDA1'!M17,MAX('MDA3'!I17,'MDA3'!L17)+MAX('MDA3'!J17,'MDA3'!M17)),J17),0) -> 64623 | O17: =IF(AND(COUNTRY_INFO!I17>0,COUNTRY_INFO!I17<4), IF(M17/J17*100<>0, IF(M17/J17*100>100,100,M17/J17*100), "-"),0) -> 61.67493797 | P17: =COUNTRY_INFO!O17 -> 0 | S17: =SUM(MAX('MDA4'!R17, 'T1'!L17, MAX(T3_R1!K17, T3_R2!K17)), MAX('MDA1'!K17, 'MDA4'!S17, 'T1'!M17, MAX(T3_R1!L17, T3_R2!L17)), MAX('MDA1'!L17, 'MDA4'!T17, 'T1'!N17, MAX(T3_R1!M17, T3_R2!M17))) -> 45685 | T17: =IF(AND(COUNTRY_INFO!J17>1,COUNTRY_INFO!J17<4),IF(COUNTRY_INFO!E17>MAX('MDA4'!R17,'T1'!L17,MAX(T3_R1!K17,T3_R2!K17)),MAX('MDA4'!R17,'T1'!L17,MAX(T3_R1!K17,T3_R2!K17)),COUNTRY_INFO!E17),0) -> 0 | U17: =IF(AND(COUNTRY_INFO!J17>1,COUNTRY_INFO!J17<4), IF(T17/COUNTRY_INFO!E17*100<>0, IF(T17/COUNTRY_INFO!E17*100>100,100,T17/COUNTRY_INFO!E17*100), "-"),0) -> 0 | V17: =IF(AND(COUNTRY_INFO!J17>1,COUNTRY_INFO!J17<4),IF(COUNTRY_INFO!F17>MAX('MDA1'!K17,'MDA4'!S17,'T1'!M17,MAX(T3_R1!L17,T3_R2!L17)),MAX('MDA1'!K17,'MDA4'!S17,'T1'!M17,MAX(T3_R1!L17,T3_R2!L17)),COUNTRY_INFO!F17),0) -> 0 | W17: =IF(AND(COUNTRY_INFO!J17>1,COUNTRY_INFO!J17<4), IF(V17/COUNTRY_INFO!F17*100<>0, IF(V17/COUNTRY_INFO!F17*100>100,100,V17/COUNTRY_INFO!F17*100), "-"),0) -> 0 | X17: 0 | Y17: =IF(AND(COUNTRY_INFO!J17>1,COUNTRY_INFO!J17<4), IF(S17/P17*100<>0, IF(X17/P17*100>100,100,X17/P17*100), "-"),0) -> 0 | Z17: =COUNTRY_INFO!P17 -> 0 | AC17: =MAX('T1'!L17,'T2'!J17)+MAX('T1'!M17,'T2'!K17)+MAX('T1'!N17,'T2'!L17) -> 0 | AD17: =IF(COUNTRY_INFO!K17=1,IF(COUNTRY_INFO!F17*0.33>MAX('T1'!M17,'T2'!K17),MAX('T1'!M17,'T2'!K17),COUNTRY_INFO!F17*0.33),IF(COUNTRY_INFO!K17=2,IF(COUNTRY_INFO!F17*0.5>MAX('T1'!M17,'T2'!K17),MAX('T1'!M17,'T2'!K17),COUNTRY_INFO!F17*0.5),IF(COUNTRY_INFO!K17=3,IF(COUNTRY_INFO!F17>MAX('T1'!M17,'T2'!K17),MAX('T1'!M17,'T2'!K17),COUNTRY_INFO!F17),0))) -> 0 | AE17: =IF(AND(COUNTRY_INFO!K17>0,COUNTRY_INFO!K17<4),IF(Z17>0,IF(COUNTRY_INFO!K17=1, AD17/(COUNTRY_INFO!F17*0.33)*100, IF(COUNTRY_INFO!K17=2, AD17/(COUNTRY_INFO!F17*0.5)*100, IF(COUNTRY_INFO!K17=3, AD17/COUNTRY_INFO!F17*100))),"-"),0) -> 0 | AF17: =IF(COUNTRY_INFO!K17=2,IF(COUNTRY_INFO!G17*0.2>MAX('T1'!N17,'T2'!L17),MAX('T1'!N17,'T2'!L17),COUNTRY_INFO!G17*0.2),IF(COUNTRY_INFO!K17=3,IF(COUNTRY_INFO!G17>MAX('T1'!N17,'T2'!L17),MAX('T1'!N17,'T2'!L17),COUNTRY_INFO!G17),0)) -> 0 | AG17: =IF(AND(COUNTRY_INFO!K17>0,COUNTRY_INFO!K17<4),IF(Z17>0,IF(COUNTRY_INFO!K17=1, 0, IF(COUNTRY_INFO!K17=2, AF17/(COUNTRY_INFO!G17*0.2)*100, IF(COUNTRY_INFO!K17=3, AF17/COUNTRY_INFO!G17*100))),"-"),0) -> 0 | AH17: 0 | AI17: =IF(AND(COUNTRY_INFO!K17>0,COUNTRY_INFO!K17<4), IF(AC17/Z17*100<>0, IF(AH17/Z17*100>100,100,AH17/Z17*100), "-"),0) -> 0 | AK17: =IF(AND(D17<>0, D17<>"Inconnu",D17<>"Interrompu",D17<>"Non requis"),D17/COUNTRY_INFO!D17, 0) -> 0 | AL17: =IF(AND(J17<>0,J17<>"Inconnu",J17<>"Interrompu",J17<>"Non requis"),J17/COUNTRY_INFO!D17, 0) -> 0.5421431158 | AM17: =IF(AND(P17<>0,P17<>"Inconnu",P17<>"Non requis"),P17/(COUNTRY_INFO!E17+COUNTRY_INFO!F17), 0) -> 0 | AN17: =IF(AND(Z17<>0,Z17<>"Inconnu",Z17<>"Non requis"),IF(COUNTRY_INFO!K17=1,1,IF(COUNTRY_INFO!K17=2,0.5*COUNTRY_INFO!F17/(0.5*COUNTRY_INFO!F17+0.2*COUNTRY_INFO!G17),IF(COUNTRY_INFO!K17=3,COUNTRY_INFO!F17/(COUNTRY_INFO!F17+COUNTRY_INFO!G17)))),0) -> 0 | AO17: =IF(AND(Z17<>0,Z17<>"Inconnu",Z17<>"Non requis"),IF(COUNTRY_INFO!K17=1,0,IF(COUNTRY_INFO!K17=2,0.2*COUNTRY_INFO!G17/(0.5*COUNTRY_INFO!F17+0.2*COUNTRY_INFO!G17),IF(COUNTRY_INFO!K17=3,COUNTRY_INFO!G17/(COUNTRY_INFO!F17+COUNTRY_INFO!G17)))),0) -> 0 | AP17: =MAX(COUNTRY_INFO!D17*AK17*PROFILE!$G$7,COUNTRY_INFO!D17*AL17*PROFILE!$G$7) -> 3111.943828 | AQ17: =MAX(COUNTRY_INFO!D17*AK17*PROFILE!$G$8,COUNTRY_INFO!D17*AL17*PROFILE!$G$8,COUNTRY_INFO!D17*AM17*PROFILE!$G$8) -> 12091.59929 | AR17: =MAX(COUNTRY_INFO!D17*AK17*PROFILE!$G$9,COUNTRY_INFO!D17*AL17*PROFILE!$G$9,COUNTRY_INFO!D17*AM17*PROFILE!$G$9,IF(AND(DISTRICT!Z17<>"Inconnu",Z17<>"Non requis"),COUNTRY_INFO!P17*DISTRICT!AN17,0)) -> 28175.35108 | AS17: =MAX(COUNTRY_INFO!D17*AK17*PROFILE!$G$10,COUNTRY_INFO!D17*AL17*PROFILE!$G$10,IF(AND(DISTRICT!Z17<>"Inconnu",Z17<>"Non requis"),COUNTRY_INFO!P17*DISTRICT!AO17,0)) -> 61401.1058 | AT17: 104780 | AU17: Y | AV17: =MAX('MDA4'!R17,'T1'!L17,'T2'!J17,T3_R1!K17,T3_R2!K17) -> 0 | AW17: =MAX('MDA1'!K17,'MDA4'!S17,'MDA3'!I17,'MDA3'!L17,'T1'!M17,'T2'!K17,T3_R1!L17,T3_R2!L17) -> 44662 | AX17: =MAX('MDA1'!L17,'MDA4'!T17,'MDA3'!J17,'MDA3'!M17,'T1'!N17,'T2'!L17,T3_R1!M17,T3_R2!M17) -> 44296.50018 | AY17: 88958.50018 | AZ17: =MAX('MDA4'!R17,T17) -> 0 | BA17: =MAX('MDA1'!K17,'MDA4'!S17,'MDA3'!I17,'MDA3'!L17,V17,AD17) -> 20326.49982 | BB17: =MAX('MDA1'!L17,'MDA4'!T17,'MDA3'!J17,'MDA3'!M17,AF17) -> 44296.50018 | BC17: 64623 | BD17: 61.67493797
A18: =IF(COUNTRY_INFO!A18=0," ",COUNTRY_INFO!A18) -> Congo | B18: =IF(COUNTRY_INFO!B18=0," ",COUNTRY_INFO!B18) -> Brazzaville | C18: =IF(COUNTRY_INFO!C18=0," ",COUNTRY_INFO!C18) -> Makélékélé | D18: =COUNTRY_INFO!M18 -> 0 | G18: =MAX('MDA1'!M18,'MDA4'!U18) -> 0 | H18: =IF(AND(COUNTRY_INFO!H18>0,COUNTRY_INFO!H18<4),IF(D18>MAX('MDA1'!M18,'MDA4'!U18),MAX('MDA1'!M18,'MDA4'!U18),D18),0) -> 0 | I18: =IF(AND(COUNTRY_INFO!H18>0,COUNTRY_INFO!H18<4), IF(G18/D18*100<>0, IF(G18/D18*100>100,100,G18/D18*100), "-"),0) -> 0 | J18: =COUNTRY_INFO!N18 -> 101711 | M18: =MAX('MDA1'!M18,MAX('MDA3'!I18,'MDA3'!L18)+MAX('MDA3'!J18,'MDA3'!M18)) -> 55879 | N18: =IF(AND(COUNTRY_INFO!I18>0,COUNTRY_INFO!I18<4),IF(J18>MAX('MDA1'!M18,MAX('MDA3'!I18,'MDA3'!L18)+MAX('MDA3'!J18,'MDA3'!M18)),MAX('MDA1'!M18,MAX('MDA3'!I18,'MDA3'!L18)+MAX('MDA3'!J18,'MDA3'!M18)),J18),0) -> 55879 | O18: =IF(AND(COUNTRY_INFO!I18>0,COUNTRY_INFO!I18<4), IF(M18/J18*100<>0, IF(M18/J18*100>100,100,M18/J18*100), "-"),0) -> 54.93899382 | P18: =COUNTRY_INFO!O18 -> 0 | S18: =SUM(MAX('MDA4'!R18, 'T1'!L18, MAX(T3_R1!K18, T3_R2!K18)), MAX('MDA1'!K18, 'MDA4'!S18, 'T1'!M18, MAX(T3_R1!L18, T3_R2!L18)), MAX('MDA1'!L18, 'MDA4'!T18, 'T1'!N18, MAX(T3_R1!M18, T3_R2!M18))) -> 32173 | T18: =IF(AND(COUNTRY_INFO!J18>1,COUNTRY_INFO!J18<4),IF(COUNTRY_INFO!E18>MAX('MDA4'!R18,'T1'!L18,MAX(T3_R1!K18,T3_R2!K18)),MAX('MDA4'!R18,'T1'!L18,MAX(T3_R1!K18,T3_R2!K18)),COUNTRY_INFO!E18),0) -> 0 | U18: =IF(AND(COUNTRY_INFO!J18>1,COUNTRY_INFO!J18<4), IF(T18/COUNTRY_INFO!E18*100<>0, IF(T18/COUNTRY_INFO!E18*100>100,100,T18/COUNTRY_INFO!E18*100), "-"),0) -> 0 | V18: =IF(AND(COUNTRY_INFO!J18>1,COUNTRY_INFO!J18<4),IF(COUNTRY_INFO!F18>MAX('MDA1'!K18,'MDA4'!S18,'T1'!M18,MAX(T3_R1!L18,T3_R2!L18)),MAX('MDA1'!K18,'MDA4'!S18,'T1'!M18,MAX(T3_R1!L18,T3_R2!L18)),COUNTRY_INFO!F18),0) -> 0 | W18: =IF(AND(COUNTRY_INFO!J18>1,COUNTRY_INFO!J18<4), IF(V18/COUNTRY_INFO!F18*100<>0, IF(V18/COUNTRY_INFO!F18*100>100,100,V18/COUNTRY_INFO!F18*100), "-"),0) -> 0 | X18: 0 | Y18: =IF(AND(COUNTRY_INFO!J18>1,COUNTRY_INFO!J18<4), IF(S18/P18*100<>0, IF(X18/P18*100>100,100,X18/P18*100), "-"),0) -> 0 | Z18: =COUNTRY_INFO!P18 -> 22266.42 | AC18: =MAX('T1'!L18,'T2'!J18)+MAX('T1'!M18,'T2'!K18)+MAX('T1'!N18,'T2'!L18) -> 0 | AD18: =IF(COUNTRY_INFO!K18=1,IF(COUNTRY_INFO!F18*0.33>MAX('T1'!M18,'T2'!K18),MAX('T1'!M18,'T2'!K18),COUNTRY_INFO!F18*0.33),IF(COUNTRY_INFO!K18=2,IF(COUNTRY_INFO!F18*0.5>MAX('T1'!M18,'T2'!K18),MAX('T1'!M18,'T2'!K18),COUNTRY_INFO!F18*0.5),IF(COUNTRY_INFO!K18=3,IF(COUNTRY_INFO!F18>MAX('T1'!M18,'T2'!K18),MAX('T1'!M18,'T2'!K18),COUNTRY_INFO!F18),0))) -> 0 | AE18: =IF(AND(COUNTRY_INFO!K18>0,COUNTRY_INFO!K18<4),IF(Z18>0,IF(COUNTRY_INFO!K18=1, AD18/(COUNTRY_INFO!F18*0.33)*100, IF(COUNTRY_INFO!K18=2, AD18/(COUNTRY_INFO!F18*0.5)*100, IF(COUNTRY_INFO!K18=3, AD18/COUNTRY_INFO!F18*100))),"-"),0) -> 0 | AF18: =IF(COUNTRY_INFO!K18=2,IF(COUNTRY_INFO!G18*0.2>MAX('T1'!N18,'T2'!L18),MAX('T1'!N18,'T2'!L18),COUNTRY_INFO!G18*0.2),IF(COUNTRY_INFO!K18=3,IF(COUNTRY_INFO!G18>MAX('T1'!N18,'T2'!L18),MAX('T1'!N18,'T2'!L18),COUNTRY_INFO!G18),0)) -> 0 | AG18: =IF(AND(COUNTRY_INFO!K18>0,COUNTRY_INFO!K18<4),IF(Z18>0,IF(COUNTRY_INFO!K18=1, 0, IF(COUNTRY_INFO!K18=2, AF18/(COUNTRY_INFO!G18*0.2)*100, IF(COUNTRY_INFO!K18=3, AF18/COUNTRY_INFO!G18*100))),"-"),0) -> 0 | AH18: 0 | AI18: =IF(AND(COUNTRY_INFO!K18>0,COUNTRY_INFO!K18<4), IF(AC18/Z18*100<>0, IF(AH18/Z18*100>100,100,AH18/Z18*100), "-"),0) -> - | AK18: =IF(AND(D18<>0, D18<>"Inconnu",D18<>"Interrompu",D18<>"Non requis"),D18/COUNTRY_INFO!D18, 0) -> 0 | AL18: =IF(AND(J18<>0,J18<>"Inconnu",J18<>"Interrompu",J18<>"Non requis"),J18/COUNTRY_INFO!D18, 0) -> 0.405342611 | AM18: =IF(AND(P18<>0,P18<>"Inconnu",P18<>"Non requis"),P18/(COUNTRY_INFO!E18+COUNTRY_INFO!F18), 0) -> 0 | AN18: =IF(AND(Z18<>0,Z18<>"Inconnu",Z18<>"Non requis"),IF(COUNTRY_INFO!K18=1,1,IF(COUNTRY_INFO!K18=2,0.5*COUNTRY_INFO!F18/(0.5*COUNTRY_INFO!F18+0.2*COUNTRY_INFO!G18),IF(COUNTRY_INFO!K18=3,COUNTRY_INFO!F18/(COUNTRY_INFO!F18+COUNTRY_INFO!G18)))),0) -> 1 | AO18: =IF(AND(Z18<>0,Z18<>"Inconnu",Z18<>"Non requis"),IF(COUNTRY_INFO!K18=1,0,IF(COUNTRY_INFO!K18=2,0.2*COUNTRY_INFO!G18/(0.5*COUNTRY_INFO!F18+0.2*COUNTRY_INFO!G18),IF(COUNTRY_INFO!K18=3,COUNTRY_INFO!G18/(COUNTRY_INFO!F18+COUNTRY_INFO!G18)))),0) -> 0 | AP18: =MAX(COUNTRY_INFO!D18*AK18*PROFILE!$G$7,COUNTRY_INFO!D18*AL18*PROFILE!$G$7) -> 3020.795177 | AQ18: =MAX(COUNTRY_INFO!D18*AK18*PROFILE!$G$8,COUNTRY_INFO!D18*AL18*PROFILE!$G$8,COUNTRY_INFO!D18*AM18*PROFILE!$G$8) -> 11737.43706 | AR18: =MAX(COUNTRY_INFO!D18*AK18*PROFILE!$G$9,COUNTRY_INFO!D18*AL18*PROFILE!$G$9,COUNTRY_INFO!D18*AM18*PROFILE!$G$9,IF(AND(DISTRICT!Z18<>"Inconnu",Z18<>"Non requis"),COUNTRY_INFO!P18*DISTRICT!AN18,0)) -> 27350.09672 | AS18: =MAX(COUNTRY_INFO!D18*AK18*PROFILE!$G$10,COUNTRY_INFO!D18*AL18*PROFILE!$G$10,IF(AND(DISTRICT!Z18<>"Inconnu",Z18<>"Non requis"),COUNTRY_INFO!P18*DISTRICT!AO18,0)) -> 59602.67105 | AT18: 101711 | AU18: 0 | AV18: =MAX('MDA4'!R18,'T1'!L18,'T2'!J18,T3_R1!K18,T3_R2!K18) -> 0 | AW18: =MAX('MDA1'!K18,'MDA4'!S18,'MDA3'!I18,'MDA3'!L18,'T1'!M18,'T2'!K18,T3_R1!L18,T3_R2!L18) -> 31955 | AX18: =MAX('MDA1'!L18,'MDA4'!T18,'MDA3'!J18,'MDA3'!M18,'T1'!N18,'T2'!L18,T3_R1!M18,T3_R2!M18) -> 38302.83542 | AY18: 70257.83542 | AZ18: =MAX('MDA4'!R18,T18) -> 0 | BA18: =MAX('MDA1'!K18,'MDA4'!S18,'MDA3'!I18,'MDA3'!L18,V18,AD18) -> 17576.16458 | BB18: =MAX('MDA1'!L18,'MDA4'!T18,'MDA3'!J18,'MDA3'!M18,AF18) -> 38302.83542 | BC18: 55879 | BD18: 54.93899382
A19: =IF(COUNTRY_INFO!A19=0," ",COUNTRY_INFO!A19) -> Congo | B19: =IF(COUNTRY_INFO!B19=0," ",COUNTRY_INFO!B19) -> Brazzaville | C19: =IF(COUNTRY_INFO!C19=0," ",COUNTRY_INFO!C19) -> Mfilou | D19: =COUNTRY_INFO!M19 -> 0 | G19: =MAX('MDA1'!M19,'MDA4'!U19) -> 0 | H19: =IF(AND(COUNTRY_INFO!H19>0,COUNTRY_INFO!H19<4),IF(D19>MAX('MDA1'!M19,'MDA4'!U19),MAX('MDA1'!M19,'MDA4'!U19),D19),0) -> 0 | I19: =IF(AND(COUNTRY_INFO!H19>0,COUNTRY_INFO!H19<4), IF(G19/D19*100<>0, IF(G19/D19*100>100,100,G19/D19*100), "-"),0) -> 0 | J19: =COUNTRY_INFO!N19 -> 94117 | M19: =MAX('MDA1'!M19,MAX('MDA3'!I19,'MDA3'!L19)+MAX('MDA3'!J19,'MDA3'!M19)) -> 82654 | N19: =IF(AND(COUNTRY_INFO!I19>0,COUNTRY_INFO!I19<4),IF(J19>MAX('MDA1'!M19,MAX('MDA3'!I19,'MDA3'!L19)+MAX('MDA3'!J19,'MDA3'!M19)),MAX('MDA1'!M19,MAX('MDA3'!I19,'MDA3'!L19)+MAX('MDA3'!J19,'MDA3'!M19)),J19),0) -> 82654 | O19: =IF(AND(COUNTRY_INFO!I19>0,COUNTRY_INFO!I19<4), IF(M19/J19*100<>0, IF(M19/J19*100>100,100,M19/J19*100), "-"),0) -> 87.82047877 | P19: =COUNTRY_INFO!O19 -> 0 | S19: =SUM(MAX('MDA4'!R19, 'T1'!L19, MAX(T3_R1!K19, T3_R2!K19)), MAX('MDA1'!K19, 'MDA4'!S19, 'T1'!M19, MAX(T3_R1!L19, T3_R2!L19)), MAX('MDA1'!L19, 'MDA4'!T19, 'T1'!N19, MAX(T3_R1!M19, T3_R2!M19))) -> 32812 | T19: =IF(AND(COUNTRY_INFO!J19>1,COUNTRY_INFO!J19<4),IF(COUNTRY_INFO!E19>MAX('MDA4'!R19,'T1'!L19,MAX(T3_R1!K19,T3_R2!K19)),MAX('MDA4'!R19,'T1'!L19,MAX(T3_R1!K19,T3_R2!K19)),COUNTRY_INFO!E19),0) -> 0 | U19: =IF(AND(COUNTRY_INFO!J19>1,COUNTRY_INFO!J19<4), IF(T19/COUNTRY_INFO!E19*100<>0, IF(T19/COUNTRY_INFO!E19*100>100,100,T19/COUNTRY_INFO!E19*100), "-"),0) -> 0 | V19: =IF(AND(COUNTRY_INFO!J19>1,COUNTRY_INFO!J19<4),IF(COUNTRY_INFO!F19>MAX('MDA1'!K19,'MDA4'!S19,'T1'!M19,MAX(T3_R1!L19,T3_R2!L19)),MAX('MDA1'!K19,'MDA4'!S19,'T1'!M19,MAX(T3_R1!L19,T3_R2!L19)),COUNTRY_INFO!F19),0) -> 0 | W19: =IF(AND(COUNTRY_INFO!J19>1,COUNTRY_INFO!J19<4), IF(V19/COUNTRY_INFO!F19*100<>0, IF(V19/COUNTRY_INFO!F19*100>100,100,V19/COUNTRY_INFO!F19*100), "-"),0) -> 0 | X19: 0 | Y19: =IF(AND(COUNTRY_INFO!J19>1,COUNTRY_INFO!J19<4), IF(S19/P19*100<>0, IF(X19/P19*100>100,100,X19/P19*100), "-"),0) -> 0 | Z19: =COUNTRY_INFO!P19 -> 0 | AC19: =MAX('T1'!L19,'T2'!J19)+MAX('T1'!M19,'T2'!K19)+MAX('T1'!N19,'T2'!L19) -> 0 | AD19: =IF(COUNTRY_INFO!K19=1,IF(COUNTRY_INFO!F19*0.33>MAX('T1'!M19,'T2'!K19),MAX('T1'!M19,'T2'!K19),COUNTRY_INFO!F19*0.33),IF(COUNTRY_INFO!K19=2,IF(COUNTRY_INFO!F19*0.5>MAX('T1'!M19,'T2'!K19),MAX('T1'!M19,'T2'!K19),COUNTRY_INFO!F19*0.5),IF(COUNTRY_INFO!K19=3,IF(COUNTRY_INFO!F19>MAX('T1'!M19,'T2'!K19),MAX('T1'!M19,'T2'!K19),COUNTRY_INFO!F19),0))) -> 0 | AE19: =IF(AND(COUNTRY_INFO!K19>0,COUNTRY_INFO!K19<4),IF(Z19>0,IF(COUNTRY_INFO!K19=1, AD19/(COUNTRY_INFO!F19*0.33)*100, IF(COUNTRY_INFO!K19=2, AD19/(COUNTRY_INFO!F19*0.5)*100, IF(COUNTRY_INFO!K19=3, AD19/COUNTRY_INFO!F19*100))),"-"),0) -> 0 | AF19: =IF(COUNTRY_INFO!K19=2,IF(COUNTRY_INFO!G19*0.2>MAX('T1'!N19,'T2'!L19),MAX('T1'!N19,'T2'!L19),COUNTRY_INFO!G19*0.2),IF(COUNTRY_INFO!K19=3,IF(COUNTRY_INFO!G19>MAX('T1'!N19,'T2'!L19),MAX('T1'!N19,'T2'!L19),COUNTRY_INFO!G19),0)) -> 0 | AG19: =IF(AND(COUNTRY_INFO!K19>0,COUNTRY_INFO!K19<4),IF(Z19>0,IF(COUNTRY_INFO!K19=1, 0, IF(COUNTRY_INFO!K19=2, AF19/(COUNTRY_INFO!G19*0.2)*100, IF(COUNTRY_INFO!K19=3, AF19/COUNTRY_INFO!G19*100))),"-"),0) -> 0 | AH19: 0 | AI19: =IF(AND(COUNTRY_INFO!K19>0,COUNTRY_INFO!K19<4), IF(AC19/Z19*100<>0, IF(AH19/Z19*100>100,100,AH19/Z19*100), "-"),0) -> 0 | AK19: =IF(AND(D19<>0, D19<>"Inconnu",D19<>"Interrompu",D19<>"Non requis"),D19/COUNTRY_INFO!D19, 0) -> 0 | AL19: =IF(AND(J19<>0,J19<>"Inconnu",J19<>"Interrompu",J19<>"Non requis"),J19/COUNTRY_INFO!D19, 0) -> 0.3981765876 | AM19: =IF(AND(P19<>0,P19<>"Inconnu",P19<>"Non requis"),P19/(COUNTRY_INFO!E19+COUNTRY_INFO!F19), 0) -> 0 | AN19: =IF(AND(Z19<>0,Z19<>"Inconnu",Z19<>"Non requis"),IF(COUNTRY_INFO!K19=1,1,IF(COUNTRY_INFO!K19=2,0.5*COUNTRY_INFO!F19/(0.5*COUNTRY_INFO!F19+0.2*COUNTRY_INFO!G19),IF(COUNTRY_INFO!K19=3,COUNTRY_INFO!F19/(COUNTRY_INFO!F19+COUNTRY_INFO!G19)))),0) -> 0 | AO19: =IF(AND(Z19<>0,Z19<>"Inconnu",Z19<>"Non requis"),IF(COUNTRY_INFO!K19=1,0,IF(COUNTRY_INFO!K19=2,0.2*COUNTRY_INFO!G19/(0.5*COUNTRY_INFO!F19+0.2*COUNTRY_INFO!G19),IF(COUNTRY_INFO!K19=3,COUNTRY_INFO!G19/(COUNTRY_INFO!F19+COUNTRY_INFO!G19)))),0) -> 0 | AP19: =MAX(COUNTRY_INFO!D19*AK19*PROFILE!$G$7,COUNTRY_INFO!D19*AL19*PROFILE!$G$7) -> 2795.254984 | AQ19: =MAX(COUNTRY_INFO!D19*AK19*PROFILE!$G$8,COUNTRY_INFO!D19*AL19*PROFILE!$G$8,COUNTRY_INFO!D19*AM19*PROFILE!$G$8) -> 10861.09038 | AR19: =MAX(COUNTRY_INFO!D19*AK19*PROFILE!$G$9,COUNTRY_INFO!D19*AL19*PROFILE!$G$9,COUNTRY_INFO!D19*AM19*PROFILE!$G$9,IF(AND(DISTRICT!Z19<>"Inconnu",Z19<>"Non requis"),COUNTRY_INFO!P19*DISTRICT!AN19,0)) -> 25308.06946 | AS19: =MAX(COUNTRY_INFO!D19*AK19*PROFILE!$G$10,COUNTRY_INFO!D19*AL19*PROFILE!$G$10,IF(AND(DISTRICT!Z19<>"Inconnu",Z19<>"Non requis"),COUNTRY_INFO!P19*DISTRICT!AO19,0)) -> 55152.58518 | AT19: 94117 | AU19: Y | AV19: =MAX('MDA4'!R19,'T1'!L19,'T2'!J19,T3_R1!K19,T3_R2!K19) -> 0 | AW19: =MAX('MDA1'!K19,'MDA4'!S19,'MDA3'!I19,'MDA3'!L19,'T1'!M19,'T2'!K19,T3_R1!L19,T3_R2!L19) -> 32812 | AX19: =MAX('MDA1'!L19,'MDA4'!T19,'MDA3'!J19,'MDA3'!M19,'T1'!N19,'T2'!L19,T3_R1!M19,T3_R2!M19) -> 56656.03462 | AY19: 89468.03462 | AZ19: =MAX('MDA4'!R19,T19) -> 0 | BA19: =MAX('MDA1'!K19,'MDA4'!S19,'MDA3'!I19,'MDA3'!L19,V19,AD19) -> 25997.96538 | BB19: =MAX('MDA1'!L19,'MDA4'!T19,'MDA3'!J19,'MDA3'!M19,AF19) -> 56656.03462 | BC19: 82654 | BD19: 87.82047877
A20: =IF(COUNTRY_INFO!A20=0," ",COUNTRY_INFO!A20) -> Congo | B20: =IF(COUNTRY_INFO!B20=0," ",COUNTRY_INFO!B20) -> Brazzaville | C20: =IF(COUNTRY_INFO!C20=0," ",COUNTRY_INFO!C20) -> Moungali | D20: =COUNTRY_INFO!M20 -> 0 | G20: =MAX('MDA1'!M20,'MDA4'!U20) -> 0 | H20: =IF(AND(COUNTRY_INFO!H20>0,COUNTRY_INFO!H20<4),IF(D20>MAX('MDA1'!M20,'MDA4'!U20),MAX('MDA1'!M20,'MDA4'!U20),D20),0) -> 0 | I20: =IF(AND(COUNTRY_INFO!H20>0,COUNTRY_INFO!H20<4), IF(G20/D20*100<>0, IF(G20/D20*100>100,100,G20/D20*100), "-"),0) -> 0 | J20: =COUNTRY_INFO!N20 -> 0 | M20: =MAX('MDA1'!M20,MAX('MDA3'!I20,'MDA3'!L20)+MAX('MDA3'!J20,'MDA3'!M20)) -> 0 | N20: =IF(AND(COUNTRY_INFO!I20>0,COUNTRY_INFO!I20<4),IF(J20>MAX('MDA1'!M20,MAX('MDA3'!I20,'MDA3'!L20)+MAX('MDA3'!J20,'MDA3'!M20)),MAX('MDA1'!M20,MAX('MDA3'!I20,'MDA3'!L20)+MAX('MDA3'!J20,'MDA3'!M20)),J20),0) -> 0 | O20: =IF(AND(COUNTRY_INFO!I20>0,COUNTRY_INFO!I20<4), IF(M20/J20*100<>0, IF(M20/J20*100>100,100,M20/J20*100), "-"),0) -> 0 | P20: =COUNTRY_INFO!O20 -> 0 | S20: =SUM(MAX('MDA4'!R20, 'T1'!L20, MAX(T3_R1!K20, T3_R2!K20)), MAX('MDA1'!K20, 'MDA4'!S20, 'T1'!M20, MAX(T3_R1!L20, T3_R2!L20)), MAX('MDA1'!L20, 'MDA4'!T20, 'T1'!N20, MAX(T3_R1!M20, T3_R2!M20))) -> 22849 | T20: =IF(AND(COUNTRY_INFO!J20>1,COUNTRY_INFO!J20<4),IF(COUNTRY_INFO!E20>MAX('MDA4'!R20,'T1'!L20,MAX(T3_R1!K20,T3_R2!K20)),MAX('MDA4'!R20,'T1'!L20,MAX(T3_R1!K20,T3_R2!K20)),COUNTRY_INFO!E20),0) -> 0 | U20: =IF(AND(COUNTRY_INFO!J20>1,COUNTRY_INFO!J20<4), IF(T20/COUNTRY_INFO!E20*100<>0, IF(T20/COUNTRY_INFO!E20*100>100,100,T20/COUNTRY_INFO!E20*100), "-"),0) -> 0 | V20: =IF(AND(COUNTRY_INFO!J20>1,COUNTRY_INFO!J20<4),IF(COUNTRY_INFO!F20>MAX('MDA1'!K20,'MDA4'!S20,'T1'!M20,MAX(T3_R1!L20,T3_R2!L20)),MAX('MDA1'!K20,'MDA4'!S20,'T1'!M20,MAX(T3_R1!L20,T3_R2!L20)),COUNTRY_INFO!F20),0) -> 0 | W20: =IF(AND(COUNTRY_INFO!J20>1,COUNTRY_INFO!J20<4), IF(V20/COUNTRY_INFO!F20*100<>0, IF(V20/COUNTRY_INFO!F20*100>100,100,V20/COUNTRY_INFO!F20*100), "-"),0) -> 0 | X20: 0 | Y20: =IF(AND(COUNTRY_INFO!J20>1,COUNTRY_INFO!J20<4), IF(S20/P20*100<>0, IF(X20/P20*100>100,100,X20/P20*100), "-"),0) -> 0 | Z20: =COUNTRY_INFO!P20 -> 22167.75 | AC20: =MAX('T1'!L20,'T2'!J20)+MAX('T1'!M20,'T2'!K20)+MAX('T1'!N20,'T2'!L20) -> 0 | AD20: =IF(COUNTRY_INFO!K20=1,IF(COUNTRY_INFO!F20*0.33>MAX('T1'!M20,'T2'!K20),MAX('T1'!M20,'T2'!K20),COUNTRY_INFO!F20*0.33),IF(COUNTRY_INFO!K20=2,IF(COUNTRY_INFO!F20*0.5>MAX('T1'!M20,'T2'!K20),MAX('T1'!M20,'T2'!K20),COUNTRY_INFO!F20*0.5),IF(COUNTRY_INFO!K20=3,IF(COUNTRY_INFO!F20>MAX('T1'!M20,'T2'!K20),MAX('T1'!M20,'T2'!K20),COUNTRY_INFO!F20),0))) -> 0 | AE20: =IF(AND(COUNTRY_INFO!K20>0,COUNTRY_INFO!K20<4),IF(Z20>0,IF(COUNTRY_INFO!K20=1, AD20/(COUNTRY_INFO!F20*0.33)*100, IF(COUNTRY_INFO!K20=2, AD20/(COUNTRY_INFO!F20*0.5)*100, IF(COUNTRY_INFO!K20=3, AD20/COUNTRY_INFO!F20*100))),"-"),0) -> 0 | AF20: =IF(COUNTRY_INFO!K20=2,IF(COUNTRY_INFO!G20*0.2>MAX('T1'!N20,'T2'!L20),MAX('T1'!N20,'T2'!L20),COUNTRY_INFO!G20*0.2),IF(COUNTRY_INFO!K20=3,IF(COUNTRY_INFO!G20>MAX('T1'!N20,'T2'!L20),MAX('T1'!N20,'T2'!L20),COUNTRY_INFO!G20),0)) -> 0 | AG20: =IF(AND(COUNTRY_INFO!K20>0,COUNTRY_INFO!K20<4),IF(Z20>0,IF(COUNTRY_INFO!K20=1, 0, IF(COUNTRY_INFO!K20=2, AF20/(COUNTRY_INFO!G20*0.2)*100, IF(COUNTRY_INFO!K20=3, AF20/COUNTRY_INFO!G20*100))),"-"),0) -> 0 | AH20: 0 | AI20: =IF(AND(COUNTRY_INFO!K20>0,COUNTRY_INFO!K20<4), IF(AC20/Z20*100<>0, IF(AH20/Z20*100>100,100,AH20/Z20*100), "-"),0) -> - | AK20: =IF(AND(D20<>0, D20<>"Inconnu",D20<>"Interrompu",D20<>"Non requis"),D20/COUNTRY_INFO!D20, 0) -> 0 | AL20: =IF(AND(J20<>0,J20<>"Inconnu",J20<>"Interrompu",J20<>"Non requis"),J20/COUNTRY_INFO!D20, 0) -> 0 | AM20: =IF(AND(P20<>0,P20<>"Inconnu",P20<>"Non requis"),P20/(COUNTRY_INFO!E20+COUNTRY_INFO!F20), 0) -> 0 | AN20: =IF(AND(Z20<>0,Z20<>"Inconnu",Z20<>"Non requis"),IF(COUNTRY_INFO!K20=1,1,IF(COUNTRY_INFO!K20=2,0.5*COUNTRY_INFO!F20/(0.5*COUNTRY_INFO!F20+0.2*COUNTRY_INFO!G20),IF(COUNTRY_INFO!K20=3,COUNTRY_INFO!F20/(COUNTRY_INFO!F20+COUNTRY_INFO!G20)))),0) -> 1 | AO20: =IF(AND(Z20<>0,Z20<>"Inconnu",Z20<>"Non requis"),IF(COUNTRY_INFO!K20=1,0,IF(COUNTRY_INFO!K20=2,0.2*COUNTRY_INFO!G20/(0.5*COUNTRY_INFO!F20+0.2*COUNTRY_INFO!G20),IF(COUNTRY_INFO!K20=3,COUNTRY_INFO!G20/(COUNTRY_INFO!F20+COUNTRY_INFO!G20)))),0) -> 0 | AP20: =MAX(COUNTRY_INFO!D20*AK20*PROFILE!$G$7,COUNTRY_INFO!D20*AL20*PROFILE!$G$7) -> 0 | AQ20: =MAX(COUNTRY_INFO!D20*AK20*PROFILE!$G$8,COUNTRY_INFO!D20*AL20*PROFILE!$G$8,COUNTRY_INFO!D20*AM20*PROFILE!$G$8) -> 0 | AR20: =MAX(COUNTRY_INFO!D20*AK20*PROFILE!$G$9,COUNTRY_INFO!D20*AL20*PROFILE!$G$9,COUNTRY_INFO!D20*AM20*PROFILE!$G$9,IF(AND(DISTRICT!Z20<>"Inconnu",Z20<>"Non requis"),COUNTRY_INFO!P20*DISTRICT!AN20,0)) -> 22167.75 | AS20: =MAX(COUNTRY_INFO!D20*AK20*PROFILE!$G$10,COUNTRY_INFO!D20*AL20*PROFILE!$G$10,IF(AND(DISTRICT!Z20<>"Inconnu",Z20<>"Non requis"),COUNTRY_INFO!P20*DISTRICT!AO20,0)) -> 0 | AT20: 22167.75 | AU20: 0 | AV20: =MAX('MDA4'!R20,'T1'!L20,'T2'!J20,T3_R1!K20,T3_R2!K20) -> 0 | AW20: =MAX('MDA1'!K20,'MDA4'!S20,'MDA3'!I20,'MDA3'!L20,'T1'!M20,'T2'!K20,T3_R1!L20,T3_R2!L20) -> 22690 | AX20: =MAX('MDA1'!L20,'MDA4'!T20,'MDA3'!J20,'MDA3'!M20,'T1'!N20,'T2'!L20,T3_R1!M20,T3_R2!M20) -> 159 | AY20: 22849 | AZ20: =MAX('MDA4'!R20,T20) -> 0 | BA20: =MAX('MDA1'!K20,'MDA4'!S20,'MDA3'!I20,'MDA3'!L20,V20,AD20) -> 0 | BB20: =MAX('MDA1'!L20,'MDA4'!T20,'MDA3'!J20,'MDA3'!M20,AF20) -> 0 | BC20: 0 | BD20: 0
A21: =IF(COUNTRY_INFO!A21=0," ",COUNTRY_INFO!A21) -> Congo | B21: =IF(COUNTRY_INFO!B21=0," ",COUNTRY_INFO!B21) -> Brazzaville | C21: =IF(COUNTRY_INFO!C21=0," ",COUNTRY_INFO!C21) -> Ouenzé | D21: =COUNTRY_INFO!M21 -> 0 | G21: =MAX('MDA1'!M21,'MDA4'!U21) -> 0 | H21: =IF(AND(COUNTRY_INFO!H21>0,COUNTRY_INFO!H21<4),IF(D21>MAX('MDA1'!M21,'MDA4'!U21),MAX('MDA1'!M21,'MDA4'!U21),D21),0) -> 0 | I21: =IF(AND(COUNTRY_INFO!H21>0,COUNTRY_INFO!H21<4), IF(G21/D21*100<>0, IF(G21/D21*100>100,100,G21/D21*100), "-"),0) -> 0 | J21: =COUNTRY_INFO!N21 -> 0 | M21: =MAX('MDA1'!M21,MAX('MDA3'!I21,'MDA3'!L21)+MAX('MDA3'!J21,'MDA3'!M21)) -> 0 | N21: =IF(AND(COUNTRY_INFO!I21>0,COUNTRY_INFO!I21<4),IF(J21>MAX('MDA1'!M21,MAX('MDA3'!I21,'MDA3'!L21)+MAX('MDA3'!J21,'MDA3'!M21)),MAX('MDA1'!M21,MAX('MDA3'!I21,'MDA3'!L21)+MAX('MDA3'!J21,'MDA3'!M21)),J21),0) -> 0 | O21: =IF(AND(COUNTRY_INFO!I21>0,COUNTRY_INFO!I21<4), IF(M21/J21*100<>0, IF(M21/J21*100>100,100,M21/J21*100), "-"),0) -> 0 | P21: =COUNTRY_INFO!O21 -> 0 | S21: =SUM(MAX('MDA4'!R21, 'T1'!L21, MAX(T3_R1!K21, T3_R2!K21)), MAX('MDA1'!K21, 'MDA4'!S21, 'T1'!M21, MAX(T3_R1!L21, T3_R2!L21)), MAX('MDA1'!L21, 'MDA4'!T21, 'T1'!N21, MAX(T3_R1!M21, T3_R2!M21))) -> 30107 | T21: =IF(AND(COUNTRY_INFO!J21>1,COUNTRY_INFO!J21<4),IF(COUNTRY_INFO!E21>MAX('MDA4'!R21,'T1'!L21,MAX(T3_R1!K21,T3_R2!K21)),MAX('MDA4'!R21,'T1'!L21,MAX(T3_R1!K21,T3_R2!K21)),COUNTRY_INFO!E21),0) -> 0 | U21: =IF(AND(COUNTRY_INFO!J21>1,COUNTRY_INFO!J21<4), IF(T21/COUNTRY_INFO!E21*100<>0, IF(T21/COUNTRY_INFO!E21*100>100,100,T21/COUNTRY_INFO!E21*100), "-"),0) -> 0 | V21: =IF(AND(COUNTRY_INFO!J21>1,COUNTRY_INFO!J21<4),IF(COUNTRY_INFO!F21>MAX('MDA1'!K21,'MDA4'!S21,'T1'!M21,MAX(T3_R1!L21,T3_R2!L21)),MAX('MDA1'!K21,'MDA4'!S21,'T1'!M21,MAX(T3_R1!L21,T3_R2!L21)),COUNTRY_INFO!F21),0) -> 0 | W21: =IF(AND(COUNTRY_INFO!J21>1,COUNTRY_INFO!J21<4), IF(V21/COUNTRY_INFO!F21*100<>0, IF(V21/COUNTRY_INFO!F21*100>100,100,V21/COUNTRY_INFO!F21*100), "-"),0) -> 0 | X21: 0 | Y21: =IF(AND(COUNTRY_INFO!J21>1,COUNTRY_INFO!J21<4), IF(S21/P21*100<>0, IF(X21/P21*100>100,100,X21/P21*100), "-"),0) -> 0 | Z21: =COUNTRY_INFO!P21 -> 0 | AC21: =MAX('T1'!L21,'T2'!J21)+MAX('T1'!M21,'T2'!K21)+MAX('T1'!N21,'T2'!L21) -> 0 | AD21: =IF(COUNTRY_INFO!K21=1,IF(COUNTRY_INFO!F21*0.33>MAX('T1'!M21,'T2'!K21),MAX('T1'!M21,'T2'!K21),COUNTRY_INFO!F21*0.33),IF(COUNTRY_INFO!K21=2,IF(COUNTRY_INFO!F21*0.5>MAX('T1'!M21,'T2'!K21),MAX('T1'!M21,'T2'!K21),COUNTRY_INFO!F21*0.5),IF(COUNTRY_INFO!K21=3,IF(COUNTRY_INFO!F21>MAX('T1'!M21,'T2'!K21),MAX('T1'!M21,'T2'!K21),COUNTRY_INFO!F21),0))) -> 0 | AE21: =IF(AND(COUNTRY_INFO!K21>0,COUNTRY_INFO!K21<4),IF(Z21>0,IF(COUNTRY_INFO!K21=1, AD21/(COUNTRY_INFO!F21*0.33)*100, IF(COUNTRY_INFO!K21=2, AD21/(COUNTRY_INFO!F21*0.5)*100, IF(COUNTRY_INFO!K21=3, AD21/COUNTRY_INFO!F21*100))),"-"),0) -> 0 | AF21: =IF(COUNTRY_INFO!K21=2,IF(COUNTRY_INFO!G21*0.2>MAX('T1'!N21,'T2'!L21),MAX('T1'!N21,'T2'!L21),COUNTRY_INFO!G21*0.2),IF(COUNTRY_INFO!K21=3,IF(COUNTRY_INFO!G21>MAX('T1'!N21,'T2'!L21),MAX('T1'!N21,'T2'!L21),COUNTRY_INFO!G21),0)) -> 0 | AG21: =IF(AND(COUNTRY_INFO!K21>0,COUNTRY_INFO!K21<4),IF(Z21>0,IF(COUNTRY_INFO!K21=1, 0, IF(COUNTRY_INFO!K21=2, AF21/(COUNTRY_INFO!G21*0.2)*100, IF(COUNTRY_INFO!K21=3, AF21/COUNTRY_INFO!G21*100))),"-"),0) -> 0 | AH21: 0 | AI21: =IF(AND(COUNTRY_INFO!K21>0,COUNTRY_INFO!K21<4), IF(AC21/Z21*100<>0, IF(AH21/Z21*100>100,100,AH21/Z21*100), "-"),0) -> 0 | AK21: =IF(AND(D21<>0, D21<>"Inconnu",D21<>"Interrompu",D21<>"Non requis"),D21/COUNTRY_INFO!D21, 0) -> 0 | AL21: =IF(AND(J21<>0,J21<>"Inconnu",J21<>"Interrompu",J21<>"Non requis"),J21/COUNTRY_INFO!D21, 0) -> 0 | AM21: =IF(AND(P21<>0,P21<>"Inconnu",P21<>"Non requis"),P21/(COUNTRY_INFO!E21+COUNTRY_INFO!F21), 0) -> 0 | AN21: =IF(AND(Z21<>0,Z21<>"Inconnu",Z21<>"Non requis"),IF(COUNTRY_INFO!K21=1,1,IF(COUNTRY_INFO!K21=2,0.5*COUNTRY_INFO!F21/(0.5*COUNTRY_INFO!F21+0.2*COUNTRY_INFO!G21),IF(COUNTRY_INFO!K21=3,COUNTRY_INFO!F21/(COUNTRY_INFO!F21+COUNTRY_INFO!G21)))),0) -> 0 | AO21: =IF(AND(Z21<>0,Z21<>"Inconnu",Z21<>"Non requis"),IF(COUNTRY_INFO!K21=1,0,IF(COUNTRY_INFO!K21=2,0.2*COUNTRY_INFO!G21/(0.5*COUNTRY_INFO!F21+0.2*COUNTRY_INFO!G21),IF(COUNTRY_INFO!K21=3,COUNTRY_INFO!G21/(COUNTRY_INFO!F21+COUNTRY_INFO!G21)))),0) -> 0 | AP21: =MAX(COUNTRY_INFO!D21*AK21*PROFILE!$G$7,COUNTRY_INFO!D21*AL21*PROFILE!$G$7) -> 0 | AQ21: =MAX(COUNTRY_INFO!D21*AK21*PROFILE!$G$8,COUNTRY_INFO!D21*AL21*PROFILE!$G$8,COUNTRY_INFO!D21*AM21*PROFILE!$G$8) -> 0 | AR21: =MAX(COUNTRY_INFO!D21*AK21*PROFILE!$G$9,COUNTRY_INFO!D21*AL21*PROFILE!$G$9,COUNTRY_INFO!D21*AM21*PROFILE!$G$9,IF(AND(DISTRICT!Z21<>"Inconnu",Z21<>"Non requis"),COUNTRY_INFO!P21*DISTRICT!AN21,0)) -> 0 | AS21: =MAX(COUNTRY_INFO!D21*AK21*PROFILE!$G$10,COUNTRY_INFO!D21*AL21*PROFILE!$G$10,IF(AND(DISTRICT!Z21<>"Inconnu",Z21<>"Non requis"),COUNTRY_INFO!P21*DISTRICT!AO21,0)) -> 0 | AT21: 0 | AU21: 0 | AV21: =MAX('MDA4'!R21,'T1'!L21,'T2'!J21,T3_R1!K21,T3_R2!K21) -> 0 | AW21: =MAX('MDA1'!K21,'MDA4'!S21,'MDA3'!I21,'MDA3'!L21,'T1'!M21,'T2'!K21,T3_R1!L21,T3_R2!L21) -> 29882 | AX21: =MAX('MDA1'!L21,'MDA4'!T21,'MDA3'!J21,'MDA3'!M21,'T1'!N21,'T2'!L21,T3_R1!M21,T3_R2!M21) -> 225 | AY21: 30107 | AZ21: =MAX('MDA4'!R21,T21) -> 0 | BA21: =MAX('MDA1'!K21,'MDA4'!S21,'MDA3'!I21,'MDA3'!L21,V21,AD21) -> 0 | BB21: =MAX('MDA1'!L21,'MDA4'!T21,'MDA3'!J21,'MDA3'!M21,AF21) -> 0 | BC21: 0 | BD21: 0
A22: =IF(COUNTRY_INFO!A22=0," ",COUNTRY_INFO!A22) -> Congo | B22: =IF(COUNTRY_INFO!B22=0," ",COUNTRY_INFO!B22) -> Brazzaville | C22: =IF(COUNTRY_INFO!C22=0," ",COUNTRY_INFO!C22) -> Poto-Poto | D22: =COUNTRY_INFO!M22 -> 0 | G22: =MAX('MDA1'!M22,'MDA4'!U22) -> 0 | H22: =IF(AND(COUNTRY_INFO!H22>0,COUNTRY_INFO!H22<4),IF(D22>MAX('MDA1'!M22,'MDA4'!U22),MAX('MDA1'!M22,'MDA4'!U22),D22),0) -> 0 | I22: =IF(AND(COUNTRY_INFO!H22>0,COUNTRY_INFO!H22<4), IF(G22/D22*100<>0, IF(G22/D22*100>100,100,G22/D22*100), "-"),0) -> 0 | J22: =COUNTRY_INFO!N22 -> 0 | M22: =MAX('MDA1'!M22,MAX('MDA3'!I22,'MDA3'!L22)+MAX('MDA3'!J22,'MDA3'!M22)) -> 0 | N22: =IF(AND(COUNTRY_INFO!I22>0,COUNTRY_INFO!I22<4),IF(J22>MAX('MDA1'!M22,MAX('MDA3'!I22,'MDA3'!L22)+MAX('MDA3'!J22,'MDA3'!M22)),MAX('MDA1'!M22,MAX('MDA3'!I22,'MDA3'!L22)+MAX('MDA3'!J22,'MDA3'!M22)),J22),0) -> 0 | O22: =IF(AND(COUNTRY_INFO!I22>0,COUNTRY_INFO!I22<4), IF(M22/J22*100<>0, IF(M22/J22*100>100,100,M22/J22*100), "-"),0) -> 0 | P22: =COUNTRY_INFO!O22 -> 0 | S22: =SUM(MAX('MDA4'!R22, 'T1'!L22, MAX(T3_R1!K22, T3_R2!K22)), MAX('MDA1'!K22, 'MDA4'!S22, 'T1'!M22, MAX(T3_R1!L22, T3_R2!L22)), MAX('MDA1'!L22, 'MDA4'!T22, 'T1'!N22, MAX(T3_R1!M22, T3_R2!M22))) -> 10122 | T22: =IF(AND(COUNTRY_INFO!J22>1,COUNTRY_INFO!J22<4),IF(COUNTRY_INFO!E22>MAX('MDA4'!R22,'T1'!L22,MAX(T3_R1!K22,T3_R2!K22)),MAX('MDA4'!R22,'T1'!L22,MAX(T3_R1!K22,T3_R2!K22)),COUNTRY_INFO!E22),0) -> 0 | U22: =IF(AND(COUNTRY_INFO!J22>1,COUNTRY_INFO!J22<4), IF(T22/COUNTRY_INFO!E22*100<>0, IF(T22/COUNTRY_INFO!E22*100>100,100,T22/COUNTRY_INFO!E22*100), "-"),0) -> 0 | V22: =IF(AND(COUNTRY_INFO!J22>1,COUNTRY_INFO!J22<4),IF(COUNTRY_INFO!F22>MAX('MDA1'!K22,'MDA4'!S22,'T1'!M22,MAX(T3_R1!L22,T3_R2!L22)),MAX('MDA1'!K22,'MDA4'!S22,'T1'!M22,MAX(T3_R1!L22,T3_R2!L22)),COUNTRY_INFO!F22),0) -> 0 | W22: =IF(AND(COUNTRY_INFO!J22>1,COUNTRY_INFO!J22<4), IF(V22/COUNTRY_INFO!F22*100<>0, IF(V22/COUNTRY_INFO!F22*100>100,100,V22/COUNTRY_INFO!F22*100), "-"),0) -> 0 | X22: 0 | Y22: =IF(AND(COUNTRY_INFO!J22>1,COUNTRY_INFO!J22<4), IF(S22/P22*100<>0, IF(X22/P22*100>100,100,X22/P22*100), "-"),0) -> 0 | Z22: =COUNTRY_INFO!P22 -> 0 | AC22: =MAX('T1'!L22,'T2'!J22)+MAX('T1'!M22,'T2'!K22)+MAX('T1'!N22,'T2'!L22) -> 0 | AD22: =IF(COUNTRY_INFO!K22=1,IF(COUNTRY_INFO!F22*0.33>MAX('T1'!M22,'T2'!K22),MAX('T1'!M22,'T2'!K22),COUNTRY_INFO!F22*0.33),IF(COUNTRY_INFO!K22=2,IF(COUNTRY_INFO!F22*0.5>MAX('T1'!M22,'T2'!K22),MAX('T1'!M22,'T2'!K22),COUNTRY_INFO!F22*0.5),IF(COUNTRY_INFO!K22=3,IF(COUNTRY_INFO!F22>MAX('T1'!M22,'T2'!K22),MAX('T1'!M22,'T2'!K22),COUNTRY_INFO!F22),0))) -> 0 | AE22: =IF(AND(COUNTRY_INFO!K22>0,COUNTRY_INFO!K22<4),IF(Z22>0,IF(COUNTRY_INFO!K22=1, AD22/(COUNTRY_INFO!F22*0.33)*100, IF(COUNTRY_INFO!K22=2, AD22/(COUNTRY_INFO!F22*0.5)*100, IF(COUNTRY_INFO!K22=3, AD22/COUNTRY_INFO!F22*100))),"-"),0) -> 0 | AF22: =IF(COUNTRY_INFO!K22=2,IF(COUNTRY_INFO!G22*0.2>MAX('T1'!N22,'T2'!L22),MAX('T1'!N22,'T2'!L22),COUNTRY_INFO!G22*0.2),IF(COUNTRY_INFO!K22=3,IF(COUNTRY_INFO!G22>MAX('T1'!N22,'T2'!L22),MAX('T1'!N22,'T2'!L22),COUNTRY_INFO!G22),0)) -> 0 | AG22: =IF(AND(COUNTRY_INFO!K22>0,COUNTRY_INFO!K22<4),IF(Z22>0,IF(COUNTRY_INFO!K22=1, 0, IF(COUNTRY_INFO!K22=2, AF22/(COUNTRY_INFO!G22*0.2)*100, IF(COUNTRY_INFO!K22=3, AF22/COUNTRY_INFO!G22*100))),"-"),0) -> 0 | AH22: 0 | AI22: =IF(AND(COUNTRY_INFO!K22>0,COUNTRY_INFO!K22<4), IF(AC22/Z22*100<>0, IF(AH22/Z22*100>100,100,AH22/Z22*100), "-"),0) -> 0 | AK22: =IF(AND(D22<>0, D22<>"Inconnu",D22<>"Interrompu",D22<>"Non requis"),D22/COUNTRY_INFO!D22, 0) -> 0 | AL22: =IF(AND(J22<>0,J22<>"Inconnu",J22<>"Interrompu",J22<>"Non requis"),J22/COUNTRY_INFO!D22, 0) -> 0 | AM22: =IF(AND(P22<>0,P22<>"Inconnu",P22<>"Non requis"),P22/(COUNTRY_INFO!E22+COUNTRY_INFO!F22), 0) -> 0 | AN22: =IF(AND(Z22<>0,Z22<>"Inconnu",Z22<>"Non requis"),IF(COUNTRY_INFO!K22=1,1,IF(COUNTRY_INFO!K22=2,0.5*COUNTRY_INFO!F22/(0.5*COUNTRY_INFO!F22+0.2*COUNTRY_INFO!G22),IF(COUNTRY_INFO!K22=3,COUNTRY_INFO!F22/(COUNTRY_INFO!F22+COUNTRY_INFO!G22)))),0) -> 0 | AO22: =IF(AND(Z22<>0,Z22<>"Inconnu",Z22<>"Non requis"),IF(COUNTRY_INFO!K22=1,0,IF(COUNTRY_INFO!K22=2,0.2*COUNTRY_INFO!G22/(0.5*COUNTRY_INFO!F22+0.2*COUNTRY_INFO!G22),IF(COUNTRY_INFO!K22=3,COUNTRY_INFO!G22/(COUNTRY_INFO!F22+COUNTRY_INFO!G22)))),0) -> 0 | AP22: =MAX(COUNTRY_INFO!D22*AK22*PROFILE!$G$7,COUNTRY_INFO!D22*AL22*PROFILE!$G$7) -> 0 | AQ22: =MAX(COUNTRY_INFO!D22*AK22*PROFILE!$G$8,COUNTRY_INFO!D22*AL22*PROFILE!$G$8,COUNTRY_INFO!D22*AM22*PROFILE!$G$8) -> 0 | AR22: =MAX(COUNTRY_INFO!D22*AK22*PROFILE!$G$9,COUNTRY_INFO!D22*AL22*PROFILE!$G$9,COUNTRY_INFO!D22*AM22*PROFILE!$G$9,IF(AND(DISTRICT!Z22<>"Inconnu",Z22<>"Non requis"),COUNTRY_INFO!P22*DISTRICT!AN22,0)) -> 0 | AS22: =MAX(COUNTRY_INFO!D22*AK22*PROFILE!$G$10,COUNTRY_INFO!D22*AL22*PROFILE!$G$10,IF(AND(DISTRICT!Z22<>"Inconnu",Z22<>"Non requis"),COUNTRY_INFO!P22*DISTRICT!AO22,0)) -> 0 | AT22: 0 | AU22: 0 | AV22: =MAX('MDA4'!R22,'T1'!L22,'T2'!J22,T3_R1!K22,T3_R2!K22) -> 0 | AW22: =MAX('MDA1'!K22,'MDA4'!S22,'MDA3'!I22,'MDA3'!L22,'T1'!M22,'T2'!K22,T3_R1!L22,T3_R2!L22) -> 10113 | AX22: =MAX('MDA1'!L22,'MDA4'!T22,'MDA3'!J22,'MDA3'!M22,'T1'!N22,'T2'!L22,T3_R1!M22,T3_R2!M22) -> 9 | AY22: 10122 | AZ22: =MAX('MDA4'!R22,T22) -> 0 | BA22: =MAX('MDA1'!K22,'MDA4'!S22,'MDA3'!I22,'MDA3'!L22,V22,AD22) -> 0 | BB22: =MAX('MDA1'!L22,'MDA4'!T22,'MDA3'!J22,'MDA3'!M22,AF22) -> 0 | BC22: 0 | BD22: 0
A23: =IF(COUNTRY_INFO!A23=0," ",COUNTRY_INFO!A23) -> Congo | B23: =IF(COUNTRY_INFO!B23=0," ",COUNTRY_INFO!B23) -> Brazzaville | C23: =IF(COUNTRY_INFO!C23=0," ",COUNTRY_INFO!C23) -> Talangaî | D23: =COUNTRY_INFO!M23 -> 0 | G23: =MAX('MDA1'!M23,'MDA4'!U23) -> 0 | H23: =IF(AND(COUNTRY_INFO!H23>0,COUNTRY_INFO!H23<4),IF(D23>MAX('MDA1'!M23,'MDA4'!U23),MAX('MDA1'!M23,'MDA4'!U23),D23),0) -> 0 | I23: =IF(AND(COUNTRY_INFO!H23>0,COUNTRY_INFO!H23<4), IF(G23/D23*100<>0, IF(G23/D23*100>100,100,G23/D23*100), "-"),0) -> 0 | J23: =COUNTRY_INFO!N23 -> 0 | M23: =MAX('MDA1'!M23,MAX('MDA3'!I23,'MDA3'!L23)+MAX('MDA3'!J23,'MDA3'!M23)) -> 0 | N23: =IF(AND(COUNTRY_INFO!I23>0,COUNTRY_INFO!I23<4),IF(J23>MAX('MDA1'!M23,MAX('MDA3'!I23,'MDA3'!L23)+MAX('MDA3'!J23,'MDA3'!M23)),MAX('MDA1'!M23,MAX('MDA3'!I23,'MDA3'!L23)+MAX('MDA3'!J23,'MDA3'!M23)),J23),0) -> 0 | O23: =IF(AND(COUNTRY_INFO!I23>0,COUNTRY_INFO!I23<4), IF(M23/J23*100<>0, IF(M23/J23*100>100,100,M23/J23*100), "-"),0) -> 0 | P23: =COUNTRY_INFO!O23 -> 0 | S23: =SUM(MAX('MDA4'!R23, 'T1'!L23, MAX(T3_R1!K23, T3_R2!K23)), MAX('MDA1'!K23, 'MDA4'!S23, 'T1'!M23, MAX(T3_R1!L23, T3_R2!L23)), MAX('MDA1'!L23, 'MDA4'!T23, 'T1'!N23, MAX(T3_R1!M23, T3_R2!M23))) -> 47994 | T23: =IF(AND(COUNTRY_INFO!J23>1,COUNTRY_INFO!J23<4),IF(COUNTRY_INFO!E23>MAX('MDA4'!R23,'T1'!L23,MAX(T3_R1!K23,T3_R2!K23)),MAX('MDA4'!R23,'T1'!L23,MAX(T3_R1!K23,T3_R2!K23)),COUNTRY_INFO!E23),0) -> 0 | U23: =IF(AND(COUNTRY_INFO!J23>1,COUNTRY_INFO!J23<4), IF(T23/COUNTRY_INFO!E23*100<>0, IF(T23/COUNTRY_INFO!E23*100>100,100,T23/COUNTRY_INFO!E23*100), "-"),0) -> 0 | V23: =IF(AND(COUNTRY_INFO!J23>1,COUNTRY_INFO!J23<4),IF(COUNTRY_INFO!F23>MAX('MDA1'!K23,'MDA4'!S23,'T1'!M23,MAX(T3_R1!L23,T3_R2!L23)),MAX('MDA1'!K23,'MDA4'!S23,'T1'!M23,MAX(T3_R1!L23,T3_R2!L23)),COUNTRY_INFO!F23),0) -> 0 | W23: =IF(AND(COUNTRY_INFO!J23>1,COUNTRY_INFO!J23<4), IF(V23/COUNTRY_INFO!F23*100<>0, IF(V23/COUNTRY_INFO!F23*100>100,100,V23/COUNTRY_INFO!F23*100), "-"),0) -> 0 | X23: 0 | Y23: =IF(AND(COUNTRY_INFO!J23>1,COUNTRY_INFO!J23<4), IF(S23/P23*100<>0, IF(X23/P23*100>100,100,X23/P23*100), "-"),0) -> 0 | Z23: =COUNTRY_INFO!P23 -> 0 | AC23: =MAX('T1'!L23,'T2'!J23)+MAX('T1'!M23,'T2'!K23)+MAX('T1'!N23,'T2'!L23) -> 0 | AD23: =IF(COUNTRY_INFO!K23=1,IF(COUNTRY_INFO!F23*0.33>MAX('T1'!M23,'T2'!K23),MAX('T1'!M23,'T2'!K23),COUNTRY_INFO!F23*0.33),IF(COUNTRY_INFO!K23=2,IF(COUNTRY_INFO!F23*0.5>MAX('T1'!M23,'T2'!K23),MAX('T1'!M23,'T2'!K23),COUNTRY_INFO!F23*0.5),IF(COUNTRY_INFO!K23=3,IF(COUNTRY_INFO!F23>MAX('T1'!M23,'T2'!K23),MAX('T1'!M23,'T2'!K23),COUNTRY_INFO!F23),0))) -> 0 | AE23: =IF(AND(COUNTRY_INFO!K23>0,COUNTRY_INFO!K23<4),IF(Z23>0,IF(COUNTRY_INFO!K23=1, AD23/(COUNTRY_INFO!F23*0.33)*100, IF(COUNTRY_INFO!K23=2, AD23/(COUNTRY_INFO!F23*0.5)*100, IF(COUNTRY_INFO!K23=3, AD23/COUNTRY_INFO!F23*100))),"-"),0) -> 0 | AF23: =IF(COUNTRY_INFO!K23=2,IF(COUNTRY_INFO!G23*0.2>MAX('T1'!N23,'T2'!L23),MAX('T1'!N23,'T2'!L23),COUNTRY_INFO!G23*0.2),IF(COUNTRY_INFO!K23=3,IF(COUNTRY_INFO!G23>MAX('T1'!N23,'T2'!L23),MAX('T1'!N23,'T2'!L23),COUNTRY_INFO!G23),0)) -> 0 | AG23: =IF(AND(COUNTRY_INFO!K23>0,COUNTRY_INFO!K23<4),IF(Z23>0,IF(COUNTRY_INFO!K23=1, 0, IF(COUNTRY_INFO!K23=2, AF23/(COUNTRY_INFO!G23*0.2)*100, IF(COUNTRY_INFO!K23=3, AF23/COUNTRY_INFO!G23*100))),"-"),0) -> 0 | AH23: 0 | AI23: =IF(AND(COUNTRY_INFO!K23>0,COUNTRY_INFO!K23<4), IF(AC23/Z23*100<>0, IF(AH23/Z23*100>100,100,AH23/Z23*100), "-"),0) -> 0 | AK23: =IF(AND(D23<>0, D23<>"Inconnu",D23<>"Interrompu",D23<>"Non requis"),D23/COUNTRY_INFO!D23, 0) -> 0 | AL23: =IF(AND(J23<>0,J23<>"Inconnu",J23<>"Interrompu",J23<>"Non requis"),J23/COUNTRY_INFO!D23, 0) -> 0 | AM23: =IF(AND(P23<>0,P23<>"Inconnu",P23<>"Non requis"),P23/(COUNTRY_INFO!E23+COUNTRY_INFO!F23), 0) -> 0 | AN23: =IF(AND(Z23<>0,Z23<>"Inconnu",Z23<>"Non requis"),IF(COUNTRY_INFO!K23=1,1,IF(COUNTRY_INFO!K23=2,0.5*COUNTRY_INFO!F23/(0.5*COUNTRY_INFO!F23+0.2*COUNTRY_INFO!G23),IF(COUNTRY_INFO!K23=3,COUNTRY_INFO!F23/(COUNTRY_INFO!F23+COUNTRY_INFO!G23)))),0) -> 0 | AO23: =IF(AND(Z23<>0,Z23<>"Inconnu",Z23<>"Non requis"),IF(COUNTRY_INFO!K23=1,0,IF(COUNTRY_INFO!K23=2,0.2*COUNTRY_INFO!G23/(0.5*COUNTRY_INFO!F23+0.2*COUNTRY_INFO!G23),IF(COUNTRY_INFO!K23=3,COUNTRY_INFO!G23/(COUNTRY_INFO!F23+COUNTRY_INFO!G23)))),0) -> 0 | AP23: =MAX(COUNTRY_INFO!D23*AK23*PROFILE!$G$7,COUNTRY_INFO!D23*AL23*PROFILE!$G$7) -> 0 | AQ23: =MAX(COUNTRY_INFO!D23*AK23*PROFILE!$G$8,COUNTRY_INFO!D23*AL23*PROFILE!$G$8,COUNTRY_INFO!D23*AM23*PROFILE!$G$8) -> 0 | AR23: =MAX(COUNTRY_INFO!D23*AK23*PROFILE!$G$9,COUNTRY_INFO!D23*AL23*PROFILE!$G$9,COUNTRY_INFO!D23*AM23*PROFILE!$G$9,IF(AND(DISTRICT!Z23<>"Inconnu",Z23<>"Non requis"),COUNTRY_INFO!P23*DISTRICT!AN23,0)) -> 0 | AS23: =MAX(COUNTRY_INFO!D23*AK23*PROFILE!$G$10,COUNTRY_INFO!D23*AL23*PROFILE!$G$10,IF(AND(DISTRICT!Z23<>"Inconnu",Z23<>"Non requis"),COUNTRY_INFO!P23*DISTRICT!AO23,0)) -> 0 | AT23: 0 | AU23: 0 | AV23: =MAX('MDA4'!R23,'T1'!L23,'T2'!J23,T3_R1!K23,T3_R2!K23) -> 0 | AW23: =MAX('MDA1'!K23,'MDA4'!S23,'MDA3'!I23,'MDA3'!L23,'T1'!M23,'T2'!K23,T3_R1!L23,T3_R2!L23) -> 47429 | AX23: =MAX('MDA1'!L23,'MDA4'!T23,'MDA3'!J23,'MDA3'!M23,'T1'!N23,'T2'!L23,T3_R1!M23,T3_R2!M23) -> 565 | AY23: 47994 | AZ23: =MAX('MDA4'!R23,T23) -> 0 | BA23: =MAX('MDA1'!K23,'MDA4'!S23,'MDA3'!I23,'MDA3'!L23,V23,AD23) -> 0 | BB23: =MAX('MDA1'!L23,'MDA4'!T23,'MDA3'!J23,'MDA3'!M23,AF23) -> 0 | BC23: 0 | BD23: 0
